Workbook

Sheet GLOBAL
B2: ORÇAMENTO GLOBAL
B4: OBRA: | C4: TROCA DE COBERTURA E REFORMA ELETRICA EMEF PEDRO NOLASCO
B5: LOCAL: | C5: JOÃO NEIVA/ES
B6: DATA BASE: | C6: atualizada para SET/2018
B7: ÍTEM | C7: DESCRIÇÃO DOS SERIÇOS | D7: UNID. | E7: QUANT. | F7: VALOR UNIT | G7: TOTAL | H7: % | I7: FONTE | J7: CÓDIGO
B8: 1.0 | C8: =VLOOKUP(B8,'PL LICITADA'!B:I,4,FALSE) -> ADMINISTRAÇÃO LOCAL
B9: 1.1 | C9: =UPPER(IF(I9="COMP",VLOOKUP(B9,COMP!B:M,6,FALSE),IF(GLOBAL!I9="LABOR",VLOOKUP(GLOBAL!J9,'LABOR-SERV'!A:D,2,FALSE),"NÃO"))) -> EQUIPE DE OBRA, INCLUINDO ENGENHEIRO JUNIOR, TECNICO DE SEGUNDO GRAU. | D9: =UPPER(IF(I9="COMP",VLOOKUP(B9,COMP!B:M,7,FALSE),IF(I9="LABOR",VLOOKUP(J9,'LABOR-SERV'!A:D,3,FALSE),"NÃO"))) -> UND | E9: =VLOOKUP(B9,MEMO!B:I,8,FALSE) -> 1.00 | F9: =TRUNC(IF(I9="COMP",VLOOKUP(B9,COMP!B:M,12,FALSE),IF(I9="LABOR",VLOOKUP(J9,'LABOR-SERV'!A:D,4,FALSE),"NÃO")),2) -> R$ 23,257.44 | G9: =E9*F9 -> R$ 23,257.44 | H9: =G9/$G$102 -> 5.13% | I9: COMP | J9: 1
A10: 1.0 | C10: VALOR TOTAL ITEM 1 | G10: =SUM(G9:G9) -> R$ 23,257.44 | H10: =G10/$G$102 -> 5.13%
B11: 2.0 | C11: =VLOOKUP(B11,'PL LICITADA'!B:I,4,FALSE) -> SERVIÇOS PRELIMINARES
B12: 2.1 | C12: =UPPER(IF(I12="COMP",VLOOKUP(B12,COMP!B:M,6,FALSE),IF(GLOBAL!I12="LABOR",VLOOKUP(GLOBAL!J12,'LABOR-SERV'!A:D,2,FALSE),"NÃO"))) -> REMOÇÃO DE TELHA ONDULADA DE FIBROCIMENTO, INCLUSIVE CUMEEIRA | D12: =UPPER(IF(I12="COMP",VLOOKUP(B12,COMP!B:M,7,FALSE),IF(I12="LABOR",VLOOKUP(J12,'LABOR-SERV'!A:D,3,FALSE),"NÃO"))) -> M2 | E12: =VLOOKUP(B12,MEMO!B:I,8,FALSE) -> 856.00 | F12: R$ 6.14 | G12: =E12*F12 -> R$ 5,255.84 | H12: =G12/$G$102 -> 1.16% | I12: LABOR | J12: 10256
B13: 2.2 | C13: =UPPER(IF(I13="COMP",VLOOKUP(B13,COMP!B:M,6,FALSE),IF(GLOBAL!I13="LABOR",VLOOKUP(GLOBAL!J13,'LABOR-SERV'!A:D,2,FALSE),"NÃO"))) -> RETIRADA DE ESTRUTURA EM MADEIRA DO TELHADO | D13: =UPPER(IF(I13="COMP",VLOOKUP(B13,COMP!B:M,7,FALSE),IF(I13="LABOR",VLOOKUP(J13,'LABOR-SERV'!A:D,3,FALSE),"NÃO"))) -> M2 | E13: =VLOOKUP(B13,MEMO!B:I,8,FALSE) -> 856.00 | F13: R$ 23.56 | G13: R$ 20,167.36 | H13: 4.45% | I13: LABOR | J13: 10326
B14: 2.3 | C14: =UPPER(IF(I14="COMP",VLOOKUP(B14,COMP!B:M,6,FALSE),IF(GLOBAL!I14="LABOR",VLOOKUP(GLOBAL!J14,'LABOR-SERV'!A:D,2,FALSE),"NÃO"))) -> DEMOLIÇÃO DE FORRO DE MADEIRA, SEM REAPROVEITAMENTO | D14: =UPPER(IF(I14="COMP",VLOOKUP(B14,COMP!B:M,7,FALSE),IF(I14="LABOR",VLOOKUP(J14,'LABOR-SERV'!A:D,3,FALSE),"NÃO"))) -> M2 | E14: =VLOOKUP(B14,MEMO!B:I,8,FALSE) -> 278.00 | F14: R$ 5.43 | G14: R$ 1,509.54 | H14: 0.33% | I14: LABOR | J14: 10228
B15: 2.4 | C15: =UPPER(IF(I15="COMP",VLOOKUP(B15,COMP!B:M,6,FALSE),IF(GLOBAL!I15="LABOR",VLOOKUP(GLOBAL!J15,'LABOR-SERV'!A:D,2,FALSE),"NÃO"))) -> DEMOLIÇÃO MANUAL DE CONCRETO SIMPLES (EMOP 05.001.001) | D15: =UPPER(IF(I15="COMP",VLOOKUP(B15,COMP!B:M,7,FALSE),IF(I15="LABOR",VLOOKUP(J15,'LABOR-SERV'!A:D,3,FALSE),"NÃO"))) -> M3 | E15: =VLOOKUP(B15,MEMO!B:I,8,FALSE) -> 4.00 | F15: R$ 225.78 | G15: R$ 903.12 | H15: 0.20% | I15: LABOR | J15: 10210
B16: 2.5 | C16: =UPPER(IF(I16="COMP",VLOOKUP(B16,COMP!B:M,6,FALSE),IF(GLOBAL!I16="LABOR",VLOOKUP(GLOBAL!J16,'LABOR-SERV'!A:D,2,FALSE),"NÃO"))) -> DEMOLIÇÃO DE ALVENARIA | D16: =UPPER(IF(I16="COMP",VLOOKUP(B16,COMP!B:M,7,FALSE),IF(I16="LABOR",VLOOKUP(J16,'LABOR-SERV'!A:D,3,FALSE),"NÃO"))) -> M3 | E16: =VLOOKUP(B16,MEMO!B:I,8,FALSE) -> 17.56 | F16: R$ 48.09 | G16: =E16*F16 -> R$ 844.41 | H16: 0.19% | I16: LABOR | J16: 10209
B17: 2.6 | C17: =UPPER(IF(I17="COMP",VLOOKUP(B17,COMP!B:M,6,FALSE),IF(GLOBAL!I17="LABOR",VLOOKUP(GLOBAL!J17,'LABOR-SERV'!A:D,2,FALSE),"NÃO"))) -> RETIRADA DE PONTOS ELÉTRICOS (LUMINÁRIAS, INTERRUPTORES E TOMADAS) | D17: =UPPER(IF(I17="COMP",VLOOKUP(B17,COMP!B:M,7,FALSE),IF(I17="LABOR",VLOOKUP(J17,'LABOR-SERV'!A:D,3,FALSE),"NÃO"))) -> UND | E17: =VLOOKUP(B17,MEMO!B:I,8,FALSE) -> 126.00 | F17: R$ 8.85 | G17: =E17*F17 -> R$ 1,115.10 | H17: 0.25% | I17: LABOR | J17: 10240
B18: 2.7 | C18: =UPPER(IF(I18="COMP",VLOOKUP(B18,COMP!B:M,6,FALSE),IF(GLOBAL!I18="LABOR",VLOOKUP(GLOBAL!J18,'LABOR-SERV'!A:D,2,FALSE),"NÃO"))) -> ÍNDICE DE PREÇO PARA REMOÇÃO DE ENTULHO DECORRENTE DA EXECUÇÃO DE OBRAS (CLASSE A CONAMA - NBR 10.004 - CLASSE II-B), INCLUINDO ALUGUEL DA CAÇAMBA, CARGA, TRANSPORTE E DESCARGA EM ÁREA LICENCIADA | D18: =UPPER(IF(I18="COMP",VLOOKUP(B18,COMP!B:M,7,FALSE),IF(I18="LABOR",VLOOKUP(J18,'LABOR-SERV'!A:D,3,FALSE),"NÃO"))) -> M3 | E18: =VLOOKUP(B18,MEMO!B:I,8,FALSE) -> 23.48 | F18: R$ 59.68 | G18: R$ 1,401.09 | H18: 0.31% | I18: LABOR | J18: 30304
B19: 2.8 | C19: =UPPER(IF(I19="COMP",VLOOKUP(B19,COMP!B:M,6,FALSE),IF(GLOBAL!I19="LABOR",VLOOKUP(GLOBAL!J19,'LABOR-SERV'!A:D,2,FALSE),"NÃO"))) -> LOCAÇÃO DE ANDAIME METÁLICO PARA TRABALHO EM FACHADA DE EDIFÍCO (ALUGUEL DE 1 M² POR 1 MÊS) INCLUSIVE FRETE, MONTAGEM E DESMONTAGEM | D19: =UPPER(IF(I19="COMP",VLOOKUP(B19,COMP!B:M,7,FALSE),IF(I19="LABOR",VLOOKUP(J19,'LABOR-SERV'!A:D,3,FALSE),"NÃO"))) -> M2 | E19: =VLOOKUP(B19,MEMO!B:I,8,FALSE) -> 420.00 | F19: R$ 11.81 | G19: =E19*F19 -> R$ 4,960.20 | H19: 1.09% | I19: LABOR | J19: 20339
B20: 2.9 | C20: =UPPER(IF(I20="COMP",VLOOKUP(B20,COMP!B:M,6,FALSE),IF(GLOBAL!I20="LABOR",VLOOKUP(GLOBAL!J20,'LABOR-SERV'!A:D,2,FALSE),"NÃO"))) -> ALUGUEL MENSAL CONTAINER PARA ALMOXARIFADO, INCL. PORTA, 2 JANELAS, 1 PT ILUMINAÇÃO, ISOLAMENTO TÉRMICO (TETO), PISO EM COMP. NAVAL PINTADO, CERT. NR18, INCL. LAUDO DESCONTAMINAÇÃO. | D20: =UPPER(IF(I20="COMP",VLOOKUP(B20,COMP!B:M,7,FALSE),IF(I20="LABOR",VLOOKUP(J20,'LABOR-SERV'!A:D,3,FALSE),"NÃO"))) -> MS | E20: =VLOOKUP(B20,MEMO!B:I,8,FALSE) -> 3.00 | F20: R$ 436.33 | G20: =E20*F20 -> R$ 1,308.99 | H20: 0.29% | I20: LABOR | J20: 20356
B21: 2.10 | C21: =UPPER(IF(I21="COMP",VLOOKUP(B21,COMP!B:M,6,FALSE),IF(GLOBAL!I21="LABOR",VLOOKUP(GLOBAL!J21,'LABOR-SERV'!A:D,2,FALSE),"NÃO"))) -> ABERTURA E FECHAMENTO DE RASGOS EM ALVENARIA, PARA PASSAGEM DE ELETRODUTOS DIÂM. 1/2" A 1" | D21: =UPPER(IF(I21="COMP",VLOOKUP(B21,COMP!B:M,7,FALSE),IF(I21="LABOR",VLOOKUP(J21,'LABOR-SERV'!A:D,3,FALSE),"NÃO"))) -> M | E21: =VLOOKUP(B21,MEMO!B:I,8,FALSE) -> 120.00 | F21: R$ 10.33 | G21: =E21*F21 -> R$ 1,239.60 | H21: 0.27% | I21: LABOR | J21: 151601
B22: 2.11 | C22: PLACA DE OBRA NAS DIMENSÕES DE 2.0X4.0 M, PADRÃO IOPES | D22: M2 | E22: =MEMO!I73 -> 8.00 | F22: R$ 277.46 | G22: R$ 2,219.68 | H22: 0.49% | I22: LABOR | J22: 20305
A23: 2.0 | C23: VALOR TOTAL ITEM 2 | G23: =SUM(G12:G22) -> R$ 40,924.93 | H23: 9.03%
B24: 3.0 | C24: PAREDES E PAINÉIS DA COBERTURA
B25: 3.1 | C25: ALVENARIA
B26: 3.1.1 | C26: =UPPER(IF(I26="COMP",VLOOKUP(B26,COMP!B:M,6,FALSE),IF(GLOBAL!I26="LABOR",VLOOKUP(GLOBAL!J26,'LABOR-SERV'!A:D,2,FALSE),"NÃO"))) -> ALVENARIA DE BLOCOS CERÂMICOS 10 FUROS 10X20X20CM, ASSENTADOS C/ARGAMASSA DE CIMENTO, CAL HIDRATADA CH1 E AREIA TRAÇO 1:0,5:8, JUNTAS 12MM E ESP. DAS PAREDES S/REVESTIMENTO, 10CM (BLOCO COMPRADO NA PRAÇA DE VITÓRIA, POSTO OBRA) | D26: =UPPER(IF(I26="COMP",VLOOKUP(B26,COMP!B:M,7,FALSE),IF(I26="LABOR",VLOOKUP(J26,'LABOR-SERV'!A:D,3,FALSE),"NÃO"))) -> M2 | E26: =VLOOKUP(B26,MEMO!B:I,8,FALSE) -> 111.66 | F26: R$ 57.78 | G26: =E26*F26 -> R$ 6,451.43 | H26: =G26/$G$102 -> 1.42% | I26: LABOR | J26: 50605
B27: 3.2 | C27: VIGAS DE TRAVAMENTO
B28: 3.2.1 | C28: =UPPER(IF(I28="COMP",VLOOKUP(B28,COMP!B:M,6,FALSE),IF(GLOBAL!I28="LABOR",VLOOKUP(GLOBAL!J28,'LABOR-SERV'!A:D,2,FALSE),"NÃO"))) -> FORNECIMENTO E APLICAÇÃO DE CONCRETO USINADO FCK=30 MPA - CONSIDERANDO BOMBEAMENTO (5% DE PERDAS JÁ INCLUÍDO NO CUSTO) (6% DE TAXA P/ CONCR. BOMBEAVEL) | D28: =UPPER(IF(I28="COMP",VLOOKUP(B28,COMP!B:M,7,FALSE),IF(I28="LABOR",VLOOKUP(J28,'LABOR-SERV'!A:D,3,FALSE),"NÃO"))) -> M3 | E28: =VLOOKUP(B28,MEMO!B:I,8,FALSE) -> 5.09 | F28: R$ 391.13 | G28: R$ 1,991.88 | H28: =G28/$G$102 -> 0.44% | I28: LABOR | J28: 40331
B29: 3.2.2 | C29: =UPPER(IF(I29="COMP",VLOOKUP(B29,COMP!B:M,6,FALSE),IF(GLOBAL!I29="LABOR",VLOOKUP(GLOBAL!J29,'LABOR-SERV'!A:D,2,FALSE),"NÃO"))) -> FORNECIMENTO, DOBRAGEM E COLOCAÇÃO EM FÔRMA, DE ARMADURA CA-50 A MÉDIA, DIÂMETRO DE 6.3 A 10.0 MM | D29: =UPPER(IF(I29="COMP",VLOOKUP(B29,COMP!B:M,7,FALSE),IF(I29="LABOR",VLOOKUP(J29,'LABOR-SERV'!A:D,3,FALSE),"NÃO"))) -> KG | E29: =VLOOKUP(B29,MEMO!B:I,8,FALSE) -> 448.88 | F29: R$ 8.76 | G29: R$ 3,932.19 | H29: =G29/$G$102 -> 0.87% | I29: LABOR | J29: 40328
B30: 3.2.3 | C30: =UPPER(IF(I30="COMP",VLOOKUP(B30,COMP!B:M,6,FALSE),IF(GLOBAL!I30="LABOR",VLOOKUP(GLOBAL!J30,'LABOR-SERV'!A:D,2,FALSE),"NÃO"))) -> FORNECIMENTO, DOBRAGEM E COLOCAÇÃO EM FÔRMA, DE ARMADURA CA-60 B FINA, DIÂMETRO DE 4.0 A 7.0MM | D30: =UPPER(IF(I30="COMP",VLOOKUP(B30,COMP!B:M,7,FALSE),IF(I30="LABOR",VLOOKUP(J30,'LABOR-SERV'!A:D,3,FALSE),"NÃO"))) -> KG | E30: =VLOOKUP(B30,MEMO!B:I,8,FALSE) -> 560.19 | F30: R$ 8.81 | G30: R$ 4,935.28 | H30: =G30/$G$102 -> 1.09% | I30: LABOR | J30: 40333
B31: 3.2.4 | C31: =UPPER(IF(I31="COMP",VLOOKUP(B31,COMP!B:M,6,FALSE),IF(GLOBAL!I31="LABOR",VLOOKUP(GLOBAL!J31,'LABOR-SERV'!A:D,2,FALSE),"NÃO"))) -> FÔRMA DE TÁBUA DE MADEIRA DE 2.5X30.0CM, LEVANDO-SE EM CONTA UTILIZAÇÃO 3 VEZES (INCLUINDO O MATERIAL, CORTE, MONTAGEM, ESCORAMENTO E DESFORMA) | D31: =UPPER(IF(I31="COMP",VLOOKUP(B31,COMP!B:M,7,FALSE),IF(I31="LABOR",VLOOKUP(J31,'LABOR-SERV'!A:D,3,FALSE),"NÃO"))) -> M2 | E31: =VLOOKUP(B31,MEMO!B:I,8,FALSE) -> 72.75 | F31: R$ 186.49 | G31: R$ 13,567.52 | H31: =G31/$G$102 -> 2.99% | I31: LABOR | J31: 40250
B32: 3.3 | C32: REVESTIMENTO DE ARGAMASSA
B33: 3.3.1 | C33: =UPPER(IF(I33="COMP",VLOOKUP(B33,COMP!B:M,6,FALSE),IF(GLOBAL!I33="LABOR",VLOOKUP(GLOBAL!J33,'LABOR-SERV'!A:D,2,FALSE),"NÃO"))) -> IMPERMEABILIZAÇÃO NAS SEGUINTES ETAPAS: CHAPISCO TRAÇO 1:2 C/ SIKA 1 OU EQUIVALENTE, REVEST. DUPLO C/ ARGAMASSA DE CIMENTO E AREIA TRAÇO 1:3 C/ SIKA 1 OU EQUIVALENTE, EM 2X15 MM E ACAB. ARGAMASSA 1:1 | D33: =UPPER(IF(I33="COMP",VLOOKUP(B33,COMP!B:M,7,FALSE),IF(I33="LABOR",VLOOKUP(J33,'LABOR-SERV'!A:D,3,FALSE),"NÃO"))) -> M2 | E33: =VLOOKUP(B33,MEMO!B:I,8,FALSE) -> 216.95 | F33: R$ 67.90 | G33: R$ 14,730.91 | H33: =G33/$G$102 -> 3.25% | I33: LABOR | J33: 100102
B34: 3.3.2 | C34: =UPPER(IF(I34="COMP",VLOOKUP(B34,COMP!B:M,6,FALSE),IF(GLOBAL!I34="LABOR",VLOOKUP(GLOBAL!J34,'LABOR-SERV'!A:D,2,FALSE),"NÃO"))) -> CHAPISCO DE ARGAMASSA DE CIMENTO E AREIA MÉDIA OU GROSSA LAVADA, NO TRAÇO 1:3, ESPESSURA 5 MM | D34: =UPPER(IF(I34="COMP",VLOOKUP(B34,COMP!B:M,7,FALSE),IF(I34="LABOR",VLOOKUP(J34,'LABOR-SERV'!A:D,3,FALSE),"NÃO"))) -> M2 | E34: =VLOOKUP(B34,MEMO!B:I,8,FALSE) -> 216.95 | F34: R$ 5.64 | G34: =E34*F34 -> R$ 1,223.60 | H34: =G34/$G$102 -> 0.27% | I34: LABOR | J34: 120101
B35: 3.3.3 | C35: =UPPER(IF(I35="COMP",VLOOKUP(B35,COMP!B:M,6,FALSE),IF(GLOBAL!I35="LABOR",VLOOKUP(GLOBAL!J35,'LABOR-SERV'!A:D,2,FALSE),"NÃO"))) -> REBOCO TIPO PAULISTA DE ARGAMASSA DE CIMENTO, CAL HIDRATADA CH1 E AREIA MÉDIA OU GROSSA LAVADA NO TRAÇO 1:0.5:6, ESPESSURA 25 MM | D35: =UPPER(IF(I35="COMP",VLOOKUP(B35,COMP!B:M,7,FALSE),IF(I35="LABOR",VLOOKUP(J35,'LABOR-SERV'!A:D,3,FALSE),"NÃO"))) -> M2 | E35: =VLOOKUP(B35,MEMO!B:I,8,FALSE) -> 216.95 | F35: R$ 47.50 | G35: R$ 10,305.13 | H35: =G35/$G$102 -> 2.27% | I35: LABOR | J35: 120303
B36: 3.4 | C36: PINTURA
B37: 3.4.1 | C37: =UPPER(IF(I37="COMP",VLOOKUP(B37,COMP!B:M,6,FALSE),IF(GLOBAL!I37="LABOR",VLOOKUP(GLOBAL!J37,'LABOR-SERV'!A:D,2,FALSE),"NÃO"))) -> PINTURA COM TINTA ACRÍLICA SUVINIL, CORAL OU METALATEX, INCLUSIVE SELADOR ACRÍLICO, EM PAREDES EXTERNAS A TRÊS DEMÃOS | D37: =UPPER(IF(I37="COMP",VLOOKUP(B37,COMP!B:M,7,FALSE),IF(I37="LABOR",VLOOKUP(J37,'LABOR-SERV'!A:D,3,FALSE),"NÃO"))) -> M2 | E37: =VLOOKUP(B37,MEMO!B:I,8,FALSE) -> 111.66 | F37: R$ 22.40 | G37: R$ 2,501.07 | H37: =G37/$G$102 -> 0.55% | I37: LABOR | J37: 160708
A38: 3.0 | C38: VALOR TOTAL ITEM 3 | G38: =SUM(G26:G37) -> R$ 59,639.00 | H38: =G38/$G$102 -> 13.16%
B39: 4.0 | C39: COBERTURA
B40: 4.1 | C40: ESTRUTURA METALICA EM TESOURAS OU TRELICAS, VAO LIVRE DE 12M, FORNECIMENTO E MONTAGEM, NAO SENDO CONSIDERADOS OS FECHAMENTOS METALICOS, AS COLUNAS, OS SERVICOS GERAIS EM ALVENARIA E CONCRETO, AS TELHAS DE COBERTURA E A PINTURA DE ACABAMENTO | D40: M2 | E40: =VLOOKUP(B40,MEMO!B:I,8,FALSE) -> 1023.19 | F40: =66.59*1.309 -> R$ 87.17 | G40: =E40*F40 -> R$ 89,187.48 | H40: =G40/$G$102 -> 19.68% | I40: SINAPI | J40: 72110 | M40: =35+12 -> 47
B41: 4.2 | C41: ISOLAMENTO TERMOACÚSTICO COM LÃ MINERAL NA SUBCOBERTURA, INCLUSO TRANSPORTE VERTICAL. AF_06/2016 | D41: M2 | E41: =VLOOKUP(B41,MEMO!B:I,8,FALSE) -> 1023.19 | F41: =12.72*1.309 -> R$ 16.65 | G41: R$ 17,036.56 | H41: 3.76% | I41: SINAPI | J41: 94225
B42: 4.3 | C42: TELHAMENTO COM TELHA DE AÇO/ALUMÍNIO E = 0,5 MM, COM ATÉ 2 ÁGUAS, INCLUSO IÇAMENTO. AF_06/2016 | D42: M2 | E42: =VLOOKUP(B42,MEMO!B:I,8,FALSE) -> 1023.19 | F42: =41.62*1.309 -> R$ 54.48 | G42: R$ 55,743.85 | H42: 12.30% | I42: SINAPI | J42: 94213
B43: 4.4 | C43: CALHA EM CHAPA DE AÇO GALVANIZADO NÚMERO 24, DESENVOLVIMENTO DE 33 CM, INCLUSO TRANSPORTE VERTICAL. AF_06/2016 | D43: M | E43: =VLOOKUP(B43,MEMO!B:I,8,FALSE) -> 78.39 | F43: =38.51*1.309 -> R$ 50.41 | G43: R$ 3,951.61 | H43: 0.87% | I43: SINAPI | J43: 94227
B44: 4.5 | C44: CUMEEIRA EM PERFIL ONDULADO DE ALUMÍNIO | D44: M | E44: =VLOOKUP(B44,MEMO!B:I,8,FALSE) -> 38.25 | F44: =34.37*1.309 -> R$ 44.99 | G44: R$ 1,720.88 | H44: 0.38% | I44: SINAPI | J44: 75220
B45: 4.6 | C45: TUBO PVC, SÉRIE R, ÁGUA PLUVIAL, DN 100 MM, FORNECIDO E INSTALADO EM RAMAL DE ENCAMINHAMENTO. AF_12/2014 | D45: M | E45: =VLOOKUP(B45,MEMO!B:I,8,FALSE) -> 22.40 | F45: =39.51*1.309 -> R$ 51.72 | G45: =E45*F45 -> R$ 1,158.50 | H45: 0.26% | I45: SINAPI | J45: 89512
B46: 4.7 | C46: =UPPER(VLOOKUP(J46,'LABOR-SERV'!A:D,2,FALSE)) -> FORRO PVC BRANCO L = 20 CM, FRISADO, COLOCADO | D46: =UPPER(IF(I46="COMP",VLOOKUP(B46,COMP!B:M,7,FALSE),IF(I46="LABOR",VLOOKUP(J46,'LABOR-SERV'!A:D,3,FALSE),"NÃO"))) -> M2 | E46: =VLOOKUP(B46,MEMO!B:I,8,FALSE) -> 278.00 | F46: R$ 57.16 | G46: R$ 15,890.48 | H46: 3.51% | I46: LABOR | J46: 110210
B47: 4.8 | C47: =UPPER(IF(I47="COMP",VLOOKUP(B47,COMP!B:M,6,FALSE),IF(GLOBAL!I47="LABOR",VLOOKUP(GLOBAL!J47,'LABOR-SERV'!A:D,2,FALSE),"NÃO"))) -> PINTURA ANTI CORROSIVA, PARA ESTRUTURA METALICA DE COBERTURA, COM TELHAS DE AÇO. | D47: =UPPER(IF(I47="COMP",VLOOKUP(B47,COMP!B:M,7,FALSE),IF(I47="LABOR",VLOOKUP(J47,'LABOR-SERV'!A:D,3,FALSE),"NÃO"))) -> UND | E47: =VLOOKUP(B47,MEMO!B:I,8,FALSE) -> 1023.19 | F47: =TRUNC(IF(I47="COMP",VLOOKUP(B47,COMP!B:M,12,FALSE),IF(I47="LABOR",VLOOKUP(J47,'LABOR-SERV'!A:D,4,FALSE),"NÃO")),2) -> R$ 26.05 | G47: =E47*F47 -> R$ 26,654.03 | H47: 5.88% | I47: COMP | J47: 4
A48: 4.0 | C48: VALOR TOTAL ITEM 4 | G48: =SUM(G40:G47) -> R$ 211,343.39 | H48: 46.63%
B49: 5.0 | C49: INSTALAÇÕES ELÉTRICAS
B50: 5.1 | C50: ACESSÓRIOS
B51: 5.1.1 | C51: =UPPER(IF(I51="COMP",VLOOKUP(B51,COMP!B:M,6,FALSE),IF(GLOBAL!I51="LABOR",VLOOKUP(GLOBAL!J51,'LABOR-SERV'!A:D,2,FALSE),"NÃO"))) -> CAIXA DE EMBUTIR MARCA DE REFERÊNCIA TIGREFLEX, 4X2" | D51: =UPPER(IF(I51="COMP",VLOOKUP(B51,COMP!B:M,7,FALSE),IF(I51="LABOR",VLOOKUP(J51,'LABOR-SERV'!A:D,3,FALSE),"NÃO"))) -> UND | E51: =VLOOKUP(B51,MEMO!B:I,8,FALSE) -> 104.00 | F51: =TRUNC(IF(I51="COMP",VLOOKUP(B51,COMP!B:M,12,FALSE),IF(I51="LABOR",VLOOKUP(J51,'LABOR-SERV'!A:D,4,FALSE),"NÃO")),2) -> R$ 7.53 | G51: =E51*F51 -> R$ 783.12 | H51: =G51/$G$102 -> 0.17% | I51: LABOR | J51: 150628
B52: 5.1.2 | C52: =UPPER(IF(I52="COMP",VLOOKUP(B52,COMP!B:M,6,FALSE),IF(GLOBAL!I52="LABOR",VLOOKUP(GLOBAL!J52,'LABOR-SERV'!A:D,2,FALSE),"NÃO"))) -> CAIXA SEXTAVADA EM PVC DE 3X3X1 1/2", MARCA DE REFERÊNCIA TIGREFLEX | D52: =UPPER(IF(I52="COMP",VLOOKUP(B52,COMP!B:M,7,FALSE),IF(I52="LABOR",VLOOKUP(J52,'LABOR-SERV'!A:D,3,FALSE),"NÃO"))) -> UND | E52: =VLOOKUP(B52,MEMO!B:I,8,FALSE) -> 120.00 | F52: R$ 9.27 | G52: R$ 1,112.40 | H52: =G52/$G$102 -> 0.25% | I52: LABOR | J52: 150636
B53: 5.1.2 | C53: ACABO UNIPOLAR COBRE
B54: 5.1.2.1 | C54: =UPPER(IF(I54="COMP",VLOOKUP(B54,COMP!B:M,6,FALSE),IF(GLOBAL!I54="LABOR",VLOOKUP(GLOBAL!J54,'LABOR-SERV'!A:D,2,FALSE),"NÃO"))) -> CABO DE COBRE TERMOPLÁSTICO, COM ISOLAMENTO PARA 1000V, SEÇÃO DE 35.0 MM2 | D54: =UPPER(IF(I54="COMP",VLOOKUP(B54,COMP!B:M,7,FALSE),IF(I54="LABOR",VLOOKUP(J54,'LABOR-SERV'!A:D,3,FALSE),"NÃO"))) -> M | E54: =VLOOKUP(B54,MEMO!B:I,8,FALSE) -> 170.00 | F54: R$ 28.31 | G54: =E54*F54 -> R$ 4,812.70 | H54: =G54/$G$102 -> 1.06% | I54: LABOR | J54: 151423
B55: 5.1.2.2 | C55: =UPPER(IF(I55="COMP",VLOOKUP(B55,COMP!B:M,6,FALSE),IF(GLOBAL!I55="LABOR",VLOOKUP(GLOBAL!J55,'LABOR-SERV'!A:D,2,FALSE),"NÃO"))) -> CABO DE COBRE TERMOPLÁSTICO, COM ISOLAMENTO PARA 1000V, SEÇÃO DE 70,0MM2 | D55: =UPPER(IF(I55="COMP",VLOOKUP(B55,COMP!B:M,7,FALSE),IF(I55="LABOR",VLOOKUP(J55,'LABOR-SERV'!A:D,3,FALSE),"NÃO"))) -> M | E55: =VLOOKUP(B55,MEMO!B:I,8,FALSE) -> 40.00 | F55: R$ 52.87 | G55: =E55*F55 -> R$ 2,114.80 | H55: 0.47% | I55: LABOR | J55: 151429
B56: 5.1.2.3 | C56: =UPPER(IF(I56="COMP",VLOOKUP(B56,COMP!B:M,6,FALSE),IF(GLOBAL!I56="LABOR",VLOOKUP(GLOBAL!J56,'LABOR-SERV'!A:D,2,FALSE),"NÃO"))) -> FIO OU CABO DE COBRE TERMOPLÁSTICO, COM ISOLAMENTO PARA 750V, SEÇÃO DE 16.0 MM2 | D56: =UPPER(IF(I56="COMP",VLOOKUP(B56,COMP!B:M,7,FALSE),IF(I56="LABOR",VLOOKUP(J56,'LABOR-SERV'!A:D,3,FALSE),"NÃO"))) -> M | E56: =VLOOKUP(B56,MEMO!B:I,8,FALSE) -> 133.40 | F56: R$ 14.43 | G56: R$ 1,924.96 | H56: 0.42% | I56: LABOR | J56: 151406
B57: 5.1.2.4 | C57: =UPPER(IF(I57="COMP",VLOOKUP(B57,COMP!B:M,6,FALSE),IF(GLOBAL!I57="LABOR",VLOOKUP(GLOBAL!J57,'LABOR-SERV'!A:D,2,FALSE),"NÃO"))) -> FIO OU CABO DE COBRE TERMOPLÁSTICO, COM ISOLAMENTO PARA 750V, SEÇÃO DE 10.0 MM2 | D57: =UPPER(IF(I57="COMP",VLOOKUP(B57,COMP!B:M,7,FALSE),IF(I57="LABOR",VLOOKUP(J57,'LABOR-SERV'!A:D,3,FALSE),"NÃO"))) -> M | E57: =VLOOKUP(B57,MEMO!B:I,8,FALSE) -> 52.40 | F57: R$ 10.64 | G57: R$ 557.54 | H57: 0.12% | I57: LABOR | J57: 151405
B58: 5.1.2.5 | C58: =UPPER(IF(I58="COMP",VLOOKUP(B58,COMP!B:M,6,FALSE),IF(GLOBAL!I58="LABOR",VLOOKUP(GLOBAL!J58,'LABOR-SERV'!A:D,2,FALSE),"NÃO"))) -> FIO DE COBRE TERMOPLÁSTICO, COM ISOLAMENTO PARA 750V, SEÇÃO DE 2.5 MM2 | D58: =UPPER(IF(I58="COMP",VLOOKUP(B58,COMP!B:M,7,FALSE),IF(I58="LABOR",VLOOKUP(J58,'LABOR-SERV'!A:D,3,FALSE),"NÃO"))) -> M | E58: =VLOOKUP(B58,MEMO!B:I,8,FALSE) -> 614.00 | F58: R$ 5.20 | G58: R$ 3,192.80 | H58: 0.70% | I58: LABOR | J58: 151402
B59: 5.1.2.6 | C59: =UPPER(IF(I59="COMP",VLOOKUP(B59,COMP!B:M,6,FALSE),IF(GLOBAL!I59="LABOR",VLOOKUP(GLOBAL!J59,'LABOR-SERV'!A:D,2,FALSE),"NÃO"))) -> FIO OU CABO DE COBRE TERMOPLÁSTICO, COM ISOLAMENTO PARA 750V, SEÇÃO DE 4.0 MM2 | D59: =UPPER(IF(I59="COMP",VLOOKUP(B59,COMP!B:M,7,FALSE),IF(I59="LABOR",VLOOKUP(J59,'LABOR-SERV'!A:D,3,FALSE),"NÃO"))) -> M | E59: =VLOOKUP(B59,MEMO!B:I,8,FALSE) -> 1704.00 | F59: R$ 6.40 | G59: R$ 10,905.60 | H59: 2.41% | I59: LABOR | J59: 151403
B60: 5.1.2.7 | C60: =UPPER(IF(I60="COMP",VLOOKUP(B60,COMP!B:M,6,FALSE),IF(GLOBAL!I60="LABOR",VLOOKUP(GLOBAL!J60,'LABOR-SERV'!A:D,2,FALSE),"NÃO"))) -> FIO OU CABO DE COBRE TERMOPLÁSTICO, COM ISOLAMENTO PARA 750V, SEÇÃO DE 6.0 MM2 | D60: =UPPER(IF(I60="COMP",VLOOKUP(B60,COMP!B:M,7,FALSE),IF(I60="LABOR",VLOOKUP(J60,'LABOR-SERV'!A:D,3,FALSE),"NÃO"))) -> M | E60: =VLOOKUP(B60,MEMO!B:I,8,FALSE) -> 1138.00 | F60: R$ 7.70 | G60: R$ 8,762.60 | H60: 1.93% | I60: LABOR | J60: 151404
B61: 5.1.3 | C61: DISPOSITIVOS EMBUTIDOS
B62: 5.1.3.1 | C62: =UPPER(IF(I62="COMP",VLOOKUP(B62,COMP!B:M,6,FALSE),IF(GLOBAL!I62="LABOR",VLOOKUP(GLOBAL!J62,'LABOR-SERV'!A:D,2,FALSE),"NÃO"))) -> INTERRUPTOR DE UMA TECLA PARALELO 10A/250V, COM PLACA 4X2" | D62: =UPPER(IF(I62="COMP",VLOOKUP(B62,COMP!B:M,7,FALSE),IF(I62="LABOR",VLOOKUP(J62,'LABOR-SERV'!A:D,3,FALSE),"NÃO"))) -> UND | E62: =VLOOKUP(B62,MEMO!B:I,8,FALSE) -> 3.00 | F62: R$ 29.26 | G62: R$ 87.78 | H62: =G62/$G$102 -> 0.02% | I62: LABOR | J62: 180206
B63: 5.1.3.2 | C63: =UPPER(IF(I63="COMP",VLOOKUP(B63,COMP!B:M,6,FALSE),IF(GLOBAL!I63="LABOR",VLOOKUP(GLOBAL!J63,'LABOR-SERV'!A:D,2,FALSE),"NÃO"))) -> INTERRUPTOR DE DUAS TECLAS SIMPLES 10A/250V, COM PLACA 4X2" | D63: =UPPER(IF(I63="COMP",VLOOKUP(B63,COMP!B:M,7,FALSE),IF(I63="LABOR",VLOOKUP(J63,'LABOR-SERV'!A:D,3,FALSE),"NÃO"))) -> UND | E63: =VLOOKUP(B63,MEMO!B:I,8,FALSE) -> 2.00 | F63: R$ 38.59 | G63: R$ 77.18 | H63: =G63/$G$102 -> 0.02% | I63: LABOR | J63: 180205
B64: 5.1.3.3 | C64: =UPPER(IF(I64="COMP",VLOOKUP(B64,COMP!B:M,6,FALSE),IF(GLOBAL!I64="LABOR",VLOOKUP(GLOBAL!J64,'LABOR-SERV'!A:D,2,FALSE),"NÃO"))) -> INTERRUPTOR DE TRÊS TECLAS SIMPLES 10A/250V, C/ PLACA 4X2" | D64: =UPPER(IF(I64="COMP",VLOOKUP(B64,COMP!B:M,7,FALSE),IF(I64="LABOR",VLOOKUP(J64,'LABOR-SERV'!A:D,3,FALSE),"NÃO"))) -> UND | E64: =VLOOKUP(B64,MEMO!B:I,8,FALSE) -> 1.00 | F64: R$ 52.82 | G64: R$ 52.82 | H64: =G64/$G$102 -> 0.01% | I64: LABOR | J64: 180212
B65: 5.1.3.4 | C65: INTERRUPTOR DE UMA TECLA SIMPLES 10A/250V E UMA TOMADA 3 POLOS 10A/250V, PADRÃO BRASILEIRO, NBR 14136, LINHA BRANCA, COM PLACA 4X2" | D65: =UPPER(IF(I65="COMP",VLOOKUP(B65,COMP!B:M,7,FALSE),IF(I65="LABOR",VLOOKUP(J65,'LABOR-SERV'!A:D,3,FALSE),"NÃO"))) -> UND | E65: =VLOOKUP(B65,MEMO!B:I,8,FALSE) -> 20.00 | F65: R$ 42.40 | G65: R$ 848.00 | H65: =G65/$G$102 -> 0.19% | I65: LABOR | J65: 180207
B66: 5.1.3.5 | C66: =UPPER(IF(I66="COMP",VLOOKUP(B66,COMP!B:M,6,FALSE),IF(GLOBAL!I66="LABOR",VLOOKUP(GLOBAL!J66,'LABOR-SERV'!A:D,2,FALSE),"NÃO"))) -> TOMADA PADRÃO BRASILEIRO LINHA BRANCA, NBR 14136 2 POLOS + TERRA 10A/250V, COM PLACA 4X2" | D66: =UPPER(IF(I66="COMP",VLOOKUP(B66,COMP!B:M,7,FALSE),IF(I66="LABOR",VLOOKUP(J66,'LABOR-SERV'!A:D,3,FALSE),"NÃO"))) -> UND | E66: =VLOOKUP(B66,MEMO!B:I,8,FALSE) -> 82.00 | F66: R$ 28.16 | G66: R$ 2,309.12 | H66: =G66/$G$102 -> 0.51% | I66: LABOR | J66: 180201
B67: 5.1.4 | C67: DISPOSITIVOS DE PROTEÇÃO
B68: 5.1.4.1 | C68: =UPPER(IF(I68="COMP",VLOOKUP(B68,COMP!B:M,6,FALSE),IF(GLOBAL!I68="LABOR",VLOOKUP(GLOBAL!J68,'LABOR-SERV'!A:D,2,FALSE),"NÃO"))) -> MINI-DISJUNTOR MONOPOLAR 20 A, CURVA C - 5KA 220/127VCA (NBR IEC 60947-2), REF. SIEMENS, GE, SCHNEIDER OU EQUIVALENTE | D68: =UPPER(IF(I68="COMP",VLOOKUP(B68,COMP!B:M,7,FALSE),IF(I68="LABOR",VLOOKUP(J68,'LABOR-SERV'!A:D,3,FALSE),"NÃO"))) -> UND | E68: =VLOOKUP(B68,MEMO!B:I,8,FALSE) -> 5.00 | F68: R$ 18.86 | G68: R$ 94.30 | H68: =G68/$G$102 -> 0.02% | I68: LABOR | J68: 151302
B69: 5.1.4.2 | C69: =UPPER(IF(I69="COMP",VLOOKUP(B69,COMP!B:M,6,FALSE),IF(GLOBAL!I69="LABOR",VLOOKUP(GLOBAL!J69,'LABOR-SERV'!A:D,2,FALSE),"NÃO"))) -> MINI-DISJUNTOR MONOPOLAR 25 A, CURVA C - 5KA 220/127VCA (NBR IEC 60947-2), REF. SIEMENS, GE, SCHNEIDER OU EQUIVALENTE | D69: =UPPER(IF(I69="COMP",VLOOKUP(B69,COMP!B:M,7,FALSE),IF(I69="LABOR",VLOOKUP(J69,'LABOR-SERV'!A:D,3,FALSE),"NÃO"))) -> UND | E69: =VLOOKUP(B69,MEMO!B:I,8,FALSE) -> 19.00 | F69: R$ 18.86 | G69: R$ 358.34 | H69: =G69/$G$102 -> 0.08% | I69: LABOR | J69: 151303
B70: 5.1.4.3 | C70: =UPPER(IF(I70="COMP",VLOOKUP(B70,COMP!B:M,6,FALSE),IF(GLOBAL!I70="LABOR",VLOOKUP(GLOBAL!J70,'LABOR-SERV'!A:D,2,FALSE),"NÃO"))) -> MINI-DISJUNTOR MONOPOLAR 32 A, CURVA C - 5KA 220/127VCA (NBR IEC 60947-2), REF. SIEMENS, GE, SCHNEIDER OU EQUIVALENTE | D70: =UPPER(IF(I70="COMP",VLOOKUP(B70,COMP!B:M,7,FALSE),IF(I70="LABOR",VLOOKUP(J70,'LABOR-SERV'!A:D,3,FALSE),"NÃO"))) -> UND | E70: =VLOOKUP(B70,MEMO!B:I,8,FALSE) -> 4.00 | F70: R$ 18.86 | G70: =E70*F70 -> R$ 75.44 | H70: =G70/$G$102 -> 0.02% | I70: LABOR | J70: 151304
B71: 5.1.4.4 | C71: =UPPER(IF(I71="COMP",VLOOKUP(B71,COMP!B:M,6,FALSE),IF(GLOBAL!I71="LABOR",VLOOKUP(GLOBAL!J71,'LABOR-SERV'!A:D,2,FALSE),"NÃO"))) -> MINI-DISJUNTOR TRIPOLAR 100 A, CURVA C - 15KA 220/127V (NBR IEC 60947-2), REF. SIEMENS, GE, SCHNEIDER OU EQUIVALENTE | D71: =UPPER(IF(I71="COMP",VLOOKUP(B71,COMP!B:M,7,FALSE),IF(I71="LABOR",VLOOKUP(J71,'LABOR-SERV'!A:D,3,FALSE),"NÃO"))) -> UND | E71: =VLOOKUP(B71,MEMO!B:I,8,FALSE) -> 1.00 | F71: =TRUNC(IF(I71="COMP",VLOOKUP(B71,COMP!B:M,12,FALSE),IF(I71="LABOR",VLOOKUP(J71,'LABOR-SERV'!A:D,4,FALSE),"NÃO")),2) -> R$ 343.09 | G71: R$ 343.09 | H71: =G71/$G$102 -> 0.08% | I71: COMP | J71: 5
B72: 5.1.4.5 | C72: =UPPER(IF(I72="COMP",VLOOKUP(B72,COMP!B:M,6,FALSE),IF(GLOBAL!I72="LABOR",VLOOKUP(GLOBAL!J72,'LABOR-SERV'!A:D,2,FALSE),"NÃO"))) -> DISJUNTOR CAIXA MOLDADA 150A 45KA JM2-250L-150A - JNG | D72: =UPPER(IF(I72="COMP",VLOOKUP(B72,COMP!B:M,7,FALSE),IF(I72="LABOR",VLOOKUP(J72,'LABOR-SERV'!A:D,3,FALSE),"NÃO"))) -> UND | E72: =VLOOKUP(B72,MEMO!B:I,8,FALSE) -> 1.00 | F72: =TRUNC(IF(I72="COMP",VLOOKUP(B72,COMP!B:M,12,FALSE),IF(I72="LABOR",VLOOKUP(J72,'LABOR-SERV'!A:D,4,FALSE),"NÃO")),2) -> R$ 427.53 | G72: =E72*F72 -> R$ 427.53 | H72: 0.09% | I72: COMP | J72: 6
B73: 5.1.4.6 | C73: =UPPER(IF(I73="COMP",VLOOKUP(B73,COMP!B:M,6,FALSE),IF(GLOBAL!I73="LABOR",VLOOKUP(GLOBAL!J73,'LABOR-SERV'!A:D,2,FALSE),"NÃO"))) -> MINI-DISJUNTOR TRIPOLAR 63 A, CURVA C - 5KA 220/127VCA (NBR IEC 60947-2), REF. SIEMENS, GE, SCHNEIDER OU EQUIVALENTE | D73: =UPPER(IF(I73="COMP",VLOOKUP(B73,COMP!B:M,7,FALSE),IF(I73="LABOR",VLOOKUP(J73,'LABOR-SERV'!A:D,3,FALSE),"NÃO"))) -> UND | E73: =VLOOKUP(B73,MEMO!B:I,8,FALSE) -> 1.00 | F73: =TRUNC(IF(I73="COMP",VLOOKUP(B73,COMP!B:M,12,FALSE),IF(I73="LABOR",VLOOKUP(J73,'LABOR-SERV'!A:D,4,FALSE),"NÃO")),2) -> R$ 101.40 | G73: R$ 101.40 | H73: =G73/$G$102 -> 0.02% | I73: COMP | J73: 7
B74: 5.1.4.7 | C74: =UPPER(IF(I74="COMP",VLOOKUP(B74,COMP!B:M,6,FALSE),IF(GLOBAL!I74="LABOR",VLOOKUP(GLOBAL!J74,'LABOR-SERV'!A:D,2,FALSE),"NÃO"))) -> DISPOSITIVO DE PROTEÇÃO CONTRA SURTO (DPS) BIPOLAR, TENSÃO NOMINAL MÁXIMA 275VCA, CORENTE DE SURTO MÁXIMA 40KA. | D74: =UPPER(IF(I74="COMP",VLOOKUP(B74,COMP!B:M,7,FALSE),IF(I74="LABOR",VLOOKUP(J74,'LABOR-SERV'!A:D,3,FALSE),"NÃO"))) -> UND | E74: =VLOOKUP(B74,MEMO!B:I,8,FALSE) -> 16.00 | F74: R$ 217.95 | G74: R$ 3,487.20 | H74: =G74/$G$102 -> 0.77% | I74: LABOR | J74: 151337
B75: 5.1.4.8 | C75: INTERRUPTOR DIFERENCIAL DR 16A A 25A, 30MA, 2 MÓDULOS | D75: =UPPER(IF(I75="COMP",VLOOKUP(B75,COMP!B:M,7,FALSE),IF(I75="LABOR",VLOOKUP(J75,'LABOR-SERV'!A:D,3,FALSE),"NÃO"))) -> UND | E75: =VLOOKUP(B75,MEMO!B:I,8,FALSE) -> 24.00 | F75: R$ 144.12 | G75: R$ 3,458.88 | H75: =G75/$G$102 -> 0.76% | I75: LABOR | J75: 151350
B76: 5.1.5 | C76: ELETRODUTO FLEXÍVEL
B77: 5.1.5.1 | C77: =UPPER(IF(I77="COMP",VLOOKUP(B77,COMP!B:M,6,FALSE),IF(GLOBAL!I77="LABOR",VLOOKUP(GLOBAL!J77,'LABOR-SERV'!A:D,2,FALSE),"NÃO"))) -> ELETRODUTO FLEXÍVEL CORRUGADO 1", MARCA DE REFERÊNCIA TIGRE | D77: =UPPER(IF(I77="COMP",VLOOKUP(B77,COMP!B:M,7,FALSE),IF(I77="LABOR",VLOOKUP(J77,'LABOR-SERV'!A:D,3,FALSE),"NÃO"))) -> M | E77: =VLOOKUP(B77,MEMO!B:I,8,FALSE) -> 156.00 | F77: R$ 8.65 | G77: R$ 1,349.40 | H77: =G77/$G$102 -> 0.30% | I77: LABOR | J77: 151133
B78: 5.1.5.2 | C78: =UPPER(IF(I78="COMP",VLOOKUP(B78,COMP!B:M,6,FALSE),IF(GLOBAL!I78="LABOR",VLOOKUP(GLOBAL!J78,'LABOR-SERV'!A:D,2,FALSE),"NÃO"))) -> ELETRODUTO FLEXÍVEL CORRUGADO 3/4" , MARCA DE REFERÊNCIA TIGRE | D78: =UPPER(IF(I78="COMP",VLOOKUP(B78,COMP!B:M,7,FALSE),IF(I78="LABOR",VLOOKUP(J78,'LABOR-SERV'!A:D,3,FALSE),"NÃO"))) -> M | E78: =VLOOKUP(B78,MEMO!B:I,8,FALSE) -> 290.00 | F78: R$ 7.51 | G78: R$ 2,177.90 | H78: 0.48% | I78: LABOR | J78: 151132
B79: 5.1.5.3 | C79: =UPPER(IF(I79="COMP",VLOOKUP(B79,COMP!B:M,6,FALSE),IF(GLOBAL!I79="LABOR",VLOOKUP(GLOBAL!J79,'LABOR-SERV'!A:D,2,FALSE),"NÃO"))) -> ELETRODUTO PEAD, COR PRETA, DIAM. 1.1/2", MARCA REF. KANAFLEX OU EQUIVALENTE | D79: =UPPER(IF(I79="COMP",VLOOKUP(B79,COMP!B:M,7,FALSE),IF(I79="LABOR",VLOOKUP(J79,'LABOR-SERV'!A:D,3,FALSE),"NÃO"))) -> M | E79: =VLOOKUP(B79,MEMO!B:I,8,FALSE) -> 145.00 | F79: R$ 21.18 | G79: R$ 3,071.10 | H79: 0.68% | I79: LABOR | J79: 151137
B80: 5.1.5.4 | C80: =UPPER(IF(I80="COMP",VLOOKUP(B80,COMP!B:M,6,FALSE),IF(GLOBAL!I80="LABOR",VLOOKUP(GLOBAL!J80,'LABOR-SERV'!A:D,2,FALSE),"NÃO"))) -> ELETRODUTO PEAD, COR PRETA, DIAM. 2", MARCA REF. KANAFLEX OU EQUIVALENTE | D80: =UPPER(IF(I80="COMP",VLOOKUP(B80,COMP!B:M,7,FALSE),IF(I80="LABOR",VLOOKUP(J80,'LABOR-SERV'!A:D,3,FALSE),"NÃO"))) -> M | E80: =VLOOKUP(B80,MEMO!B:I,8,FALSE) -> 14.00 | F80: R$ 22.33 | G80: R$ 312.62 | H80: 0.07% | I80: LABOR | J80: 151139
B81: 5.1.5.5 | C81: =UPPER(IF(I81="COMP",VLOOKUP(B81,COMP!B:M,6,FALSE),IF(GLOBAL!I81="LABOR",VLOOKUP(GLOBAL!J81,'LABOR-SERV'!A:D,2,FALSE),"NÃO"))) -> ELETRODUTO PEAD, COR PRETA, DIAM. 3", MARCA REF. KANAFLEX OU EQUIVALENTE | D81: =UPPER(IF(I81="COMP",VLOOKUP(B81,COMP!B:M,7,FALSE),IF(I81="LABOR",VLOOKUP(J81,'LABOR-SERV'!A:D,3,FALSE),"NÃO"))) -> M | E81: =VLOOKUP(B81,MEMO!B:I,8,FALSE) -> 6.00 | F81: R$ 36.05 | G81: R$ 216.30 | H81: 0.05% | I81: LABOR | J81: 151140
B82: 5.1.5.6 | C82: =UPPER(IF(I82="COMP",VLOOKUP(B82,COMP!B:M,6,FALSE),IF(GLOBAL!I82="LABOR",VLOOKUP(GLOBAL!J82,'LABOR-SERV'!A:D,2,FALSE),"NÃO"))) -> ELETRODUTO PEAD, COR PRETA, DIAM. 4", MARCA REF. KANAFLEX OU EQUIVALENTE | D82: =UPPER(IF(I82="COMP",VLOOKUP(B82,COMP!B:M,7,FALSE),IF(I82="LABOR",VLOOKUP(J82,'LABOR-SERV'!A:D,3,FALSE),"NÃO"))) -> M | E82: =VLOOKUP(B82,MEMO!B:I,8,FALSE) -> 27.00 | F82: R$ 49.13 | G82: R$ 1,326.51 | H82: 0.29% | I82: LABOR | J82: 151141
B83: 5.1.6 | C83: LUMINARIA
B84: 5.1.6.1 | C84: =UPPER(IF(I84="COMP",VLOOKUP(B84,COMP!B:M,6,FALSE),IF(GLOBAL!I84="LABOR",VLOOKUP(GLOBAL!J84,'LABOR-SERV'!A:D,2,FALSE),"NÃO"))) -> ARANDELA COM LÂMPADA INCANDESCENTE DE 100W | D84: =UPPER(IF(I84="COMP",VLOOKUP(B84,COMP!B:M,7,FALSE),IF(I84="LABOR",VLOOKUP(J84,'LABOR-SERV'!A:D,3,FALSE),"NÃO"))) -> UND | E84: =VLOOKUP(B84,MEMO!B:I,8,FALSE) -> 20.00 | F84: R$ 94.90 | G84: R$ 1,898.00 | H84: =G84/$G$102 -> 0.42% | I84: LABOR | J84: 180110
B85: 5.1.6.2 | C85: =UPPER(IF(I85="COMP",VLOOKUP(B85,COMP!B:M,6,FALSE),IF(GLOBAL!I85="LABOR",VLOOKUP(GLOBAL!J85,'LABOR-SERV'!A:D,2,FALSE),"NÃO"))) -> LUMINARIA EMBUTIR COMPL.,CORPO CH. AÇO PINTADA BRANCA,REFLETOR, ALETAS PARABÓLICAS ALUM.ALTA PUREZA E REFLETÂNCIA,2 LÂMP. FLUOR.TUBULARES DE 32W/127V, C/ REATOR DUPLO 127V, PAR.RÁP.AFP, SOQ. ANTIVIB.,REF. CAA01-E232 LUMICENTER OU | D85: =UPPER(IF(I85="COMP",VLOOKUP(B85,COMP!B:M,7,FALSE),IF(I85="LABOR",VLOOKUP(J85,'LABOR-SERV'!A:D,3,FALSE),"NÃO"))) -> UND | E85: =VLOOKUP(B85,MEMO!B:I,8,FALSE) -> 98.00 | F85: R$ 253.16 | G85: R$ 24,809.68 | H85: =G85/$G$102 -> 5.47% | I85: LABOR | J85: 180126
B86: 5.1.7 | C86: QUADROS
B87: 5.1.7.1 | C87: =UPPER(IF(I87="COMP",VLOOKUP(B87,COMP!B:M,6,FALSE),IF(GLOBAL!I87="LABOR",VLOOKUP(GLOBAL!J87,'LABOR-SERV'!A:D,2,FALSE),"NÃO"))) -> PADRÃO DE ENTRADA DE ENERGIA ELÉTRICA, TRIFÁSICO, ENTRADA AÉREA, A 4 FIOS, CARGA INSTALADA DE 41001 ATÉ 47000W, INSTALADA EM MURO | D87: =UPPER(IF(I87="COMP",VLOOKUP(B87,COMP!B:M,7,FALSE),IF(I87="LABOR",VLOOKUP(J87,'LABOR-SERV'!A:D,3,FALSE),"NÃO"))) -> UND | E87: =VLOOKUP(B87,MEMO!B:I,8,FALSE) -> 1.00 | F87: R$ 5,545.97 | G87: R$ 5,545.97 | H87: =G87/$G$102 -> 1.22% | I87: LABOR | J87: 151706
B88: 5.1.7.2 | C88: =UPPER(IF(I88="COMP",VLOOKUP(B88,COMP!B:M,6,FALSE),IF(GLOBAL!I88="LABOR",VLOOKUP(GLOBAL!J88,'LABOR-SERV'!A:D,2,FALSE),"NÃO"))) -> QUADRO DE DISTRIBUIÇÃO DE ENERGIA, DE EMBUTIR, COM 24 DIVISÕES MODULARES, COM BARRAMENTO | D88: =UPPER(IF(I88="COMP",VLOOKUP(B88,COMP!B:M,7,FALSE),IF(I88="LABOR",VLOOKUP(J88,'LABOR-SERV'!A:D,3,FALSE),"NÃO"))) -> UND | E88: =VLOOKUP(B88,MEMO!B:I,8,FALSE) -> 2.00 | F88: R$ 493.17 | G88: R$ 986.34 | H88: =G88/$G$102 -> 0.22% | I88: LABOR | J88: 150308
B89: 5.1.7.3 | C89: =UPPER(IF(I89="COMP",VLOOKUP(B89,COMP!B:M,6,FALSE),IF(GLOBAL!I89="LABOR",VLOOKUP(GLOBAL!J89,'LABOR-SERV'!A:D,2,FALSE),"NÃO"))) -> QUADRO DE DISTRIBUIÇÃO DE ENERGIA, DE EMBUTIR, COM 32 DIVISÕES MODULARES, COM BARRAMENTO | D89: =UPPER(IF(I89="COMP",VLOOKUP(B89,COMP!B:M,7,FALSE),IF(I89="LABOR",VLOOKUP(J89,'LABOR-SERV'!A:D,3,FALSE),"NÃO"))) -> UND | E89: =VLOOKUP(B89,MEMO!B:I,8,FALSE) -> 1.00 | F89: R$ 606.17 | G89: R$ 606.17 | H89: =G89/$G$102 -> 0.13% | I89: LABOR | J89: 150309
B90: 5.2 | C90: SPDA
B91: 5.2.1 | C91: =UPPER(IF(I91="COMP",VLOOKUP(B91,COMP!B:M,6,FALSE),IF(GLOBAL!I91="LABOR",VLOOKUP(GLOBAL!J91,'LABOR-SERV'!A:D,2,FALSE),"NÃO"))) -> CABO DE COBRE NÚ 50MM2, REF. TEL 5750, MARCA DE REFERÊNCIA TERMOTÉCNICA OU EQUIVALENTE | D91: =UPPER(IF(I91="COMP",VLOOKUP(B91,COMP!B:M,7,FALSE),IF(I91="LABOR",VLOOKUP(J91,'LABOR-SERV'!A:D,3,FALSE),"NÃO"))) -> M | E91: =VLOOKUP(B91,MEMO!B:I,8,FALSE) -> 150.00 | F91: R$ 38.38 | G91: R$ 5,757.00 | H91: =G91/$G$102 -> 1.27% | I91: LABOR | J91: 160317
B92: 5.2.2 | C92: =UPPER(IF(I92="COMP",VLOOKUP(B92,COMP!B:M,6,FALSE),IF(GLOBAL!I92="LABOR",VLOOKUP(GLOBAL!J92,'LABOR-SERV'!A:D,2,FALSE),"NÃO"))) -> CABO DE COBRE NÚ 35MM2, REF. TEL 5735, MARCA DE REFERÊNCIA TERMOTÉCNICA OU EQUIVALENTE | D92: =UPPER(IF(I92="COMP",VLOOKUP(B92,COMP!B:M,7,FALSE),IF(I92="LABOR",VLOOKUP(J92,'LABOR-SERV'!A:D,3,FALSE),"NÃO"))) -> M | E92: =VLOOKUP(B92,MEMO!B:I,8,FALSE) -> 20.00 | F92: R$ 26.69 | G92: R$ 533.80 | H92: 0.12% | I92: LABOR | J92: 160318
B93: 5.2.3 | C93: =UPPER(IF(I93="COMP",VLOOKUP(B93,COMP!B:M,6,FALSE),IF(GLOBAL!I93="LABOR",VLOOKUP(GLOBAL!J93,'LABOR-SERV'!A:D,2,FALSE),"NÃO"))) -> CAIXA DE INSPEÇÃO EM PVC, DIÂMETRO 300 MM, REF TEL-552, MARCA DE REFERÊNCIA TERMOTÉCNICA OU EQUIVALENTE, INCLUSIVE ESCAVAÇÃO E REATERRO | D93: =UPPER(IF(I93="COMP",VLOOKUP(B93,COMP!B:M,7,FALSE),IF(I93="LABOR",VLOOKUP(J93,'LABOR-SERV'!A:D,3,FALSE),"NÃO"))) -> UND | E93: =VLOOKUP(B93,MEMO!B:I,8,FALSE) -> 4.00 | F93: R$ 80.86 | G93: R$ 323.44 | H93: 0.07% | I93: LABOR | J93: 160316
B94: 5.2.4 | C94: =UPPER(IF(I94="COMP",VLOOKUP(B94,COMP!B:M,6,FALSE),IF(GLOBAL!I94="LABOR",VLOOKUP(GLOBAL!J94,'LABOR-SERV'!A:D,2,FALSE),"NÃO"))) -> CONECTOR DE MEDIÇÃO EM LATÃO COM 2 PARAFUSOS PARA CABOS DE 16 A 50 MM2, REF. TEL-562, TERMOTÉCNICA OU EQUIVALENTE | D94: =UPPER(IF(I94="COMP",VLOOKUP(B94,COMP!B:M,7,FALSE),IF(I94="LABOR",VLOOKUP(J94,'LABOR-SERV'!A:D,3,FALSE),"NÃO"))) -> UND | E94: =VLOOKUP(B94,MEMO!B:I,8,FALSE) -> 1.00 | F94: R$ 54.39 | G94: R$ 54.39 | H94: 0.01% | I94: LABOR | J94: 160310
B95: 5.2.5 | C95: =UPPER(IF(I95="COMP",VLOOKUP(B95,COMP!B:M,6,FALSE),IF(GLOBAL!I95="LABOR",VLOOKUP(GLOBAL!J95,'LABOR-SERV'!A:D,2,FALSE),"NÃO"))) -> ATERRAMENTO COM HASTE TERRA 5/8" X 2.40, CABO DE COBRE NU 6MM2, INCLUSIVE CAIXA DE CONCRETO 30 X 30 CM | D95: =UPPER(IF(I95="COMP",VLOOKUP(B95,COMP!B:M,7,FALSE),IF(I95="LABOR",VLOOKUP(J95,'LABOR-SERV'!A:D,3,FALSE),"NÃO"))) -> UND | E95: =VLOOKUP(B95,MEMO!B:I,8,FALSE) -> 32.00 | F95: R$ 314.07 | G95: R$ 10,050.24 | H95: 2.22% | I95: LABOR | J95: 160303
B96: 5.2.6 | C96: =UPPER(IF(I96="COMP",VLOOKUP(B96,COMP!B:M,6,FALSE),IF(GLOBAL!I96="LABOR",VLOOKUP(GLOBAL!J96,'LABOR-SERV'!A:D,2,FALSE),"NÃO"))) -> KIT COMPLETO PARA SOLDA EXOTÉRMICA (MOLDE HCL 5/8" REF: TEL905611 / CARTUCHO N° 115 REF: TEL 909115 / ALICATE Z 201 REF: TEL 998201), MARCA DE REFERÊNCIA TERMOTÉCNICA OU EQUIVALENTE | D96: =UPPER(IF(I96="COMP",VLOOKUP(B96,COMP!B:M,7,FALSE),IF(I96="LABOR",VLOOKUP(J96,'LABOR-SERV'!A:D,3,FALSE),"NÃO"))) -> UND | E96: =VLOOKUP(B96,MEMO!B:I,8,FALSE) -> 32.00 | F96: R$ 46.18 | G96: R$ 1,477.76 | H96: 0.33% | I96: LABOR | J96: 160312
B97: 5.2.7 | C97: =UPPER(IF(I97="COMP",VLOOKUP(B97,COMP!B:M,6,FALSE),IF(GLOBAL!I97="LABOR",VLOOKUP(GLOBAL!J97,'LABOR-SERV'!A:D,2,FALSE),"NÃO"))) -> TERMINAL AÉREO EM LATÃO (CAPTOR), COM CONECTOR E FIXAÇÃO HORIZONTAL 5/16"X250MM, REF. TEL-024, INCLUSIVE VEDAÇÃO DOS FUROS COM POLIURETANO REF. TEL 5905, MARCA DE REF. TERMOTÉCNICA OU EQUIVALENTE | D97: =UPPER(IF(I97="COMP",VLOOKUP(B97,COMP!B:M,7,FALSE),IF(I97="LABOR",VLOOKUP(J97,'LABOR-SERV'!A:D,3,FALSE),"NÃO"))) -> UND | E97: =VLOOKUP(B97,MEMO!B:I,8,FALSE) -> 32.00 | F97: R$ 48.38 | G97: R$ 1,548.16 | H97: 0.34% | I97: LABOR | J97: 160309
A98: 5.0 | C98: VALOR TOTAL ITEM 5 | G98: =SUM(G51:G97) -> R$ 107,932.38 | H98: 23.82%
B99: 6.0 | C99: LIMPEZA
B100: 6.1 | C100: =UPPER(IF(I100="COMP",VLOOKUP(B100,COMP!B:M,6,FALSE),IF(GLOBAL!I100="LABOR",VLOOKUP(GLOBAL!J100,'LABOR-SERV'!A:D,2,FALSE),"NÃO"))) -> LIMPEZA GERAL DA OBRA | D100: =UPPER(IF(I100="COMP",VLOOKUP(B100,COMP!B:M,7,FALSE),IF(I100="LABOR",VLOOKUP(J100,'LABOR-SERV'!A:D,3,FALSE),"NÃO"))) -> M2 | E100: =VLOOKUP(B100,MEMO!B:I,8,FALSE) -> 1023.19 | F100: R$ 9.88 | G100: =E100*F100 -> R$ 10,109.09 | H100: =G100/$G$102 -> 2.23% | I100: =VLOOKUP(B100,'PL LICITADA'!B:K,3,FALSE) -> LABOR | J100: 200401
A101: 6.0 | C101: VALOR TOTAL ITEM 6 | G101: =SUM(G100:G100) -> R$ 10,109.09 | H101: =G101/$G$102 -> 2.23%
B102: VALOR TOTAL | G102: =SUM(G9:G101)/2 -> R$ 453,206.23 | H102: =G102/$G$102 -> 100.00%

Sheet SINAPI-COMP (hidden)
A1: PCI.818.01 - CUSTOS DE COMPOSIÇÕES ANALÍTICO DATA DE EMISSÃO:13/12/2017 23:20:36 DATA DE RT: 13/12/2017
A2: ENCARGOS SOCIAIS SOBRE PREÇOS DA MÃO-DE-OBRA: 117,73%(HORA) 73,34%(MÊS)
A3: ABRANGENCIA: NACIONAL DATA REFERENCIA TECNICA: 13/12/2017 LOCALIDADE : SALVADOR DATA DE PREÇO : 11/2017
A4: REFERÊNCIA DE COLETA: MEDIANO
M5: SINAPI
A6: DESCRICAO DA CLASSE | B6: SIGLA DA CLASSE | C6: DESCRICAO DO TIPO 1 | D6: SIGLA DO TIPO 1 | E6: CODIGO DO AGRUPADOR | F6: DESCRICAO DO AGRUPADOR | G6: CODIGO DA COMPOSICAO | H6: DESCRICAO DA COMPOSICAO | I6: UNIDADE | J6: ORIGEM DE PREÇO | K6: CUSTO TOTAL | L6: TIPO ITEM | M6: SINAPI | N6: CODIGO ITEM | O6: COEFICIENTE | P6: UNIDADE ITEM | Q6: ORIGEM DE PREÇO ITEM | R6: COEFICIENTE | S6: PRECO UNITARIO | T6: CUSTO TOTAL | U6: CUSTO MAO DE OBRA | V6: % MAO DE OBRA | W6: CUSTO MATERIAL | X6: % MATERIAL | Y6: CUSTO EQUIPAMENTO | Z6: % EQUIPAMENTO | AA6: CUSTO SERVICOS TERCEIROS | AB6: % SERVICOS TERCEIROS | AC6: CUSTO OUTROS | AD6: % OUTROS | AE6: VINCULO
M7: SINAPI
A8: ASSENTAMENTO DE TUBOS E PECAS | B8: ASTU | C8: FORNEC E/OU ASSENT DE TUBO DE FERRO FUNDIDO JUNTA | D8: 45 | G8: 97141 | H8: ASSENTAMENTO DE TUBO DE FERRO FUNDIDO PARA REDE DE ÁGUA, DN 80 MM, JUNTA ELÁSTICA, INSTALADO EM LOCAL COM NÍVEL ALTO DE INTERFERÊNCIAS (NÃO INCLUI FORNECIMENTO). AF_11/2017 | I8: M | J8: COEFICIENTE DE REPRESENTATIVIDADE | K8: 6.63 | M8: SINAPI | U8: 3.98 | V8: 59.8736178 | W8: 1.52 | X8: 23.0647709 | Y8: 1.13 | Z8: 17.0616113 | AA8: 0 | AB8: 0 | AC8: 0 | AD8: 0 | AE8: CAIXA REFERENCIAL
A9: ASSENTAMENTO DE TUBOS E PECAS | B9: ASTU | C9: FORNEC E/OU ASSENT DE TUBO DE FERRO FUNDIDO JUNTA | D9: 45 | G9: 97141 | H9: ASSENTAMENTO DE TUBO DE FERRO FUNDIDO PARA REDE DE ÁGUA, DN 80 MM, JUNTA ELÁSTICA, INSTALADO EM LOCAL COM NÍVEL ALTO DE INTERFERÊNCIAS (NÃO INCLUI FORNECIMENTO). AF_11/2017 | I9: M | J9: COEFICIENTE DE REPRESENTATIVIDADE | K9: 6.63 | L9: S | M9: SINAPI | N9: 5678 | O9: 0.0099 | P9: CHP | Q9: COEFICIENTE DE REPRESENTATIVIDADE | R9: 0.0099 | S9: 100.23 | T9: 0.99 | AE9: CAIXA REFERENCIAL
A10: ASSENTAMENTO DE TUBOS E PECAS | B10: ASTU | C10: FORNEC E/OU ASSENT DE TUBO DE FERRO FUNDIDO JUNTA | D10: 45 | G10: 97141 | H10: ASSENTAMENTO DE TUBO DE FERRO FUNDIDO PARA REDE DE ÁGUA, DN 80 MM, JUNTA ELÁSTICA, INSTALADO EM LOCAL COM NÍVEL ALTO DE INTERFERÊNCIAS (NÃO INCLUI FORNECIMENTO). AF_11/2017 | I10: M | J10: COEFICIENTE DE REPRESENTATIVIDADE | K10: 6.63 | L10: S | M10: SINAPI | N10: 5679 | O10: 0.0477 | P10: CHI | Q10: COEFICIENTE DE REPRESENTATIVIDADE | R10: 0.0477 | S10: 44.39 | T10: 2.11 | AE10: CAIXA REFERENCIAL
A11: ASSENTAMENTO DE TUBOS E PECAS | B11: ASTU | C11: FORNEC E/OU ASSENT DE TUBO DE FERRO FUNDIDO JUNTA | D11: 45 | G11: 97141 | H11: ASSENTAMENTO DE TUBO DE FERRO FUNDIDO PARA REDE DE ÁGUA, DN 80 MM, JUNTA ELÁSTICA, INSTALADO EM LOCAL COM NÍVEL ALTO DE INTERFERÊNCIAS (NÃO INCLUI FORNECIMENTO). AF_11/2017 | I11: M | J11: COEFICIENTE DE REPRESENTATIVIDADE | K11: 6.63 | L11: I | M11: SINAPI | N11: 20078 | O11: 0.0046 | P11: UN | Q11: COEFICIENTE DE REPRESENTATIVIDADE | R11: 0.0046 | S11: 17.63 | T11: 0.08 | AE11: CAIXA REFERENCIAL
A12: ASSENTAMENTO DE TUBOS E PECAS | B12: ASTU | C12: FORNEC E/OU ASSENT DE TUBO DE FERRO FUNDIDO JUNTA | D12: 45 | G12: 97141 | H12: ASSENTAMENTO DE TUBO DE FERRO FUNDIDO PARA REDE DE ÁGUA, DN 80 MM, JUNTA ELÁSTICA, INSTALADO EM LOCAL COM NÍVEL ALTO DE INTERFERÊNCIAS (NÃO INCLUI FORNECIMENTO). AF_11/2017 | I12: M | J12: COEFICIENTE DE REPRESENTATIVIDADE | K12: 6.63 | L12: S | M12: SINAPI | N12: 88246 | O12: 0.0905 | P12: H | Q12: COEFICIENTE DE REPRESENTATIVIDADE | R12: 0.0905 | S12: 23.15 | T12: 2.09 | AE12: CAIXA REFERENCIAL
A13: ASSENTAMENTO DE TUBOS E PECAS | B13: ASTU | C13: FORNEC E/OU ASSENT DE TUBO DE FERRO FUNDIDO JUNTA | D13: 45 | G13: 97141 | H13: ASSENTAMENTO DE TUBO DE FERRO FUNDIDO PARA REDE DE ÁGUA, DN 80 MM, JUNTA ELÁSTICA, INSTALADO EM LOCAL COM NÍVEL ALTO DE INTERFERÊNCIAS (NÃO INCLUI FORNECIMENTO). AF_11/2017 | I13: M | J13: COEFICIENTE DE REPRESENTATIVIDADE | K13: 6.63 | L13: S | M13: SINAPI | N13: 88316 | O13: 0.0905 | P13: H | Q13: COEFICIENTE DE REPRESENTATIVIDADE | R13: 0.0905 | S13: 15.03 | T13: 1.36 | AE13: CAIXA REFERENCIAL
A14: ASSENTAMENTO DE TUBOS E PECAS | B14: ASTU | C14: FORNEC E/OU ASSENT DE TUBO DE FERRO FUNDIDO JUNTA | D14: 45 | G14: 97142 | H14: ASSENTAMENTO DE TUBO DE FERRO FUNDIDO PARA REDE DE ÁGUA, DN 100 MM, JUNTA ELÁSTICA, INSTALADO EM LOCAL COM NÍVEL ALTO DE INTERFERÊNCIAS (NÃO INCLUI FORNECIMENTO). AF_11/2017 | I14: M | J14: COEFICIENTE DE REPRESENTATIVIDADE | K14: 7.39 | M14: SINAPI | U14: 4.48 | V14: 60.3667138 | W14: 1.71 | X14: 23.2722143 | Y14: 1.2 | Z14: 16.3610719 | AA14: 0 | AB14: 0 | AC14: 0 | AD14: 0 | AE14: CAIXA REFERENCIAL
A15: ASSENTAMENTO DE TUBOS E PECAS | B15: ASTU | C15: FORNEC E/OU ASSENT DE TUBO DE FERRO FUNDIDO JUNTA | D15: 45 | G15: 97142 | H15: ASSENTAMENTO DE TUBO DE FERRO FUNDIDO PARA REDE DE ÁGUA, DN 100 MM, JUNTA ELÁSTICA, INSTALADO EM LOCAL COM NÍVEL ALTO DE INTERFERÊNCIAS (NÃO INCLUI FORNECIMENTO). AF_11/2017 | I15: M | J15: COEFICIENTE DE REPRESENTATIVIDADE | K15: 7.39 | L15: S | M15: SINAPI | N15: 5678 | O15: 0.0106 | P15: CHP | Q15: COEFICIENTE DE REPRESENTATIVIDADE | R15: 0.0106 | S15: 100.23 | T15: 1.06 | AE15: CAIXA REFERENCIAL
A16: ASSENTAMENTO DE TUBOS E PECAS | B16: ASTU | C16: FORNEC E/OU ASSENT DE TUBO DE FERRO FUNDIDO JUNTA | D16: 45 | G16: 97142 | H16: ASSENTAMENTO DE TUBO DE FERRO FUNDIDO PARA REDE DE ÁGUA, DN 100 MM, JUNTA ELÁSTICA, INSTALADO EM LOCAL COM NÍVEL ALTO DE INTERFERÊNCIAS (NÃO INCLUI FORNECIMENTO). AF_11/2017 | I16: M | J16: COEFICIENTE DE REPRESENTATIVIDADE | K16: 7.39 | L16: S | M16: SINAPI | N16: 5679 | O16: 0.051 | P16: CHI | Q16: COEFICIENTE DE REPRESENTATIVIDADE | R16: 0.051 | S16: 44.39 | T16: 2.26 | AE16: CAIXA REFERENCIAL
A17: ASSENTAMENTO DE TUBOS E PECAS | B17: ASTU | C17: FORNEC E/OU ASSENT DE TUBO DE FERRO FUNDIDO JUNTA | D17: 45 | G17: 97142 | H17: ASSENTAMENTO DE TUBO DE FERRO FUNDIDO PARA REDE DE ÁGUA, DN 100 MM, JUNTA ELÁSTICA, INSTALADO EM LOCAL COM NÍVEL ALTO DE INTERFERÊNCIAS (NÃO INCLUI FORNECIMENTO). AF_11/2017 | I17: M | J17: COEFICIENTE DE REPRESENTATIVIDADE | K17: 7.39 | L17: I | M17: SINAPI | N17: 20078 | O17: 0.0054 | P17: UN | Q17: COEFICIENTE DE REPRESENTATIVIDADE | R17: 0.0054 | S17: 17.63 | T17: 0.09 | AE17: CAIXA REFERENCIAL
A18: ASSENTAMENTO DE TUBOS E PECAS | B18: ASTU | C18: FORNEC E/OU ASSENT DE TUBO DE FERRO FUNDIDO JUNTA | D18: 45 | G18: 97142 | H18: ASSENTAMENTO DE TUBO DE FERRO FUNDIDO PARA REDE DE ÁGUA, DN 100 MM, JUNTA ELÁSTICA, INSTALADO EM LOCAL COM NÍVEL ALTO DE INTERFERÊNCIAS (NÃO INCLUI FORNECIMENTO). AF_11/2017 | I18: M | J18: COEFICIENTE DE REPRESENTATIVIDADE | K18: 7.39 | L18: S | M18: SINAPI | N18: 88246 | O18: 0.1045 | P18: H | Q18: COEFICIENTE DE REPRESENTATIVIDADE | R18: 0.1045 | S18: 23.15 | T18: 2.41 | AE18: CAIXA REFERENCIAL
A19: ASSENTAMENTO DE TUBOS E PECAS | B19: ASTU | C19: FORNEC E/OU ASSENT DE TUBO DE FERRO FUNDIDO JUNTA | D19: 45 | G19: 97142 | H19: ASSENTAMENTO DE TUBO DE FERRO FUNDIDO PARA REDE DE ÁGUA, DN 100 MM, JUNTA ELÁSTICA, INSTALADO EM LOCAL COM NÍVEL ALTO DE INTERFERÊNCIAS (NÃO INCLUI FORNECIMENTO). AF_11/2017 | I19: M | J19: COEFICIENTE DE REPRESENTATIVIDADE | K19: 7.39 | L19: S | M19: SINAPI | N19: 88316 | O19: 0.1045 | P19: H | Q19: COEFICIENTE DE REPRESENTATIVIDADE | R19: 0.1045 | S19: 15.03 | T19: 1.57 | AE19: CAIXA REFERENCIAL
A20: ASSENTAMENTO DE TUBOS E PECAS | B20: ASTU | C20: FORNEC E/OU ASSENT DE TUBO DE FERRO FUNDIDO JUNTA | D20: 45 | G20: 97143 | H20: ASSENTAMENTO DE TUBO DE FERRO FUNDIDO PARA REDE DE ÁGUA, DN 150 MM, JUNTA ELÁSTICA, INSTALADO EM LOCAL COM NÍVEL ALTO DE INTERFERÊNCIAS (NÃO INCLUI FORNECIMENTO). AF_11/2017 | I20: M | J20: COEFICIENTE DE REPRESENTATIVIDADE | K20: 9.31 | M20: SINAPI | U20: 5.7 | V20: 61.1607144 | W20: 2.2 | X20: 23.6607142 | Y20: 1.41 | Z20: 15.1785714 | AA20: 0 | AB20: 0 | AC20: 0 | AD20: 0 | AE20: CAIXA REFERENCIAL
A21: ASSENTAMENTO DE TUBOS E PECAS | B21: ASTU | C21: FORNEC E/OU ASSENT DE TUBO DE FERRO FUNDIDO JUNTA | D21: 45 | G21: 97143 | H21: ASSENTAMENTO DE TUBO DE FERRO FUNDIDO PARA REDE DE ÁGUA, DN 150 MM, JUNTA ELÁSTICA, INSTALADO EM LOCAL COM NÍVEL ALTO DE INTERFERÊNCIAS (NÃO INCLUI FORNECIMENTO). AF_11/2017 | I21: M | J21: COEFICIENTE DE REPRESENTATIVIDADE | K21: 9.31 | L21: S | M21: SINAPI | N21: 5678 | O21: 0.0124 | P21: CHP | Q21: COEFICIENTE DE REPRESENTATIVIDADE | R21: 0.0124 | S21: 100.23 | T21: 1.24 | AE21: CAIXA REFERENCIAL
A22: ASSENTAMENTO DE TUBOS E PECAS | B22: ASTU | C22: FORNEC E/OU ASSENT DE TUBO DE FERRO FUNDIDO JUNTA | D22: 45 | G22: 97143 | H22: ASSENTAMENTO DE TUBO DE FERRO FUNDIDO PARA REDE DE ÁGUA, DN 150 MM, JUNTA ELÁSTICA, INSTALADO EM LOCAL COM NÍVEL ALTO DE INTERFERÊNCIAS (NÃO INCLUI FORNECIMENTO). AF_11/2017 | I22: M | J22: COEFICIENTE DE REPRESENTATIVIDADE | K22: 9.31 | L22: S | M22: SINAPI | N22: 5679 | O22: 0.0594 | P22: CHI | Q22: COEFICIENTE DE REPRESENTATIVIDADE | R22: 0.0594 | S22: 44.39 | T22: 2.63 | AE22: CAIXA REFERENCIAL
A23: ASSENTAMENTO DE TUBOS E PECAS | B23: ASTU | C23: FORNEC E/OU ASSENT DE TUBO DE FERRO FUNDIDO JUNTA | D23: 45 | G23: 97143 | H23: ASSENTAMENTO DE TUBO DE FERRO FUNDIDO PARA REDE DE ÁGUA, DN 150 MM, JUNTA ELÁSTICA, INSTALADO EM LOCAL COM NÍVEL ALTO DE INTERFERÊNCIAS (NÃO INCLUI FORNECIMENTO). AF_11/2017 | I23: M | J23: COEFICIENTE DE REPRESENTATIVIDADE | K23: 9.31 | L23: I | M23: SINAPI | N23: 20078 | O23: 0.0071 | P23: UN | Q23: COEFICIENTE DE REPRESENTATIVIDADE | R23: 0.0071 | S23: 17.63 | T23: 0.12 | AE23: CAIXA REFERENCIAL
A24: ASSENTAMENTO DE TUBOS E PECAS | B24: ASTU | C24: FORNEC E/OU ASSENT DE TUBO DE FERRO FUNDIDO JUNTA | D24: 45 | G24: 97143 | H24: ASSENTAMENTO DE TUBO DE FERRO FUNDIDO PARA REDE DE ÁGUA, DN 150 MM, JUNTA ELÁSTICA, INSTALADO EM LOCAL COM NÍVEL ALTO DE INTERFERÊNCIAS (NÃO INCLUI FORNECIMENTO). AF_11/2017 | I24: M | J24: COEFICIENTE DE REPRESENTATIVIDADE | K24: 9.31 | L24: S | M24: SINAPI | N24: 88246 | O24: 0.1396 | P24: H | Q24: COEFICIENTE DE REPRESENTATIVIDADE | R24: 0.1396 | S24: 23.15 | T24: 3.23 | AE24: CAIXA REFERENCIAL
A25: ASSENTAMENTO DE TUBOS E PECAS | B25: ASTU | C25: FORNEC E/OU ASSENT DE TUBO DE FERRO FUNDIDO JUNTA | D25: 45 | G25: 97143 | H25: ASSENTAMENTO DE TUBO DE FERRO FUNDIDO PARA REDE DE ÁGUA, DN 150 MM, JUNTA ELÁSTICA, INSTALADO EM LOCAL COM NÍVEL ALTO DE INTERFERÊNCIAS (NÃO INCLUI FORNECIMENTO). AF_11/2017 | I25: M | J25: COEFICIENTE DE REPRESENTATIVIDADE | K25: 9.31 | L25: S | M25: SINAPI | N25: 88316 | O25: 0.1396 | P25: H | Q25: COEFICIENTE DE REPRESENTATIVIDADE | R25: 0.1396 | S25: 15.03 | T25: 2.09 | AE25: CAIXA REFERENCIAL
A26: ASSENTAMENTO DE TUBOS E PECAS | B26: ASTU | C26: FORNEC E/OU ASSENT DE TUBO DE FERRO FUNDIDO JUNTA | D26: 45 | G26: 97144 | H26: ASSENTAMENTO DE TUBO DE FERRO FUNDIDO PARA REDE DE ÁGUA, DN 200 MM, JUNTA ELÁSTICA, INSTALADO EM LOCAL COM NÍVEL ALTO DE INTERFERÊNCIAS (NÃO INCLUI FORNECIMENTO). AF_11/2017 | I26: M | J26: COEFICIENTE DE REPRESENTATIVIDADE | K26: 11.22 | M26: SINAPI | U26: 6.9 | V26: 61.3970589 | W26: 2.73 | X26: 24.3566176 | Y26: 1.59 | Z26: 14.2463235 | AA26: 0 | AB26: 0 | AC26: 0 | AD26: 0 | AE26: CAIXA REFERENCIAL
A27: ASSENTAMENTO DE TUBOS E PECAS | B27: ASTU | C27: FORNEC E/OU ASSENT DE TUBO DE FERRO FUNDIDO JUNTA | D27: 45 | G27: 97144 | H27: ASSENTAMENTO DE TUBO DE FERRO FUNDIDO PARA REDE DE ÁGUA, DN 200 MM, JUNTA ELÁSTICA, INSTALADO EM LOCAL COM NÍVEL ALTO DE INTERFERÊNCIAS (NÃO INCLUI FORNECIMENTO). AF_11/2017 | I27: M | J27: COEFICIENTE DE REPRESENTATIVIDADE | K27: 11.22 | L27: S | M27: SINAPI | N27: 5678 | O27: 0.0141 | P27: CHP | Q27: COEFICIENTE DE REPRESENTATIVIDADE | R27: 0.0141 | S27: 100.23 | T27: 1.41 | AE27: CAIXA REFERENCIAL
A28: ASSENTAMENTO DE TUBOS E PECAS | B28: ASTU | C28: FORNEC E/OU ASSENT DE TUBO DE FERRO FUNDIDO JUNTA | D28: 45 | G28: 97144 | H28: ASSENTAMENTO DE TUBO DE FERRO FUNDIDO PARA REDE DE ÁGUA, DN 200 MM, JUNTA ELÁSTICA, INSTALADO EM LOCAL COM NÍVEL ALTO DE INTERFERÊNCIAS (NÃO INCLUI FORNECIMENTO). AF_11/2017 | I28: M | J28: COEFICIENTE DE REPRESENTATIVIDADE | K28: 11.22 | L28: S | M28: SINAPI | N28: 5679 | O28: 0.0678 | P28: CHI | Q28: COEFICIENTE DE REPRESENTATIVIDADE | R28: 0.0678 | S28: 44.39 | T28: 3 | AE28: CAIXA REFERENCIAL
A29: ASSENTAMENTO DE TUBOS E PECAS | B29: ASTU | C29: FORNEC E/OU ASSENT DE TUBO DE FERRO FUNDIDO JUNTA | D29: 45 | G29: 97144 | H29: ASSENTAMENTO DE TUBO DE FERRO FUNDIDO PARA REDE DE ÁGUA, DN 200 MM, JUNTA ELÁSTICA, INSTALADO EM LOCAL COM NÍVEL ALTO DE INTERFERÊNCIAS (NÃO INCLUI FORNECIMENTO). AF_11/2017 | I29: M | J29: COEFICIENTE DE REPRESENTATIVIDADE | K29: 11.22 | L29: I | M29: SINAPI | N29: 20078 | O29: 0.0087 | P29: UN | Q29: COEFICIENTE DE REPRESENTATIVIDADE | R29: 0.0087 | S29: 17.63 | T29: 0.15 | AE29: CAIXA REFERENCIAL
A30: ASSENTAMENTO DE TUBOS E PECAS | B30: ASTU | C30: FORNEC E/OU ASSENT DE TUBO DE FERRO FUNDIDO JUNTA | D30: 45 | G30: 97144 | H30: ASSENTAMENTO DE TUBO DE FERRO FUNDIDO PARA REDE DE ÁGUA, DN 200 MM, JUNTA ELÁSTICA, INSTALADO EM LOCAL COM NÍVEL ALTO DE INTERFERÊNCIAS (NÃO INCLUI FORNECIMENTO). AF_11/2017 | I30: M | J30: COEFICIENTE DE REPRESENTATIVIDADE | K30: 11.22 | L30: S | M30: SINAPI | N30: 88246 | O30: 0.1747 | P30: H | Q30: COEFICIENTE DE REPRESENTATIVIDADE | R30: 0.1747 | S30: 23.15 | T30: 4.04 | AE30: CAIXA REFERENCIAL
A31: ASSENTAMENTO DE TUBOS E PECAS | B31: ASTU | C31: FORNEC E/OU ASSENT DE TUBO DE FERRO FUNDIDO JUNTA | D31: 45 | G31: 97144 | H31: ASSENTAMENTO DE TUBO DE FERRO FUNDIDO PARA REDE DE ÁGUA, DN 200 MM, JUNTA ELÁSTICA, INSTALADO EM LOCAL COM NÍVEL ALTO DE INTERFERÊNCIAS (NÃO INCLUI FORNECIMENTO). AF_11/2017 | I31: M | J31: COEFICIENTE DE REPRESENTATIVIDADE | K31: 11.22 | L31: S | M31: SINAPI | N31: 88316 | O31: 0.1747 | P31: H | Q31: COEFICIENTE DE REPRESENTATIVIDADE | R31: 0.1747 | S31: 15.03 | T31: 2.62 | AE31: CAIXA REFERENCIAL
A32: ASSENTAMENTO DE TUBOS E PECAS | B32: ASTU | C32: FORNEC E/OU ASSENT DE TUBO DE FERRO FUNDIDO JUNTA | D32: 45 | G32: 97145 | H32: ASSENTAMENTO DE TUBO DE FERRO FUNDIDO PARA REDE DE ÁGUA, DN 250 MM, JUNTA ELÁSTICA, INSTALADO EM LOCAL COM NÍVEL ALTO DE INTERFERÊNCIAS (NÃO INCLUI FORNECIMENTO). AF_11/2017 | I32: M | J32: COEFICIENTE DE REPRESENTATIVIDADE | K32: 13.16 | M32: SINAPI | U32: 8.14 | V32: 61.7854348 | W32: 3.23 | X32: 24.5888801 | Y32: 1.79 | Z32: 13.6256851 | AA32: 0 | AB32: 0 | AC32: 0 | AD32: 0 | AE32: CAIXA REFERENCIAL
A33: ASSENTAMENTO DE TUBOS E PECAS | B33: ASTU | C33: FORNEC E/OU ASSENT DE TUBO DE FERRO FUNDIDO JUNTA | D33: 45 | G33: 97145 | H33: ASSENTAMENTO DE TUBO DE FERRO FUNDIDO PARA REDE DE ÁGUA, DN 250 MM, JUNTA ELÁSTICA, INSTALADO EM LOCAL COM NÍVEL ALTO DE INTERFERÊNCIAS (NÃO INCLUI FORNECIMENTO). AF_11/2017 | I33: M | J33: COEFICIENTE DE REPRESENTATIVIDADE | K33: 13.16 | L33: S | M33: SINAPI | N33: 5678 | O33: 0.0159 | P33: CHP | Q33: COEFICIENTE DE REPRESENTATIVIDADE | R33: 0.0159 | S33: 100.23 | T33: 1.59 | AE33: CAIXA REFERENCIAL
A34: ASSENTAMENTO DE TUBOS E PECAS | B34: ASTU | C34: FORNEC E/OU ASSENT DE TUBO DE FERRO FUNDIDO JUNTA | D34: 45 | G34: 97145 | H34: ASSENTAMENTO DE TUBO DE FERRO FUNDIDO PARA REDE DE ÁGUA, DN 250 MM, JUNTA ELÁSTICA, INSTALADO EM LOCAL COM NÍVEL ALTO DE INTERFERÊNCIAS (NÃO INCLUI FORNECIMENTO). AF_11/2017 | I34: M | J34: COEFICIENTE DE REPRESENTATIVIDADE | K34: 13.16 | L34: S | M34: SINAPI | N34: 5679 | O34: 0.0762 | P34: CHI | Q34: COEFICIENTE DE REPRESENTATIVIDADE | R34: 0.0762 | S34: 44.39 | T34: 3.38 | AE34: CAIXA REFERENCIAL
A35: ASSENTAMENTO DE TUBOS E PECAS | B35: ASTU | C35: FORNEC E/OU ASSENT DE TUBO DE FERRO FUNDIDO JUNTA | D35: 45 | G35: 97145 | H35: ASSENTAMENTO DE TUBO DE FERRO FUNDIDO PARA REDE DE ÁGUA, DN 250 MM, JUNTA ELÁSTICA, INSTALADO EM LOCAL COM NÍVEL ALTO DE INTERFERÊNCIAS (NÃO INCLUI FORNECIMENTO). AF_11/2017 | I35: M | J35: COEFICIENTE DE REPRESENTATIVIDADE | K35: 13.16 | L35: I | M35: SINAPI | N35: 20078 | O35: 0.0113 | P35: UN | Q35: COEFICIENTE DE REPRESENTATIVIDADE | R35: 0.0113 | S35: 17.63 | T35: 0.19 | AE35: CAIXA REFERENCIAL
A36: ASSENTAMENTO DE TUBOS E PECAS | B36: ASTU | C36: FORNEC E/OU ASSENT DE TUBO DE FERRO FUNDIDO JUNTA | D36: 45 | G36: 97145 | H36: ASSENTAMENTO DE TUBO DE FERRO FUNDIDO PARA REDE DE ÁGUA, DN 250 MM, JUNTA ELÁSTICA, INSTALADO EM LOCAL COM NÍVEL ALTO DE INTERFERÊNCIAS (NÃO INCLUI FORNECIMENTO). AF_11/2017 | I36: M | J36: COEFICIENTE DE REPRESENTATIVIDADE | K36: 13.16 | L36: S | M36: SINAPI | N36: 88246 | O36: 0.2097 | P36: H | Q36: COEFICIENTE DE REPRESENTATIVIDADE | R36: 0.2097 | S36: 23.15 | T36: 4.85 | AE36: CAIXA REFERENCIAL
A37: ASSENTAMENTO DE TUBOS E PECAS | B37: ASTU | C37: FORNEC E/OU ASSENT DE TUBO DE FERRO FUNDIDO JUNTA | D37: 45 | G37: 97145 | H37: ASSENTAMENTO DE TUBO DE FERRO FUNDIDO PARA REDE DE ÁGUA, DN 250 MM, JUNTA ELÁSTICA, INSTALADO EM LOCAL COM NÍVEL ALTO DE INTERFERÊNCIAS (NÃO INCLUI FORNECIMENTO). AF_11/2017 | I37: M | J37: COEFICIENTE DE REPRESENTATIVIDADE | K37: 13.16 | L37: S | M37: SINAPI | N37: 88316 | O37: 0.2097 | P37: H | Q37: COEFICIENTE DE REPRESENTATIVIDADE | R37: 0.2097 | S37: 15.03 | T37: 3.15 | AE37: CAIXA REFERENCIAL
A38: ASSENTAMENTO DE TUBOS E PECAS | B38: ASTU | C38: FORNEC E/OU ASSENT DE TUBO DE FERRO FUNDIDO JUNTA | D38: 45 | G38: 97146 | H38: ASSENTAMENTO DE TUBO DE FERRO FUNDIDO PARA REDE DE ÁGUA, DN 300 MM, JUNTA ELÁSTICA, INSTALADO EM LOCAL COM NÍVEL ALTO DE INTERFERÊNCIAS (NÃO INCLUI FORNECIMENTO). AF_11/2017 | I38: M | J38: COEFICIENTE DE REPRESENTATIVIDADE | K38: 15.08 | M38: SINAPI | U38: 9.33 | V38: 61.7946975 | W38: 3.78 | X38: 25.0849762 | Y38: 1.97 | Z38: 13.1203263 | AA38: 0 | AB38: 0 | AC38: 0 | AD38: 0 | AE38: CAIXA REFERENCIAL
A39: ASSENTAMENTO DE TUBOS E PECAS | B39: ASTU | C39: FORNEC E/OU ASSENT DE TUBO DE FERRO FUNDIDO JUNTA | D39: 45 | G39: 97146 | H39: ASSENTAMENTO DE TUBO DE FERRO FUNDIDO PARA REDE DE ÁGUA, DN 300 MM, JUNTA ELÁSTICA, INSTALADO EM LOCAL COM NÍVEL ALTO DE INTERFERÊNCIAS (NÃO INCLUI FORNECIMENTO). AF_11/2017 | I39: M | J39: COEFICIENTE DE REPRESENTATIVIDADE | K39: 15.08 | L39: S | M39: SINAPI | N39: 5678 | O39: 0.0176 | P39: CHP | Q39: COEFICIENTE DE REPRESENTATIVIDADE | R39: 0.0176 | S39: 100.23 | T39: 1.76 | AE39: CAIXA REFERENCIAL
A40: ASSENTAMENTO DE TUBOS E PECAS | B40: ASTU | C40: FORNEC E/OU ASSENT DE TUBO DE FERRO FUNDIDO JUNTA | D40: 45 | G40: 97146 | H40: ASSENTAMENTO DE TUBO DE FERRO FUNDIDO PARA REDE DE ÁGUA, DN 300 MM, JUNTA ELÁSTICA, INSTALADO EM LOCAL COM NÍVEL ALTO DE INTERFERÊNCIAS (NÃO INCLUI FORNECIMENTO). AF_11/2017 | I40: M | J40: COEFICIENTE DE REPRESENTATIVIDADE | K40: 15.08 | L40: S | M40: SINAPI | N40: 5679 | O40: 0.0846 | P40: CHI | Q40: COEFICIENTE DE REPRESENTATIVIDADE | R40: 0.0846 | S40: 44.39 | T40: 3.75 | AE40: CAIXA REFERENCIAL
A41: ASSENTAMENTO DE TUBOS E PECAS | B41: ASTU | C41: FORNEC E/OU ASSENT DE TUBO DE FERRO FUNDIDO JUNTA | D41: 45 | G41: 97146 | H41: ASSENTAMENTO DE TUBO DE FERRO FUNDIDO PARA REDE DE ÁGUA, DN 300 MM, JUNTA ELÁSTICA, INSTALADO EM LOCAL COM NÍVEL ALTO DE INTERFERÊNCIAS (NÃO INCLUI FORNECIMENTO). AF_11/2017 | I41: M | J41: COEFICIENTE DE REPRESENTATIVIDADE | K41: 15.08 | L41: I | M41: SINAPI | N41: 20078 | O41: 0.0138 | P41: UN | Q41: COEFICIENTE DE REPRESENTATIVIDADE | R41: 0.0138 | S41: 17.63 | T41: 0.24 | AE41: CAIXA REFERENCIAL
A42: ASSENTAMENTO DE TUBOS E PECAS | B42: ASTU | C42: FORNEC E/OU ASSENT DE TUBO DE FERRO FUNDIDO JUNTA | D42: 45 | G42: 97146 | H42: ASSENTAMENTO DE TUBO DE FERRO FUNDIDO PARA REDE DE ÁGUA, DN 300 MM, JUNTA ELÁSTICA, INSTALADO EM LOCAL COM NÍVEL ALTO DE INTERFERÊNCIAS (NÃO INCLUI FORNECIMENTO). AF_11/2017 | I42: M | J42: COEFICIENTE DE REPRESENTATIVIDADE | K42: 15.08 | L42: S | M42: SINAPI | N42: 88246 | O42: 0.2448 | P42: H | Q42: COEFICIENTE DE REPRESENTATIVIDADE | R42: 0.2448 | S42: 23.15 | T42: 5.66 | AE42: CAIXA REFERENCIAL
A43: ASSENTAMENTO DE TUBOS E PECAS | B43: ASTU | C43: FORNEC E/OU ASSENT DE TUBO DE FERRO FUNDIDO JUNTA | D43: 45 | G43: 97146 | H43: ASSENTAMENTO DE TUBO DE FERRO FUNDIDO PARA REDE DE ÁGUA, DN 300 MM, JUNTA ELÁSTICA, INSTALADO EM LOCAL COM NÍVEL ALTO DE INTERFERÊNCIAS (NÃO INCLUI FORNECIMENTO). AF_11/2017 | I43: M | J43: COEFICIENTE DE REPRESENTATIVIDADE | K43: 15.08 | L43: S | M43: SINAPI | N43: 88316 | O43: 0.2448 | P43: H | Q43: COEFICIENTE DE REPRESENTATIVIDADE | R43: 0.2448 | S43: 15.03 | T43: 3.67 | AE43: CAIXA REFERENCIAL
A44: ASSENTAMENTO DE TUBOS E PECAS | B44: ASTU | C44: FORNEC E/OU ASSENT DE TUBO DE FERRO FUNDIDO JUNTA | D44: 45 | G44: 97147 | H44: ASSENTAMENTO DE TUBO DE FERRO FUNDIDO PARA REDE DE ÁGUA, DN 350 MM, JUNTA ELÁSTICA, INSTALADO EM LOCAL COM NÍVEL ALTO DE INTERFERÊNCIAS (NÃO INCLUI FORNECIMENTO). AF_11/2017 | I44: M | J44: COEFICIENTE DE REPRESENTATIVIDADE | K44: 17.01 | M44: SINAPI | U44: 10.54 | V44: 61.927711 | W44: 4.26 | X44: 25.0602409 | Y44: 2.21 | Z44: 13.0120481 | AA44: 0 | AB44: 0 | AC44: 0 | AD44: 0 | AE44: CAIXA REFERENCIAL
A45: ASSENTAMENTO DE TUBOS E PECAS | B45: ASTU | C45: FORNEC E/OU ASSENT DE TUBO DE FERRO FUNDIDO JUNTA | D45: 45 | G45: 97147 | H45: ASSENTAMENTO DE TUBO DE FERRO FUNDIDO PARA REDE DE ÁGUA, DN 350 MM, JUNTA ELÁSTICA, INSTALADO EM LOCAL COM NÍVEL ALTO DE INTERFERÊNCIAS (NÃO INCLUI FORNECIMENTO). AF_11/2017 | I45: M | J45: COEFICIENTE DE REPRESENTATIVIDADE | K45: 17.01 | L45: S | M45: SINAPI | N45: 5678 | O45: 0.0194 | P45: CHP | Q45: COEFICIENTE DE REPRESENTATIVIDADE | R45: 0.0194 | S45: 100.23 | T45: 1.94 | AE45: CAIXA REFERENCIAL
A46: ASSENTAMENTO DE TUBOS E PECAS | B46: ASTU | C46: FORNEC E/OU ASSENT DE TUBO DE FERRO FUNDIDO JUNTA | D46: 45 | G46: 97147 | H46: ASSENTAMENTO DE TUBO DE FERRO FUNDIDO PARA REDE DE ÁGUA, DN 350 MM, JUNTA ELÁSTICA, INSTALADO EM LOCAL COM NÍVEL ALTO DE INTERFERÊNCIAS (NÃO INCLUI FORNECIMENTO). AF_11/2017 | I46: M | J46: COEFICIENTE DE REPRESENTATIVIDADE | K46: 17.01 | L46: S | M46: SINAPI | N46: 5679 | O46: 0.093 | P46: CHI | Q46: COEFICIENTE DE REPRESENTATIVIDADE | R46: 0.093 | S46: 44.39 | T46: 4.12 | AE46: CAIXA REFERENCIAL
A47: ASSENTAMENTO DE TUBOS E PECAS | B47: ASTU | C47: FORNEC E/OU ASSENT DE TUBO DE FERRO FUNDIDO JUNTA | D47: 45 | G47: 97147 | H47: ASSENTAMENTO DE TUBO DE FERRO FUNDIDO PARA REDE DE ÁGUA, DN 350 MM, JUNTA ELÁSTICA, INSTALADO EM LOCAL COM NÍVEL ALTO DE INTERFERÊNCIAS (NÃO INCLUI FORNECIMENTO). AF_11/2017 | I47: M | J47: COEFICIENTE DE REPRESENTATIVIDADE | K47: 17.01 | L47: I | M47: SINAPI | N47: 20078 | O47: 0.0163 | P47: UN | Q47: COEFICIENTE DE REPRESENTATIVIDADE | R47: 0.0163 | S47: 17.63 | T47: 0.28 | AE47: CAIXA REFERENCIAL
A48: ASSENTAMENTO DE TUBOS E PECAS | B48: ASTU | C48: FORNEC E/OU ASSENT DE TUBO DE FERRO FUNDIDO JUNTA | D48: 45 | G48: 97147 | H48: ASSENTAMENTO DE TUBO DE FERRO FUNDIDO PARA REDE DE ÁGUA, DN 350 MM, JUNTA ELÁSTICA, INSTALADO EM LOCAL COM NÍVEL ALTO DE INTERFERÊNCIAS (NÃO INCLUI FORNECIMENTO). AF_11/2017 | I48: M | J48: COEFICIENTE DE REPRESENTATIVIDADE | K48: 17.01 | L48: S | M48: SINAPI | N48: 88246 | O48: 0.2799 | P48: H | Q48: COEFICIENTE DE REPRESENTATIVIDADE | R48: 0.2799 | S48: 23.15 | T48: 6.47 | AE48: CAIXA REFERENCIAL
A49: ASSENTAMENTO DE TUBOS E PECAS | B49: ASTU | C49: FORNEC E/OU ASSENT DE TUBO DE FERRO FUNDIDO JUNTA | D49: 45 | G49: 97147 | H49: ASSENTAMENTO DE TUBO DE FERRO FUNDIDO PARA REDE DE ÁGUA, DN 350 MM, JUNTA ELÁSTICA, INSTALADO EM LOCAL COM NÍVEL ALTO DE INTERFERÊNCIAS (NÃO INCLUI FORNECIMENTO). AF_11/2017 | I49: M | J49: COEFICIENTE DE REPRESENTATIVIDADE | K49: 17.01 | L49: S | M49: SINAPI | N49: 88316 | O49: 0.2799 | P49: H | Q49: COEFICIENTE DE REPRESENTATIVIDADE | R49: 0.2799 | S49: 15.03 | T49: 4.2 | AE49: CAIXA REFERENCIAL
A50: ASSENTAMENTO DE TUBOS E PECAS | B50: ASTU | C50: FORNEC E/OU ASSENT DE TUBO DE FERRO FUNDIDO JUNTA | D50: 45 | G50: 97148 | H50: ASSENTAMENTO DE TUBO DE FERRO FUNDIDO PARA REDE DE ÁGUA, DN 400 MM, JUNTA ELÁSTICA, INSTALADO EM LOCAL COM NÍVEL ALTO DE INTERFERÊNCIAS (NÃO INCLUI FORNECIMENTO). AF_11/2017 | I50: M | J50: COEFICIENTE DE REPRESENTATIVIDADE | K50: 18.96 | M50: SINAPI | U50: 11.76 | V50: 62.0150863 | W50: 4.8 | X50: 25.3232758 | Y50: 2.4 | Z50: 12.6616379 | AA50: 0 | AB50: 0 | AC50: 0 | AD50: 0 | AE50: CAIXA REFERENCIAL
A51: ASSENTAMENTO DE TUBOS E PECAS | B51: ASTU | C51: FORNEC E/OU ASSENT DE TUBO DE FERRO FUNDIDO JUNTA | D51: 45 | G51: 97148 | H51: ASSENTAMENTO DE TUBO DE FERRO FUNDIDO PARA REDE DE ÁGUA, DN 400 MM, JUNTA ELÁSTICA, INSTALADO EM LOCAL COM NÍVEL ALTO DE INTERFERÊNCIAS (NÃO INCLUI FORNECIMENTO). AF_11/2017 | I51: M | J51: COEFICIENTE DE REPRESENTATIVIDADE | K51: 18.96 | L51: S | M51: SINAPI | N51: 5678 | O51: 0.0211 | P51: CHP | Q51: COEFICIENTE DE REPRESENTATIVIDADE | R51: 0.0211 | S51: 100.23 | T51: 2.11 | AE51: CAIXA REFERENCIAL
A52: ASSENTAMENTO DE TUBOS E PECAS | B52: ASTU | C52: FORNEC E/OU ASSENT DE TUBO DE FERRO FUNDIDO JUNTA | D52: 45 | G52: 97148 | H52: ASSENTAMENTO DE TUBO DE FERRO FUNDIDO PARA REDE DE ÁGUA, DN 400 MM, JUNTA ELÁSTICA, INSTALADO EM LOCAL COM NÍVEL ALTO DE INTERFERÊNCIAS (NÃO INCLUI FORNECIMENTO). AF_11/2017 | I52: M | J52: COEFICIENTE DE REPRESENTATIVIDADE | K52: 18.96 | L52: S | M52: SINAPI | N52: 5679 | O52: 0.1014 | P52: CHI | Q52: COEFICIENTE DE REPRESENTATIVIDADE | R52: 0.1014 | S52: 44.39 | T52: 4.5 | AE52: CAIXA REFERENCIAL
A53: ASSENTAMENTO DE TUBOS E PECAS | B53: ASTU | C53: FORNEC E/OU ASSENT DE TUBO DE FERRO FUNDIDO JUNTA | D53: 45 | G53: 97148 | H53: ASSENTAMENTO DE TUBO DE FERRO FUNDIDO PARA REDE DE ÁGUA, DN 400 MM, JUNTA ELÁSTICA, INSTALADO EM LOCAL COM NÍVEL ALTO DE INTERFERÊNCIAS (NÃO INCLUI FORNECIMENTO). AF_11/2017 | I53: M | J53: COEFICIENTE DE REPRESENTATIVIDADE | K53: 18.96 | L53: I | M53: SINAPI | N53: 20078 | O53: 0.0188 | P53: UN | Q53: COEFICIENTE DE REPRESENTATIVIDADE | R53: 0.0188 | S53: 17.63 | T53: 0.33 | AE53: CAIXA REFERENCIAL
A54: ASSENTAMENTO DE TUBOS E PECAS | B54: ASTU | C54: FORNEC E/OU ASSENT DE TUBO DE FERRO FUNDIDO JUNTA | D54: 45 | G54: 97148 | H54: ASSENTAMENTO DE TUBO DE FERRO FUNDIDO PARA REDE DE ÁGUA, DN 400 MM, JUNTA ELÁSTICA, INSTALADO EM LOCAL COM NÍVEL ALTO DE INTERFERÊNCIAS (NÃO INCLUI FORNECIMENTO). AF_11/2017 | I54: M | J54: COEFICIENTE DE REPRESENTATIVIDADE | K54: 18.96 | L54: S | M54: SINAPI | N54: 88246 | O54: 0.315 | P54: H | Q54: COEFICIENTE DE REPRESENTATIVIDADE | R54: 0.315 | S54: 23.15 | T54: 7.29 | AE54: CAIXA REFERENCIAL
A55: ASSENTAMENTO DE TUBOS E PECAS | B55: ASTU | C55: FORNEC E/OU ASSENT DE TUBO DE FERRO FUNDIDO JUNTA | D55: 45 | G55: 97148 | H55: ASSENTAMENTO DE TUBO DE FERRO FUNDIDO PARA REDE DE ÁGUA, DN 400 MM, JUNTA ELÁSTICA, INSTALADO EM LOCAL COM NÍVEL ALTO DE INTERFERÊNCIAS (NÃO INCLUI FORNECIMENTO). AF_11/2017 | I55: M | J55: COEFICIENTE DE REPRESENTATIVIDADE | K55: 18.96 | L55: S | M55: SINAPI | N55: 88316 | O55: 0.315 | P55: H | Q55: COEFICIENTE DE REPRESENTATIVIDADE | R55: 0.315 | S55: 15.03 | T55: 4.73 | AE55: CAIXA REFERENCIAL
A56: ASSENTAMENTO DE TUBOS E PECAS | B56: ASTU | C56: FORNEC E/OU ASSENT DE TUBO DE FERRO FUNDIDO JUNTA | D56: 45 | G56: 97149 | H56: ASSENTAMENTO DE TUBO DE FERRO FUNDIDO PARA REDE DE ÁGUA, DN 450 MM, JUNTA ELÁSTICA, INSTALADO EM LOCAL COM NÍVEL ALTO DE INTERFERÊNCIAS (NÃO INCLUI FORNECIMENTO). AF_11/2017 | I56: M | J56: COEFICIENTE DE REPRESENTATIVIDADE | K56: 20.9 | M56: SINAPI | U56: 12.93 | V56: 61.8491485 | W56: 5.39 | X56: 25.7907542 | Y56: 2.58 | Z56: 12.3600973 | AA56: 0 | AB56: 0 | AC56: 0 | AD56: 0 | AE56: CAIXA REFERENCIAL
A57: ASSENTAMENTO DE TUBOS E PECAS | B57: ASTU | C57: FORNEC E/OU ASSENT DE TUBO DE FERRO FUNDIDO JUNTA | D57: 45 | G57: 97149 | H57: ASSENTAMENTO DE TUBO DE FERRO FUNDIDO PARA REDE DE ÁGUA, DN 450 MM, JUNTA ELÁSTICA, INSTALADO EM LOCAL COM NÍVEL ALTO DE INTERFERÊNCIAS (NÃO INCLUI FORNECIMENTO). AF_11/2017 | I57: M | J57: COEFICIENTE DE REPRESENTATIVIDADE | K57: 20.9 | L57: S | M57: SINAPI | N57: 5678 | O57: 0.0229 | P57: CHP | Q57: COEFICIENTE DE REPRESENTATIVIDADE | R57: 0.0229 | S57: 100.23 | T57: 2.29 | AE57: CAIXA REFERENCIAL
A58: ASSENTAMENTO DE TUBOS E PECAS | B58: ASTU | C58: FORNEC E/OU ASSENT DE TUBO DE FERRO FUNDIDO JUNTA | D58: 45 | G58: 97149 | H58: ASSENTAMENTO DE TUBO DE FERRO FUNDIDO PARA REDE DE ÁGUA, DN 450 MM, JUNTA ELÁSTICA, INSTALADO EM LOCAL COM NÍVEL ALTO DE INTERFERÊNCIAS (NÃO INCLUI FORNECIMENTO). AF_11/2017 | I58: M | J58: COEFICIENTE DE REPRESENTATIVIDADE | K58: 20.9 | L58: S | M58: SINAPI | N58: 5679 | O58: 0.1098 | P58: CHI | Q58: COEFICIENTE DE REPRESENTATIVIDADE | R58: 0.1098 | S58: 44.39 | T58: 4.87 | AE58: CAIXA REFERENCIAL
A59: ASSENTAMENTO DE TUBOS E PECAS | B59: ASTU | C59: FORNEC E/OU ASSENT DE TUBO DE FERRO FUNDIDO JUNTA | D59: 45 | G59: 97149 | H59: ASSENTAMENTO DE TUBO DE FERRO FUNDIDO PARA REDE DE ÁGUA, DN 450 MM, JUNTA ELÁSTICA, INSTALADO EM LOCAL COM NÍVEL ALTO DE INTERFERÊNCIAS (NÃO INCLUI FORNECIMENTO). AF_11/2017 | I59: M | J59: COEFICIENTE DE REPRESENTATIVIDADE | K59: 20.9 | L59: I | M59: SINAPI | N59: 20078 | O59: 0.0221 | P59: UN | Q59: COEFICIENTE DE REPRESENTATIVIDADE | R59: 0.0221 | S59: 17.63 | T59: 0.38 | AE59: CAIXA REFERENCIAL
A60: ASSENTAMENTO DE TUBOS E PECAS | B60: ASTU | C60: FORNEC E/OU ASSENT DE TUBO DE FERRO FUNDIDO JUNTA | D60: 45 | G60: 97149 | H60: ASSENTAMENTO DE TUBO DE FERRO FUNDIDO PARA REDE DE ÁGUA, DN 450 MM, JUNTA ELÁSTICA, INSTALADO EM LOCAL COM NÍVEL ALTO DE INTERFERÊNCIAS (NÃO INCLUI FORNECIMENTO). AF_11/2017 | I60: M | J60: COEFICIENTE DE REPRESENTATIVIDADE | K60: 20.9 | L60: S | M60: SINAPI | N60: 88246 | O60: 0.3501 | P60: H | Q60: COEFICIENTE DE REPRESENTATIVIDADE | R60: 0.3501 | S60: 23.15 | T60: 8.1 | AE60: CAIXA REFERENCIAL
A61: ASSENTAMENTO DE TUBOS E PECAS | B61: ASTU | C61: FORNEC E/OU ASSENT DE TUBO DE FERRO FUNDIDO JUNTA | D61: 45 | G61: 97149 | H61: ASSENTAMENTO DE TUBO DE FERRO FUNDIDO PARA REDE DE ÁGUA, DN 450 MM, JUNTA ELÁSTICA, INSTALADO EM LOCAL COM NÍVEL ALTO DE INTERFERÊNCIAS (NÃO INCLUI FORNECIMENTO). AF_11/2017 | I61: M | J61: COEFICIENTE DE REPRESENTATIVIDADE | K61: 20.9 | L61: S | M61: SINAPI | N61: 88316 | O61: 0.3501 | P61: H | Q61: COEFICIENTE DE REPRESENTATIVIDADE | R61: 0.3501 | S61: 15.03 | T61: 5.26 | AE61: CAIXA REFERENCIAL
A62: ASSENTAMENTO DE TUBOS E PECAS | B62: ASTU | C62: FORNEC E/OU ASSENT DE TUBO DE FERRO FUNDIDO JUNTA | D62: 45 | G62: 97150 | H62: ASSENTAMENTO DE TUBO DE FERRO FUNDIDO PARA REDE DE ÁGUA, DN 500 MM, JUNTA ELÁSTICA, INSTALADO EM LOCAL COM NÍVEL ALTO DE INTERFERÊNCIAS (NÃO INCLUI FORNECIMENTO). AF_11/2017 | I62: M | J62: COEFICIENTE DE REPRESENTATIVIDADE | K62: 25.46 | M62: SINAPI | U62: 14.13 | V62: 55.4625201 | W62: 6.09 | X62: 23.9234449 | Y62: 5.24 | Z62: 20.614035 | AA62: 0 | AB62: 0 | AC62: 0 | AD62: 0 | AE62: CAIXA REFERENCIAL
A63: ASSENTAMENTO DE TUBOS E PECAS | B63: ASTU | C63: FORNEC E/OU ASSENT DE TUBO DE FERRO FUNDIDO JUNTA | D63: 45 | G63: 97150 | H63: ASSENTAMENTO DE TUBO DE FERRO FUNDIDO PARA REDE DE ÁGUA, DN 500 MM, JUNTA ELÁSTICA, INSTALADO EM LOCAL COM NÍVEL ALTO DE INTERFERÊNCIAS (NÃO INCLUI FORNECIMENTO). AF_11/2017 | I63: M | J63: COEFICIENTE DE REPRESENTATIVIDADE | K63: 25.46 | L63: S | M63: SINAPI | N63: 5631 | O63: 0.0246 | P63: CHP | Q63: COEFICIENTE DE REPRESENTATIVIDADE | R63: 0.0246 | S63: 137.46 | T63: 3.38 | AE63: CAIXA REFERENCIAL
A64: ASSENTAMENTO DE TUBOS E PECAS | B64: ASTU | C64: FORNEC E/OU ASSENT DE TUBO DE FERRO FUNDIDO JUNTA | D64: 45 | G64: 97150 | H64: ASSENTAMENTO DE TUBO DE FERRO FUNDIDO PARA REDE DE ÁGUA, DN 500 MM, JUNTA ELÁSTICA, INSTALADO EM LOCAL COM NÍVEL ALTO DE INTERFERÊNCIAS (NÃO INCLUI FORNECIMENTO). AF_11/2017 | I64: M | J64: COEFICIENTE DE REPRESENTATIVIDADE | K64: 25.46 | L64: S | M64: SINAPI | N64: 5632 | O64: 0.1182 | P64: CHI | Q64: COEFICIENTE DE REPRESENTATIVIDADE | R64: 0.1182 | S64: 58.95 | T64: 6.96 | AE64: CAIXA REFERENCIAL
A65: ASSENTAMENTO DE TUBOS E PECAS | B65: ASTU | C65: FORNEC E/OU ASSENT DE TUBO DE FERRO FUNDIDO JUNTA | D65: 45 | G65: 97150 | H65: ASSENTAMENTO DE TUBO DE FERRO FUNDIDO PARA REDE DE ÁGUA, DN 500 MM, JUNTA ELÁSTICA, INSTALADO EM LOCAL COM NÍVEL ALTO DE INTERFERÊNCIAS (NÃO INCLUI FORNECIMENTO). AF_11/2017 | I65: M | J65: COEFICIENTE DE REPRESENTATIVIDADE | K65: 25.46 | L65: I | M65: SINAPI | N65: 20078 | O65: 0.0248 | P65: UN | Q65: COEFICIENTE DE REPRESENTATIVIDADE | R65: 0.0248 | S65: 17.63 | T65: 0.43 | AE65: CAIXA REFERENCIAL
A66: ASSENTAMENTO DE TUBOS E PECAS | B66: ASTU | C66: FORNEC E/OU ASSENT DE TUBO DE FERRO FUNDIDO JUNTA | D66: 45 | G66: 97150 | H66: ASSENTAMENTO DE TUBO DE FERRO FUNDIDO PARA REDE DE ÁGUA, DN 500 MM, JUNTA ELÁSTICA, INSTALADO EM LOCAL COM NÍVEL ALTO DE INTERFERÊNCIAS (NÃO INCLUI FORNECIMENTO). AF_11/2017 | I66: M | J66: COEFICIENTE DE REPRESENTATIVIDADE | K66: 25.46 | L66: S | M66: SINAPI | N66: 88246 | O66: 0.3851 | P66: H | Q66: COEFICIENTE DE REPRESENTATIVIDADE | R66: 0.3851 | S66: 23.15 | T66: 8.91 | AE66: CAIXA REFERENCIAL
A67: ASSENTAMENTO DE TUBOS E PECAS | B67: ASTU | C67: FORNEC E/OU ASSENT DE TUBO DE FERRO FUNDIDO JUNTA | D67: 45 | G67: 97150 | H67: ASSENTAMENTO DE TUBO DE FERRO FUNDIDO PARA REDE DE ÁGUA, DN 500 MM, JUNTA ELÁSTICA, INSTALADO EM LOCAL COM NÍVEL ALTO DE INTERFERÊNCIAS (NÃO INCLUI FORNECIMENTO). AF_11/2017 | I67: M | J67: COEFICIENTE DE REPRESENTATIVIDADE | K67: 25.46 | L67: S | M67: SINAPI | N67: 88316 | O67: 0.3851 | P67: H | Q67: COEFICIENTE DE REPRESENTATIVIDADE | R67: 0.3851 | S67: 15.03 | T67: 5.78 | AE67: CAIXA REFERENCIAL
A68: ASSENTAMENTO DE TUBOS E PECAS | B68: ASTU | C68: FORNEC E/OU ASSENT DE TUBO DE FERRO FUNDIDO JUNTA | D68: 45 | G68: 97151 | H68: ASSENTAMENTO DE TUBO DE FERRO FUNDIDO PARA REDE DE ÁGUA, DN 600 MM, JUNTA ELÁSTICA, INSTALADO EM LOCAL COM NÍVEL ALTO DE INTERFERÊNCIAS (NÃO INCLUI FORNECIMENTO). AF_11/2017 | I68: M | J68: COEFICIENTE DE REPRESENTATIVIDADE | K68: 29.74 | M68: SINAPI | U68: 16.55 | V68: 55.6275581 | W68: 7.2 | X68: 24.2155525 | Y68: 5.99 | Z68: 20.1568894 | AA68: 0 | AB68: 0 | AC68: 0 | AD68: 0 | AE68: CAIXA REFERENCIAL
A69: ASSENTAMENTO DE TUBOS E PECAS | B69: ASTU | C69: FORNEC E/OU ASSENT DE TUBO DE FERRO FUNDIDO JUNTA | D69: 45 | G69: 97151 | H69: ASSENTAMENTO DE TUBO DE FERRO FUNDIDO PARA REDE DE ÁGUA, DN 600 MM, JUNTA ELÁSTICA, INSTALADO EM LOCAL COM NÍVEL ALTO DE INTERFERÊNCIAS (NÃO INCLUI FORNECIMENTO). AF_11/2017 | I69: M | J69: COEFICIENTE DE REPRESENTATIVIDADE | K69: 29.74 | L69: S | M69: SINAPI | N69: 5631 | O69: 0.0281 | P69: CHP | Q69: COEFICIENTE DE REPRESENTATIVIDADE | R69: 0.0281 | S69: 137.46 | T69: 3.86 | AE69: CAIXA REFERENCIAL
A70: ASSENTAMENTO DE TUBOS E PECAS | B70: ASTU | C70: FORNEC E/OU ASSENT DE TUBO DE FERRO FUNDIDO JUNTA | D70: 45 | G70: 97151 | H70: ASSENTAMENTO DE TUBO DE FERRO FUNDIDO PARA REDE DE ÁGUA, DN 600 MM, JUNTA ELÁSTICA, INSTALADO EM LOCAL COM NÍVEL ALTO DE INTERFERÊNCIAS (NÃO INCLUI FORNECIMENTO). AF_11/2017 | I70: M | J70: COEFICIENTE DE REPRESENTATIVIDADE | K70: 29.74 | L70: S | M70: SINAPI | N70: 5632 | O70: 0.135 | P70: CHI | Q70: COEFICIENTE DE REPRESENTATIVIDADE | R70: 0.135 | S70: 58.95 | T70: 7.95 | AE70: CAIXA REFERENCIAL
A71: ASSENTAMENTO DE TUBOS E PECAS | B71: ASTU | C71: FORNEC E/OU ASSENT DE TUBO DE FERRO FUNDIDO JUNTA | D71: 45 | G71: 97151 | H71: ASSENTAMENTO DE TUBO DE FERRO FUNDIDO PARA REDE DE ÁGUA, DN 600 MM, JUNTA ELÁSTICA, INSTALADO EM LOCAL COM NÍVEL ALTO DE INTERFERÊNCIAS (NÃO INCLUI FORNECIMENTO). AF_11/2017 | I71: M | J71: COEFICIENTE DE REPRESENTATIVIDADE | K71: 29.74 | L71: I | M71: SINAPI | N71: 20078 | O71: 0.0313 | P71: UN | Q71: COEFICIENTE DE REPRESENTATIVIDADE | R71: 0.0313 | S71: 17.63 | T71: 0.55 | AE71: CAIXA REFERENCIAL
A72: ASSENTAMENTO DE TUBOS E PECAS | B72: ASTU | C72: FORNEC E/OU ASSENT DE TUBO DE FERRO FUNDIDO JUNTA | D72: 45 | G72: 97151 | H72: ASSENTAMENTO DE TUBO DE FERRO FUNDIDO PARA REDE DE ÁGUA, DN 600 MM, JUNTA ELÁSTICA, INSTALADO EM LOCAL COM NÍVEL ALTO DE INTERFERÊNCIAS (NÃO INCLUI FORNECIMENTO). AF_11/2017 | I72: M | J72: COEFICIENTE DE REPRESENTATIVIDADE | K72: 29.74 | L72: S | M72: SINAPI | N72: 88246 | O72: 0.4553 | P72: H | Q72: COEFICIENTE DE REPRESENTATIVIDADE | R72: 0.4553 | S72: 23.15 | T72: 10.54 | AE72: CAIXA REFERENCIAL
A73: ASSENTAMENTO DE TUBOS E PECAS | B73: ASTU | C73: FORNEC E/OU ASSENT DE TUBO DE FERRO FUNDIDO JUNTA | D73: 45 | G73: 97151 | H73: ASSENTAMENTO DE TUBO DE FERRO FUNDIDO PARA REDE DE ÁGUA, DN 600 MM, JUNTA ELÁSTICA, INSTALADO EM LOCAL COM NÍVEL ALTO DE INTERFERÊNCIAS (NÃO INCLUI FORNECIMENTO). AF_11/2017 | I73: M | J73: COEFICIENTE DE REPRESENTATIVIDADE | K73: 29.74 | L73: S | M73: SINAPI | N73: 88316 | O73: 0.4553 | P73: H | Q73: COEFICIENTE DE REPRESENTATIVIDADE | R73: 0.4553 | S73: 15.03 | T73: 6.84 | AE73: CAIXA REFERENCIAL
A74: ASSENTAMENTO DE TUBOS E PECAS | B74: ASTU | C74: FORNEC E/OU ASSENT DE TUBO DE FERRO FUNDIDO JUNTA | D74: 45 | G74: 97152 | H74: ASSENTAMENTO DE TUBO DE FERRO FUNDIDO PARA REDE DE ÁGUA, DN 700 MM, JUNTA ELÁSTICA, INSTALADO EM LOCAL COM NÍVEL ALTO DE INTERFERÊNCIAS (NÃO INCLUI FORNECIMENTO). AF_11/2017 | I74: M | J74: COEFICIENTE DE REPRESENTATIVIDADE | K74: 33.83 | M74: SINAPI | U74: 18.9 | V74: 55.8437688 | W74: 8.18 | X74: 24.1800834 | Y74: 6.75 | Z74: 19.9761478 | AA74: 0 | AB74: 0 | AC74: 0 | AD74: 0 | AE74: CAIXA REFERENCIAL
A75: ASSENTAMENTO DE TUBOS E PECAS | B75: ASTU | C75: FORNEC E/OU ASSENT DE TUBO DE FERRO FUNDIDO JUNTA | D75: 45 | G75: 97152 | H75: ASSENTAMENTO DE TUBO DE FERRO FUNDIDO PARA REDE DE ÁGUA, DN 700 MM, JUNTA ELÁSTICA, INSTALADO EM LOCAL COM NÍVEL ALTO DE INTERFERÊNCIAS (NÃO INCLUI FORNECIMENTO). AF_11/2017 | I75: M | J75: COEFICIENTE DE REPRESENTATIVIDADE | K75: 33.83 | L75: S | M75: SINAPI | N75: 5631 | O75: 0.0316 | P75: CHP | Q75: COEFICIENTE DE REPRESENTATIVIDADE | R75: 0.0316 | S75: 137.46 | T75: 4.34 | AE75: CAIXA REFERENCIAL
A76: ASSENTAMENTO DE TUBOS E PECAS | B76: ASTU | C76: FORNEC E/OU ASSENT DE TUBO DE FERRO FUNDIDO JUNTA | D76: 45 | G76: 97152 | H76: ASSENTAMENTO DE TUBO DE FERRO FUNDIDO PARA REDE DE ÁGUA, DN 700 MM, JUNTA ELÁSTICA, INSTALADO EM LOCAL COM NÍVEL ALTO DE INTERFERÊNCIAS (NÃO INCLUI FORNECIMENTO). AF_11/2017 | I76: M | J76: COEFICIENTE DE REPRESENTATIVIDADE | K76: 33.83 | L76: S | M76: SINAPI | N76: 5632 | O76: 0.1518 | P76: CHI | Q76: COEFICIENTE DE REPRESENTATIVIDADE | R76: 0.1518 | S76: 58.95 | T76: 8.94 | AE76: CAIXA REFERENCIAL
A77: ASSENTAMENTO DE TUBOS E PECAS | B77: ASTU | C77: FORNEC E/OU ASSENT DE TUBO DE FERRO FUNDIDO JUNTA | D77: 45 | G77: 97152 | H77: ASSENTAMENTO DE TUBO DE FERRO FUNDIDO PARA REDE DE ÁGUA, DN 700 MM, JUNTA ELÁSTICA, INSTALADO EM LOCAL COM NÍVEL ALTO DE INTERFERÊNCIAS (NÃO INCLUI FORNECIMENTO). AF_11/2017 | I77: M | J77: COEFICIENTE DE REPRESENTATIVIDADE | K77: 33.83 | L77: I | M77: SINAPI | N77: 20078 | O77: 0.0284 | P77: UN | Q77: COEFICIENTE DE REPRESENTATIVIDADE | R77: 0.0284 | S77: 17.63 | T77: 0.5 | AE77: CAIXA REFERENCIAL
A78: ASSENTAMENTO DE TUBOS E PECAS | B78: ASTU | C78: FORNEC E/OU ASSENT DE TUBO DE FERRO FUNDIDO JUNTA | D78: 45 | G78: 97152 | H78: ASSENTAMENTO DE TUBO DE FERRO FUNDIDO PARA REDE DE ÁGUA, DN 700 MM, JUNTA ELÁSTICA, INSTALADO EM LOCAL COM NÍVEL ALTO DE INTERFERÊNCIAS (NÃO INCLUI FORNECIMENTO). AF_11/2017 | I78: M | J78: COEFICIENTE DE REPRESENTATIVIDADE | K78: 33.83 | L78: S | M78: SINAPI | N78: 88246 | O78: 0.5255 | P78: H | Q78: COEFICIENTE DE REPRESENTATIVIDADE | R78: 0.5255 | S78: 23.15 | T78: 12.16 | AE78: CAIXA REFERENCIAL
A79: ASSENTAMENTO DE TUBOS E PECAS | B79: ASTU | C79: FORNEC E/OU ASSENT DE TUBO DE FERRO FUNDIDO JUNTA | D79: 45 | G79: 97152 | H79: ASSENTAMENTO DE TUBO DE FERRO FUNDIDO PARA REDE DE ÁGUA, DN 700 MM, JUNTA ELÁSTICA, INSTALADO EM LOCAL COM NÍVEL ALTO DE INTERFERÊNCIAS (NÃO INCLUI FORNECIMENTO). AF_11/2017 | I79: M | J79: COEFICIENTE DE REPRESENTATIVIDADE | K79: 33.83 | L79: S | M79: SINAPI | N79: 88316 | O79: 0.5255 | P79: H | Q79: COEFICIENTE DE REPRESENTATIVIDADE | R79: 0.5255 | S79: 15.03 | T79: 7.89 | AE79: CAIXA REFERENCIAL
A80: ASSENTAMENTO DE TUBOS E PECAS | B80: ASTU | C80: FORNEC E/OU ASSENT DE TUBO DE FERRO FUNDIDO JUNTA | D80: 45 | G80: 97153 | H80: ASSENTAMENTO DE TUBO DE FERRO FUNDIDO PARA REDE DE ÁGUA, DN 800 MM, JUNTA ELÁSTICA, INSTALADO EM LOCAL COM NÍVEL ALTO DE INTERFERÊNCIAS (NÃO INCLUI FORNECIMENTO). AF_11/2017 | I80: M | J80: COEFICIENTE DE REPRESENTATIVIDADE | K80: 38.03 | M80: SINAPI | U80: 21.31 | V80: 56.0212202 | W80: 9.23 | X80: 24.270557 | Y80: 7.49 | Z80: 19.7082228 | AA80: 0 | AB80: 0 | AC80: 0 | AD80: 0 | AE80: CAIXA REFERENCIAL
A81: ASSENTAMENTO DE TUBOS E PECAS | B81: ASTU | C81: FORNEC E/OU ASSENT DE TUBO DE FERRO FUNDIDO JUNTA | D81: 45 | G81: 97153 | H81: ASSENTAMENTO DE TUBO DE FERRO FUNDIDO PARA REDE DE ÁGUA, DN 800 MM, JUNTA ELÁSTICA, INSTALADO EM LOCAL COM NÍVEL ALTO DE INTERFERÊNCIAS (NÃO INCLUI FORNECIMENTO). AF_11/2017 | I81: M | J81: COEFICIENTE DE REPRESENTATIVIDADE | K81: 38.03 | L81: S | M81: SINAPI | N81: 5631 | O81: 0.0351 | P81: CHP | Q81: COEFICIENTE DE REPRESENTATIVIDADE | R81: 0.0351 | S81: 137.46 | T81: 4.82 | AE81: CAIXA REFERENCIAL
A82: ASSENTAMENTO DE TUBOS E PECAS | B82: ASTU | C82: FORNEC E/OU ASSENT DE TUBO DE FERRO FUNDIDO JUNTA | D82: 45 | G82: 97153 | H82: ASSENTAMENTO DE TUBO DE FERRO FUNDIDO PARA REDE DE ÁGUA, DN 800 MM, JUNTA ELÁSTICA, INSTALADO EM LOCAL COM NÍVEL ALTO DE INTERFERÊNCIAS (NÃO INCLUI FORNECIMENTO). AF_11/2017 | I82: M | J82: COEFICIENTE DE REPRESENTATIVIDADE | K82: 38.03 | L82: S | M82: SINAPI | N82: 5632 | O82: 0.1686 | P82: CHI | Q82: COEFICIENTE DE REPRESENTATIVIDADE | R82: 0.1686 | S82: 58.95 | T82: 9.93 | AE82: CAIXA REFERENCIAL
A83: ASSENTAMENTO DE TUBOS E PECAS | B83: ASTU | C83: FORNEC E/OU ASSENT DE TUBO DE FERRO FUNDIDO JUNTA | D83: 45 | G83: 97153 | H83: ASSENTAMENTO DE TUBO DE FERRO FUNDIDO PARA REDE DE ÁGUA, DN 800 MM, JUNTA ELÁSTICA, INSTALADO EM LOCAL COM NÍVEL ALTO DE INTERFERÊNCIAS (NÃO INCLUI FORNECIMENTO). AF_11/2017 | I83: M | J83: COEFICIENTE DE REPRESENTATIVIDADE | K83: 38.03 | L83: I | M83: SINAPI | N83: 20078 | O83: 0.0314 | P83: UN | Q83: COEFICIENTE DE REPRESENTATIVIDADE | R83: 0.0314 | S83: 17.63 | T83: 0.55 | AE83: CAIXA REFERENCIAL
A84: ASSENTAMENTO DE TUBOS E PECAS | B84: ASTU | C84: FORNEC E/OU ASSENT DE TUBO DE FERRO FUNDIDO JUNTA | D84: 45 | G84: 97153 | H84: ASSENTAMENTO DE TUBO DE FERRO FUNDIDO PARA REDE DE ÁGUA, DN 800 MM, JUNTA ELÁSTICA, INSTALADO EM LOCAL COM NÍVEL ALTO DE INTERFERÊNCIAS (NÃO INCLUI FORNECIMENTO). AF_11/2017 | I84: M | J84: COEFICIENTE DE REPRESENTATIVIDADE | K84: 38.03 | L84: S | M84: SINAPI | N84: 88246 | O84: 0.5956 | P84: H | Q84: COEFICIENTE DE REPRESENTATIVIDADE | R84: 0.5956 | S84: 23.15 | T84: 13.78 | AE84: CAIXA REFERENCIAL
A85: ASSENTAMENTO DE TUBOS E PECAS | B85: ASTU | C85: FORNEC E/OU ASSENT DE TUBO DE FERRO FUNDIDO JUNTA | D85: 45 | G85: 97153 | H85: ASSENTAMENTO DE TUBO DE FERRO FUNDIDO PARA REDE DE ÁGUA, DN 800 MM, JUNTA ELÁSTICA, INSTALADO EM LOCAL COM NÍVEL ALTO DE INTERFERÊNCIAS (NÃO INCLUI FORNECIMENTO). AF_11/2017 | I85: M | J85: COEFICIENTE DE REPRESENTATIVIDADE | K85: 38.03 | L85: S | M85: SINAPI | N85: 88316 | O85: 0.5956 | P85: H | Q85: COEFICIENTE DE REPRESENTATIVIDADE | R85: 0.5956 | S85: 15.03 | T85: 8.95 | AE85: CAIXA REFERENCIAL
A86: ASSENTAMENTO DE TUBOS E PECAS | B86: ASTU | C86: FORNEC E/OU ASSENT DE TUBO DE FERRO FUNDIDO JUNTA | D86: 45 | G86: 97154 | H86: ASSENTAMENTO DE TUBO DE FERRO FUNDIDO PARA REDE DE ÁGUA, DN 900 MM, JUNTA ELÁSTICA, INSTALADO EM LOCAL COM NÍVEL ALTO DE INTERFERÊNCIAS (NÃO INCLUI FORNECIMENTO). AF_11/2017 | I86: M | J86: COEFICIENTE DE REPRESENTATIVIDADE | K86: 42.25 | M86: SINAPI | U86: 23.8 | V86: 56.3053363 | W86: 10.21 | X86: 24.1684613 | Y86: 8.24 | Z86: 19.5262024 | AA86: 0 | AB86: 0 | AC86: 0 | AD86: 0 | AE86: CAIXA REFERENCIAL
A87: ASSENTAMENTO DE TUBOS E PECAS | B87: ASTU | C87: FORNEC E/OU ASSENT DE TUBO DE FERRO FUNDIDO JUNTA | D87: 45 | G87: 97154 | H87: ASSENTAMENTO DE TUBO DE FERRO FUNDIDO PARA REDE DE ÁGUA, DN 900 MM, JUNTA ELÁSTICA, INSTALADO EM LOCAL COM NÍVEL ALTO DE INTERFERÊNCIAS (NÃO INCLUI FORNECIMENTO). AF_11/2017 | I87: M | J87: COEFICIENTE DE REPRESENTATIVIDADE | K87: 42.25 | L87: S | M87: SINAPI | N87: 5631 | O87: 0.0386 | P87: CHP | Q87: COEFICIENTE DE REPRESENTATIVIDADE | R87: 0.0386 | S87: 137.46 | T87: 5.3 | AE87: CAIXA REFERENCIAL
A88: ASSENTAMENTO DE TUBOS E PECAS | B88: ASTU | C88: FORNEC E/OU ASSENT DE TUBO DE FERRO FUNDIDO JUNTA | D88: 45 | G88: 97154 | H88: ASSENTAMENTO DE TUBO DE FERRO FUNDIDO PARA REDE DE ÁGUA, DN 900 MM, JUNTA ELÁSTICA, INSTALADO EM LOCAL COM NÍVEL ALTO DE INTERFERÊNCIAS (NÃO INCLUI FORNECIMENTO). AF_11/2017 | I88: M | J88: COEFICIENTE DE REPRESENTATIVIDADE | K88: 42.25 | L88: S | M88: SINAPI | N88: 5632 | O88: 0.1854 | P88: CHI | Q88: COEFICIENTE DE REPRESENTATIVIDADE | R88: 0.1854 | S88: 58.95 | T88: 10.92 | AE88: CAIXA REFERENCIAL
A89: ASSENTAMENTO DE TUBOS E PECAS | B89: ASTU | C89: FORNEC E/OU ASSENT DE TUBO DE FERRO FUNDIDO JUNTA | D89: 45 | G89: 97154 | H89: ASSENTAMENTO DE TUBO DE FERRO FUNDIDO PARA REDE DE ÁGUA, DN 900 MM, JUNTA ELÁSTICA, INSTALADO EM LOCAL COM NÍVEL ALTO DE INTERFERÊNCIAS (NÃO INCLUI FORNECIMENTO). AF_11/2017 | I89: M | J89: COEFICIENTE DE REPRESENTATIVIDADE | K89: 42.25 | L89: I | M89: SINAPI | N89: 20078 | O89: 0.0355 | P89: UN | Q89: COEFICIENTE DE REPRESENTATIVIDADE | R89: 0.0355 | S89: 17.63 | T89: 0.62 | AE89: CAIXA REFERENCIAL
A90: ASSENTAMENTO DE TUBOS E PECAS | B90: ASTU | C90: FORNEC E/OU ASSENT DE TUBO DE FERRO FUNDIDO JUNTA | D90: 45 | G90: 97154 | H90: ASSENTAMENTO DE TUBO DE FERRO FUNDIDO PARA REDE DE ÁGUA, DN 900 MM, JUNTA ELÁSTICA, INSTALADO EM LOCAL COM NÍVEL ALTO DE INTERFERÊNCIAS (NÃO INCLUI FORNECIMENTO). AF_11/2017 | I90: M | J90: COEFICIENTE DE REPRESENTATIVIDADE | K90: 42.25 | L90: S | M90: SINAPI | N90: 88246 | O90: 0.6658 | P90: H | Q90: COEFICIENTE DE REPRESENTATIVIDADE | R90: 0.6658 | S90: 23.15 | T90: 15.41 | AE90: CAIXA REFERENCIAL
A91: ASSENTAMENTO DE TUBOS E PECAS | B91: ASTU | C91: FORNEC E/OU ASSENT DE TUBO DE FERRO FUNDIDO JUNTA | D91: 45 | G91: 97154 | H91: ASSENTAMENTO DE TUBO DE FERRO FUNDIDO PARA REDE DE ÁGUA, DN 900 MM, JUNTA ELÁSTICA, INSTALADO EM LOCAL COM NÍVEL ALTO DE INTERFERÊNCIAS (NÃO INCLUI FORNECIMENTO). AF_11/2017 | I91: M | J91: COEFICIENTE DE REPRESENTATIVIDADE | K91: 42.25 | L91: S | M91: SINAPI | N91: 88316 | O91: 0.6658 | P91: H | Q91: COEFICIENTE DE REPRESENTATIVIDADE | R91: 0.6658 | S91: 15.03 | T91: 10 | AE91: CAIXA REFERENCIAL
A92: ASSENTAMENTO DE TUBOS E PECAS | B92: ASTU | C92: FORNEC E/OU ASSENT DE TUBO DE FERRO FUNDIDO JUNTA | D92: 45 | G92: 97155 | H92: ASSENTAMENTO DE TUBO DE FERRO FUNDIDO PARA REDE DE ÁGUA, DN 1000 MM, JUNTA ELÁSTICA, INSTALADO EM LOCAL COM NÍVEL ALTO DE INTERFERÊNCIAS (NÃO INCLUI FORNECIMENTO). AF_11/2017 | I92: M | J92: COEFICIENTE DE REPRESENTATIVIDADE | K92: 46.49 | M92: SINAPI | U92: 26.18 | V92: 56.281189 | W92: 11.36 | X92: 24.4521588 | Y92: 8.95 | Z92: 19.2666522 | AA92: 0 | AB92: 0 | AC92: 0 | AD92: 0 | AE92: CAIXA REFERENCIAL
A93: ASSENTAMENTO DE TUBOS E PECAS | B93: ASTU | C93: FORNEC E/OU ASSENT DE TUBO DE FERRO FUNDIDO JUNTA | D93: 45 | G93: 97155 | H93: ASSENTAMENTO DE TUBO DE FERRO FUNDIDO PARA REDE DE ÁGUA, DN 1000 MM, JUNTA ELÁSTICA, INSTALADO EM LOCAL COM NÍVEL ALTO DE INTERFERÊNCIAS (NÃO INCLUI FORNECIMENTO). AF_11/2017 | I93: M | J93: COEFICIENTE DE REPRESENTATIVIDADE | K93: 46.49 | L93: S | M93: SINAPI | N93: 5631 | O93: 0.0421 | P93: CHP | Q93: COEFICIENTE DE REPRESENTATIVIDADE | R93: 0.0421 | S93: 137.46 | T93: 5.78 | AE93: CAIXA REFERENCIAL
A94: ASSENTAMENTO DE TUBOS E PECAS | B94: ASTU | C94: FORNEC E/OU ASSENT DE TUBO DE FERRO FUNDIDO JUNTA | D94: 45 | G94: 97155 | H94: ASSENTAMENTO DE TUBO DE FERRO FUNDIDO PARA REDE DE ÁGUA, DN 1000 MM, JUNTA ELÁSTICA, INSTALADO EM LOCAL COM NÍVEL ALTO DE INTERFERÊNCIAS (NÃO INCLUI FORNECIMENTO). AF_11/2017 | I94: M | J94: COEFICIENTE DE REPRESENTATIVIDADE | K94: 46.49 | L94: S | M94: SINAPI | N94: 5632 | O94: 0.2021 | P94: CHI | Q94: COEFICIENTE DE REPRESENTATIVIDADE | R94: 0.2021 | S94: 58.95 | T94: 11.91 | AE94: CAIXA REFERENCIAL
A95: ASSENTAMENTO DE TUBOS E PECAS | B95: ASTU | C95: FORNEC E/OU ASSENT DE TUBO DE FERRO FUNDIDO JUNTA | D95: 45 | G95: 97155 | H95: ASSENTAMENTO DE TUBO DE FERRO FUNDIDO PARA REDE DE ÁGUA, DN 1000 MM, JUNTA ELÁSTICA, INSTALADO EM LOCAL COM NÍVEL ALTO DE INTERFERÊNCIAS (NÃO INCLUI FORNECIMENTO). AF_11/2017 | I95: M | J95: COEFICIENTE DE REPRESENTATIVIDADE | K95: 46.49 | L95: I | M95: SINAPI | N95: 20078 | O95: 0.0403 | P95: UN | Q95: COEFICIENTE DE REPRESENTATIVIDADE | R95: 0.0403 | S95: 17.63 | T95: 0.71 | AE95: CAIXA REFERENCIAL
A96: ASSENTAMENTO DE TUBOS E PECAS | B96: ASTU | C96: FORNEC E/OU ASSENT DE TUBO DE FERRO FUNDIDO JUNTA | D96: 45 | G96: 97155 | H96: ASSENTAMENTO DE TUBO DE FERRO FUNDIDO PARA REDE DE ÁGUA, DN 1000 MM, JUNTA ELÁSTICA, INSTALADO EM LOCAL COM NÍVEL ALTO DE INTERFERÊNCIAS (NÃO INCLUI FORNECIMENTO). AF_11/2017 | I96: M | J96: COEFICIENTE DE REPRESENTATIVIDADE | K96: 46.49 | L96: S | M96: SINAPI | N96: 88246 | O96: 0.7359 | P96: H | Q96: COEFICIENTE DE REPRESENTATIVIDADE | R96: 0.7359 | S96: 23.15 | T96: 17.03 | AE96: CAIXA REFERENCIAL
A97: ASSENTAMENTO DE TUBOS E PECAS | B97: ASTU | C97: FORNEC E/OU ASSENT DE TUBO DE FERRO FUNDIDO JUNTA | D97: 45 | G97: 97155 | H97: ASSENTAMENTO DE TUBO DE FERRO FUNDIDO PARA REDE DE ÁGUA, DN 1000 MM, JUNTA ELÁSTICA, INSTALADO EM LOCAL COM NÍVEL ALTO DE INTERFERÊNCIAS (NÃO INCLUI FORNECIMENTO). AF_11/2017 | I97: M | J97: COEFICIENTE DE REPRESENTATIVIDADE | K97: 46.49 | L97: S | M97: SINAPI | N97: 88316 | O97: 0.7359 | P97: H | Q97: COEFICIENTE DE REPRESENTATIVIDADE | R97: 0.7359 | S97: 15.03 | T97: 11.06 | AE97: CAIXA REFERENCIAL
A98: ASSENTAMENTO DE TUBOS E PECAS | B98: ASTU | C98: FORNEC E/OU ASSENT DE TUBO DE FERRO FUNDIDO JUNTA | D98: 45 | G98: 97156 | H98: ASSENTAMENTO DE TUBO DE FERRO FUNDIDO PARA REDE DE ÁGUA, DN 1200 MM, JUNTA ELÁSTICA, INSTALADO EM LOCAL COM NÍVEL ALTO DE INTERFERÊNCIAS (NÃO INCLUI FORNECIMENTO). AF_11/2017 | I98: M | J98: COEFICIENTE DE REPRESENTATIVIDADE | K98: 55.2 | M98: SINAPI | U98: 31.01 | V98: 56.1496351 | W98: 13.73 | X98: 24.8905109 | Y98: 10.46 | Z98: 18.959854 | AA98: 0 | AB98: 0 | AC98: 0 | AD98: 0 | AE98: CAIXA REFERENCIAL
A99: ASSENTAMENTO DE TUBOS E PECAS | B99: ASTU | C99: FORNEC E/OU ASSENT DE TUBO DE FERRO FUNDIDO JUNTA | D99: 45 | G99: 97156 | H99: ASSENTAMENTO DE TUBO DE FERRO FUNDIDO PARA REDE DE ÁGUA, DN 1200 MM, JUNTA ELÁSTICA, INSTALADO EM LOCAL COM NÍVEL ALTO DE INTERFERÊNCIAS (NÃO INCLUI FORNECIMENTO). AF_11/2017 | I99: M | J99: COEFICIENTE DE REPRESENTATIVIDADE | K99: 55.2 | L99: S | M99: SINAPI | N99: 5631 | O99: 0.0491 | P99: CHP | Q99: COEFICIENTE DE REPRESENTATIVIDADE | R99: 0.0491 | S99: 137.46 | T99: 6.74 | AE99: CAIXA REFERENCIAL
A100: ASSENTAMENTO DE TUBOS E PECAS | B100: ASTU | C100: FORNEC E/OU ASSENT DE TUBO DE FERRO FUNDIDO JUNTA | D100: 45 | G100: 97156 | H100: ASSENTAMENTO DE TUBO DE FERRO FUNDIDO PARA REDE DE ÁGUA, DN 1200 MM, JUNTA ELÁSTICA, INSTALADO EM LOCAL COM NÍVEL ALTO DE INTERFERÊNCIAS (NÃO INCLUI FORNECIMENTO). AF_11/2017 | I100: M | J100: COEFICIENTE DE REPRESENTATIVIDADE | K100: 55.2 | L100: S | M100: SINAPI | N100: 5632 | O100: 0.2357 | P100: CHI | Q100: COEFICIENTE DE REPRESENTATIVIDADE | R100: 0.2357 | S100: 58.95 | T100: 13.89 | AE100: CAIXA REFERENCIAL
A101: ASSENTAMENTO DE TUBOS E PECAS | B101: ASTU | C101: FORNEC E/OU ASSENT DE TUBO DE FERRO FUNDIDO JUNTA | D101: 45 | G101: 97156 | H101: ASSENTAMENTO DE TUBO DE FERRO FUNDIDO PARA REDE DE ÁGUA, DN 1200 MM, JUNTA ELÁSTICA, INSTALADO EM LOCAL COM NÍVEL ALTO DE INTERFERÊNCIAS (NÃO INCLUI FORNECIMENTO). AF_11/2017 | I101: M | J101: COEFICIENTE DE REPRESENTATIVIDADE | K101: 55.2 | L101: I | M101: SINAPI | N101: 20078 | O101: 0.0646 | P101: UN | Q101: COEFICIENTE DE REPRESENTATIVIDADE | R101: 0.0646 | S101: 17.63 | T101: 1.13 | AE101: CAIXA REFERENCIAL
A102: ASSENTAMENTO DE TUBOS E PECAS | B102: ASTU | C102: FORNEC E/OU ASSENT DE TUBO DE FERRO FUNDIDO JUNTA | D102: 45 | G102: 97156 | H102: ASSENTAMENTO DE TUBO DE FERRO FUNDIDO PARA REDE DE ÁGUA, DN 1200 MM, JUNTA ELÁSTICA, INSTALADO EM LOCAL COM NÍVEL ALTO DE INTERFERÊNCIAS (NÃO INCLUI FORNECIMENTO). AF_11/2017 | I102: M | J102: COEFICIENTE DE REPRESENTATIVIDADE | K102: 55.2 | L102: S | M102: SINAPI | N102: 88246 | O102: 0.8762 | P102: H | Q102: COEFICIENTE DE REPRESENTATIVIDADE | R102: 0.8762 | S102: 23.15 | T102: 20.28 | AE102: CAIXA REFERENCIAL
A103: ASSENTAMENTO DE TUBOS E PECAS | B103: ASTU | C103: FORNEC E/OU ASSENT DE TUBO DE FERRO FUNDIDO JUNTA | D103: 45 | G103: 97156 | H103: ASSENTAMENTO DE TUBO DE FERRO FUNDIDO PARA REDE DE ÁGUA, DN 1200 MM, JUNTA ELÁSTICA, INSTALADO EM LOCAL COM NÍVEL ALTO DE INTERFERÊNCIAS (NÃO INCLUI FORNECIMENTO). AF_11/2017 | I103: M | J103: COEFICIENTE DE REPRESENTATIVIDADE | K103: 55.2 | L103: S | M103: SINAPI | N103: 88316 | O103: 0.8762 | P103: H | Q103: COEFICIENTE DE REPRESENTATIVIDADE | R103: 0.8762 | S103: 15.03 | T103: 13.16 | AE103: CAIXA REFERENCIAL
A104: ASSENTAMENTO DE TUBOS E PECAS | B104: ASTU | C104: FORNEC E/OU ASSENT DE TUBO DE FERRO FUNDIDO JUNTA | D104: 45 | G104: 97157 | H104: ASSENTAMENTO DE TUBO DE FERRO FUNDIDO PARA REDE DE ÁGUA, DN 80 MM, JUNTA ELÁSTICA, INSTALADO EM LOCAL COM NÍVEL BAIXO DE INTERFERÊNCIAS (NÃO INCLUI FORNECIMENTO). AF_11/2017 | I104: M | J104: COEFICIENTE DE REPRESENTATIVIDADE | K104: 3.99 | M104: SINAPI | U104: 2.29 | V104: 57.0666668 | W104: 1.06 | X104: 26.6666666 | Y104: 0.64 | Z104: 16.2666666 | AA104: 0 | AB104: 0 | AC104: 0 | AD104: 0 | AE104: CAIXA REFERENCIAL
A105: ASSENTAMENTO DE TUBOS E PECAS | B105: ASTU | C105: FORNEC E/OU ASSENT DE TUBO DE FERRO FUNDIDO JUNTA | D105: 45 | G105: 97157 | H105: ASSENTAMENTO DE TUBO DE FERRO FUNDIDO PARA REDE DE ÁGUA, DN 80 MM, JUNTA ELÁSTICA, INSTALADO EM LOCAL COM NÍVEL BAIXO DE INTERFERÊNCIAS (NÃO INCLUI FORNECIMENTO). AF_11/2017 | I105: M | J105: COEFICIENTE DE REPRESENTATIVIDADE | K105: 3.99 | L105: S | M105: SINAPI | N105: 5678 | O105: 0.0099 | P105: CHP | Q105: COEFICIENTE DE REPRESENTATIVIDADE | R105: 0.0099 | S105: 100.23 | T105: 0.99 | AE105: CAIXA REFERENCIAL
A106: ASSENTAMENTO DE TUBOS E PECAS | B106: ASTU | C106: FORNEC E/OU ASSENT DE TUBO DE FERRO FUNDIDO JUNTA | D106: 45 | G106: 97157 | H106: ASSENTAMENTO DE TUBO DE FERRO FUNDIDO PARA REDE DE ÁGUA, DN 80 MM, JUNTA ELÁSTICA, INSTALADO EM LOCAL COM NÍVEL BAIXO DE INTERFERÊNCIAS (NÃO INCLUI FORNECIMENTO). AF_11/2017 | I106: M | J106: COEFICIENTE DE REPRESENTATIVIDADE | K106: 3.99 | L106: S | M106: SINAPI | N106: 5679 | O106: 0.019 | P106: CHI | Q106: COEFICIENTE DE REPRESENTATIVIDADE | R106: 0.019 | S106: 44.39 | T106: 0.84 | AE106: CAIXA REFERENCIAL
A107: ASSENTAMENTO DE TUBOS E PECAS | B107: ASTU | C107: FORNEC E/OU ASSENT DE TUBO DE FERRO FUNDIDO JUNTA | D107: 45 | G107: 97157 | H107: ASSENTAMENTO DE TUBO DE FERRO FUNDIDO PARA REDE DE ÁGUA, DN 80 MM, JUNTA ELÁSTICA, INSTALADO EM LOCAL COM NÍVEL BAIXO DE INTERFERÊNCIAS (NÃO INCLUI FORNECIMENTO). AF_11/2017 | I107: M | J107: COEFICIENTE DE REPRESENTATIVIDADE | K107: 3.99 | L107: I | M107: SINAPI | N107: 20078 | O107: 0.0046 | P107: UN | Q107: COEFICIENTE DE REPRESENTATIVIDADE | R107: 0.0046 | S107: 17.63 | T107: 0.08 | AE107: CAIXA REFERENCIAL
A108: ASSENTAMENTO DE TUBOS E PECAS | B108: ASTU | C108: FORNEC E/OU ASSENT DE TUBO DE FERRO FUNDIDO JUNTA | D108: 45 | G108: 97157 | H108: ASSENTAMENTO DE TUBO DE FERRO FUNDIDO PARA REDE DE ÁGUA, DN 80 MM, JUNTA ELÁSTICA, INSTALADO EM LOCAL COM NÍVEL BAIXO DE INTERFERÊNCIAS (NÃO INCLUI FORNECIMENTO). AF_11/2017 | I108: M | J108: COEFICIENTE DE REPRESENTATIVIDADE | K108: 3.99 | L108: S | M108: SINAPI | N108: 88246 | O108: 0.0548 | P108: H | Q108: COEFICIENTE DE REPRESENTATIVIDADE | R108: 0.0548 | S108: 23.15 | T108: 1.26 | AE108: CAIXA REFERENCIAL
A109: ASSENTAMENTO DE TUBOS E PECAS | B109: ASTU | C109: FORNEC E/OU ASSENT DE TUBO DE FERRO FUNDIDO JUNTA | D109: 45 | G109: 97157 | H109: ASSENTAMENTO DE TUBO DE FERRO FUNDIDO PARA REDE DE ÁGUA, DN 80 MM, JUNTA ELÁSTICA, INSTALADO EM LOCAL COM NÍVEL BAIXO DE INTERFERÊNCIAS (NÃO INCLUI FORNECIMENTO). AF_11/2017 | I109: M | J109: COEFICIENTE DE REPRESENTATIVIDADE | K109: 3.99 | L109: S | M109: SINAPI | N109: 88316 | O109: 0.0548 | P109: H | Q109: COEFICIENTE DE REPRESENTATIVIDADE | R109: 0.0548 | S109: 15.03 | T109: 0.82 | AE109: CAIXA REFERENCIAL
A110: ASSENTAMENTO DE TUBOS E PECAS | B110: ASTU | C110: FORNEC E/OU ASSENT DE TUBO DE FERRO FUNDIDO JUNTA | D110: 45 | G110: 97158 | H110: ASSENTAMENTO DE TUBO DE FERRO FUNDIDO PARA REDE DE ÁGUA, DN 100 MM, JUNTA ELÁSTICA, INSTALADO EM LOCAL COM NÍVEL BAIXO DE INTERFERÊNCIAS (NÃO INCLUI FORNECIMENTO). AF_11/2017 | I110: M | J110: COEFICIENTE DE REPRESENTATIVIDADE | K110: 4.46 | M110: SINAPI | U110: 2.6 | V110: 58.1339714 | W110: 1.17 | X110: 26.3157894 | Y110: 0.69 | Z110: 15.5502392 | AA110: 0 | AB110: 0 | AC110: 0 | AD110: 0 | AE110: CAIXA REFERENCIAL
A111: ASSENTAMENTO DE TUBOS E PECAS | B111: ASTU | C111: FORNEC E/OU ASSENT DE TUBO DE FERRO FUNDIDO JUNTA | D111: 45 | G111: 97158 | H111: ASSENTAMENTO DE TUBO DE FERRO FUNDIDO PARA REDE DE ÁGUA, DN 100 MM, JUNTA ELÁSTICA, INSTALADO EM LOCAL COM NÍVEL BAIXO DE INTERFERÊNCIAS (NÃO INCLUI FORNECIMENTO). AF_11/2017 | I111: M | J111: COEFICIENTE DE REPRESENTATIVIDADE | K111: 4.46 | L111: S | M111: SINAPI | N111: 5678 | O111: 0.0106 | P111: CHP | Q111: COEFICIENTE DE REPRESENTATIVIDADE | R111: 0.0106 | S111: 100.23 | T111: 1.06 | AE111: CAIXA REFERENCIAL
A112: ASSENTAMENTO DE TUBOS E PECAS | B112: ASTU | C112: FORNEC E/OU ASSENT DE TUBO DE FERRO FUNDIDO JUNTA | D112: 45 | G112: 97158 | H112: ASSENTAMENTO DE TUBO DE FERRO FUNDIDO PARA REDE DE ÁGUA, DN 100 MM, JUNTA ELÁSTICA, INSTALADO EM LOCAL COM NÍVEL BAIXO DE INTERFERÊNCIAS (NÃO INCLUI FORNECIMENTO). AF_11/2017 | I112: M | J112: COEFICIENTE DE REPRESENTATIVIDADE | K112: 4.46 | L112: S | M112: SINAPI | N112: 5679 | O112: 0.0204 | P112: CHI | Q112: COEFICIENTE DE REPRESENTATIVIDADE | R112: 0.0204 | S112: 44.39 | T112: 0.9 | AE112: CAIXA REFERENCIAL
A113: ASSENTAMENTO DE TUBOS E PECAS | B113: ASTU | C113: FORNEC E/OU ASSENT DE TUBO DE FERRO FUNDIDO JUNTA | D113: 45 | G113: 97158 | H113: ASSENTAMENTO DE TUBO DE FERRO FUNDIDO PARA REDE DE ÁGUA, DN 100 MM, JUNTA ELÁSTICA, INSTALADO EM LOCAL COM NÍVEL BAIXO DE INTERFERÊNCIAS (NÃO INCLUI FORNECIMENTO). AF_11/2017 | I113: M | J113: COEFICIENTE DE REPRESENTATIVIDADE | K113: 4.46 | L113: I | M113: SINAPI | N113: 20078 | O113: 0.0054 | P113: UN | Q113: COEFICIENTE DE REPRESENTATIVIDADE | R113: 0.0054 | S113: 17.63 | T113: 0.09 | AE113: CAIXA REFERENCIAL
A114: ASSENTAMENTO DE TUBOS E PECAS | B114: ASTU | C114: FORNEC E/OU ASSENT DE TUBO DE FERRO FUNDIDO JUNTA | D114: 45 | G114: 97158 | H114: ASSENTAMENTO DE TUBO DE FERRO FUNDIDO PARA REDE DE ÁGUA, DN 100 MM, JUNTA ELÁSTICA, INSTALADO EM LOCAL COM NÍVEL BAIXO DE INTERFERÊNCIAS (NÃO INCLUI FORNECIMENTO). AF_11/2017 | I114: M | J114: COEFICIENTE DE REPRESENTATIVIDADE | K114: 4.46 | L114: S | M114: SINAPI | N114: 88246 | O114: 0.0633 | P114: H | Q114: COEFICIENTE DE REPRESENTATIVIDADE | R114: 0.0633 | S114: 23.15 | T114: 1.46 | AE114: CAIXA REFERENCIAL
A115: ASSENTAMENTO DE TUBOS E PECAS | B115: ASTU | C115: FORNEC E/OU ASSENT DE TUBO DE FERRO FUNDIDO JUNTA | D115: 45 | G115: 97158 | H115: ASSENTAMENTO DE TUBO DE FERRO FUNDIDO PARA REDE DE ÁGUA, DN 100 MM, JUNTA ELÁSTICA, INSTALADO EM LOCAL COM NÍVEL BAIXO DE INTERFERÊNCIAS (NÃO INCLUI FORNECIMENTO). AF_11/2017 | I115: M | J115: COEFICIENTE DE REPRESENTATIVIDADE | K115: 4.46 | L115: S | M115: SINAPI | N115: 88316 | O115: 0.0633 | P115: H | Q115: COEFICIENTE DE REPRESENTATIVIDADE | R115: 0.0633 | S115: 15.03 | T115: 0.95 | AE115: CAIXA REFERENCIAL
A116: ASSENTAMENTO DE TUBOS E PECAS | B116: ASTU | C116: FORNEC E/OU ASSENT DE TUBO DE FERRO FUNDIDO JUNTA | D116: 45 | G116: 97159 | H116: ASSENTAMENTO DE TUBO DE FERRO FUNDIDO PARA REDE DE ÁGUA, DN 150 MM, JUNTA ELÁSTICA, INSTALADO EM LOCAL COM NÍVEL BAIXO DE INTERFERÊNCIAS (NÃO INCLUI FORNECIMENTO). AF_11/2017 | I116: M | J116: COEFICIENTE DE REPRESENTATIVIDADE | K116: 5.63 | M116: SINAPI | U116: 3.29 | V116: 58.2560298 | W116: 1.54 | X116: 27.458256 | Y116: 0.8 | Z116: 14.2857142 | AA116: 0 | AB116: 0 | AC116: 0 | AD116: 0 | AE116: CAIXA REFERENCIAL
A117: ASSENTAMENTO DE TUBOS E PECAS | B117: ASTU | C117: FORNEC E/OU ASSENT DE TUBO DE FERRO FUNDIDO JUNTA | D117: 45 | G117: 97159 | H117: ASSENTAMENTO DE TUBO DE FERRO FUNDIDO PARA REDE DE ÁGUA, DN 150 MM, JUNTA ELÁSTICA, INSTALADO EM LOCAL COM NÍVEL BAIXO DE INTERFERÊNCIAS (NÃO INCLUI FORNECIMENTO). AF_11/2017 | I117: M | J117: COEFICIENTE DE REPRESENTATIVIDADE | K117: 5.63 | L117: S | M117: SINAPI | N117: 5678 | O117: 0.0124 | P117: CHP | Q117: COEFICIENTE DE REPRESENTATIVIDADE | R117: 0.0124 | S117: 100.23 | T117: 1.24 | AE117: CAIXA REFERENCIAL
A118: ASSENTAMENTO DE TUBOS E PECAS | B118: ASTU | C118: FORNEC E/OU ASSENT DE TUBO DE FERRO FUNDIDO JUNTA | D118: 45 | G118: 97159 | H118: ASSENTAMENTO DE TUBO DE FERRO FUNDIDO PARA REDE DE ÁGUA, DN 150 MM, JUNTA ELÁSTICA, INSTALADO EM LOCAL COM NÍVEL BAIXO DE INTERFERÊNCIAS (NÃO INCLUI FORNECIMENTO). AF_11/2017 | I118: M | J118: COEFICIENTE DE REPRESENTATIVIDADE | K118: 5.63 | L118: S | M118: SINAPI | N118: 5679 | O118: 0.0237 | P118: CHI | Q118: COEFICIENTE DE REPRESENTATIVIDADE | R118: 0.0237 | S118: 44.39 | T118: 1.05 | AE118: CAIXA REFERENCIAL
A119: ASSENTAMENTO DE TUBOS E PECAS | B119: ASTU | C119: FORNEC E/OU ASSENT DE TUBO DE FERRO FUNDIDO JUNTA | D119: 45 | G119: 97159 | H119: ASSENTAMENTO DE TUBO DE FERRO FUNDIDO PARA REDE DE ÁGUA, DN 150 MM, JUNTA ELÁSTICA, INSTALADO EM LOCAL COM NÍVEL BAIXO DE INTERFERÊNCIAS (NÃO INCLUI FORNECIMENTO). AF_11/2017 | I119: M | J119: COEFICIENTE DE REPRESENTATIVIDADE | K119: 5.63 | L119: I | M119: SINAPI | N119: 20078 | O119: 0.0071 | P119: UN | Q119: COEFICIENTE DE REPRESENTATIVIDADE | R119: 0.0071 | S119: 17.63 | T119: 0.12 | AE119: CAIXA REFERENCIAL
A120: ASSENTAMENTO DE TUBOS E PECAS | B120: ASTU | C120: FORNEC E/OU ASSENT DE TUBO DE FERRO FUNDIDO JUNTA | D120: 45 | G120: 97159 | H120: ASSENTAMENTO DE TUBO DE FERRO FUNDIDO PARA REDE DE ÁGUA, DN 150 MM, JUNTA ELÁSTICA, INSTALADO EM LOCAL COM NÍVEL BAIXO DE INTERFERÊNCIAS (NÃO INCLUI FORNECIMENTO). AF_11/2017 | I120: M | J120: COEFICIENTE DE REPRESENTATIVIDADE | K120: 5.63 | L120: S | M120: SINAPI | N120: 88246 | O120: 0.0845 | P120: H | Q120: COEFICIENTE DE REPRESENTATIVIDADE | R120: 0.0845 | S120: 23.15 | T120: 1.95 | AE120: CAIXA REFERENCIAL
A121: ASSENTAMENTO DE TUBOS E PECAS | B121: ASTU | C121: FORNEC E/OU ASSENT DE TUBO DE FERRO FUNDIDO JUNTA | D121: 45 | G121: 97159 | H121: ASSENTAMENTO DE TUBO DE FERRO FUNDIDO PARA REDE DE ÁGUA, DN 150 MM, JUNTA ELÁSTICA, INSTALADO EM LOCAL COM NÍVEL BAIXO DE INTERFERÊNCIAS (NÃO INCLUI FORNECIMENTO). AF_11/2017 | I121: M | J121: COEFICIENTE DE REPRESENTATIVIDADE | K121: 5.63 | L121: S | M121: SINAPI | N121: 88316 | O121: 0.0845 | P121: H | Q121: COEFICIENTE DE REPRESENTATIVIDADE | R121: 0.0845 | S121: 15.03 | T121: 1.27 | AE121: CAIXA REFERENCIAL
A122: ASSENTAMENTO DE TUBOS E PECAS | B122: ASTU | C122: FORNEC E/OU ASSENT DE TUBO DE FERRO FUNDIDO JUNTA | D122: 45 | G122: 97160 | H122: ASSENTAMENTO DE TUBO DE FERRO FUNDIDO PARA REDE DE ÁGUA, DN 200 MM, JUNTA ELÁSTICA, INSTALADO EM LOCAL COM NÍVEL BAIXO DE INTERFERÊNCIAS (NÃO INCLUI FORNECIMENTO). AF_11/2017 | I122: M | J122: COEFICIENTE DE REPRESENTATIVIDADE | K122: 6.77 | M122: SINAPI | U122: 4.01 | V122: 59.1962907 | W122: 1.83 | X122: 27.0479134 | Y122: 0.93 | Z122: 13.7557959 | AA122: 0 | AB122: 0 | AC122: 0 | AD122: 0 | AE122: CAIXA REFERENCIAL
A123: ASSENTAMENTO DE TUBOS E PECAS | B123: ASTU | C123: FORNEC E/OU ASSENT DE TUBO DE FERRO FUNDIDO JUNTA | D123: 45 | G123: 97160 | H123: ASSENTAMENTO DE TUBO DE FERRO FUNDIDO PARA REDE DE ÁGUA, DN 200 MM, JUNTA ELÁSTICA, INSTALADO EM LOCAL COM NÍVEL BAIXO DE INTERFERÊNCIAS (NÃO INCLUI FORNECIMENTO). AF_11/2017 | I123: M | J123: COEFICIENTE DE REPRESENTATIVIDADE | K123: 6.77 | L123: S | M123: SINAPI | N123: 5678 | O123: 0.0141 | P123: CHP | Q123: COEFICIENTE DE REPRESENTATIVIDADE | R123: 0.0141 | S123: 100.23 | T123: 1.41 | AE123: CAIXA REFERENCIAL
A124: ASSENTAMENTO DE TUBOS E PECAS | B124: ASTU | C124: FORNEC E/OU ASSENT DE TUBO DE FERRO FUNDIDO JUNTA | D124: 45 | G124: 97160 | H124: ASSENTAMENTO DE TUBO DE FERRO FUNDIDO PARA REDE DE ÁGUA, DN 200 MM, JUNTA ELÁSTICA, INSTALADO EM LOCAL COM NÍVEL BAIXO DE INTERFERÊNCIAS (NÃO INCLUI FORNECIMENTO). AF_11/2017 | I124: M | J124: COEFICIENTE DE REPRESENTATIVIDADE | K124: 6.77 | L124: S | M124: SINAPI | N124: 5679 | O124: 0.027 | P124: CHI | Q124: COEFICIENTE DE REPRESENTATIVIDADE | R124: 0.027 | S124: 44.39 | T124: 1.19 | AE124: CAIXA REFERENCIAL
A125: ASSENTAMENTO DE TUBOS E PECAS | B125: ASTU | C125: FORNEC E/OU ASSENT DE TUBO DE FERRO FUNDIDO JUNTA | D125: 45 | G125: 97160 | H125: ASSENTAMENTO DE TUBO DE FERRO FUNDIDO PARA REDE DE ÁGUA, DN 200 MM, JUNTA ELÁSTICA, INSTALADO EM LOCAL COM NÍVEL BAIXO DE INTERFERÊNCIAS (NÃO INCLUI FORNECIMENTO). AF_11/2017 | I125: M | J125: COEFICIENTE DE REPRESENTATIVIDADE | K125: 6.77 | L125: I | M125: SINAPI | N125: 20078 | O125: 0.0087 | P125: UN | Q125: COEFICIENTE DE REPRESENTATIVIDADE | R125: 0.0087 | S125: 17.63 | T125: 0.15 | AE125: CAIXA REFERENCIAL
A126: ASSENTAMENTO DE TUBOS E PECAS | B126: ASTU | C126: FORNEC E/OU ASSENT DE TUBO DE FERRO FUNDIDO JUNTA | D126: 45 | G126: 97160 | H126: ASSENTAMENTO DE TUBO DE FERRO FUNDIDO PARA REDE DE ÁGUA, DN 200 MM, JUNTA ELÁSTICA, INSTALADO EM LOCAL COM NÍVEL BAIXO DE INTERFERÊNCIAS (NÃO INCLUI FORNECIMENTO). AF_11/2017 | I126: M | J126: COEFICIENTE DE REPRESENTATIVIDADE | K126: 6.77 | L126: S | M126: SINAPI | N126: 88246 | O126: 0.1057 | P126: H | Q126: COEFICIENTE DE REPRESENTATIVIDADE | R126: 0.1057 | S126: 23.15 | T126: 2.44 | AE126: CAIXA REFERENCIAL
A127: ASSENTAMENTO DE TUBOS E PECAS | B127: ASTU | C127: FORNEC E/OU ASSENT DE TUBO DE FERRO FUNDIDO JUNTA | D127: 45 | G127: 97160 | H127: ASSENTAMENTO DE TUBO DE FERRO FUNDIDO PARA REDE DE ÁGUA, DN 200 MM, JUNTA ELÁSTICA, INSTALADO EM LOCAL COM NÍVEL BAIXO DE INTERFERÊNCIAS (NÃO INCLUI FORNECIMENTO). AF_11/2017 | I127: M | J127: COEFICIENTE DE REPRESENTATIVIDADE | K127: 6.77 | L127: S | M127: SINAPI | N127: 88316 | O127: 0.1057 | P127: H | Q127: COEFICIENTE DE REPRESENTATIVIDADE | R127: 0.1057 | S127: 15.03 | T127: 1.58 | AE127: CAIXA REFERENCIAL
A128: ASSENTAMENTO DE TUBOS E PECAS | B128: ASTU | C128: FORNEC E/OU ASSENT DE TUBO DE FERRO FUNDIDO JUNTA | D128: 45 | G128: 97161 | H128: ASSENTAMENTO DE TUBO DE FERRO FUNDIDO PARA REDE DE ÁGUA, DN 250 MM, JUNTA ELÁSTICA, INSTALADO EM LOCAL COM NÍVEL BAIXO DE INTERFERÊNCIAS (NÃO INCLUI FORNECIMENTO). AF_11/2017 | I128: M | J128: COEFICIENTE DE REPRESENTATIVIDADE | K128: 7.96 | M128: SINAPI | U128: 4.76 | V128: 59.6583444 | W128: 2.17 | X128: 27.3324572 | Y128: 1.03 | Z128: 13.0091984 | AA128: 0 | AB128: 0 | AC128: 0 | AD128: 0 | AE128: CAIXA REFERENCIAL
A129: ASSENTAMENTO DE TUBOS E PECAS | B129: ASTU | C129: FORNEC E/OU ASSENT DE TUBO DE FERRO FUNDIDO JUNTA | D129: 45 | G129: 97161 | H129: ASSENTAMENTO DE TUBO DE FERRO FUNDIDO PARA REDE DE ÁGUA, DN 250 MM, JUNTA ELÁSTICA, INSTALADO EM LOCAL COM NÍVEL BAIXO DE INTERFERÊNCIAS (NÃO INCLUI FORNECIMENTO). AF_11/2017 | I129: M | J129: COEFICIENTE DE REPRESENTATIVIDADE | K129: 7.96 | L129: S | M129: SINAPI | N129: 5678 | O129: 0.0159 | P129: CHP | Q129: COEFICIENTE DE REPRESENTATIVIDADE | R129: 0.0159 | S129: 100.23 | T129: 1.59 | AE129: CAIXA REFERENCIAL
A130: ASSENTAMENTO DE TUBOS E PECAS | B130: ASTU | C130: FORNEC E/OU ASSENT DE TUBO DE FERRO FUNDIDO JUNTA | D130: 45 | G130: 97161 | H130: ASSENTAMENTO DE TUBO DE FERRO FUNDIDO PARA REDE DE ÁGUA, DN 250 MM, JUNTA ELÁSTICA, INSTALADO EM LOCAL COM NÍVEL BAIXO DE INTERFERÊNCIAS (NÃO INCLUI FORNECIMENTO). AF_11/2017 | I130: M | J130: COEFICIENTE DE REPRESENTATIVIDADE | K130: 7.96 | L130: S | M130: SINAPI | N130: 5679 | O130: 0.0304 | P130: CHI | Q130: COEFICIENTE DE REPRESENTATIVIDADE | R130: 0.0304 | S130: 44.39 | T130: 1.34 | AE130: CAIXA REFERENCIAL
A131: ASSENTAMENTO DE TUBOS E PECAS | B131: ASTU | C131: FORNEC E/OU ASSENT DE TUBO DE FERRO FUNDIDO JUNTA | D131: 45 | G131: 97161 | H131: ASSENTAMENTO DE TUBO DE FERRO FUNDIDO PARA REDE DE ÁGUA, DN 250 MM, JUNTA ELÁSTICA, INSTALADO EM LOCAL COM NÍVEL BAIXO DE INTERFERÊNCIAS (NÃO INCLUI FORNECIMENTO). AF_11/2017 | I131: M | J131: COEFICIENTE DE REPRESENTATIVIDADE | K131: 7.96 | L131: I | M131: SINAPI | N131: 20078 | O131: 0.0113 | P131: UN | Q131: COEFICIENTE DE REPRESENTATIVIDADE | R131: 0.0113 | S131: 17.63 | T131: 0.19 | AE131: CAIXA REFERENCIAL
A132: ASSENTAMENTO DE TUBOS E PECAS | B132: ASTU | C132: FORNEC E/OU ASSENT DE TUBO DE FERRO FUNDIDO JUNTA | D132: 45 | G132: 97161 | H132: ASSENTAMENTO DE TUBO DE FERRO FUNDIDO PARA REDE DE ÁGUA, DN 250 MM, JUNTA ELÁSTICA, INSTALADO EM LOCAL COM NÍVEL BAIXO DE INTERFERÊNCIAS (NÃO INCLUI FORNECIMENTO). AF_11/2017 | I132: M | J132: COEFICIENTE DE REPRESENTATIVIDADE | K132: 7.96 | L132: S | M132: SINAPI | N132: 88246 | O132: 0.127 | P132: H | Q132: COEFICIENTE DE REPRESENTATIVIDADE | R132: 0.127 | S132: 23.15 | T132: 2.94 | AE132: CAIXA REFERENCIAL
A133: ASSENTAMENTO DE TUBOS E PECAS | B133: ASTU | C133: FORNEC E/OU ASSENT DE TUBO DE FERRO FUNDIDO JUNTA | D133: 45 | G133: 97161 | H133: ASSENTAMENTO DE TUBO DE FERRO FUNDIDO PARA REDE DE ÁGUA, DN 250 MM, JUNTA ELÁSTICA, INSTALADO EM LOCAL COM NÍVEL BAIXO DE INTERFERÊNCIAS (NÃO INCLUI FORNECIMENTO). AF_11/2017 | I133: M | J133: COEFICIENTE DE REPRESENTATIVIDADE | K133: 7.96 | L133: S | M133: SINAPI | N133: 88316 | O133: 0.127 | P133: H | Q133: COEFICIENTE DE REPRESENTATIVIDADE | R133: 0.127 | S133: 15.03 | T133: 1.9 | AE133: CAIXA REFERENCIAL
A134: ASSENTAMENTO DE TUBOS E PECAS | B134: ASTU | C134: FORNEC E/OU ASSENT DE TUBO DE FERRO FUNDIDO JUNTA | D134: 45 | G134: 97162 | H134: ASSENTAMENTO DE TUBO DE FERRO FUNDIDO PARA REDE DE ÁGUA, DN 300 MM, JUNTA ELÁSTICA, INSTALADO EM LOCAL COM NÍVEL BAIXO DE INTERFERÊNCIAS (NÃO INCLUI FORNECIMENTO). AF_11/2017 | I134: M | J134: COEFICIENTE DE REPRESENTATIVIDADE | K134: 9.14 | M134: SINAPI | U134: 5.45 | V134: 59.4563987 | W134: 2.56 | X134: 28.0860702 | Y134: 1.13 | Z134: 12.4575311 | AA134: 0 | AB134: 0 | AC134: 0 | AD134: 0 | AE134: CAIXA REFERENCIAL
A135: ASSENTAMENTO DE TUBOS E PECAS | B135: ASTU | C135: FORNEC E/OU ASSENT DE TUBO DE FERRO FUNDIDO JUNTA | D135: 45 | G135: 97162 | H135: ASSENTAMENTO DE TUBO DE FERRO FUNDIDO PARA REDE DE ÁGUA, DN 300 MM, JUNTA ELÁSTICA, INSTALADO EM LOCAL COM NÍVEL BAIXO DE INTERFERÊNCIAS (NÃO INCLUI FORNECIMENTO). AF_11/2017 | I135: M | J135: COEFICIENTE DE REPRESENTATIVIDADE | K135: 9.14 | L135: S | M135: SINAPI | N135: 5678 | O135: 0.0176 | P135: CHP | Q135: COEFICIENTE DE REPRESENTATIVIDADE | R135: 0.0176 | S135: 100.23 | T135: 1.76 | AE135: CAIXA REFERENCIAL
A136: ASSENTAMENTO DE TUBOS E PECAS | B136: ASTU | C136: FORNEC E/OU ASSENT DE TUBO DE FERRO FUNDIDO JUNTA | D136: 45 | G136: 97162 | H136: ASSENTAMENTO DE TUBO DE FERRO FUNDIDO PARA REDE DE ÁGUA, DN 300 MM, JUNTA ELÁSTICA, INSTALADO EM LOCAL COM NÍVEL BAIXO DE INTERFERÊNCIAS (NÃO INCLUI FORNECIMENTO). AF_11/2017 | I136: M | J136: COEFICIENTE DE REPRESENTATIVIDADE | K136: 9.14 | L136: S | M136: SINAPI | N136: 5679 | O136: 0.0337 | P136: CHI | Q136: COEFICIENTE DE REPRESENTATIVIDADE | R136: 0.0337 | S136: 44.39 | T136: 1.49 | AE136: CAIXA REFERENCIAL
A137: ASSENTAMENTO DE TUBOS E PECAS | B137: ASTU | C137: FORNEC E/OU ASSENT DE TUBO DE FERRO FUNDIDO JUNTA | D137: 45 | G137: 97162 | H137: ASSENTAMENTO DE TUBO DE FERRO FUNDIDO PARA REDE DE ÁGUA, DN 300 MM, JUNTA ELÁSTICA, INSTALADO EM LOCAL COM NÍVEL BAIXO DE INTERFERÊNCIAS (NÃO INCLUI FORNECIMENTO). AF_11/2017 | I137: M | J137: COEFICIENTE DE REPRESENTATIVIDADE | K137: 9.14 | L137: I | M137: SINAPI | N137: 20078 | O137: 0.0138 | P137: UN | Q137: COEFICIENTE DE REPRESENTATIVIDADE | R137: 0.0138 | S137: 17.63 | T137: 0.24 | AE137: CAIXA REFERENCIAL
A138: ASSENTAMENTO DE TUBOS E PECAS | B138: ASTU | C138: FORNEC E/OU ASSENT DE TUBO DE FERRO FUNDIDO JUNTA | D138: 45 | G138: 97162 | H138: ASSENTAMENTO DE TUBO DE FERRO FUNDIDO PARA REDE DE ÁGUA, DN 300 MM, JUNTA ELÁSTICA, INSTALADO EM LOCAL COM NÍVEL BAIXO DE INTERFERÊNCIAS (NÃO INCLUI FORNECIMENTO). AF_11/2017 | I138: M | J138: COEFICIENTE DE REPRESENTATIVIDADE | K138: 9.14 | L138: S | M138: SINAPI | N138: 88246 | O138: 0.1482 | P138: H | Q138: COEFICIENTE DE REPRESENTATIVIDADE | R138: 0.1482 | S138: 23.15 | T138: 3.43 | AE138: CAIXA REFERENCIAL
A139: ASSENTAMENTO DE TUBOS E PECAS | B139: ASTU | C139: FORNEC E/OU ASSENT DE TUBO DE FERRO FUNDIDO JUNTA | D139: 45 | G139: 97162 | H139: ASSENTAMENTO DE TUBO DE FERRO FUNDIDO PARA REDE DE ÁGUA, DN 300 MM, JUNTA ELÁSTICA, INSTALADO EM LOCAL COM NÍVEL BAIXO DE INTERFERÊNCIAS (NÃO INCLUI FORNECIMENTO). AF_11/2017 | I139: M | J139: COEFICIENTE DE REPRESENTATIVIDADE | K139: 9.14 | L139: S | M139: SINAPI | N139: 88316 | O139: 0.1482 | P139: H | Q139: COEFICIENTE DE REPRESENTATIVIDADE | R139: 0.1482 | S139: 15.03 | T139: 2.22 | AE139: CAIXA REFERENCIAL
A140: ASSENTAMENTO DE TUBOS E PECAS | B140: ASTU | C140: FORNEC E/OU ASSENT DE TUBO DE FERRO FUNDIDO JUNTA | D140: 45 | G140: 97163 | H140: ASSENTAMENTO DE TUBO DE FERRO FUNDIDO PARA REDE DE ÁGUA, DN 350 MM, JUNTA ELÁSTICA, INSTALADO EM LOCAL COM NÍVEL BAIXO DE INTERFERÊNCIAS (NÃO INCLUI FORNECIMENTO). AF_11/2017 | I140: M | J140: COEFICIENTE DE REPRESENTATIVIDADE | K140: 10.32 | M140: SINAPI | U140: 6.13 | V140: 59.2814372 | W140: 2.94 | X140: 28.5429141 | Y140: 1.25 | Z140: 12.1756487 | AA140: 0 | AB140: 0 | AC140: 0 | AD140: 0 | AE140: CAIXA REFERENCIAL
A141: ASSENTAMENTO DE TUBOS E PECAS | B141: ASTU | C141: FORNEC E/OU ASSENT DE TUBO DE FERRO FUNDIDO JUNTA | D141: 45 | G141: 97163 | H141: ASSENTAMENTO DE TUBO DE FERRO FUNDIDO PARA REDE DE ÁGUA, DN 350 MM, JUNTA ELÁSTICA, INSTALADO EM LOCAL COM NÍVEL BAIXO DE INTERFERÊNCIAS (NÃO INCLUI FORNECIMENTO). AF_11/2017 | I141: M | J141: COEFICIENTE DE REPRESENTATIVIDADE | K141: 10.32 | L141: S | M141: SINAPI | N141: 5678 | O141: 0.0194 | P141: CHP | Q141: COEFICIENTE DE REPRESENTATIVIDADE | R141: 0.0194 | S141: 100.23 | T141: 1.94 | AE141: CAIXA REFERENCIAL
A142: ASSENTAMENTO DE TUBOS E PECAS | B142: ASTU | C142: FORNEC E/OU ASSENT DE TUBO DE FERRO FUNDIDO JUNTA | D142: 45 | G142: 97163 | H142: ASSENTAMENTO DE TUBO DE FERRO FUNDIDO PARA REDE DE ÁGUA, DN 350 MM, JUNTA ELÁSTICA, INSTALADO EM LOCAL COM NÍVEL BAIXO DE INTERFERÊNCIAS (NÃO INCLUI FORNECIMENTO). AF_11/2017 | I142: M | J142: COEFICIENTE DE REPRESENTATIVIDADE | K142: 10.32 | L142: S | M142: SINAPI | N142: 5679 | O142: 0.0371 | P142: CHI | Q142: COEFICIENTE DE REPRESENTATIVIDADE | R142: 0.0371 | S142: 44.39 | T142: 1.64 | AE142: CAIXA REFERENCIAL
A143: ASSENTAMENTO DE TUBOS E PECAS | B143: ASTU | C143: FORNEC E/OU ASSENT DE TUBO DE FERRO FUNDIDO JUNTA | D143: 45 | G143: 97163 | H143: ASSENTAMENTO DE TUBO DE FERRO FUNDIDO PARA REDE DE ÁGUA, DN 350 MM, JUNTA ELÁSTICA, INSTALADO EM LOCAL COM NÍVEL BAIXO DE INTERFERÊNCIAS (NÃO INCLUI FORNECIMENTO). AF_11/2017 | I143: M | J143: COEFICIENTE DE REPRESENTATIVIDADE | K143: 10.32 | L143: I | M143: SINAPI | N143: 20078 | O143: 0.0163 | P143: UN | Q143: COEFICIENTE DE REPRESENTATIVIDADE | R143: 0.0163 | S143: 17.63 | T143: 0.28 | AE143: CAIXA REFERENCIAL
A144: ASSENTAMENTO DE TUBOS E PECAS | B144: ASTU | C144: FORNEC E/OU ASSENT DE TUBO DE FERRO FUNDIDO JUNTA | D144: 45 | G144: 97163 | H144: ASSENTAMENTO DE TUBO DE FERRO FUNDIDO PARA REDE DE ÁGUA, DN 350 MM, JUNTA ELÁSTICA, INSTALADO EM LOCAL COM NÍVEL BAIXO DE INTERFERÊNCIAS (NÃO INCLUI FORNECIMENTO). AF_11/2017 | I144: M | J144: COEFICIENTE DE REPRESENTATIVIDADE | K144: 10.32 | L144: S | M144: SINAPI | N144: 88246 | O144: 0.1694 | P144: H | Q144: COEFICIENTE DE REPRESENTATIVIDADE | R144: 0.1694 | S144: 23.15 | T144: 3.92 | AE144: CAIXA REFERENCIAL
A145: ASSENTAMENTO DE TUBOS E PECAS | B145: ASTU | C145: FORNEC E/OU ASSENT DE TUBO DE FERRO FUNDIDO JUNTA | D145: 45 | G145: 97163 | H145: ASSENTAMENTO DE TUBO DE FERRO FUNDIDO PARA REDE DE ÁGUA, DN 350 MM, JUNTA ELÁSTICA, INSTALADO EM LOCAL COM NÍVEL BAIXO DE INTERFERÊNCIAS (NÃO INCLUI FORNECIMENTO). AF_11/2017 | I145: M | J145: COEFICIENTE DE REPRESENTATIVIDADE | K145: 10.32 | L145: S | M145: SINAPI | N145: 88316 | O145: 0.1694 | P145: H | Q145: COEFICIENTE DE REPRESENTATIVIDADE | R145: 0.1694 | S145: 15.03 | T145: 2.54 | AE145: CAIXA REFERENCIAL
A146: ASSENTAMENTO DE TUBOS E PECAS | B146: ASTU | C146: FORNEC E/OU ASSENT DE TUBO DE FERRO FUNDIDO JUNTA | D146: 45 | G146: 97164 | H146: ASSENTAMENTO DE TUBO DE FERRO FUNDIDO PARA REDE DE ÁGUA, DN 400 MM, JUNTA ELÁSTICA, INSTALADO EM LOCAL COM NÍVEL BAIXO DE INTERFERÊNCIAS (NÃO INCLUI FORNECIMENTO). AF_11/2017 | I146: M | J146: COEFICIENTE DE REPRESENTATIVIDADE | K146: 11.5 | M146: SINAPI | U146: 6.87 | V146: 59.623993 | W146: 3.27 | X146: 28.4691136 | Y146: 1.36 | Z146: 11.9068934 | AA146: 0 | AB146: 0 | AC146: 0 | AD146: 0 | AE146: CAIXA REFERENCIAL
A147: ASSENTAMENTO DE TUBOS E PECAS | B147: ASTU | C147: FORNEC E/OU ASSENT DE TUBO DE FERRO FUNDIDO JUNTA | D147: 45 | G147: 97164 | H147: ASSENTAMENTO DE TUBO DE FERRO FUNDIDO PARA REDE DE ÁGUA, DN 400 MM, JUNTA ELÁSTICA, INSTALADO EM LOCAL COM NÍVEL BAIXO DE INTERFERÊNCIAS (NÃO INCLUI FORNECIMENTO). AF_11/2017 | I147: M | J147: COEFICIENTE DE REPRESENTATIVIDADE | K147: 11.5 | L147: S | M147: SINAPI | N147: 5678 | O147: 0.0211 | P147: CHP | Q147: COEFICIENTE DE REPRESENTATIVIDADE | R147: 0.0211 | S147: 100.23 | T147: 2.11 | AE147: CAIXA REFERENCIAL
A148: ASSENTAMENTO DE TUBOS E PECAS | B148: ASTU | C148: FORNEC E/OU ASSENT DE TUBO DE FERRO FUNDIDO JUNTA | D148: 45 | G148: 97164 | H148: ASSENTAMENTO DE TUBO DE FERRO FUNDIDO PARA REDE DE ÁGUA, DN 400 MM, JUNTA ELÁSTICA, INSTALADO EM LOCAL COM NÍVEL BAIXO DE INTERFERÊNCIAS (NÃO INCLUI FORNECIMENTO). AF_11/2017 | I148: M | J148: COEFICIENTE DE REPRESENTATIVIDADE | K148: 11.5 | L148: S | M148: SINAPI | N148: 5679 | O148: 0.0404 | P148: CHI | Q148: COEFICIENTE DE REPRESENTATIVIDADE | R148: 0.0404 | S148: 44.39 | T148: 1.79 | AE148: CAIXA REFERENCIAL
A149: ASSENTAMENTO DE TUBOS E PECAS | B149: ASTU | C149: FORNEC E/OU ASSENT DE TUBO DE FERRO FUNDIDO JUNTA | D149: 45 | G149: 97164 | H149: ASSENTAMENTO DE TUBO DE FERRO FUNDIDO PARA REDE DE ÁGUA, DN 400 MM, JUNTA ELÁSTICA, INSTALADO EM LOCAL COM NÍVEL BAIXO DE INTERFERÊNCIAS (NÃO INCLUI FORNECIMENTO). AF_11/2017 | I149: M | J149: COEFICIENTE DE REPRESENTATIVIDADE | K149: 11.5 | L149: I | M149: SINAPI | N149: 20078 | O149: 0.0188 | P149: UN | Q149: COEFICIENTE DE REPRESENTATIVIDADE | R149: 0.0188 | S149: 17.63 | T149: 0.33 | AE149: CAIXA REFERENCIAL
A150: ASSENTAMENTO DE TUBOS E PECAS | B150: ASTU | C150: FORNEC E/OU ASSENT DE TUBO DE FERRO FUNDIDO JUNTA | D150: 45 | G150: 97164 | H150: ASSENTAMENTO DE TUBO DE FERRO FUNDIDO PARA REDE DE ÁGUA, DN 400 MM, JUNTA ELÁSTICA, INSTALADO EM LOCAL COM NÍVEL BAIXO DE INTERFERÊNCIAS (NÃO INCLUI FORNECIMENTO). AF_11/2017 | I150: M | J150: COEFICIENTE DE REPRESENTATIVIDADE | K150: 11.5 | L150: S | M150: SINAPI | N150: 88246 | O150: 0.1907 | P150: H | Q150: COEFICIENTE DE REPRESENTATIVIDADE | R150: 0.1907 | S150: 23.15 | T150: 4.41 | AE150: CAIXA REFERENCIAL
A151: ASSENTAMENTO DE TUBOS E PECAS | B151: ASTU | C151: FORNEC E/OU ASSENT DE TUBO DE FERRO FUNDIDO JUNTA | D151: 45 | G151: 97164 | H151: ASSENTAMENTO DE TUBO DE FERRO FUNDIDO PARA REDE DE ÁGUA, DN 400 MM, JUNTA ELÁSTICA, INSTALADO EM LOCAL COM NÍVEL BAIXO DE INTERFERÊNCIAS (NÃO INCLUI FORNECIMENTO). AF_11/2017 | I151: M | J151: COEFICIENTE DE REPRESENTATIVIDADE | K151: 11.5 | L151: S | M151: SINAPI | N151: 88316 | O151: 0.1907 | P151: H | Q151: COEFICIENTE DE REPRESENTATIVIDADE | R151: 0.1907 | S151: 15.03 | T151: 2.86 | AE151: CAIXA REFERENCIAL
A152: ASSENTAMENTO DE TUBOS E PECAS | B152: ASTU | C152: FORNEC E/OU ASSENT DE TUBO DE FERRO FUNDIDO JUNTA | D152: 45 | G152: 97165 | H152: ASSENTAMENTO DE TUBO DE FERRO FUNDIDO PARA REDE DE ÁGUA, DN 450 MM, JUNTA ELÁSTICA, INSTALADO EM LOCAL COM NÍVEL BAIXO DE INTERFERÊNCIAS (NÃO INCLUI FORNECIMENTO). AF_11/2017 | I152: M | J152: COEFICIENTE DE REPRESENTATIVIDADE | K152: 12.69 | M152: SINAPI | U152: 7.59 | V152: 59.7402599 | W152: 3.62 | X152: 28.5714285 | Y152: 1.48 | Z152: 11.6883116 | AA152: 0 | AB152: 0 | AC152: 0 | AD152: 0 | AE152: CAIXA REFERENCIAL
A153: ASSENTAMENTO DE TUBOS E PECAS | B153: ASTU | C153: FORNEC E/OU ASSENT DE TUBO DE FERRO FUNDIDO JUNTA | D153: 45 | G153: 97165 | H153: ASSENTAMENTO DE TUBO DE FERRO FUNDIDO PARA REDE DE ÁGUA, DN 450 MM, JUNTA ELÁSTICA, INSTALADO EM LOCAL COM NÍVEL BAIXO DE INTERFERÊNCIAS (NÃO INCLUI FORNECIMENTO). AF_11/2017 | I153: M | J153: COEFICIENTE DE REPRESENTATIVIDADE | K153: 12.69 | L153: S | M153: SINAPI | N153: 5678 | O153: 0.0229 | P153: CHP | Q153: COEFICIENTE DE REPRESENTATIVIDADE | R153: 0.0229 | S153: 100.23 | T153: 2.29 | AE153: CAIXA REFERENCIAL
A154: ASSENTAMENTO DE TUBOS E PECAS | B154: ASTU | C154: FORNEC E/OU ASSENT DE TUBO DE FERRO FUNDIDO JUNTA | D154: 45 | G154: 97165 | H154: ASSENTAMENTO DE TUBO DE FERRO FUNDIDO PARA REDE DE ÁGUA, DN 450 MM, JUNTA ELÁSTICA, INSTALADO EM LOCAL COM NÍVEL BAIXO DE INTERFERÊNCIAS (NÃO INCLUI FORNECIMENTO). AF_11/2017 | I154: M | J154: COEFICIENTE DE REPRESENTATIVIDADE | K154: 12.69 | L154: S | M154: SINAPI | N154: 5679 | O154: 0.0438 | P154: CHI | Q154: COEFICIENTE DE REPRESENTATIVIDADE | R154: 0.0438 | S154: 44.39 | T154: 1.94 | AE154: CAIXA REFERENCIAL
A155: ASSENTAMENTO DE TUBOS E PECAS | B155: ASTU | C155: FORNEC E/OU ASSENT DE TUBO DE FERRO FUNDIDO JUNTA | D155: 45 | G155: 97165 | H155: ASSENTAMENTO DE TUBO DE FERRO FUNDIDO PARA REDE DE ÁGUA, DN 450 MM, JUNTA ELÁSTICA, INSTALADO EM LOCAL COM NÍVEL BAIXO DE INTERFERÊNCIAS (NÃO INCLUI FORNECIMENTO). AF_11/2017 | I155: M | J155: COEFICIENTE DE REPRESENTATIVIDADE | K155: 12.69 | L155: I | M155: SINAPI | N155: 20078 | O155: 0.0221 | P155: UN | Q155: COEFICIENTE DE REPRESENTATIVIDADE | R155: 0.0221 | S155: 17.63 | T155: 0.38 | AE155: CAIXA REFERENCIAL
A156: ASSENTAMENTO DE TUBOS E PECAS | B156: ASTU | C156: FORNEC E/OU ASSENT DE TUBO DE FERRO FUNDIDO JUNTA | D156: 45 | G156: 97165 | H156: ASSENTAMENTO DE TUBO DE FERRO FUNDIDO PARA REDE DE ÁGUA, DN 450 MM, JUNTA ELÁSTICA, INSTALADO EM LOCAL COM NÍVEL BAIXO DE INTERFERÊNCIAS (NÃO INCLUI FORNECIMENTO). AF_11/2017 | I156: M | J156: COEFICIENTE DE REPRESENTATIVIDADE | K156: 12.69 | L156: S | M156: SINAPI | N156: 88246 | O156: 0.2119 | P156: H | Q156: COEFICIENTE DE REPRESENTATIVIDADE | R156: 0.2119 | S156: 23.15 | T156: 4.9 | AE156: CAIXA REFERENCIAL
A157: ASSENTAMENTO DE TUBOS E PECAS | B157: ASTU | C157: FORNEC E/OU ASSENT DE TUBO DE FERRO FUNDIDO JUNTA | D157: 45 | G157: 97165 | H157: ASSENTAMENTO DE TUBO DE FERRO FUNDIDO PARA REDE DE ÁGUA, DN 450 MM, JUNTA ELÁSTICA, INSTALADO EM LOCAL COM NÍVEL BAIXO DE INTERFERÊNCIAS (NÃO INCLUI FORNECIMENTO). AF_11/2017 | I157: M | J157: COEFICIENTE DE REPRESENTATIVIDADE | K157: 12.69 | L157: S | M157: SINAPI | N157: 88316 | O157: 0.2119 | P157: H | Q157: COEFICIENTE DE REPRESENTATIVIDADE | R157: 0.2119 | S157: 15.03 | T157: 3.18 | AE157: CAIXA REFERENCIAL
A158: ASSENTAMENTO DE TUBOS E PECAS | B158: ASTU | C158: FORNEC E/OU ASSENT DE TUBO DE FERRO FUNDIDO JUNTA | D158: 45 | G158: 97166 | H158: ASSENTAMENTO DE TUBO DE FERRO FUNDIDO PARA REDE DE ÁGUA, DN 500 MM, JUNTA ELÁSTICA, INSTALADO EM LOCAL COM NÍVEL BAIXO DE INTERFERÊNCIAS (NÃO INCLUI FORNECIMENTO). AF_11/2017 | I158: M | J158: COEFICIENTE DE REPRESENTATIVIDADE | K158: 15.47 | M158: SINAPI | U158: 8.28 | V158: 53.4574469 | W158: 4.16 | X158: 26.9281914 | Y158: 3.03 | Z158: 19.6143617 | AA158: 0 | AB158: 0 | AC158: 0 | AD158: 0 | AE158: CAIXA REFERENCIAL
A159: ASSENTAMENTO DE TUBOS E PECAS | B159: ASTU | C159: FORNEC E/OU ASSENT DE TUBO DE FERRO FUNDIDO JUNTA | D159: 45 | G159: 97166 | H159: ASSENTAMENTO DE TUBO DE FERRO FUNDIDO PARA REDE DE ÁGUA, DN 500 MM, JUNTA ELÁSTICA, INSTALADO EM LOCAL COM NÍVEL BAIXO DE INTERFERÊNCIAS (NÃO INCLUI FORNECIMENTO). AF_11/2017 | I159: M | J159: COEFICIENTE DE REPRESENTATIVIDADE | K159: 15.47 | L159: S | M159: SINAPI | N159: 5631 | O159: 0.0246 | P159: CHP | Q159: COEFICIENTE DE REPRESENTATIVIDADE | R159: 0.0246 | S159: 137.46 | T159: 3.38 | AE159: CAIXA REFERENCIAL
A160: ASSENTAMENTO DE TUBOS E PECAS | B160: ASTU | C160: FORNEC E/OU ASSENT DE TUBO DE FERRO FUNDIDO JUNTA | D160: 45 | G160: 97166 | H160: ASSENTAMENTO DE TUBO DE FERRO FUNDIDO PARA REDE DE ÁGUA, DN 500 MM, JUNTA ELÁSTICA, INSTALADO EM LOCAL COM NÍVEL BAIXO DE INTERFERÊNCIAS (NÃO INCLUI FORNECIMENTO). AF_11/2017 | I160: M | J160: COEFICIENTE DE REPRESENTATIVIDADE | K160: 15.47 | L160: S | M160: SINAPI | N160: 5632 | O160: 0.0471 | P160: CHI | Q160: COEFICIENTE DE REPRESENTATIVIDADE | R160: 0.0471 | S160: 58.95 | T160: 2.77 | AE160: CAIXA REFERENCIAL
A161: ASSENTAMENTO DE TUBOS E PECAS | B161: ASTU | C161: FORNEC E/OU ASSENT DE TUBO DE FERRO FUNDIDO JUNTA | D161: 45 | G161: 97166 | H161: ASSENTAMENTO DE TUBO DE FERRO FUNDIDO PARA REDE DE ÁGUA, DN 500 MM, JUNTA ELÁSTICA, INSTALADO EM LOCAL COM NÍVEL BAIXO DE INTERFERÊNCIAS (NÃO INCLUI FORNECIMENTO). AF_11/2017 | I161: M | J161: COEFICIENTE DE REPRESENTATIVIDADE | K161: 15.47 | L161: I | M161: SINAPI | N161: 20078 | O161: 0.0248 | P161: UN | Q161: COEFICIENTE DE REPRESENTATIVIDADE | R161: 0.0248 | S161: 17.63 | T161: 0.43 | AE161: CAIXA REFERENCIAL
A162: ASSENTAMENTO DE TUBOS E PECAS | B162: ASTU | C162: FORNEC E/OU ASSENT DE TUBO DE FERRO FUNDIDO JUNTA | D162: 45 | G162: 97166 | H162: ASSENTAMENTO DE TUBO DE FERRO FUNDIDO PARA REDE DE ÁGUA, DN 500 MM, JUNTA ELÁSTICA, INSTALADO EM LOCAL COM NÍVEL BAIXO DE INTERFERÊNCIAS (NÃO INCLUI FORNECIMENTO). AF_11/2017 | I162: M | J162: COEFICIENTE DE REPRESENTATIVIDADE | K162: 15.47 | L162: S | M162: SINAPI | N162: 88246 | O162: 0.2331 | P162: H | Q162: COEFICIENTE DE REPRESENTATIVIDADE | R162: 0.2331 | S162: 23.15 | T162: 5.39 | AE162: CAIXA REFERENCIAL
A163: ASSENTAMENTO DE TUBOS E PECAS | B163: ASTU | C163: FORNEC E/OU ASSENT DE TUBO DE FERRO FUNDIDO JUNTA | D163: 45 | G163: 97166 | H163: ASSENTAMENTO DE TUBO DE FERRO FUNDIDO PARA REDE DE ÁGUA, DN 500 MM, JUNTA ELÁSTICA, INSTALADO EM LOCAL COM NÍVEL BAIXO DE INTERFERÊNCIAS (NÃO INCLUI FORNECIMENTO). AF_11/2017 | I163: M | J163: COEFICIENTE DE REPRESENTATIVIDADE | K163: 15.47 | L163: S | M163: SINAPI | N163: 88316 | O163: 0.2331 | P163: H | Q163: COEFICIENTE DE REPRESENTATIVIDADE | R163: 0.2331 | S163: 15.03 | T163: 3.5 | AE163: CAIXA REFERENCIAL
A164: ASSENTAMENTO DE TUBOS E PECAS | B164: ASTU | C164: FORNEC E/OU ASSENT DE TUBO DE FERRO FUNDIDO JUNTA | D164: 45 | G164: 97167 | H164: ASSENTAMENTO DE TUBO DE FERRO FUNDIDO PARA REDE DE ÁGUA, DN 600 MM, JUNTA ELÁSTICA, INSTALADO EM LOCAL COM NÍVEL BAIXO DE INTERFERÊNCIAS (NÃO INCLUI FORNECIMENTO). AF_11/2017 | I164: M | J164: COEFICIENTE DE REPRESENTATIVIDADE | K164: 18.1 | M164: SINAPI | U164: 9.69 | V164: 53.4726144 | W164: 4.94 | X164: 27.3291925 | Y164: 3.47 | Z164: 19.1981931 | AA164: 0 | AB164: 0 | AC164: 0 | AD164: 0 | AE164: CAIXA REFERENCIAL
A165: ASSENTAMENTO DE TUBOS E PECAS | B165: ASTU | C165: FORNEC E/OU ASSENT DE TUBO DE FERRO FUNDIDO JUNTA | D165: 45 | G165: 97167 | H165: ASSENTAMENTO DE TUBO DE FERRO FUNDIDO PARA REDE DE ÁGUA, DN 600 MM, JUNTA ELÁSTICA, INSTALADO EM LOCAL COM NÍVEL BAIXO DE INTERFERÊNCIAS (NÃO INCLUI FORNECIMENTO). AF_11/2017 | I165: M | J165: COEFICIENTE DE REPRESENTATIVIDADE | K165: 18.1 | L165: S | M165: SINAPI | N165: 5631 | O165: 0.0281 | P165: CHP | Q165: COEFICIENTE DE REPRESENTATIVIDADE | R165: 0.0281 | S165: 137.46 | T165: 3.86 | AE165: CAIXA REFERENCIAL
A166: ASSENTAMENTO DE TUBOS E PECAS | B166: ASTU | C166: FORNEC E/OU ASSENT DE TUBO DE FERRO FUNDIDO JUNTA | D166: 45 | G166: 97167 | H166: ASSENTAMENTO DE TUBO DE FERRO FUNDIDO PARA REDE DE ÁGUA, DN 600 MM, JUNTA ELÁSTICA, INSTALADO EM LOCAL COM NÍVEL BAIXO DE INTERFERÊNCIAS (NÃO INCLUI FORNECIMENTO). AF_11/2017 | I166: M | J166: COEFICIENTE DE REPRESENTATIVIDADE | K166: 18.1 | L166: S | M166: SINAPI | N166: 5632 | O166: 0.0538 | P166: CHI | Q166: COEFICIENTE DE REPRESENTATIVIDADE | R166: 0.0538 | S166: 58.95 | T166: 3.17 | AE166: CAIXA REFERENCIAL
A167: ASSENTAMENTO DE TUBOS E PECAS | B167: ASTU | C167: FORNEC E/OU ASSENT DE TUBO DE FERRO FUNDIDO JUNTA | D167: 45 | G167: 97167 | H167: ASSENTAMENTO DE TUBO DE FERRO FUNDIDO PARA REDE DE ÁGUA, DN 600 MM, JUNTA ELÁSTICA, INSTALADO EM LOCAL COM NÍVEL BAIXO DE INTERFERÊNCIAS (NÃO INCLUI FORNECIMENTO). AF_11/2017 | I167: M | J167: COEFICIENTE DE REPRESENTATIVIDADE | K167: 18.1 | L167: I | M167: SINAPI | N167: 20078 | O167: 0.0313 | P167: UN | Q167: COEFICIENTE DE REPRESENTATIVIDADE | R167: 0.0313 | S167: 17.63 | T167: 0.55 | AE167: CAIXA REFERENCIAL
A168: ASSENTAMENTO DE TUBOS E PECAS | B168: ASTU | C168: FORNEC E/OU ASSENT DE TUBO DE FERRO FUNDIDO JUNTA | D168: 45 | G168: 97167 | H168: ASSENTAMENTO DE TUBO DE FERRO FUNDIDO PARA REDE DE ÁGUA, DN 600 MM, JUNTA ELÁSTICA, INSTALADO EM LOCAL COM NÍVEL BAIXO DE INTERFERÊNCIAS (NÃO INCLUI FORNECIMENTO). AF_11/2017 | I168: M | J168: COEFICIENTE DE REPRESENTATIVIDADE | K168: 18.1 | L168: S | M168: SINAPI | N168: 88246 | O168: 0.2756 | P168: H | Q168: COEFICIENTE DE REPRESENTATIVIDADE | R168: 0.2756 | S168: 23.15 | T168: 6.38 | AE168: CAIXA REFERENCIAL
A169: ASSENTAMENTO DE TUBOS E PECAS | B169: ASTU | C169: FORNEC E/OU ASSENT DE TUBO DE FERRO FUNDIDO JUNTA | D169: 45 | G169: 97167 | H169: ASSENTAMENTO DE TUBO DE FERRO FUNDIDO PARA REDE DE ÁGUA, DN 600 MM, JUNTA ELÁSTICA, INSTALADO EM LOCAL COM NÍVEL BAIXO DE INTERFERÊNCIAS (NÃO INCLUI FORNECIMENTO). AF_11/2017 | I169: M | J169: COEFICIENTE DE REPRESENTATIVIDADE | K169: 18.1 | L169: S | M169: SINAPI | N169: 88316 | O169: 0.2756 | P169: H | Q169: COEFICIENTE DE REPRESENTATIVIDADE | R169: 0.2756 | S169: 15.03 | T169: 4.14 | AE169: CAIXA REFERENCIAL
A170: ASSENTAMENTO DE TUBOS E PECAS | B170: ASTU | C170: FORNEC E/OU ASSENT DE TUBO DE FERRO FUNDIDO JUNTA | D170: 45 | G170: 97168 | H170: ASSENTAMENTO DE TUBO DE FERRO FUNDIDO PARA REDE DE ÁGUA, DN 700 MM, JUNTA ELÁSTICA, INSTALADO EM LOCAL COM NÍVEL BAIXO DE INTERFERÊNCIAS (NÃO INCLUI FORNECIMENTO). AF_11/2017 | I170: M | J170: COEFICIENTE DE REPRESENTATIVIDADE | K170: 20.54 | M170: SINAPI | U170: 11.12 | V170: 54.0983608 | W170: 5.52 | X170: 26.8753104 | Y170: 3.9 | Z170: 19.0263288 | AA170: 0 | AB170: 0 | AC170: 0 | AD170: 0 | AE170: CAIXA REFERENCIAL
A171: ASSENTAMENTO DE TUBOS E PECAS | B171: ASTU | C171: FORNEC E/OU ASSENT DE TUBO DE FERRO FUNDIDO JUNTA | D171: 45 | G171: 97168 | H171: ASSENTAMENTO DE TUBO DE FERRO FUNDIDO PARA REDE DE ÁGUA, DN 700 MM, JUNTA ELÁSTICA, INSTALADO EM LOCAL COM NÍVEL BAIXO DE INTERFERÊNCIAS (NÃO INCLUI FORNECIMENTO). AF_11/2017 | I171: M | J171: COEFICIENTE DE REPRESENTATIVIDADE | K171: 20.54 | L171: S | M171: SINAPI | N171: 5631 | O171: 0.0316 | P171: CHP | Q171: COEFICIENTE DE REPRESENTATIVIDADE | R171: 0.0316 | S171: 137.46 | T171: 4.34 | AE171: CAIXA REFERENCIAL
A172: ASSENTAMENTO DE TUBOS E PECAS | B172: ASTU | C172: FORNEC E/OU ASSENT DE TUBO DE FERRO FUNDIDO JUNTA | D172: 45 | G172: 97168 | H172: ASSENTAMENTO DE TUBO DE FERRO FUNDIDO PARA REDE DE ÁGUA, DN 700 MM, JUNTA ELÁSTICA, INSTALADO EM LOCAL COM NÍVEL BAIXO DE INTERFERÊNCIAS (NÃO INCLUI FORNECIMENTO). AF_11/2017 | I172: M | J172: COEFICIENTE DE REPRESENTATIVIDADE | K172: 20.54 | L172: S | M172: SINAPI | N172: 5632 | O172: 0.0605 | P172: CHI | Q172: COEFICIENTE DE REPRESENTATIVIDADE | R172: 0.0605 | S172: 58.95 | T172: 3.56 | AE172: CAIXA REFERENCIAL
A173: ASSENTAMENTO DE TUBOS E PECAS | B173: ASTU | C173: FORNEC E/OU ASSENT DE TUBO DE FERRO FUNDIDO JUNTA | D173: 45 | G173: 97168 | H173: ASSENTAMENTO DE TUBO DE FERRO FUNDIDO PARA REDE DE ÁGUA, DN 700 MM, JUNTA ELÁSTICA, INSTALADO EM LOCAL COM NÍVEL BAIXO DE INTERFERÊNCIAS (NÃO INCLUI FORNECIMENTO). AF_11/2017 | I173: M | J173: COEFICIENTE DE REPRESENTATIVIDADE | K173: 20.54 | L173: I | M173: SINAPI | N173: 20078 | O173: 0.0284 | P173: UN | Q173: COEFICIENTE DE REPRESENTATIVIDADE | R173: 0.0284 | S173: 17.63 | T173: 0.5 | AE173: CAIXA REFERENCIAL
A174: ASSENTAMENTO DE TUBOS E PECAS | B174: ASTU | C174: FORNEC E/OU ASSENT DE TUBO DE FERRO FUNDIDO JUNTA | D174: 45 | G174: 97168 | H174: ASSENTAMENTO DE TUBO DE FERRO FUNDIDO PARA REDE DE ÁGUA, DN 700 MM, JUNTA ELÁSTICA, INSTALADO EM LOCAL COM NÍVEL BAIXO DE INTERFERÊNCIAS (NÃO INCLUI FORNECIMENTO). AF_11/2017 | I174: M | J174: COEFICIENTE DE REPRESENTATIVIDADE | K174: 20.54 | L174: S | M174: SINAPI | N174: 88246 | O174: 0.3181 | P174: H | Q174: COEFICIENTE DE REPRESENTATIVIDADE | R174: 0.3181 | S174: 23.15 | T174: 7.36 | AE174: CAIXA REFERENCIAL
A175: ASSENTAMENTO DE TUBOS E PECAS | B175: ASTU | C175: FORNEC E/OU ASSENT DE TUBO DE FERRO FUNDIDO JUNTA | D175: 45 | G175: 97168 | H175: ASSENTAMENTO DE TUBO DE FERRO FUNDIDO PARA REDE DE ÁGUA, DN 700 MM, JUNTA ELÁSTICA, INSTALADO EM LOCAL COM NÍVEL BAIXO DE INTERFERÊNCIAS (NÃO INCLUI FORNECIMENTO). AF_11/2017 | I175: M | J175: COEFICIENTE DE REPRESENTATIVIDADE | K175: 20.54 | L175: S | M175: SINAPI | N175: 88316 | O175: 0.3181 | P175: H | Q175: COEFICIENTE DE REPRESENTATIVIDADE | R175: 0.3181 | S175: 15.03 | T175: 4.78 | AE175: CAIXA REFERENCIAL
A176: ASSENTAMENTO DE TUBOS E PECAS | B176: ASTU | C176: FORNEC E/OU ASSENT DE TUBO DE FERRO FUNDIDO JUNTA | D176: 45 | G176: 97169 | H176: ASSENTAMENTO DE TUBO DE FERRO FUNDIDO PARA REDE DE ÁGUA, DN 800 MM, JUNTA ELÁSTICA, INSTALADO EM LOCAL COM NÍVEL BAIXO DE INTERFERÊNCIAS (NÃO INCLUI FORNECIMENTO). AF_11/2017 | I176: M | J176: COEFICIENTE DE REPRESENTATIVIDADE | K176: 23.08 | M176: SINAPI | U176: 12.5 | V176: 54.0933099 | W176: 6.27 | X176: 27.2007042 | Y176: 4.31 | Z176: 18.7059859 | AA176: 0 | AB176: 0 | AC176: 0 | AD176: 0 | AE176: CAIXA REFERENCIAL
A177: ASSENTAMENTO DE TUBOS E PECAS | B177: ASTU | C177: FORNEC E/OU ASSENT DE TUBO DE FERRO FUNDIDO JUNTA | D177: 45 | G177: 97169 | H177: ASSENTAMENTO DE TUBO DE FERRO FUNDIDO PARA REDE DE ÁGUA, DN 800 MM, JUNTA ELÁSTICA, INSTALADO EM LOCAL COM NÍVEL BAIXO DE INTERFERÊNCIAS (NÃO INCLUI FORNECIMENTO). AF_11/2017 | I177: M | J177: COEFICIENTE DE REPRESENTATIVIDADE | K177: 23.08 | L177: S | M177: SINAPI | N177: 5631 | O177: 0.0351 | P177: CHP | Q177: COEFICIENTE DE REPRESENTATIVIDADE | R177: 0.0351 | S177: 137.46 | T177: 4.82 | AE177: CAIXA REFERENCIAL
A178: ASSENTAMENTO DE TUBOS E PECAS | B178: ASTU | C178: FORNEC E/OU ASSENT DE TUBO DE FERRO FUNDIDO JUNTA | D178: 45 | G178: 97169 | H178: ASSENTAMENTO DE TUBO DE FERRO FUNDIDO PARA REDE DE ÁGUA, DN 800 MM, JUNTA ELÁSTICA, INSTALADO EM LOCAL COM NÍVEL BAIXO DE INTERFERÊNCIAS (NÃO INCLUI FORNECIMENTO). AF_11/2017 | I178: M | J178: COEFICIENTE DE REPRESENTATIVIDADE | K178: 23.08 | L178: S | M178: SINAPI | N178: 5632 | O178: 0.0672 | P178: CHI | Q178: COEFICIENTE DE REPRESENTATIVIDADE | R178: 0.0672 | S178: 58.95 | T178: 3.96 | AE178: CAIXA REFERENCIAL
A179: ASSENTAMENTO DE TUBOS E PECAS | B179: ASTU | C179: FORNEC E/OU ASSENT DE TUBO DE FERRO FUNDIDO JUNTA | D179: 45 | G179: 97169 | H179: ASSENTAMENTO DE TUBO DE FERRO FUNDIDO PARA REDE DE ÁGUA, DN 800 MM, JUNTA ELÁSTICA, INSTALADO EM LOCAL COM NÍVEL BAIXO DE INTERFERÊNCIAS (NÃO INCLUI FORNECIMENTO). AF_11/2017 | I179: M | J179: COEFICIENTE DE REPRESENTATIVIDADE | K179: 23.08 | L179: I | M179: SINAPI | N179: 20078 | O179: 0.0314 | P179: UN | Q179: COEFICIENTE DE REPRESENTATIVIDADE | R179: 0.0314 | S179: 17.63 | T179: 0.55 | AE179: CAIXA REFERENCIAL
A180: ASSENTAMENTO DE TUBOS E PECAS | B180: ASTU | C180: FORNEC E/OU ASSENT DE TUBO DE FERRO FUNDIDO JUNTA | D180: 45 | G180: 97169 | H180: ASSENTAMENTO DE TUBO DE FERRO FUNDIDO PARA REDE DE ÁGUA, DN 800 MM, JUNTA ELÁSTICA, INSTALADO EM LOCAL COM NÍVEL BAIXO DE INTERFERÊNCIAS (NÃO INCLUI FORNECIMENTO). AF_11/2017 | I180: M | J180: COEFICIENTE DE REPRESENTATIVIDADE | K180: 23.08 | L180: S | M180: SINAPI | N180: 88246 | O180: 0.3605 | P180: H | Q180: COEFICIENTE DE REPRESENTATIVIDADE | R180: 0.3605 | S180: 23.15 | T180: 8.34 | AE180: CAIXA REFERENCIAL
A181: ASSENTAMENTO DE TUBOS E PECAS | B181: ASTU | C181: FORNEC E/OU ASSENT DE TUBO DE FERRO FUNDIDO JUNTA | D181: 45 | G181: 97169 | H181: ASSENTAMENTO DE TUBO DE FERRO FUNDIDO PARA REDE DE ÁGUA, DN 800 MM, JUNTA ELÁSTICA, INSTALADO EM LOCAL COM NÍVEL BAIXO DE INTERFERÊNCIAS (NÃO INCLUI FORNECIMENTO). AF_11/2017 | I181: M | J181: COEFICIENTE DE REPRESENTATIVIDADE | K181: 23.08 | L181: S | M181: SINAPI | N181: 88316 | O181: 0.3605 | P181: H | Q181: COEFICIENTE DE REPRESENTATIVIDADE | R181: 0.3605 | S181: 15.03 | T181: 5.41 | AE181: CAIXA REFERENCIAL
A182: ASSENTAMENTO DE TUBOS E PECAS | B182: ASTU | C182: FORNEC E/OU ASSENT DE TUBO DE FERRO FUNDIDO JUNTA | D182: 45 | G182: 97170 | H182: ASSENTAMENTO DE TUBO DE FERRO FUNDIDO PARA REDE DE ÁGUA, DN 900 MM, JUNTA ELÁSTICA, INSTALADO EM LOCAL COM NÍVEL BAIXO DE INTERFERÊNCIAS (NÃO INCLUI FORNECIMENTO). AF_11/2017 | I182: M | J182: COEFICIENTE DE REPRESENTATIVIDADE | K182: 25.64 | M182: SINAPI | U182: 13.92 | V182: 54.2574258 | W182: 6.98 | X182: 27.2475247 | Y182: 4.74 | Z182: 18.4950495 | AA182: 0 | AB182: 0 | AC182: 0 | AD182: 0 | AE182: CAIXA REFERENCIAL
A183: ASSENTAMENTO DE TUBOS E PECAS | B183: ASTU | C183: FORNEC E/OU ASSENT DE TUBO DE FERRO FUNDIDO JUNTA | D183: 45 | G183: 97170 | H183: ASSENTAMENTO DE TUBO DE FERRO FUNDIDO PARA REDE DE ÁGUA, DN 900 MM, JUNTA ELÁSTICA, INSTALADO EM LOCAL COM NÍVEL BAIXO DE INTERFERÊNCIAS (NÃO INCLUI FORNECIMENTO). AF_11/2017 | I183: M | J183: COEFICIENTE DE REPRESENTATIVIDADE | K183: 25.64 | L183: S | M183: SINAPI | N183: 5631 | O183: 0.0386 | P183: CHP | Q183: COEFICIENTE DE REPRESENTATIVIDADE | R183: 0.0386 | S183: 137.46 | T183: 5.3 | AE183: CAIXA REFERENCIAL
A184: ASSENTAMENTO DE TUBOS E PECAS | B184: ASTU | C184: FORNEC E/OU ASSENT DE TUBO DE FERRO FUNDIDO JUNTA | D184: 45 | G184: 97170 | H184: ASSENTAMENTO DE TUBO DE FERRO FUNDIDO PARA REDE DE ÁGUA, DN 900 MM, JUNTA ELÁSTICA, INSTALADO EM LOCAL COM NÍVEL BAIXO DE INTERFERÊNCIAS (NÃO INCLUI FORNECIMENTO). AF_11/2017 | I184: M | J184: COEFICIENTE DE REPRESENTATIVIDADE | K184: 25.64 | L184: S | M184: SINAPI | N184: 5632 | O184: 0.0739 | P184: CHI | Q184: COEFICIENTE DE REPRESENTATIVIDADE | R184: 0.0739 | S184: 58.95 | T184: 4.35 | AE184: CAIXA REFERENCIAL
A185: ASSENTAMENTO DE TUBOS E PECAS | B185: ASTU | C185: FORNEC E/OU ASSENT DE TUBO DE FERRO FUNDIDO JUNTA | D185: 45 | G185: 97170 | H185: ASSENTAMENTO DE TUBO DE FERRO FUNDIDO PARA REDE DE ÁGUA, DN 900 MM, JUNTA ELÁSTICA, INSTALADO EM LOCAL COM NÍVEL BAIXO DE INTERFERÊNCIAS (NÃO INCLUI FORNECIMENTO). AF_11/2017 | I185: M | J185: COEFICIENTE DE REPRESENTATIVIDADE | K185: 25.64 | L185: I | M185: SINAPI | N185: 20078 | O185: 0.0355 | P185: UN | Q185: COEFICIENTE DE REPRESENTATIVIDADE | R185: 0.0355 | S185: 17.63 | T185: 0.62 | AE185: CAIXA REFERENCIAL
A186: ASSENTAMENTO DE TUBOS E PECAS | B186: ASTU | C186: FORNEC E/OU ASSENT DE TUBO DE FERRO FUNDIDO JUNTA | D186: 45 | G186: 97170 | H186: ASSENTAMENTO DE TUBO DE FERRO FUNDIDO PARA REDE DE ÁGUA, DN 900 MM, JUNTA ELÁSTICA, INSTALADO EM LOCAL COM NÍVEL BAIXO DE INTERFERÊNCIAS (NÃO INCLUI FORNECIMENTO). AF_11/2017 | I186: M | J186: COEFICIENTE DE REPRESENTATIVIDADE | K186: 25.64 | L186: S | M186: SINAPI | N186: 88246 | O186: 0.403 | P186: H | Q186: COEFICIENTE DE REPRESENTATIVIDADE | R186: 0.403 | S186: 23.15 | T186: 9.32 | AE186: CAIXA REFERENCIAL
A187: ASSENTAMENTO DE TUBOS E PECAS | B187: ASTU | C187: FORNEC E/OU ASSENT DE TUBO DE FERRO FUNDIDO JUNTA | D187: 45 | G187: 97170 | H187: ASSENTAMENTO DE TUBO DE FERRO FUNDIDO PARA REDE DE ÁGUA, DN 900 MM, JUNTA ELÁSTICA, INSTALADO EM LOCAL COM NÍVEL BAIXO DE INTERFERÊNCIAS (NÃO INCLUI FORNECIMENTO). AF_11/2017 | I187: M | J187: COEFICIENTE DE REPRESENTATIVIDADE | K187: 25.64 | L187: S | M187: SINAPI | N187: 88316 | O187: 0.403 | P187: H | Q187: COEFICIENTE DE REPRESENTATIVIDADE | R187: 0.403 | S187: 15.03 | T187: 6.05 | AE187: CAIXA REFERENCIAL
A188: ASSENTAMENTO DE TUBOS E PECAS | B188: ASTU | C188: FORNEC E/OU ASSENT DE TUBO DE FERRO FUNDIDO JUNTA | D188: 45 | G188: 97171 | H188: ASSENTAMENTO DE TUBO DE FERRO FUNDIDO PARA REDE DE ÁGUA, DN 1000 MM, JUNTA ELÁSTICA, INSTALADO EM LOCAL COM NÍVEL BAIXO DE INTERFERÊNCIAS (NÃO INCLUI FORNECIMENTO). AF_11/2017 | I188: M | J188: COEFICIENTE DE REPRESENTATIVIDADE | K188: 28.24 | M188: SINAPI | U188: 15.34 | V188: 54.2939275 | W188: 7.74 | X188: 27.416457 | Y188: 5.16 | Z188: 18.2896155 | AA188: 0 | AB188: 0 | AC188: 0 | AD188: 0 | AE188: CAIXA REFERENCIAL
A189: ASSENTAMENTO DE TUBOS E PECAS | B189: ASTU | C189: FORNEC E/OU ASSENT DE TUBO DE FERRO FUNDIDO JUNTA | D189: 45 | G189: 97171 | H189: ASSENTAMENTO DE TUBO DE FERRO FUNDIDO PARA REDE DE ÁGUA, DN 1000 MM, JUNTA ELÁSTICA, INSTALADO EM LOCAL COM NÍVEL BAIXO DE INTERFERÊNCIAS (NÃO INCLUI FORNECIMENTO). AF_11/2017 | I189: M | J189: COEFICIENTE DE REPRESENTATIVIDADE | K189: 28.24 | L189: S | M189: SINAPI | N189: 5631 | O189: 0.0421 | P189: CHP | Q189: COEFICIENTE DE REPRESENTATIVIDADE | R189: 0.0421 | S189: 137.46 | T189: 5.78 | AE189: CAIXA REFERENCIAL
A190: ASSENTAMENTO DE TUBOS E PECAS | B190: ASTU | C190: FORNEC E/OU ASSENT DE TUBO DE FERRO FUNDIDO JUNTA | D190: 45 | G190: 97171 | H190: ASSENTAMENTO DE TUBO DE FERRO FUNDIDO PARA REDE DE ÁGUA, DN 1000 MM, JUNTA ELÁSTICA, INSTALADO EM LOCAL COM NÍVEL BAIXO DE INTERFERÊNCIAS (NÃO INCLUI FORNECIMENTO). AF_11/2017 | I190: M | J190: COEFICIENTE DE REPRESENTATIVIDADE | K190: 28.24 | L190: S | M190: SINAPI | N190: 5632 | O190: 0.0806 | P190: CHI | Q190: COEFICIENTE DE REPRESENTATIVIDADE | R190: 0.0806 | S190: 58.95 | T190: 4.75 | AE190: CAIXA REFERENCIAL
A191: ASSENTAMENTO DE TUBOS E PECAS | B191: ASTU | C191: FORNEC E/OU ASSENT DE TUBO DE FERRO FUNDIDO JUNTA | D191: 45 | G191: 97171 | H191: ASSENTAMENTO DE TUBO DE FERRO FUNDIDO PARA REDE DE ÁGUA, DN 1000 MM, JUNTA ELÁSTICA, INSTALADO EM LOCAL COM NÍVEL BAIXO DE INTERFERÊNCIAS (NÃO INCLUI FORNECIMENTO). AF_11/2017 | I191: M | J191: COEFICIENTE DE REPRESENTATIVIDADE | K191: 28.24 | L191: I | M191: SINAPI | N191: 20078 | O191: 0.0403 | P191: UN | Q191: COEFICIENTE DE REPRESENTATIVIDADE | R191: 0.0403 | S191: 17.63 | T191: 0.71 | AE191: CAIXA REFERENCIAL
A192: ASSENTAMENTO DE TUBOS E PECAS | B192: ASTU | C192: FORNEC E/OU ASSENT DE TUBO DE FERRO FUNDIDO JUNTA | D192: 45 | G192: 97171 | H192: ASSENTAMENTO DE TUBO DE FERRO FUNDIDO PARA REDE DE ÁGUA, DN 1000 MM, JUNTA ELÁSTICA, INSTALADO EM LOCAL COM NÍVEL BAIXO DE INTERFERÊNCIAS (NÃO INCLUI FORNECIMENTO). AF_11/2017 | I192: M | J192: COEFICIENTE DE REPRESENTATIVIDADE | K192: 28.24 | L192: S | M192: SINAPI | N192: 88246 | O192: 0.4455 | P192: H | Q192: COEFICIENTE DE REPRESENTATIVIDADE | R192: 0.4455 | S192: 23.15 | T192: 10.31 | AE192: CAIXA REFERENCIAL
A193: ASSENTAMENTO DE TUBOS E PECAS | B193: ASTU | C193: FORNEC E/OU ASSENT DE TUBO DE FERRO FUNDIDO JUNTA | D193: 45 | G193: 97171 | H193: ASSENTAMENTO DE TUBO DE FERRO FUNDIDO PARA REDE DE ÁGUA, DN 1000 MM, JUNTA ELÁSTICA, INSTALADO EM LOCAL COM NÍVEL BAIXO DE INTERFERÊNCIAS (NÃO INCLUI FORNECIMENTO). AF_11/2017 | I193: M | J193: COEFICIENTE DE REPRESENTATIVIDADE | K193: 28.24 | L193: S | M193: SINAPI | N193: 88316 | O193: 0.4455 | P193: H | Q193: COEFICIENTE DE REPRESENTATIVIDADE | R193: 0.4455 | S193: 15.03 | T193: 6.69 | AE193: CAIXA REFERENCIAL
A194: ASSENTAMENTO DE TUBOS E PECAS | B194: ASTU | C194: FORNEC E/OU ASSENT DE TUBO DE FERRO FUNDIDO JUNTA | D194: 45 | G194: 97172 | H194: ASSENTAMENTO DE TUBO DE FERRO FUNDIDO PARA REDE DE ÁGUA, DN 1200 MM, JUNTA ELÁSTICA, INSTALADO EM LOCAL COM NÍVEL BAIXO DE INTERFERÊNCIAS (NÃO INCLUI FORNECIMENTO). AF_11/2017 | I194: M | J194: COEFICIENTE DE REPRESENTATIVIDADE | K194: 33.65 | M194: SINAPI | U194: 18.13 | V194: 53.8577005 | W194: 9.48 | X194: 28.1897328 | Y194: 6.04 | Z194: 17.9525667 | AA194: 0 | AB194: 0 | AC194: 0 | AD194: 0 | AE194: CAIXA REFERENCIAL
A195: ASSENTAMENTO DE TUBOS E PECAS | B195: ASTU | C195: FORNEC E/OU ASSENT DE TUBO DE FERRO FUNDIDO JUNTA | D195: 45 | G195: 97172 | H195: ASSENTAMENTO DE TUBO DE FERRO FUNDIDO PARA REDE DE ÁGUA, DN 1200 MM, JUNTA ELÁSTICA, INSTALADO EM LOCAL COM NÍVEL BAIXO DE INTERFERÊNCIAS (NÃO INCLUI FORNECIMENTO). AF_11/2017 | I195: M | J195: COEFICIENTE DE REPRESENTATIVIDADE | K195: 33.65 | L195: S | M195: SINAPI | N195: 5631 | O195: 0.0491 | P195: CHP | Q195: COEFICIENTE DE REPRESENTATIVIDADE | R195: 0.0491 | S195: 137.46 | T195: 6.74 | AE195: CAIXA REFERENCIAL
A196: ASSENTAMENTO DE TUBOS E PECAS | B196: ASTU | C196: FORNEC E/OU ASSENT DE TUBO DE FERRO FUNDIDO JUNTA | D196: 45 | G196: 97172 | H196: ASSENTAMENTO DE TUBO DE FERRO FUNDIDO PARA REDE DE ÁGUA, DN 1200 MM, JUNTA ELÁSTICA, INSTALADO EM LOCAL COM NÍVEL BAIXO DE INTERFERÊNCIAS (NÃO INCLUI FORNECIMENTO). AF_11/2017 | I196: M | J196: COEFICIENTE DE REPRESENTATIVIDADE | K196: 33.65 | L196: S | M196: SINAPI | N196: 5632 | O196: 0.094 | P196: CHI | Q196: COEFICIENTE DE REPRESENTATIVIDADE | R196: 0.094 | S196: 58.95 | T196: 5.54 | AE196: CAIXA REFERENCIAL
A197: ASSENTAMENTO DE TUBOS E PECAS | B197: ASTU | C197: FORNEC E/OU ASSENT DE TUBO DE FERRO FUNDIDO JUNTA | D197: 45 | G197: 97172 | H197: ASSENTAMENTO DE TUBO DE FERRO FUNDIDO PARA REDE DE ÁGUA, DN 1200 MM, JUNTA ELÁSTICA, INSTALADO EM LOCAL COM NÍVEL BAIXO DE INTERFERÊNCIAS (NÃO INCLUI FORNECIMENTO). AF_11/2017 | I197: M | J197: COEFICIENTE DE REPRESENTATIVIDADE | K197: 33.65 | L197: I | M197: SINAPI | N197: 20078 | O197: 0.0646 | P197: UN | Q197: COEFICIENTE DE REPRESENTATIVIDADE | R197: 0.0646 | S197: 17.63 | T197: 1.13 | AE197: CAIXA REFERENCIAL
A198: ASSENTAMENTO DE TUBOS E PECAS | B198: ASTU | C198: FORNEC E/OU ASSENT DE TUBO DE FERRO FUNDIDO JUNTA | D198: 45 | G198: 97172 | H198: ASSENTAMENTO DE TUBO DE FERRO FUNDIDO PARA REDE DE ÁGUA, DN 1200 MM, JUNTA ELÁSTICA, INSTALADO EM LOCAL COM NÍVEL BAIXO DE INTERFERÊNCIAS (NÃO INCLUI FORNECIMENTO). AF_11/2017 | I198: M | J198: COEFICIENTE DE REPRESENTATIVIDADE | K198: 33.65 | L198: S | M198: SINAPI | N198: 88246 | O198: 0.5304 | P198: H | Q198: COEFICIENTE DE REPRESENTATIVIDADE | R198: 0.5304 | S198: 23.15 | T198: 12.27 | AE198: CAIXA REFERENCIAL
A199: ASSENTAMENTO DE TUBOS E PECAS | B199: ASTU | C199: FORNEC E/OU ASSENT DE TUBO DE FERRO FUNDIDO JUNTA | D199: 45 | G199: 97172 | H199: ASSENTAMENTO DE TUBO DE FERRO FUNDIDO PARA REDE DE ÁGUA, DN 1200 MM, JUNTA ELÁSTICA, INSTALADO EM LOCAL COM NÍVEL BAIXO DE INTERFERÊNCIAS (NÃO INCLUI FORNECIMENTO). AF_11/2017 | I199: M | J199: COEFICIENTE DE REPRESENTATIVIDADE | K199: 33.65 | L199: S | M199: SINAPI | N199: 88316 | O199: 0.5304 | P199: H | Q199: COEFICIENTE DE REPRESENTATIVIDADE | R199: 0.5304 | S199: 15.03 | T199: 7.97 | AE199: CAIXA REFERENCIAL
A200: ASSENTAMENTO DE TUBOS E PECAS | B200: ASTU | C200: FORNEC E/OU ASSENT DE TUBO DE ACO COM JUNTA SOLDAD | D200: 46 | G200: 97173 | H200: ASSENTAMENTO DE TUBO DE AÇO CARBONO PARA REDE DE ÁGUA, DN 600 MM (24’’), JUNTA SOLDADA, INSTALADO EM LOCAL COM NÍVEL ALTO DE INTERFERÊNCIAS (NÃO INCLUI FORNECIMENTO). AF_11/2017 | I200: M | J200: COEFICIENTE DE REPRESENTATIVIDADE | K200: 32.3 | M200: SINAPI | U200: 19.13 | V200: 59.189444 | W200: 8.7 | X200: 26.9557021 | Y200: 4.47 | Z200: 13.8548539 | AA200: 0 | AB200: 0 | AC200: 0 | AD200: 0 | AE200: CAIXA REFERENCIAL
... 2050 more rows

Sheet MEMO
B2: MEMÓRIA DE CÁLCULO
B3: OBRA: | C3: TROCA DE COBERTURA E REFORMA ELETRICA EMEF PEDRO NOLASCO
B4: LOCAL: | C4: JOÃO NEIVA/ES
B5: CÓDIGO | C5: DESCRIÇÃO SERVIÇO | D5: UNID | I5: QUANT.
B6: 1.0 | C6: =VLOOKUP(B6,GLOBAL!B:J,2,FALSE) -> ADMINISTRAÇÃO LOCAL
B7: 1.1 | C7: =VLOOKUP(B7,GLOBAL!B:J,2,FALSE) -> EQUIPE DE OBRA, INCLUINDO ENGENHEIRO JUNIOR, TECNICO DE SEGUNDO GRAU. | D7: UNID | E7: C (m) | F7: L (m) | G7: H (m) | H7: Qnt | I7: =SUM(I8:I9) -> 1.00
C8: ADMINISTRAÇÃO LOCAL | H8: 1.00 | I8: 1.00
B10: 2.0 | C10: =VLOOKUP(B10,GLOBAL!B:J,2,FALSE) -> SERVIÇOS PRELIMINARES
B11: 2.1 | C11: =VLOOKUP(B11,GLOBAL!B:J,2,FALSE) -> REMOÇÃO DE TELHA ONDULADA DE FIBROCIMENTO, INCLUSIVE CUMEEIRA | D11: =VLOOKUP(B11,GLOBAL!B:J,3,FALSE) -> M2 | E11: C (m) | F11: L (m) | G11: H (m) | H11: Qnt | I11: =SUM(I12:I13) -> 856.00
C12: Área de projeção da cobertura | H12: 856.00 | I12: =H12 -> 856.00
B15: 2.2 | C15: =VLOOKUP(B15,GLOBAL!B:J,2,FALSE) -> RETIRADA DE ESTRUTURA EM MADEIRA DO TELHADO | D15: =VLOOKUP(B15,GLOBAL!B:J,3,FALSE) -> M2 | E15: C (m) | F15: L (m) | G15: H (m) | H15: Qnt | I15: =SUM(I16:I17) -> 856.00
C16: Área de projeção da cobertura | H16: 856.00 | I16: =H16 -> 856.00
B19: 2.3 | C19: =VLOOKUP(B19,GLOBAL!B:J,2,FALSE) -> DEMOLIÇÃO DE FORRO DE MADEIRA, SEM REAPROVEITAMENTO | D19: =VLOOKUP(B19,GLOBAL!B:J,3,FALSE) -> M2 | E19: C (m) | F19: L (m) | G19: H (m) | H19: Qnt | I19: =SUM(I20:I21) -> 278.00
C20: Área do patio | H20: 278.00 | I20: =H20 -> 278.00
B23: 2.4 | C23: =VLOOKUP(B23,GLOBAL!B:J,2,FALSE) -> DEMOLIÇÃO MANUAL DE CONCRETO SIMPLES (EMOP 05.001.001) | D23: =VLOOKUP(B23,GLOBAL!B:J,3,FALSE) -> M3 | E23: C (m) | F23: L (m) | G23: H (m) | H23: Qnt | I23: =SUM(I24:I25) -> 4.00
C24: Pontas de viga e laje e calha | H24: 4.00 | I24: =H24 -> 4.00
B27: 2.5 | C27: =VLOOKUP(B27,GLOBAL!B:J,2,FALSE) -> DEMOLIÇÃO DE ALVENARIA | D27: =VLOOKUP(B27,GLOBAL!B:J,3,FALSE) -> M3 | E27: C (m) | F27: L (m) | G27: H (m) | H27: Qnt | I27: =SUM(I28:I35) -> 17.56
C28: Beiral da cobertura em torno da obra
C29: Laterais primeira cobertura (area de trapezio) | E29: 8.15 | F29: 0.15 | G29: 1.00 | H29: 4.00 | I29: =((((G29+0.4)*E29)/2)*F29)*H29 -> 3.42
C30: Beiral interno primeiro telhado | E30: 31.80 | F30: 0.15 | G30: 0.40 | H30: 1.00 | I30: =E30*G30*F30 -> 1.91
C31: Laterais segunda cobertura (area de trapezio) | E31: 8.30 | F31: 0.15 | G31: 1.20 | H31: 2.00 | I31: =((((G31+0.4)*E31)/2)*F31)*H31 -> 1.99
C32: Divisão entre as duas coberturas | E32: 37.00 | F32: 0.15 | G32: 1.20 | H32: 1.00 | I32: =E32*F32*G32 -> 6.66
C33: Beiral frente | E33: 22.60 | F33: 0.15 | G33: 0.40 | H33: 1.00 | I33: =E33*F33*G33 -> 1.36
C34: Beiral fundos | E34: 37.00 | F34: 0.15 | G34: 0.40 | H34: 1.00 | I34: =E34*F34*G34 -> 2.22
B37: 2.6 | C37: =VLOOKUP(B37,GLOBAL!B:J,2,FALSE) -> RETIRADA DE PONTOS ELÉTRICOS (LUMINÁRIAS, INTERRUPTORES E TOMADAS) | D37: =VLOOKUP(B37,GLOBAL!B:J,3,FALSE) -> UND | E37: C (m) | F37: L (m) | G37: H (m) | H37: Qnt | I37: =SUM(I38:I50) -> 126.00
C38: Sala 5 | H38: 14.00 | I38: =H38 -> 14.00
C39: Sala 4 | H39: 8.00 | I39: =H39 -> 8.00
C40: Sala 3 | H40: 9.00 | I40: 9.00
C41: Sala 2 | H41: 10.00 | I41: 10.00
C42: Sala 1 | H42: 9.00 | I42: 9.00
C43: Biblioteca/ sala professor | H43: 18.00 | I43: 18.00
C44: Direção/secretaria | H44: 15.00 | I44: 15.00
C45: Banheiro | H45: 3.00 | I45: 3.00
C46: Cubículo | H46: 2.00 | I46: 2.00
C47: Banheiro | H47: 5.00 | I47: 5.00
C48: Cozinha | H48: 4.00 | I48: 4.00
C49: Patio | H49: 29.00 | I49: 29.00
B52: 2.7 | C52: =VLOOKUP(B52,GLOBAL!B:J,2,FALSE) -> ÍNDICE DE PREÇO PARA REMOÇÃO DE ENTULHO DECORRENTE DA EXECUÇÃO DE OBRAS (CLASSE A CONAMA - NBR 10.004 - CLASSE II-B), INCLUINDO ALUGUEL DA CAÇAMBA, CARGA, TRANSPORTE E DESCARGA EM ÁREA LICENCIADA | D52: =VLOOKUP(B52,GLOBAL!B:J,3,FALSE) -> M3 | E52: C (m) | F52: L (m) | G52: EMPOLAMENTO | H52: Qnt | I52: =SUM(I53:I60) -> 23.48
C53: Laterais primeira cobertura (area de trapezio) | G53: 1.30 | H53: 3.42 | I53: =G53*H53 -> 4.45
C54: Beiral interno primeiro telhado | G54: 1.30 | H54: 1.91 | I54: =G54*H54 -> 2.48
C55: Laterais segunda cobertura (area de trapezio) | G55: 1.30 | H55: 1.99 | I55: 2.59
C56: Divisão entre as duas coberturas | G56: 1.30 | H56: 6.66 | I56: 8.66
C57: Pontas de viga e laje | G57: 1.30 | H57: 0.50 | I57: 0.65
C58: Beiral frente | G58: 1.30 | H58: 1.36 | I58: 1.76
C59: Beiral fundos | G59: 1.30 | H59: 2.22 | I59: 2.89
B62: 2.8 | C62: =VLOOKUP(B62,GLOBAL!B:J,2,FALSE) -> LOCAÇÃO DE ANDAIME METÁLICO PARA TRABALHO EM FACHADA DE EDIFÍCO (ALUGUEL DE 1 M² POR 1 MÊS) INCLUSIVE FRETE, MONTAGEM E DESMONTAGEM | D62: =VLOOKUP(B62,GLOBAL!B:J,3,FALSE) -> M2 | E62: C (m) | F62: L (m) | G62: MÊS | H62: Qnt | I62: =SUM(I63:I64) -> 420.00
C63: Andaime para faxada | G63: 3.00 | H63: 140.00 | I63: =G63*H63 -> 420.00
B66: 2.9 | C66: =VLOOKUP(B66,GLOBAL!B:J,2,FALSE) -> ALUGUEL MENSAL CONTAINER PARA ALMOXARIFADO, INCL. PORTA, 2 JANELAS, 1 PT ILUMINAÇÃO, ISOLAMENTO TÉRMICO (TETO), PISO EM COMP. NAVAL PINTADO, CERT. NR18, INCL. LAUDO DESCONTAMINAÇÃO. | D66: =VLOOKUP(B66,GLOBAL!B:J,3,FALSE) -> MS | E66: C (m) | F66: L (m) | G66: MÊS | H66: Qnt | I66: =SUM(I67:I68) -> 3.00
C67: Mês | H67: 3.00 | I67: =H67 -> 3.00
B70: 2.10 | C70: =VLOOKUP(B70,GLOBAL!B:J,2,FALSE) -> ABERTURA E FECHAMENTO DE RASGOS EM ALVENARIA, PARA PASSAGEM DE ELETRODUTOS DIÂM. 1/2" A 1" | D70: =VLOOKUP(B70,GLOBAL!B:J,3,FALSE) -> M | E70: C (m) | F70: h (m) | G70: H (m) | H70: Qnt | I70: =SUM(I71:I72) -> 120.00
C71: Para passagem de eletroduto | H71: 120.00 | I71: =H71 -> 120.00
B73: 2.10 | C73: PLACA DE OBRA NAS DIMENSÕES DE 2.0X4.0 M, PADRÃO IOPES | D73: M2 | E73: C (m) | F73: h (m) | G73: H (m) | H73: Qnt | I73: =H74 -> 8.00
E74: 4.00 | F74: 2.00 | H74: =E74*F74 -> 8.00
B76: 3.0 | C76: =VLOOKUP(B76,GLOBAL!B:J,2,FALSE) -> PAREDES E PAINÉIS DA COBERTURA
B77: 3.1.1 | C77: =VLOOKUP(B77,GLOBAL!B:J,2,FALSE) -> ALVENARIA DE BLOCOS CERÂMICOS 10 FUROS 10X20X20CM, ASSENTADOS C/ARGAMASSA DE CIMENTO, CAL HIDRATADA CH1 E AREIA TRAÇO 1:0,5:8, JUNTAS 12MM E ESP. DAS PAREDES S/REVESTIMENTO, 10CM (BLOCO COMPRADO NA PRAÇA DE VITÓRIA, POSTO OBRA) | D77: =VLOOKUP(B77,GLOBAL!B:J,3,FALSE) -> M2 | E77: C (m) | F77: h (m) | G77: H (m) | H77: Qnt | I77: =SUM(I78:I84) -> 111.66
C78: Laterais primeira cobertura (area de trapezio) | E78: 16.60 | F78: 0.20 | G78: 1.82 | H78: 2.00 | I78: =(((F78+G78)*E78)/2)*H78 -> 33.53
C79: Beiral interno primeiro telhado | E79: 31.80 | G79: 0.20 | H79: 1.00 | I79: =E79*G79 -> 6.36
C80: Laterais segunda cobertura (area de trapezio) | E80: 10.14 | F80: 0.20 | G80: 1.25 | H80: 2.00 | I80: =(((F80+G80)*E80)/2)*H80 -> 14.70
C81: Divisão entre as duas coberturas | E81: 37.00 | G81: 1.22 | H81: 1.00 | I81: =E81*G81 -> 45.14
C82: Beiral frente | E82: 22.60 | G82: 0.20 | H82: 1.00 | I82: =E82*G82 -> 4.52
C83: Beiral fundos | E83: 37.00 | G83: 0.20 | H83: 1.00 | I83: =E83*G83 -> 7.40
B86: 3.2.1 | C86: =VLOOKUP(B86,GLOBAL!B:J,2,FALSE) -> FORNECIMENTO E APLICAÇÃO DE CONCRETO USINADO FCK=30 MPA - CONSIDERANDO BOMBEAMENTO (5% DE PERDAS JÁ INCLUÍDO NO CUSTO) (6% DE TAXA P/ CONCR. BOMBEAVEL) | D86: =VLOOKUP(B86,GLOBAL!B:J,3,FALSE) -> M3 | E86: C (m) | F86: L (m) | G86: H (m) | H86: Qnt | I86: =SUM(I87:I93) -> 5.09
C87: Laterais primeira cobertura (area de trapezio) | E87: 16.60 | F87: 0.14 | G87: 0.20 | H87: 2.00 | I87: =(E87*F87*G87)*H87 -> 0.93
C88: Beiral interno primeiro telhado | E88: 31.80 | F88: 0.14 | G88: 0.20 | H88: 1.00 | I88: =(E88*F88*G88)*H88 -> 0.89
C89: Laterais segunda cobertura (area de trapezio) | E89: 10.14 | F89: 0.14 | G89: 0.20 | H89: 2.00 | I89: 0.57
C90: Divisão entre as duas coberturas | E90: 37.00 | F90: 0.14 | G90: 0.20 | H90: 1.00 | I90: 1.04
C91: Beiral frente | E91: 22.60 | F91: 0.14 | G91: 0.20 | H91: 1.00 | I91: 0.63
C92: Beiral fundos | E92: 37.00 | F92: 0.14 | G92: 0.20 | H92: 1.00 | I92: 1.04
B95: 3.2.2 | C95: =VLOOKUP(B95,GLOBAL!B:J,2,FALSE) -> FORNECIMENTO, DOBRAGEM E COLOCAÇÃO EM FÔRMA, DE ARMADURA CA-50 A MÉDIA, DIÂMETRO DE 6.3 A 10.0 MM | D95: =VLOOKUP(B95,GLOBAL!B:J,3,FALSE) -> KG | E95: C (m) | F95: gk/m | G95: φ | H95: Qnt | I95: =SUM(I96:I102) -> 448.88
C96: Laterais primeira cobertura (area de trapezio) | E96: =4*16.6 -> 66.40 | F96: 0.617 | G96: 10.0 | H96: 2.00 | I96: =(E96*F96)*H96 -> 81.94
C97: Beiral interno primeiro telhado | E97: =4*31.8 -> 127.20 | F97: 0.617 | G97: 10.0 | H97: 1.00 | I97: =(E97*F97)*H97 -> 78.48
C98: Laterais segunda cobertura (area de trapezio) | E98: =4*10.14 -> 40.56 | F98: 0.617 | G98: 10.0 | H98: 2.00 | I98: 50.05
C99: Divisão entre as duas coberturas | E99: =4*37 -> 148.00 | F99: 0.617 | G99: 10.0 | H99: 1.00 | I99: 91.32
C100: Beiral frente | E100: =4*22.6 -> 90.40 | F100: 0.617 | G100: 10.0 | H100: 1.00 | I100: 55.78
C101: Beiral fundos | E101: =4*37 -> 148.00 | F101: 0.617 | G101: 10.0 | H101: 1.00 | I101: 91.32
B104: 3.2.3 | C104: =VLOOKUP(B104,GLOBAL!B:J,2,FALSE) -> FORNECIMENTO, DOBRAGEM E COLOCAÇÃO EM FÔRMA, DE ARMADURA CA-60 B FINA, DIÂMETRO DE 4.0 A 7.0MM | D104: =VLOOKUP(B104,GLOBAL!B:J,3,FALSE) -> KG | E104: C (m) | F104: gk/m | G104: φ | H104: Qnt | I104: =SUM(I105:I111) -> 560.19
C105: Laterais primeira cobertura (area de trapezio) | E105: 332.00 | F105: 0.154 | G105: 5.0 | H105: 2.00 | I105: =(E105*F105)*H105 -> 102.26
C106: Beiral interno primeiro telhado | E106: 636.00 | F106: 0.154 | G106: 5.0 | H106: 1.00 | I106: =(E106*F106)*H106 -> 97.94
C107: Laterais segunda cobertura (area de trapezio) | E107: 202.80 | F107: 0.154 | G107: 5.0 | H107: 2.00 | I107: 62.46
C108: Divisão entre as duas coberturas | E108: 740.00 | F108: 0.154 | G108: 5.0 | H108: 1.00 | I108: 113.96
C109: Beiral frente | E109: 452.00 | F109: 0.154 | G109: 5.0 | H109: 1.00 | I109: 69.61
C110: Beiral fundos | E110: 740.00 | F110: 0.154 | G110: 5.0 | H110: 1.00 | I110: 113.96
B113: 3.2.4 | C113: =VLOOKUP(B113,GLOBAL!B:J,2,FALSE) -> FÔRMA DE TÁBUA DE MADEIRA DE 2.5X30.0CM, LEVANDO-SE EM CONTA UTILIZAÇÃO 3 VEZES (INCLUINDO O MATERIAL, CORTE, MONTAGEM, ESCORAMENTO E DESFORMA) | D113: =VLOOKUP(B113,GLOBAL!B:J,3,FALSE) -> M2 | E113: C (m) | F113: L (m) | G113: H (m) | H113: Qnt | I113: =SUM(I114:I120) -> 72.75
C114: Laterais primeira cobertura (area de trapezio) | E114: 16.60 | F114: 0.14 | G114: 0.20 | H114: 2.00 | I114: =((G114*2)*E114)*H114 -> 13.28
C115: Beiral interno primeiro telhado | E115: 31.80 | F115: 0.14 | G115: 0.20 | H115: 1.00 | I115: =((G115*2)*E115)*H115 -> 12.72
C116: Laterais segunda cobertura (area de trapezio) | E116: 10.14 | F116: 0.14 | G116: 0.20 | H116: 2.00 | I116: 8.11
C117: Divisão entre as duas coberturas | E117: 37.00 | F117: 0.14 | G117: 0.20 | H117: 1.00 | I117: 14.80
C118: Beiral frente | E118: 22.60 | F118: 0.14 | G118: 0.20 | H118: 1.00 | I118: 9.04
C119: Beiral fundos | E119: 37.00 | F119: 0.14 | G119: 0.20 | H119: 1.00 | I119: 14.80
B122: 3.3.1 | C122: =VLOOKUP(B122,GLOBAL!B:J,2,FALSE) -> IMPERMEABILIZAÇÃO NAS SEGUINTES ETAPAS: CHAPISCO TRAÇO 1:2 C/ SIKA 1 OU EQUIVALENTE, REVEST. DUPLO C/ ARGAMASSA DE CIMENTO E AREIA TRAÇO 1:3 C/ SIKA 1 OU EQUIVALENTE, EM 2X15 MM E ACAB. ARGAMASSA 1:1 | D122: =VLOOKUP(B122,GLOBAL!B:J,3,FALSE) -> M2 | E122: C (m) | F122: L (m) | G122: H (m) | H122: Qnt | I122: =SUM(I123:I129) -> 216.95
C123: Laterais primeira cobertura (area de trapezio) | E123: 16.60 | F123: 0.20 | G123: 1.82 | H123: 4.00 | I123: =(((F123+G123)*E123)/2)*H123 -> 67.06
C124: Beiral interno primeiro telhado | E124: 31.80 | G124: 0.20 | H124: 2.00 | I124: =E124*G124 -> 6.36
C125: Laterais segunda cobertura (area de trapezio) | E125: 10.14 | F125: 0.20 | G125: 1.25 | H125: 4.00 | I125: =(((F125+G125)*E125)/2)*H125 -> 29.41
C126: Divisão entre as duas coberturas | E126: 37.00 | G126: 1.22 | H126: 2.00 | I126: =(E126*G126)*H126 -> 90.28
C127: Beiral frente | E127: 22.60 | G127: 0.20 | H127: 2.00 | I127: =(E127*G127)*H127 -> 9.04
C128: Beiral fundos | E128: 37.00 | G128: 0.20 | H128: 2.00 | I128: 14.80
B131: 3.3.2 | C131: =VLOOKUP(B131,GLOBAL!B:J,2,FALSE) -> CHAPISCO DE ARGAMASSA DE CIMENTO E AREIA MÉDIA OU GROSSA LAVADA, NO TRAÇO 1:3, ESPESSURA 5 MM | D131: =VLOOKUP(B131,GLOBAL!B:J,3,FALSE) -> M2 | E131: C (m) | F131: L (m) | G131: H (m) | H131: Qnt | I131: =SUM(I132:I138) -> 216.95
C132: Laterais primeira cobertura (area de trapezio) | E132: 16.60 | F132: 0.20 | G132: 1.82 | H132: 4.00 | I132: =(((F132+G132)*E132)/2)*H132 -> 67.06
C133: Beiral interno primeiro telhado | E133: 31.80 | G133: 0.20 | H133: 2.00 | I133: =E133*G133 -> 6.36
C134: Laterais segunda cobertura (area de trapezio) | E134: 10.14 | F134: 0.20 | G134: 1.25 | H134: 4.00 | I134: =(((F134+G134)*E134)/2)*H134 -> 29.41
C135: Divisão entre as duas coberturas | E135: 37.00 | G135: 1.22 | H135: 2.00 | I135: =(E135*G135)*H135 -> 90.28
C136: Beiral frente | E136: 22.60 | G136: 0.20 | H136: 2.00 | I136: =(E136*G136)*H136 -> 9.04
C137: Beiral fundos | E137: 37.00 | G137: 0.20 | H137: 2.00 | I137: 14.80
B140: 3.3.3 | C140: =VLOOKUP(B140,GLOBAL!B:J,2,FALSE) -> REBOCO TIPO PAULISTA DE ARGAMASSA DE CIMENTO, CAL HIDRATADA CH1 E AREIA MÉDIA OU GROSSA LAVADA NO TRAÇO 1:0.5:6, ESPESSURA 25 MM | D140: =VLOOKUP(B140,GLOBAL!B:J,3,FALSE) -> M2 | E140: C (m) | F140: L (m) | G140: H (m) | H140: Qnt | I140: =SUM(I141:I147) -> 216.95
C141: Laterais primeira cobertura (area de trapezio) | E141: 16.60 | F141: 0.20 | G141: 1.82 | H141: 4.00 | I141: =(((F141+G141)*E141)/2)*H141 -> 67.06
C142: Beiral interno primeiro telhado | E142: 31.80 | G142: 0.20 | H142: 2.00 | I142: =E142*G142 -> 6.36
C143: Laterais segunda cobertura (area de trapezio) | E143: 10.14 | F143: 0.20 | G143: 1.25 | H143: 4.00 | I143: =(((F143+G143)*E143)/2)*H143 -> 29.41
C144: Divisão entre as duas coberturas | E144: 37.00 | G144: 1.22 | H144: 2.00 | I144: =(E144*G144)*H144 -> 90.28
C145: Beiral frente | E145: 22.60 | G145: 0.20 | H145: 2.00 | I145: =(E145*G145)*H145 -> 9.04
C146: Beiral fundos | E146: 37.00 | G146: 0.20 | H146: 2.00 | I146: 14.80
B149: 3.4.1 | C149: =VLOOKUP(B149,GLOBAL!B:J,2,FALSE) -> PINTURA COM TINTA ACRÍLICA SUVINIL, CORAL OU METALATEX, INCLUSIVE SELADOR ACRÍLICO, EM PAREDES EXTERNAS A TRÊS DEMÃOS | D149: =VLOOKUP(B149,GLOBAL!B:J,3,FALSE) -> M2 | E149: C (m) | F149: L (m) | G149: H (m) | H149: Qnt | I149: =SUM(I150:I156) -> 111.66
C150: Laterais primeira cobertura (area de trapezio) | E150: 16.60 | F150: 0.20 | G150: 1.82 | H150: 2.00 | I150: =(((F150+G150)*E150)/2)*H150 -> 33.53
C151: Beiral interno primeiro telhado | E151: 31.80 | G151: 0.20 | H151: 1.00 | I151: =E151*G151 -> 6.36
C152: Laterais segunda cobertura (area de trapezio) | E152: 10.14 | F152: 0.20 | G152: 1.25 | H152: 2.00 | I152: =(((F152+G152)*E152)/2)*H152 -> 14.70
C153: Divisão entre as duas coberturas | E153: 37.00 | G153: 1.22 | H153: 1.00 | I153: =(E153*G153)*H153 -> 45.14
C154: Beiral frente | E154: 22.60 | G154: 0.20 | H154: 1.00 | I154: =(E154*G154)*H154 -> 4.52
C155: Beiral fundos | E155: 37.00 | G155: 0.20 | H155: 1.00 | I155: 7.40
B157: 4.0 | C157: =VLOOKUP(B157,GLOBAL!B:J,2,FALSE) -> COBERTURA
B158: 4.1 | C158: =VLOOKUP(B158,GLOBAL!B:J,2,FALSE) -> ESTRUTURA METALICA EM TESOURAS OU TRELICAS, VAO LIVRE DE 12M, FORNECIMENTO E MONTAGEM, NAO SENDO CONSIDERADOS OS FECHAMENTOS METALICOS, AS COLUNAS, OS SERVICOS GERAIS EM ALVENARIA E CONCRETO, AS TELHAS DE COBERTURA E A PINTURA DE ACABAMENTO | D158: =VLOOKUP(B158,GLOBAL!B:J,3,FALSE) -> M2 | E158: C (m) | F158: L (m) | G158: H (m) | H158: Qnt | I158: =SUM(I159:I160) -> 1023.19
C159: Projeção da nova cobertura | E159: 38.25 | F159: 26.75 | I159: =E159*F159 -> 1,023.19
B162: 4.2 | C162: =VLOOKUP(B162,GLOBAL!B:J,2,FALSE) -> ISOLAMENTO TERMOACÚSTICO COM LÃ MINERAL NA SUBCOBERTURA, INCLUSO TRANSPORTE VERTICAL. AF_06/2016 | D162: =VLOOKUP(B162,GLOBAL!B:J,3,FALSE) -> M2 | E162: C (m) | F162: L (m) | G162: H (m) | H162: Qnt | I162: =SUM(I163:I164) -> 1023.19
C163: Projeção da nova cobertura | E163: 38.25 | F163: 26.75 | I163: =E163*F163 -> 1,023.19
B166: 4.3 | C166: =VLOOKUP(B166,GLOBAL!B:J,2,FALSE) -> TELHAMENTO COM TELHA DE AÇO/ALUMÍNIO E = 0,5 MM, COM ATÉ 2 ÁGUAS, INCLUSO IÇAMENTO. AF_06/2016 | D166: =VLOOKUP(B166,GLOBAL!B:J,3,FALSE) -> M2 | E166: C (m) | F166: L (m) | G166: H (m) | H166: Qnt | I166: =SUM(I167:I168) -> 1023.19
C167: Projeção da nova cobertura | E167: 38.25 | F167: 26.75 | H167: 1.00 | I167: =E167*F167 -> 1,023.19
B170: 4.4 | C170: =VLOOKUP(B170,GLOBAL!B:J,2,FALSE) -> CALHA EM CHAPA DE AÇO GALVANIZADO NÚMERO 24, DESENVOLVIMENTO DE 33 CM, INCLUSO TRANSPORTE VERTICAL. AF_06/2016 | D170: =VLOOKUP(B170,GLOBAL!B:J,3,FALSE) -> M | E170: C (m) | F170: L (m) | G170: H (m) | H170: Qnt | I170: =SUM(I171:I175) -> 78.39
C171: Frente | H171: 13.00 | I171: =H171 -> 13.00
H172: 13.18 | I172: =H172 -> 13.18
H173: 13.50 | I173: 13.50
C174: Fundos | H174: 38.71 | I174: =H174 -> 38.71
B177: 4.5 | C177: =VLOOKUP(B177,GLOBAL!B:J,2,FALSE) -> CUMEEIRA EM PERFIL ONDULADO DE ALUMÍNIO | D177: =VLOOKUP(B177,GLOBAL!B:J,3,FALSE) -> M | E177: C (m) | F177: L (m) | G177: H (m) | H177: Qnt | I177: =SUM(I178:I179) -> 38.25
C178: Projeção da nova cobertura | H178: 38.25 | I178: =H178 -> 38.25
B181: 4.6 | C181: =VLOOKUP(B181,GLOBAL!B:J,2,FALSE) -> TUBO PVC, SÉRIE R, ÁGUA PLUVIAL, DN 100 MM, FORNECIDO E INSTALADO EM RAMAL DE ENCAMINHAMENTO. AF_12/2014 | D181: =VLOOKUP(B181,GLOBAL!B:J,3,FALSE) -> M | E181: C (m) | F181: L (m) | G181: H (m) | H181: Qnt | I181: =SUM(I182:I183) -> 22.40
C182: Descidas das calhas | G182: 2.80 | H182: 8.00 | I182: =G182*H182 -> 22.40
B185: 4.7 | C185: =VLOOKUP(B185,GLOBAL!B:J,2,FALSE) -> FORRO PVC BRANCO L = 20 CM, FRISADO, COLOCADO | D185: =VLOOKUP(B185,GLOBAL!B:J,3,FALSE) -> M2 | E185: C (m) | F185: L (m) | G185: H (m) | H185: Qnt | I185: =SUM(I186:I187) -> 278.00
C186: Área do patio | H186: 278.00 | I186: =H186 -> 278.00
B189: 4.8 | C189: =VLOOKUP(B189,GLOBAL!B:J,2,FALSE) -> PINTURA ANTI CORROSIVA, PARA ESTRUTURA METALICA DE COBERTURA, COM TELHAS DE AÇO. | D189: =VLOOKUP(B189,GLOBAL!B:J,3,FALSE) -> UND | E189: C (m) | F189: L (m) | G189: H (m) | H189: Qnt | I189: =SUM(I190:I191) -> 1023.19
C190: Projeção da nova cobertura | E190: 38.25 | F190: 26.75 | I190: =E190*F190 -> 1,023.19
B192: 5.0 | C192: =VLOOKUP(B192,GLOBAL!B:J,2,FALSE) -> INSTALAÇÕES ELÉTRICAS
B193: 5.1.1 | C193: =VLOOKUP(B193,GLOBAL!B:J,2,FALSE) -> CAIXA DE EMBUTIR MARCA DE REFERÊNCIA TIGREFLEX, 4X2" | D193: =VLOOKUP(B193,GLOBAL!B:J,3,FALSE) -> UND | E193: C (m) | F193: L (m) | G193: H (m) | H193: Qnt | I193: =SUM(I194:I195) -> 104.00
C194: Retirado do projeto final | H194: 104.00 | I194: =H194 -> 104.00
B197: 5.1.2 | C197: =VLOOKUP(B197,GLOBAL!B:J,2,FALSE) -> CAIXA SEXTAVADA EM PVC DE 3X3X1 1/2", MARCA DE REFERÊNCIA TIGREFLEX | D197: =VLOOKUP(B197,GLOBAL!B:J,3,FALSE) -> UND | E197: C (m) | F197: L (m) | G197: H (m) | H197: Qnt | I197: =SUM(I198:I199) -> 120.00
C198: Retirado do projeto final | H198: 120.00 | I198: =H198 -> 120.00
B201: 5.1.2.1 | C201: =VLOOKUP(B201,GLOBAL!B:J,2,FALSE) -> CABO DE COBRE TERMOPLÁSTICO, COM ISOLAMENTO PARA 1000V, SEÇÃO DE 35.0 MM2 | D201: =VLOOKUP(B201,GLOBAL!B:J,3,FALSE) -> M | E201: C (m) | F201: L (m) | G201: H (m) | H201: Qnt | I201: =SUM(I202:I203) -> 170.00
C202: Retirado do projeto final | H202: 170.00 | I202: =H202 -> 170.00
B205: 5.1.2.2 | C205: =VLOOKUP(B205,GLOBAL!B:J,2,FALSE) -> CABO DE COBRE TERMOPLÁSTICO, COM ISOLAMENTO PARA 1000V, SEÇÃO DE 70,0MM2 | D205: =VLOOKUP(B205,GLOBAL!B:J,3,FALSE) -> M | E205: C (m) | F205: L (m) | G205: H (m) | H205: Qnt | I205: =SUM(I206:I207) -> 40.00
C206: Retirado do projeto final | H206: 40.00 | I206: =H206 -> 40.00
B209: 5.1.2.3 | C209: =VLOOKUP(B209,GLOBAL!B:J,2,FALSE) -> FIO OU CABO DE COBRE TERMOPLÁSTICO, COM ISOLAMENTO PARA 750V, SEÇÃO DE 16.0 MM2 | D209: =VLOOKUP(B209,GLOBAL!B:J,3,FALSE) -> M | E209: C (m) | F209: L (m) | G209: H (m) | H209: Qnt | I209: =SUM(I210:I211) -> 133.40
C210: Retirado do projeto final | H210: 133.40 | I210: =H210 -> 133.40
B213: 5.1.2.4 | C213: =VLOOKUP(B213,GLOBAL!B:J,2,FALSE) -> FIO OU CABO DE COBRE TERMOPLÁSTICO, COM ISOLAMENTO PARA 750V, SEÇÃO DE 10.0 MM2 | D213: =VLOOKUP(B213,GLOBAL!B:J,3,FALSE) -> M | E213: C (m) | F213: L (m) | G213: H (m) | H213: Qnt | I213: =SUM(I214:I215) -> 52.40
C214: Retirado do projeto final | H214: 52.40 | I214: =H214 -> 52.40
B217: 5.1.2.5 | C217: =VLOOKUP(B217,GLOBAL!B:J,2,FALSE) -> FIO DE COBRE TERMOPLÁSTICO, COM ISOLAMENTO PARA 750V, SEÇÃO DE 2.5 MM2 | D217: =VLOOKUP(B217,GLOBAL!B:J,3,FALSE) -> M | E217: C (m) | F217: L (m) | G217: H (m) | H217: Qnt | I217: =SUM(I218:I219) -> 614.00
C218: Retirado do projeto final | H218: 614.00 | I218: =H218 -> 614.00
B221: 5.1.2.6 | C221: =VLOOKUP(B221,GLOBAL!B:J,2,FALSE) -> FIO OU CABO DE COBRE TERMOPLÁSTICO, COM ISOLAMENTO PARA 750V, SEÇÃO DE 4.0 MM2 | D221: =VLOOKUP(B221,GLOBAL!B:J,3,FALSE) -> M | E221: C (m) | F221: L (m) | G221: H (m) | H221: Qnt | I221: =SUM(I222:I223) -> 1704.00
C222: Retirado do projeto final | H222: 1,704.00 | I222: =H222 -> 1,704.00
B225: 5.1.2.7 | C225: =VLOOKUP(B225,GLOBAL!B:J,2,FALSE) -> FIO OU CABO DE COBRE TERMOPLÁSTICO, COM ISOLAMENTO PARA 750V, SEÇÃO DE 6.0 MM2 | D225: =VLOOKUP(B225,GLOBAL!B:J,3,FALSE) -> M | E225: C (m) | F225: L (m) | G225: H (m) | H225: Qnt | I225: =SUM(I226:I227) -> 1138.00
C226: Retirado do projeto final | H226: 1,138.00 | I226: =H226 -> 1,138.00
B229: 5.1.3.1 | C229: =VLOOKUP(B229,GLOBAL!B:J,2,FALSE) -> INTERRUPTOR DE UMA TECLA PARALELO 10A/250V, COM PLACA 4X2" | D229: =VLOOKUP(B229,GLOBAL!B:J,3,FALSE) -> UND | E229: C (m) | F229: L (m) | G229: H (m) | H229: Qnt | I229: =SUM(I230:I231) -> 3.00
C230: Retirado do projeto final | H230: 3.00 | I230: =H230 -> 3.00
B233: 5.1.3.2 | C233: =VLOOKUP(B233,GLOBAL!B:J,2,FALSE) -> INTERRUPTOR DE DUAS TECLAS SIMPLES 10A/250V, COM PLACA 4X2" | D233: =VLOOKUP(B233,GLOBAL!B:J,3,FALSE) -> UND | E233: C (m) | F233: L (m) | G233: H (m) | H233: Qnt | I233: =SUM(I234:I235) -> 2.00
C234: Retirado do projeto final | H234: 2.00 | I234: =H234 -> 2.00
B237: 5.1.3.3 | C237: =VLOOKUP(B237,GLOBAL!B:J,2,FALSE) -> INTERRUPTOR DE TRÊS TECLAS SIMPLES 10A/250V, C/ PLACA 4X2" | D237: =VLOOKUP(B237,GLOBAL!B:J,3,FALSE) -> UND | E237: C (m) | F237: L (m) | G237: H (m) | H237: Qnt | I237: =SUM(I238:I239) -> 1.00
C238: Retirado do projeto final | H238: 1.00 | I238: =H238 -> 1.00
B241: 5.1.3.4 | C241: =VLOOKUP(B241,GLOBAL!B:J,2,FALSE) -> INTERRUPTOR DE UMA TECLA SIMPLES 10A/250V E UMA TOMADA 3 POLOS 10A/250V, PADRÃO BRASILEIRO, NBR 14136, LINHA BRANCA, COM PLACA 4X2" | D241: =VLOOKUP(B241,GLOBAL!B:J,3,FALSE) -> UND | E241: C (m) | F241: L (m) | G241: H (m) | H241: Qnt | I241: =SUM(I242:I243) -> 20.00
C242: Retirado do projeto final | H242: 20.00 | I242: =H242 -> 20.00
B245: 5.1.3.5 | C245: =VLOOKUP(B245,GLOBAL!B:J,2,FALSE) -> TOMADA PADRÃO BRASILEIRO LINHA BRANCA, NBR 14136 2 POLOS + TERRA 10A/250V, COM PLACA 4X2" | D245: =VLOOKUP(B245,GLOBAL!B:J,3,FALSE) -> UND | E245: C (m) | F245: L (m) | G245: H (m) | H245: Qnt | I245: =SUM(I246:I247) -> 82.00
C246: Retirado do projeto final | H246: 82.00 | I246: =H246 -> 82.00
B249: 5.1.4.1 | C249: =VLOOKUP(B249,GLOBAL!B:J,2,FALSE) -> MINI-DISJUNTOR MONOPOLAR 20 A, CURVA C - 5KA 220/127VCA (NBR IEC 60947-2), REF. SIEMENS, GE, SCHNEIDER OU EQUIVALENTE | D249: =VLOOKUP(B249,GLOBAL!B:J,3,FALSE) -> UND | E249: C (m) | F249: L (m) | G249: H (m) | H249: Qnt | I249: =SUM(I250:I251) -> 5.00
C250: Retirado do projeto final | H250: 5.00 | I250: =H250 -> 5.00
B253: 5.1.4.2 | C253: =VLOOKUP(B253,GLOBAL!B:J,2,FALSE) -> MINI-DISJUNTOR MONOPOLAR 25 A, CURVA C - 5KA 220/127VCA (NBR IEC 60947-2), REF. SIEMENS, GE, SCHNEIDER OU EQUIVALENTE | D253: =VLOOKUP(B253,GLOBAL!B:J,3,FALSE) -> UND | E253: C (m) | F253: L (m) | G253: H (m) | H253: Qnt | I253: =SUM(I254:I255) -> 19.00
C254: Retirado do projeto final | H254: 19.00 | I254: =H254 -> 19.00
B257: 5.1.4.3 | C257: =VLOOKUP(B257,GLOBAL!B:J,2,FALSE) -> MINI-DISJUNTOR MONOPOLAR 32 A, CURVA C - 5KA 220/127VCA (NBR IEC 60947-2), REF. SIEMENS, GE, SCHNEIDER OU EQUIVALENTE | D257: =VLOOKUP(B257,GLOBAL!B:J,3,FALSE) -> UND | E257: C (m) | F257: L (m) | G257: H (m) | H257: Qnt | I257: =SUM(I258:I259) -> 4.00
C258: Retirado do projeto final | H258: 4.00 | I258: =H258 -> 4.00
B261: 5.1.4.4 | C261: =VLOOKUP(B261,GLOBAL!B:J,2,FALSE) -> MINI-DISJUNTOR TRIPOLAR 100 A, CURVA C - 15KA 220/127V (NBR IEC 60947-2), REF. SIEMENS, GE, SCHNEIDER OU EQUIVALENTE | D261: =VLOOKUP(B261,GLOBAL!B:J,3,FALSE) -> UND | E261: C (m) | F261: L (m) | G261: H (m) | H261: Qnt | I261: =SUM(I262:I263) -> 1.00
C262: Retirado do projeto final | H262: 1.00 | I262: =H262 -> 1.00
B265: 5.1.4.5 | C265: =VLOOKUP(B265,GLOBAL!B:J,2,FALSE) -> DISJUNTOR CAIXA MOLDADA 150A 45KA JM2-250L-150A - JNG | D265: =VLOOKUP(B265,GLOBAL!B:J,3,FALSE) -> UND | E265: C (m) | F265: L (m) | G265: H (m) | H265: Qnt | I265: =SUM(I266:I267) -> 1.00
C266: Retirado do projeto final | H266: 1.00 | I266: =H266 -> 1.00
B269: 5.1.4.6 | C269: =VLOOKUP(B269,GLOBAL!B:J,2,FALSE) -> MINI-DISJUNTOR TRIPOLAR 63 A, CURVA C - 5KA 220/127VCA (NBR IEC 60947-2), REF. SIEMENS, GE, SCHNEIDER OU EQUIVALENTE | D269: =VLOOKUP(B269,GLOBAL!B:J,3,FALSE) -> UND | E269: C (m) | F269: L (m) | G269: H (m) | H269: Qnt | I269: =SUM(I270:I271) -> 1.00
C270: Retirado do projeto final | H270: 1.00 | I270: =H270 -> 1.00
B273: 5.1.4.7 | C273: =VLOOKUP(B273,GLOBAL!B:J,2,FALSE) -> DISPOSITIVO DE PROTEÇÃO CONTRA SURTO (DPS) BIPOLAR, TENSÃO NOMINAL MÁXIMA 275VCA, CORENTE DE SURTO MÁXIMA 40KA. | D273: =VLOOKUP(B273,GLOBAL!B:J,3,FALSE) -> UND | E273: C (m) | F273: L (m) | G273: H (m) | H273: Qnt | I273: =SUM(I274:I275) -> 16.00
C274: Retirado do projeto final | H274: 16.00 | I274: =H274 -> 16.00
B277: 5.1.4.8 | C277: =VLOOKUP(B277,GLOBAL!B:J,2,FALSE) -> INTERRUPTOR DIFERENCIAL DR 16A A 25A, 30MA, 2 MÓDULOS | D277: =VLOOKUP(B277,GLOBAL!B:J,3,FALSE) -> UND | E277: C (m) | F277: L (m) | G277: H (m) | H277: Qnt | I277: =SUM(I278:I279) -> 24.00
C278: Retirado do projeto final | H278: 24.00 | I278: =H278 -> 24.00
B281: 5.1.5.1 | C281: =VLOOKUP(B281,GLOBAL!B:J,2,FALSE) -> ELETRODUTO FLEXÍVEL CORRUGADO 1", MARCA DE REFERÊNCIA TIGRE | D281: =VLOOKUP(B281,GLOBAL!B:J,3,FALSE) -> M | E281: C (m) | F281: L (m) | G281: H (m) | H281: Qnt | I281: =SUM(I282:I283) -> 156.00
C282: Retirado do projeto final | H282: 156.00 | I282: =H282 -> 156.00
B285: 5.1.5.2 | C285: =VLOOKUP(B285,GLOBAL!B:J,2,FALSE) -> ELETRODUTO FLEXÍVEL CORRUGADO 3/4" , MARCA DE REFERÊNCIA TIGRE | D285: =VLOOKUP(B285,GLOBAL!B:J,3,FALSE) -> M | E285: C (m) | F285: L (m) | G285: H (m) | H285: Qnt | I285: =SUM(I286:I287) -> 290.00
C286: Retirado do projeto final | H286: 290.00 | I286: =H286 -> 290.00
B289: 5.1.5.3 | C289: =VLOOKUP(B289,GLOBAL!B:J,2,FALSE) -> ELETRODUTO PEAD, COR PRETA, DIAM. 1.1/2", MARCA REF. KANAFLEX OU EQUIVALENTE | D289: =VLOOKUP(B289,GLOBAL!B:J,3,FALSE) -> M | E289: C (m) | F289: L (m) | G289: H (m) | H289: Qnt | I289: =SUM(I290:I291) -> 145.00
C290: Retirado do projeto final | H290: 145.00 | I290: =H290 -> 145.00
B293: 5.1.5.4 | C293: =VLOOKUP(B293,GLOBAL!B:J,2,FALSE) -> ELETRODUTO PEAD, COR PRETA, DIAM. 2", MARCA REF. KANAFLEX OU EQUIVALENTE | D293: =VLOOKUP(B293,GLOBAL!B:J,3,FALSE) -> M | E293: C (m) | F293: L (m) | G293: H (m) | H293: Qnt | I293: =SUM(I294:I295) -> 14.00
C294: Retirado do projeto final | H294: 14.00 | I294: =H294 -> 14.00
B297: 5.1.5.5 | C297: =VLOOKUP(B297,GLOBAL!B:J,2,FALSE) -> ELETRODUTO PEAD, COR PRETA, DIAM. 3", MARCA REF. KANAFLEX OU EQUIVALENTE | D297: =VLOOKUP(B297,GLOBAL!B:J,3,FALSE) -> M | E297: C (m) | F297: L (m) | G297: H (m) | H297: Qnt | I297: =SUM(I298:I299) -> 6.00
C298: Retirado do projeto final | H298: 6.00 | I298: =H298 -> 6.00
B301: 5.1.5.6 | C301: =VLOOKUP(B301,GLOBAL!B:J,2,FALSE) -> ELETRODUTO PEAD, COR PRETA, DIAM. 4", MARCA REF. KANAFLEX OU EQUIVALENTE | D301: =VLOOKUP(B301,GLOBAL!B:J,3,FALSE) -> M | E301: C (m) | F301: L (m) | G301: H (m) | H301: Qnt | I301: =SUM(I302:I303) -> 27.00
C302: Retirado do projeto final | H302: 27.00 | I302: =H302 -> 27.00
B305: 5.1.6.1 | C305: =VLOOKUP(B305,GLOBAL!B:J,2,FALSE) -> ARANDELA COM LÂMPADA INCANDESCENTE DE 100W | D305: =VLOOKUP(B305,GLOBAL!B:J,3,FALSE) -> UND | E305: C (m) | F305: L (m) | G305: H (m) | H305: Qnt | I305: =SUM(I306:I307) -> 20.00
C306: Retirado do projeto final | H306: 20.00 | I306: =H306 -> 20.00
B309: 5.1.6.2 | C309: =VLOOKUP(B309,GLOBAL!B:J,2,FALSE) -> LUMINARIA EMBUTIR COMPL.,CORPO CH. AÇO PINTADA BRANCA,REFLETOR, ALETAS PARABÓLICAS ALUM.ALTA PUREZA E REFLETÂNCIA,2 LÂMP. FLUOR.TUBULARES DE 32W/127V, C/ REATOR DUPLO 127V, PAR.RÁP.AFP, SOQ. ANTIVIB.,REF. CAA01-E232 LUMICENTER OU | D309: =VLOOKUP(B309,GLOBAL!B:J,3,FALSE) -> UND | E309: C (m) | F309: L (m) | G309: H (m) | H309: Qnt | I309: =SUM(I310:I311) -> 98.00
C310: Retirado do projeto final | H310: 98.00 | I310: =H310 -> 98.00
B313: 5.1.7.1 | C313: =VLOOKUP(B313,GLOBAL!B:J,2,FALSE) -> PADRÃO DE ENTRADA DE ENERGIA ELÉTRICA, TRIFÁSICO, ENTRADA AÉREA, A 4 FIOS, CARGA INSTALADA DE 41001 ATÉ 47000W, INSTALADA EM MURO | D313: =VLOOKUP(B313,GLOBAL!B:J,3,FALSE) -> UND | E313: C (m) | F313: L (m) | G313: H (m) | H313: Qnt | I313: =SUM(I314:I315) -> 1.00
C314: Retirado do projeto final | H314: 1.00 | I314: =H314 -> 1.00
... 20 more rows

Sheet COMP
R1: SINAPI | S1: SEINFRA | T1: DESCONTO MA | U1: FATOR DE CORREÇÃO
O2: DESCONTO (%) | P2: 0.00% | Q2: LS | R2: 117.73% | S2: 116.33% | T2: =IF(P2>0,(U2+P2),0) -> 0.0% | U2: 5.56%
B4: CÓDIGO | D4: COMPOSIÇÃO DE REFERÊNCIA | G4: DESCRIÇÃO SERVIÇO | H4: UNIDADE | M4: CUSTO UNIT. DO SERVIÇO (R$)
B5: 1.1 | D5: =VLOOKUP(B5,GLOBAL!B:J,8,FALSE) -> COMP | E5: =VLOOKUP(B5,GLOBAL!B:J,9,FALSE) -> 1 | G5: EQUIPE DE OBRA, INCLUINDO ENGENHEIRO JUNIOR, TECNICO DE SEGUNDO GRAU. | H5: UND | M5: =M17 -> 23,257.44 | O5: =IF(VLOOKUP(B5,'PL LICITADA'!D:J,5,FALSE)=M5,"OK",VLOOKUP(B5,'PL LICITADA'!D:J,5,FALSE)) -> 
C6: TIPO | D6: FONTE | E6: REF. | G6: DESCRIÇÃO DO ITEM | H6: TIPO | I6: UNIDADE | J6: COEF. | K6: V. UNIT. | L6: FATOR AC | M6: V. TOTAL
C7: C | D7: LABOR | E7: 312005 | F7: 0.25 | G7: Engenheiro Junior (Leis Sociais = 51,04%) | H7: MA | I7: MS | J7: =F7 -> 0.25 | K7: =16975.49*(1-$T$2) -> 16975.49 | M7: =(J7*K7)*(1+L7) -> 4243.87
C8: C | D8: LABOR | E8: 312007 | F8: 3 | G8: Tecnico Segundo Grau-C (Leis Sociais = 51,04%) | H8: MA | I8: MS | J8: =F8 -> 3 | K8: =4507.82*(1-$T$2) -> 4507.82 | M8: =(J8*K8)*(1+L8) -> 13523.46
C9: LS: | D9: BDI: | E9: DATA-BASE | G9: RESUMO - DISCRIMINAÇÃO | H9: TAXA | J9: TOTAL S/ BDI | K9: BDI | M9: TOTAL
C10: 128.33% | D10: 30.90% | E10: 2018-09-01 | G10: MÃO DE OBRA - (TOTAL MO) | J10: =SUMIF(H7:H8,"MO",M7:N8) -> 0.00
G11: ENCARGOS SOCIAIS | H11: =C10 -> 128.33% | J11: =J10*H11 -> 0.00
G12: TOTAL MÃO OBRA | J12: =SUM(J10:J11) -> 0.00 | K12: =H16*J12 -> 0.00 | M12: =J12+K12 -> 0.00
G13: MATERIAIS E EQUIPAMENTOS - (TOTAL MA)
G14: TOTAL MATERIAIS E EQUIPAMENTOS | J14: =SUMIF(H7:H8,"MA",M7:M8) -> 17,767.33 | K14: =H16*J14 -> 5,490.11 | M14: =J14+K14 -> 23,257.44
G15: TOTAL (MÃO DE OBRA + MATERIAIS + EQUIPAMENTOS) | J15: =J14+J12 -> 17,767.33
G16: BDI | H16: =D10 -> 30.90%
G17: TOTAL DO SERVIÇO | M17: =ROUND(SUM(M12:M16),2) -> 23,257.44
B19: CÓDIGO | D19: COMPOSIÇÃO DE REFERÊNCIA | G19: DESCRIÇÃO SERVIÇO | H19: UNIDADE | M19: CUSTO UNIT. DO SERVIÇO (R$)
B20: 4.8 | D20: =VLOOKUP(B20,GLOBAL!B:J,8,FALSE) -> COMP | E20: =VLOOKUP(B20,GLOBAL!B:J,9,FALSE) -> 4 | G20: PINTURA ANTI CORROSIVA, PARA ESTRUTURA METALICA DE COBERTURA, COM TELHAS DE AÇO. | H20: UND | M20: =M34 -> 26.05
C21: TIPO | D21: FONTE | E21: REF. | G21: DESCRIÇÃO DO ITEM | H21: TIPO | I21: UNIDADE | J21: COEF. | K21: V. UNIT. | L21: FATOR AC | M21: V. TOTAL
C22: I | D22: LABOR | E22: 10101 | F22: =10*0.020108 -> 0.20108 | G22: AJUDANTE (LABOR) | H22: MO | I22: H | J22: =F22 -> 0.20108 | K22: =5.42*(1-$T$2) -> 5.42 | M22: =(J22*K22)*(1+L22) -> 1.09
C23: I | D23: LABOR | E23: 10140 | F23: =10*0.020108 -> 0.20108 | G23: PINTOR (LABOR) | H23: MO | I23: H | J23: =F23 -> 0.20108 | K23: =6.42*(1-$T$2) -> 6.42 | M23: =(J23*K23)*(1+L23) -> 1.29
C24: I | D24: LABOR | E24: 37509 | F24: 0.20108 | G24: TINTA EPOXI PARA ACABAMENTO (LABOR) | H24: MA | I24: L | J24: 0.20108 | K24: =47.9*(1-$T$2) -> 47.90 | M24: 9.63
C25: I | D25: LABOR | E25: 37564 | F25: 0.20108 | G25: SOLVENTE PARA TINTA A BASE DE EPOXI (LABOR) | H25: MA | I25: L | J25: 0.20108 | K25: =24.05*(1-$T$2) -> 24.05 | M25: 4.84
C26: LS: | D26: BDI: | E26: DATA-BASE | G26: RESUMO - DISCRIMINAÇÃO | H26: TAXA | J26: TOTAL S/ BDI | K26: BDI | M26: TOTAL
C27: 128.33% | D27: 30.90% | E27: 2018-09-01 | G27: MÃO DE OBRA - (TOTAL MO) | J27: =SUMIF(H22:H25,"MO",M22:N25) -> 2.38
G28: ENCARGOS SOCIAIS | H28: =C27 -> 128.33% | J28: =J27*H28 -> 3.06
G29: TOTAL MÃO OBRA | J29: =SUM(J27:J28) -> 5.44 | K29: =H33*J29 -> 1.68 | M29: =J29+K29 -> 7.12
G30: MATERIAIS E EQUIPAMENTOS - (TOTAL MA)
G31: TOTAL MATERIAIS E EQUIPAMENTOS | J31: =SUMIF(H22:H25,"MA",M22:M25) -> 14.47 | K31: =H33*J31 -> 4.47 | M31: =J31+K31 -> 18.94
G32: TOTAL (MÃO DE OBRA + MATERIAIS + EQUIPAMENTOS) | J32: =J31+J29 -> 19.90
G33: BDI | H33: =D27 -> 30.90%
G34: TOTAL DO SERVIÇO | M34: =ROUND(SUM(M29:M33),2) -> 26.05
B36: CÓDIGO | D36: COMPOSIÇÃO DE REFERÊNCIA | G36: DESCRIÇÃO SERVIÇO | H36: UNIDADE | M36: CUSTO UNIT. DO SERVIÇO (R$)
B37: 5.1.4.4 | D37: =VLOOKUP(B37,GLOBAL!B:J,8,FALSE) -> COMP | E37: =VLOOKUP(B37,GLOBAL!B:J,9,FALSE) -> 5 | G37: MINI-DISJUNTOR TRIPOLAR 100 A, CURVA C - 15KA 220/127V (NBR IEC 60947-2), REF. SIEMENS, GE, SCHNEIDER OU EQUIVALENTE | H37: UND | M37: =M50 -> 343.09
C38: TIPO | D38: FONTE | E38: REF. | G38: DESCRIÇÃO DO ITEM | H38: TIPO | I38: UNIDADE | J38: COEF. | K38: V. UNIT. | L38: FATOR AC | M38: V. TOTAL
C39: I | D39: LABOR | E39: 10101 | F39: 0.9 | G39: AJUDANTE (LABOR) | H39: MO | I39: H | J39: =F39 -> 0.9 | K39: =5.42*(1-$T$2) -> 5.42 | M39: =(J39*K39)*(1+L39) -> 4.88
C40: I | D40: LABOR | E40: 10115 | F40: 0.9 | G40: ELETRICISTA (LABOR) | H40: MO | I40: H | J40: =F40 -> 0.9 | K40: =6.42*(1-$T$2) -> 6.42 | M40: =(J40*K40)*(1+L40) -> 5.78
C41: I | D41: LABOR | E41: 44561 | F41: 1 | G41: MINI-DISJUNTOR TRIPOLAR 100 A, CURVA C - 15KA 220/127V | H41: MA | I41: UND | J41: 1 | K41: =237.77*(1-$T$2) -> 237.77 | M41: 237.77
C42: LS: | D42: BDI: | E42: DATA-BASE | G42: RESUMO - DISCRIMINAÇÃO | H42: TAXA | J42: TOTAL S/ BDI | K42: BDI | M42: TOTAL
C43: 128.33% | D43: 30.90% | E43: 2018-09-01 | G43: MÃO DE OBRA - (TOTAL MO) | J43: =SUMIF(H39:H41,"MO",M39:N41) -> 10.66
G44: ENCARGOS SOCIAIS | H44: =C43 -> 128.33% | J44: =J43*H44 -> 13.67
G45: TOTAL MÃO OBRA | J45: =SUM(J43:J44) -> 24.33 | K45: =H49*J45 -> 7.52 | M45: =J45+K45 -> 31.85
G46: MATERIAIS E EQUIPAMENTOS - (TOTAL MA)
G47: TOTAL MATERIAIS E EQUIPAMENTOS | J47: =SUMIF(H39:H41,"MA",M39:M41) -> 237.77 | K47: =H49*J47 -> 73.47 | M47: =J47+K47 -> 311.24
G48: TOTAL (MÃO DE OBRA + MATERIAIS + EQUIPAMENTOS) | J48: =J47+J45 -> 262.10
G49: BDI | H49: =D43 -> 30.90%
G50: TOTAL DO SERVIÇO | M50: =ROUND(SUM(M45:M49),2) -> 343.09
B52: CÓDIGO | D52: COMPOSIÇÃO DE REFERÊNCIA | G52: DESCRIÇÃO SERVIÇO | H52: UNIDADE | M52: CUSTO UNIT. DO SERVIÇO (R$)
B53: 5.1.4.5 | D53: =VLOOKUP(B53,GLOBAL!B:J,8,FALSE) -> COMP | E53: =VLOOKUP(B53,GLOBAL!B:J,9,FALSE) -> 6 | G53: DISJUNTOR CAIXA MOLDADA 150A 45KA JM2-250L-150A - JNG | H53: UND | M53: =M66 -> 427.53
C54: TIPO | D54: FONTE | E54: REF. | G54: DESCRIÇÃO DO ITEM | H54: TIPO | I54: UNIDADE | J54: COEF. | K54: V. UNIT. | L54: FATOR AC | M54: V. TOTAL
C55: I | D55: LABOR | E55: 10101 | F55: 0.9 | G55: AJUDANTE (LABOR) | H55: MO | I55: H | J55: =F55 -> 0.9 | K55: =5.42*(1-$T$2) -> 5.42 | M55: =(J55*K55)*(1+L55) -> 4.88
C56: I | D56: LABOR | E56: 10115 | F56: 0.9 | G56: ELETRICISTA (LABOR) | H56: MO | I56: H | J56: =F56 -> 0.9 | K56: =6.42*(1-$T$2) -> 6.42 | M56: =(J56*K56)*(1+L56) -> 5.78
C57: I | D57: COTAÇÃO | F57: 1 | G57: DISJUNTOR CAIXA MOLDADA 150A 45KA JM2-250L-150A - JNG | H57: MA | I57: UND | J57: 1 | K57: =COTAÇÃO!D7 -> 302.28 | M57: 302.28
C58: LS: | D58: BDI: | E58: DATA-BASE | G58: RESUMO - DISCRIMINAÇÃO | H58: TAXA | J58: TOTAL S/ BDI | K58: BDI | M58: TOTAL
C59: 128.33% | D59: 30.90% | E59: 2018-09-01 | G59: MÃO DE OBRA - (TOTAL MO) | J59: =SUMIF(H55:H57,"MO",M55:N57) -> 10.66
G60: ENCARGOS SOCIAIS | H60: =C59 -> 128.33% | J60: =J59*H60 -> 13.67
G61: TOTAL MÃO OBRA | J61: =SUM(J59:J60) -> 24.33 | K61: =H65*J61 -> 7.52 | M61: =J61+K61 -> 31.85
G62: MATERIAIS E EQUIPAMENTOS - (TOTAL MA)
G63: TOTAL MATERIAIS E EQUIPAMENTOS | J63: =SUMIF(H55:H57,"MA",M55:M57) -> 302.28 | K63: =H65*J63 -> 93.40 | M63: =J63+K63 -> 395.68
G64: TOTAL (MÃO DE OBRA + MATERIAIS + EQUIPAMENTOS) | J64: =J63+J61 -> 326.61
G65: BDI | H65: =D59 -> 30.90%
G66: TOTAL DO SERVIÇO | M66: =ROUND(SUM(M61:M65),2) -> 427.53
B68: CÓDIGO | D68: COMPOSIÇÃO DE REFERÊNCIA | G68: DESCRIÇÃO SERVIÇO | H68: UNIDADE | M68: CUSTO UNIT. DO SERVIÇO (R$)
B69: 5.1.4.6 | D69: =VLOOKUP(B69,GLOBAL!B:J,8,FALSE) -> COMP | E69: =VLOOKUP(B69,GLOBAL!B:J,9,FALSE) -> 7 | G69: MINI-DISJUNTOR TRIPOLAR 63 A, CURVA C - 5KA 220/127VCA (NBR IEC 60947-2), REF. SIEMENS, GE, SCHNEIDER OU EQUIVALENTE | H69: UND | M69: =M82 -> 101.40
C70: TIPO | D70: FONTE | E70: REF. | G70: DESCRIÇÃO DO ITEM | H70: TIPO | I70: UNIDADE | J70: COEF. | K70: V. UNIT. | L70: FATOR AC | M70: V. TOTAL
C71: I | D71: LABOR | E71: 10101 | F71: 0.9 | G71: AJUDANTE (LABOR) | H71: MO | I71: H | J71: =F71 -> 0.9 | K71: =5.42*(1-$T$2) -> 5.42 | M71: =(J71*K71)*(1+L71) -> 4.88
C72: I | D72: LABOR | E72: 10115 | F72: 0.9 | G72: ELETRICISTA (LABOR) | H72: MO | I72: H | J72: =F72 -> 0.9 | K72: =6.42*(1-$T$2) -> 6.42 | M72: =(J72*K72)*(1+L72) -> 5.78
C73: I | D73: LABOR | E73: 44712 | F73: 1 | G73: MINI-DISJUNTOR TRIPOLAR 63 A, CURVA C - 5KA 220/127V | H73: MA | I73: UND | J73: 1 | K73: =53.13*(1-$T$2) -> 53.13 | M73: 53.13
C74: LS: | D74: BDI: | E74: DATA-BASE | G74: RESUMO - DISCRIMINAÇÃO | H74: TAXA | J74: TOTAL S/ BDI | K74: BDI | M74: TOTAL
C75: 128.33% | D75: 30.90% | E75: 2018-09-01 | G75: MÃO DE OBRA - (TOTAL MO) | J75: =SUMIF(H71:H73,"MO",M71:N73) -> 10.66
G76: ENCARGOS SOCIAIS | H76: =C75 -> 128.33% | J76: =J75*H76 -> 13.67
G77: TOTAL MÃO OBRA | J77: =SUM(J75:J76) -> 24.33 | K77: =H81*J77 -> 7.52 | M77: =J77+K77 -> 31.85
G78: MATERIAIS E EQUIPAMENTOS - (TOTAL MA)
G79: TOTAL MATERIAIS E EQUIPAMENTOS | J79: =SUMIF(H71:H73,"MA",M71:M73) -> 53.13 | K79: =H81*J79 -> 16.42 | M79: =J79+K79 -> 69.55
G80: TOTAL (MÃO DE OBRA + MATERIAIS + EQUIPAMENTOS) | J80: =J79+J77 -> 77.46
G81: BDI | H81: =D75 -> 30.90%
G82: TOTAL DO SERVIÇO | M82: =ROUND(SUM(M77:M81),2) -> 101.40

Sheet COTAÇÃO
A1: COTAÇÃO DE MERCADO
A4: OBRA: TROCA DE COBERTURA E REFORMA ELETRICA EMEF PEDRO NOLASCO
A5: ITEM | B5: DESCRIÇÃO | C5: COTAÇÕES EFETUADAS | Q5: OBSERVAÇÕES
C6: Unidade | D6: PREÇO MÉDIO | E6: FORNECEDOR 01 | F6: CONTATO | G6: PREÇO 01 | H6: DATA PREÇO 01 | I6: FORNECEDOR 02 | J6: CONTATO | K6: PREÇO 02 | L6: DATA PREÇO 02 | M6: FORNECEDOR 03 | N6: CONTATO | O6: PREÇO 03 | P6: DATA PREÇO 03
A7: 01 | B7: Disjuntor Caixa Moldada 150a 45ka Jm2-250l-150a - Jng | C7: und | D7: =(G7+K7+O7)/3 -> R$ 302.28 | E7: americanas.com | F7: https://www.americanas.com.br/produto/44862837/disjuntor-caixa-moldada-150a-45ka-jm2-250l-150a-jng | G7: R$ 302.28 | H7: 2019-04-01 | I7: https://www.submarino.com.br/produto/44862837/disjuntor-caixa-moldada-150a-45ka-jm2-250l-150a-jng?WT.srch=1&acc=d47a04c6f99456bc289220d5d0ff208d&epar=bp_pl_00_go_g35219&gclid=Cj0KCQjw7YblBRDFARIsAKkK-dJgAVucbWfTAXJPwKjZvVh3m5VUqc9GaWcDi3_HeCohU1r2T-D-2uwaAr8JEALw_wcB&i=5b974d0deec3dfb1f8caf78a&o=5be180b7ebb19ac62cdcdad5&opn=XMLGOOGLE&sellerId=20526132000169 | J7: submarino.com | K7: 302.28 | L7: 2019-04-01 | M7: https://www.shoptime.com.br/produto/44862837/disjuntor-caixa-moldada-150a-45ka-jm2-250l-150a-jng?WT.srch=1&acc=a76c8289649a0bef0524c56c85e71570&epar=bp_pl_00_go_pla_casaeconst_geral_gmv&gclid=Cj0KCQjw7YblBRDFARIsAKkK-dJtqIHXomfEJTQn3ZBW5AqqH7Id55JHu0kpTHtn5E1tgIz1GWTyMo4aAgexEALw_wcB&i=5b973f05eec3dfb1f8c7625c&o=5be18225ebb19ac62cdcdc0e&opn=GOOGLEXML&sellerId=20526132000169 | N7: shoptime.com | O7: R$ 302.28 | P7: 2019-04-01 | Q7: Valor não pode ser deflacionado pelo INCC para data base set/2018

Sheet CRONOGRAMA
B2: CRONOGRAMA FÍSICO E FINANCEIRO
B3: ITEM | C3: SERVIÇO | D3: VALORES DO ITEM | F3: 30 dias | G3: 60 dias | H3: 90 dias
D4: R$ | E4: %
B5: 1.0 | C5: =VLOOKUP(B5,GLOBAL!B:J,2,FALSE) -> ADMINISTRAÇÃO LOCAL | F5: =$D6*F6 -> 7,751.70 | G5: =$D6*G6 -> 7,751.70 | H5: =$D6*H6 -> 7,754.03 | I5: =D6-SUM(F5:H5) -> 0.00
D6: =VLOOKUP(B5,GLOBAL!A:J,7,FALSE) -> 23,257.44 | E6: =D6/D$17 -> 5.13% | F6: 33.33% | G6: 33.33% | H6: 33.34% | I6: =SUM(F6:H6) -> 100.00%
B7: 2.0 | C7: =VLOOKUP(B7,GLOBAL!B:J,2,FALSE) -> SERVIÇOS PRELIMINARES | F7: =$D8*F8 -> 40,924.93 | I7: =D8-SUM(F7:H7) -> 0.00
D8: =VLOOKUP(B7,GLOBAL!A:J,7,FALSE) -> 40,924.93 | E8: =D8/D$17 -> 9.03% | F8: 100.00% | I8: =SUM(F8:H8) -> 100.00%
B9: 3.0 | C9: =VLOOKUP(B9,GLOBAL!B:J,2,FALSE) -> PAREDES E PAINÉIS DA COBERTURA | G9: =$D10*G10 -> 50,693.15 | H9: =$D10*H10 -> 8,945.85 | I9: =D10-SUM(F9:H9) -> 0.00
D10: =VLOOKUP(B9,GLOBAL!A:J,7,FALSE) -> 59,639.00 | E10: =D10/D$17 -> 13.16% | G10: 85.00% | H10: 15.00% | I10: =SUM(F10:H10) -> 100.00%
B11: 4.0 | C11: =VLOOKUP(B11,GLOBAL!B:J,2,FALSE) -> COBERTURA | G11: =$D12*G12 -> 84,537.36 | H11: =$D12*H12 -> 126,806.03 | I11: =D12-SUM(F11:H11) -> 0.00
D12: =VLOOKUP(B11,GLOBAL!A:J,7,FALSE) -> 211,343.39 | E12: =D12/D$17 -> 46.63% | G12: 40.00% | H12: 60.00% | I12: =SUM(F12:H12) -> 100.00%
B13: 5.0 | C13: =VLOOKUP(B13,GLOBAL!B:J,2,FALSE) -> INSTALAÇÕES ELÉTRICAS | F13: =$D14*F14 -> 26,983.09 | G13: =$D14*G14 -> 43,172.95 | H13: =$D14*H14 -> 37,776.33 | I13: =D14-SUM(F13:H13) -> 0.00
D14: =VLOOKUP(B13,GLOBAL!A:J,7,FALSE) -> 107,932.38 | E14: =D14/D$17 -> 23.82% | F14: 25.00% | G14: 40.00% | H14: 35.00% | I14: =SUM(F14:H14) -> 100.00%
B15: 6.0 | C15: =VLOOKUP(B15,GLOBAL!B:J,2,FALSE) -> LIMPEZA | H15: =$D16*H16 -> 10,109.09 | I15: =D16-SUM(F15:H15) -> 0.00
D16: =VLOOKUP(B15,GLOBAL!A:J,7,FALSE) -> 10,109.09 | E16: =D16/D$17 -> 2.23% | H16: 100.00% | I16: =SUM(F16:H16) -> 100.00%
C17: TOTAL GERAL | D17: =SUM(D5:D16) -> 453,206.23 | E17: =SUM(E6:E16) -> 100.00% | I17: =SUM(F17:H17) -> 0.00%
D18: VALOR DO SERVIÇO EXECUTADO NO MÊS | E18: R$ | F18: =F15+F11+F9+F7+F5+F13 -> 75,659.73 | G18: =G15+G11+G9+G7+G5+G13 -> 186,155.16 | H18: 191,391.34
D19: PORCENTAGEM | E19: % | F19: =F18/$D$17 -> 16.69% | G19: =G18/$D$17 -> 41.08% | H19: =H18/$D$17 -> 42.23% | I19: =SUM(F19:H19) -> 100.00%
D20: VALOR ACUMULADO DOS SERVIÇOS EXECUTADOS | E20: R$ | F20: =F18 -> 75,659.73 | G20: =F20+G18 -> 261,814.89 | H20: =G20+H18 -> 453,206.23
D21: PORCENTAGEM ACUMULADO | E21: % | F21: =F20/$D$17 -> 16.69% | G21: =G20/$D$17 -> 57.77% | H21: =H20/$D$17 -> 100.00%

Sheet SEINFRA-COMP (hidden)
D1: Relatório de Composições
D2: Tabela 024
A3: SEINFRA | B3: C1802 - BOMBA CENTRÍFUGA DE 1/4 CV, INCLUSIVE MAT.DE SUCÇÃO - UN
A4: SEINFRA | B4: MAO DE OBRA | E4: Unidade | F4: Coeficiente | G4: Preço | H4: Total
A5: SEINFRA | B5: I0043 | C5: 8.0000 | D5: AJUDANTE DE ENCANADOR | E5: H | F5: 8.0000 | G5: 5.6000 | H5: 44.8000
A6: SEINFRA | B6: I2320 | C6: 8.0000 | D6: ENCANADOR | E6: H | F6: 8.0000 | G6: 7.2000 | H6: 57.6000
A7: SEINFRA | G7: Total: | H7: 102.4000
A8: SEINFRA | B8: MATERIAIS
A9: SEINFRA | B9: I0852 | C9: 1.0000 | D9: BOMBA CENTRIFUGA P=1/4CV | E9: UN | F9: 1.0000 | G9: 325.4800 | H9: 325.4800
A10: SEINFRA | G10: Total: | H10: 325.4800
A11: SEINFRA | F11: Total Simples: | H11: 427.88
A12: SEINFRA | F12: Encargos Sociais: | H12: 119.12
A13: SEINFRA | F13: Valor BDI: | H13: 0.00
A14: SEINFRA | F14: Valor Geral: | H14: 547.00
A15: SEINFRA | B15: C1803 - MURETA C/TIJOLO MACIÇO, REBOCADA, INCL. FUNDAÇÕES - M2
A16: SEINFRA | B16: MAO DE OBRA | E16: Unidade | F16: Coeficiente | G16: Preço | H16: Total
A17: SEINFRA | B17: I2391 | C17: 3.8600 | D17: PEDREIRO | E17: H | F17: 3.8600 | G17: 7.2000 | H17: 27.7920
A18: SEINFRA | B18: I2543 | C18: 6.3200 | D18: SERVENTE | E18: H | F18: 6.3200 | G18: 4.8800 | H18: 30.8416
A19: SEINFRA | G19: Total: | H19: 58.6336
A20: SEINFRA | B20: MATERIAIS
A21: SEINFRA | B21: I0109 | C21: 0.1685 | D21: AREIA MEDIA | E21: M3 | F21: 0.1685 | G21: 46.0000 | H21: 7.7510
A22: SEINFRA | B22: I0441 | C22: 17.9080 | D22: CAL HIDRATADA | E22: KG | F22: 17.9080 | G22: 0.7400 | H22: 13.2519
A23: SEINFRA | B23: I0805 | C23: 31.0480 | D23: CIMENTO PORTLAND | E23: KG | F23: 31.0480 | G23: 0.5000 | H23: 15.5240
A24: SEINFRA | B24: I1600 | C24: 0.1380 | D24: PEDRA DE MÃO (RACHÃO) | E24: M3 | F24: 0.1380 | G24: 45.3700 | H24: 6.2611
A25: SEINFRA | B25: I2082 | C25: 174.9000 | D25: TIJOLO MACIÇO COMUM | E25: UN | F25: 174.9000 | G25: 0.2500 | H25: 43.7250
A26: SEINFRA | G26: Total: | H26: 86.5130
A27: SEINFRA | F27: Total Simples: | H27: 145.15
A28: SEINFRA | F28: Encargos Sociais: | H28: 68.21
A29: SEINFRA | F29: Valor BDI: | H29: 0.00
A30: SEINFRA | F30: Valor Geral: | H30: 213.36
A31: SEINFRA | B31: C1804 - MURO DIVISÓRIO C/BLOCOS DE CONCRETO 14x19x39 CM, H=1.80M, C/ SAPATA CORRIDA DE CONCRETO FCK = 13,5 MPa E PILARES DE CONCRETO - M
A32: SEINFRA | B32: MAO DE OBRA | E32: Unidade | F32: Coeficiente | G32: Preço | H32: Total
A33: SEINFRA | B33: I0040 | C33: 0.4200 | D33: AJUDANTE DE ARMADOR/FERREIRO | E33: H | F33: 0.4200 | G33: 5.6000 | H33: 2.3520
A34: SEINFRA | B34: I0121 | C34: 0.4200 | D34: ARMADOR/FERREIRO | E34: H | F34: 0.4200 | G34: 7.2000 | H34: 3.0240
A35: SEINFRA | B35: I2391 | C35: 1.3700 | D35: PEDREIRO | E35: H | F35: 1.3700 | G35: 7.2000 | H35: 9.8640
A36: SEINFRA | B36: I2543 | C36: 2.4000 | D36: SERVENTE | E36: H | F36: 2.4000 | G36: 4.8800 | H36: 11.7120
A37: SEINFRA | G37: Total: | H37: 26.9520
A38: SEINFRA | B38: MATERIAIS
A39: SEINFRA | B39: I0103 | C39: 0.1100 | D39: ARAME RECOZIDO N.18 BWG | E39: KG | F39: 0.1100 | G39: 9.9700 | H39: 1.0967
A40: SEINFRA | B40: I0109 | C40: 0.0880 | D40: AREIA MEDIA | E40: M3 | F40: 0.0880 | G40: 46.0000 | H40: 4.0480
A41: SEINFRA | B41: I0163 | C41: 6.0000 | D41: AÇO CA-50 | E41: KG | F41: 6.0000 | G41: 3.9600 | H41: 23.7600
A42: SEINFRA | B42: I0231 | C42: 24.0000 | D42: BLOCO DE CONCRETO 14x19x39cm - VEDAÇÃO | E42: UN | F42: 24.0000 | G42: 1.7800 | H42: 42.7200
A43: SEINFRA | B43: I0280 | C43: 0.0380 | D43: BRITA | E43: M3 | F43: 0.0380 | G43: 56.0000 | H43: 2.1280
A44: SEINFRA | B44: I0441 | C44: 4.0000 | D44: CAL HIDRATADA | E44: KG | F44: 4.0000 | G44: 0.7400 | H44: 2.9600
A45: SEINFRA | B45: I0805 | C45: 36.0000 | D45: CIMENTO PORTLAND | E45: KG | F45: 36.0000 | G45: 0.5000 | H45: 18.0000
A46: SEINFRA | B46: I1605 | C46: 0.0163 | D46: PEDRISCO | E46: M3 | F46: 0.0163 | G46: 63.2000 | H46: 1.0302
A47: SEINFRA | B47: I1916 | C47: 1.3400 | D47: TABUA DE 1" DE 3A. - L = 30cm | E47: M | F47: 1.3400 | G47: 6.1800 | H47: 8.2812
A48: SEINFRA | G48: Total: | H48: 104.0241
A49: SEINFRA | F49: Total Simples: | H49: 130.98
A50: SEINFRA | F50: Encargos Sociais: | H50: 31.35
A51: SEINFRA | F51: Valor BDI: | H51: 0.00
A52: SEINFRA | F52: Valor Geral: | H52: 162.33
A53: SEINFRA | B53: C1805 - MURO DIVISÓRIO C/ BLOCOS DE CONCRETO 14x19x39 CM, H=1,80 M, SOBRE SAPATA CORRIDA, C/ PILARETES E CINTA DE AMARRAÇÃO DE CONCRETO C/ PINGADEIRAS - M
A54: SEINFRA | B54: EQUIPAMENTOS (CHORARIO) | E54: Unidade | F54: Coeficiente | G54: Preço | H54: Total
A55: SEINFRA | B55: I0682 | C55: 0.0498 | D55: BETONEIRA ELÉTRICA 580L (CHP) | E55: H | F55: 0.0498 | G55: 13.8268 | H55: 0.6886
A56: SEINFRA | G56: Total: | H56: 0.6886
A57: SEINFRA | B57: MAO DE OBRA
A58: SEINFRA | B58: I0041 | C58: 1.0400 | D58: AJUDANTE DE CARPINTEIRO | E58: H | F58: 1.0400 | G58: 5.6000 | H58: 5.8240
A59: SEINFRA | B59: I0121 | C59: 0.3200 | D59: ARMADOR/FERREIRO | E59: H | F59: 0.3200 | G59: 7.2000 | H59: 2.3040
A60: SEINFRA | B60: I0498 | C60: 0.7200 | D60: CARPINTEIRO | E60: H | F60: 0.7200 | G60: 7.2000 | H60: 5.1840
A61: SEINFRA | B61: I2391 | C61: 2.5300 | D61: PEDREIRO | E61: H | F61: 2.5300 | G61: 7.2000 | H61: 18.2160
A62: SEINFRA | B62: I2543 | C62: 6.3900 | D62: SERVENTE | E62: H | F62: 6.3900 | G62: 4.8800 | H62: 31.1832
A63: SEINFRA | G63: Total: | H63: 62.7112
A64: SEINFRA | B64: MATERIAIS
A65: SEINFRA | B65: I0103 | C65: 0.0800 | D65: ARAME RECOZIDO N.18 BWG | E65: KG | F65: 0.0800 | G65: 9.9700 | H65: 0.7976
A66: SEINFRA | B66: I0109 | C66: 0.0818 | D66: AREIA MEDIA | E66: M3 | F66: 0.0818 | G66: 46.0000 | H66: 3.7628
A67: SEINFRA | B67: I0157 | C67: 2.3800 | D67: AÇO CA-25 | E67: KG | F67: 2.3800 | G67: 4.0600 | H67: 9.6628
A68: SEINFRA | B68: I0231 | C68: 29.0000 | D68: BLOCO DE CONCRETO 14x19x39cm - VEDAÇÃO | E68: UN | F68: 29.0000 | G68: 1.7800 | H68: 51.6200
A69: SEINFRA | B69: I0280 | C69: 0.0429 | D69: BRITA | E69: M3 | F69: 0.0429 | G69: 56.0000 | H69: 2.4024
A70: SEINFRA | B70: I0441 | C70: 1.0000 | D70: CAL HIDRATADA | E70: KG | F70: 1.0000 | G70: 0.7400 | H70: 0.7400
A71: SEINFRA | B71: I0805 | C71: 38.0000 | D71: CIMENTO PORTLAND | E71: KG | F71: 38.0000 | G71: 0.5000 | H71: 19.0000
A72: SEINFRA | B72: I1605 | C72: 0.0184 | D72: PEDRISCO | E72: M3 | F72: 0.0184 | G72: 63.2000 | H72: 1.1629
A73: SEINFRA | B73: I1728 | C73: 0.0800 | D73: PREGO 18X27 (2 1/2 X 10) | E73: KG | F73: 0.0800 | G73: 9.4000 | H73: 0.7520
A74: SEINFRA | B74: I1916 | C74: 0.2800 | D74: TABUA DE 1" DE 3A. - L = 30cm | E74: M | F74: 0.2800 | G74: 6.1800 | H74: 1.7304
A75: SEINFRA | G75: Total: | H75: 91.6309
A76: SEINFRA | F76: Total Simples: | H76: 155.03
A77: SEINFRA | F77: Encargos Sociais: | H77: 73.37
A78: SEINFRA | F78: Valor BDI: | H78: 0.00
A79: SEINFRA | F79: Valor Geral: | H79: 228.40
A80: SEINFRA | B80: C1801 - MOSAICO VIDROSO C/ARGAMASSA MISTA CIMENTO,CAL E AREIA TRAÇO 1:1:6 INCLUSIVE. LIMPEZA - M2
A81: SEINFRA | B81: MAO DE OBRA | E81: Unidade | F81: Coeficiente | G81: Preço | H81: Total
A82: SEINFRA | B82: I1599 | C82: 1.5000 | D82: PASTILHEIRO | E82: H | F82: 1.5000 | G82: 7.2000 | H82: 10.8000
A83: SEINFRA | B83: I2543 | C83: 2.2000 | D83: SERVENTE | E83: H | F83: 2.2000 | G83: 4.8800 | H83: 10.7360
A84: SEINFRA | G84: Total: | H84: 21.5360
A85: SEINFRA | B85: MATERIAIS
A86: SEINFRA | B86: I0109 | C86: 0.0243 | D86: AREIA MEDIA | E86: M3 | F86: 0.0243 | G86: 46.0000 | H86: 1.1178
A87: SEINFRA | B87: I0154 | C87: 0.1000 | D87: ÁCIDO MURIÁTICO | E87: L | F87: 0.1000 | G87: 3.1200 | H87: 0.3120
A88: SEINFRA | B88: I0441 | C88: 2.4400 | D88: CAL HIDRATADA | E88: KG | F88: 2.4400 | G88: 0.7400 | H88: 1.8056
A89: SEINFRA | B89: I0805 | C89: 6.0600 | D89: CIMENTO PORTLAND | E89: KG | F89: 6.0600 | G89: 0.5000 | H89: 3.0300
A90: SEINFRA | B90: I1531 | C90: 1.1000 | D90: MOSAICO VIDROSO 2X2CM | E90: M2 | F90: 1.1000 | G90: 177.7800 | H90: 195.5580
A91: SEINFRA | B91: I1871 | C91: 0.1000 | D91: SODA CAUSTICA | E91: KG | F91: 0.1000 | G91: 4.5900 | H91: 0.4590
A92: SEINFRA | G92: Total: | H92: 202.2824
A93: SEINFRA | F93: Total Simples: | H93: 223.82
A94: SEINFRA | F94: Encargos Sociais: | H94: 25.05
A95: SEINFRA | F95: Valor BDI: | H95: 0.00
A96: SEINFRA | F96: Valor Geral: | H96: 248.87
A97: SEINFRA | B97: C1807 - MURO CONTORNO DE ALVENARIA. E CONCRETO(PILAR+CINTA),INCLUSIVE PINTURA - M2
A98: SEINFRA | B98: EQUIPAMENTOS (CHORARIO) | E98: Unidade | F98: Coeficiente | G98: Preço | H98: Total
A99: SEINFRA | B99: I0682 | C99: 0.0300 | D99: BETONEIRA ELÉTRICA 580L (CHP) | E99: H | F99: 0.0300 | G99: 13.8268 | H99: 0.4148
A100: SEINFRA | G100: Total: | H100: 0.4148
A101: SEINFRA | B101: MAO DE OBRA
A102: SEINFRA | B102: I0040 | C102: 0.1500 | D102: AJUDANTE DE ARMADOR/FERREIRO | E102: H | F102: 0.1500 | G102: 5.6000 | H102: 0.8400
A103: SEINFRA | B103: I0045 | C103: 0.2200 | D103: AJUDANTE DE PINTOR | E103: H | F103: 0.2200 | G103: 5.6000 | H103: 1.2320
A104: SEINFRA | B104: I0121 | C104: 0.1500 | D104: ARMADOR/FERREIRO | E104: H | F104: 0.1500 | G104: 7.2000 | H104: 1.0800
A105: SEINFRA | B105: I2391 | C105: 3.2000 | D105: PEDREIRO | E105: H | F105: 3.2000 | G105: 7.2000 | H105: 23.0400
A106: SEINFRA | B106: I2395 | C106: 0.7500 | D106: PINTOR | E106: H | F106: 0.7500 | G106: 7.2000 | H106: 5.4000
A107: SEINFRA | B107: I2543 | C107: 5.2000 | D107: SERVENTE | E107: H | F107: 5.2000 | G107: 4.8800 | H107: 25.3760
A108: SEINFRA | G108: Total: | H108: 56.9680
A109: SEINFRA | B109: MATERIAIS
A110: SEINFRA | B110: I0103 | C110: 0.0400 | D110: ARAME RECOZIDO N.18 BWG | E110: KG | F110: 0.0400 | G110: 9.9700 | H110: 0.3988
A111: SEINFRA | B111: I0108 | C111: 0.0800 | D111: AREIA GROSSA | E111: M3 | F111: 0.0800 | G111: 50.0000 | H111: 4.0000
A112: SEINFRA | B112: I0109 | C112: 0.0850 | D112: AREIA MEDIA | E112: M3 | F112: 0.0850 | G112: 46.0000 | H112: 3.9100
A113: SEINFRA | B113: I0163 | C113: 2.1800 | D113: AÇO CA-50 | E113: KG | F113: 2.1800 | G113: 3.9600 | H113: 8.6328
A114: SEINFRA | B114: I0280 | C114: 0.0300 | D114: BRITA | E114: M3 | F114: 0.0300 | G114: 56.0000 | H114: 1.6800
A115: SEINFRA | B115: I0805 | C115: 45.0000 | D115: CIMENTO PORTLAND | E115: KG | F115: 45.0000 | G115: 0.5000 | H115: 22.5000
A116: SEINFRA | B116: I1600 | C116: 0.1500 | D116: PEDRA DE MÃO (RACHÃO) | E116: M3 | F116: 0.1500 | G116: 45.3700 | H116: 6.8055
A117: SEINFRA | B117: I1605 | C117: 0.0100 | D117: PEDRISCO | E117: M3 | F117: 0.0100 | G117: 63.2000 | H117: 0.6320
A118: SEINFRA | B118: I1917 | C118: 0.4500 | D118: TABUA DE 1" - L = 12cm | E118: M | F118: 0.4500 | G118: 4.4100 | H118: 1.9845
A119: SEINFRA | B119: I2081 | C119: 25.0000 | D119: TIJOLO CERÂMICO FURADO 9X19X19CM | E119: UN | F119: 25.0000 | G119: 0.4200 | H119: 10.5000
A120: SEINFRA | B120: I2082 | C120: 18.0000 | D120: TIJOLO MACIÇO COMUM | E120: UN | F120: 18.0000 | G120: 0.2500 | H120: 4.5000
A121: SEINFRA | B121: I2098 | C121: 0.8700 | D121: TINTA MINERAL IMPERMEÁVEL EM PÓ | E121: KG | F121: 0.8700 | G121: 4.9500 | H121: 4.3065
A122: SEINFRA | G122: Total: | H122: 69.8501
A123: SEINFRA | F123: Total Simples: | H123: 127.23
A124: SEINFRA | F124: Encargos Sociais: | H124: 66.53
A125: SEINFRA | F125: Valor BDI: | H125: 0.00
A126: SEINFRA | F126: Valor Geral: | H126: 193.76
A127: SEINFRA | B127: C1806 - MURO C/MOURÕES E PLACAS PRÉ-FABRICADAS DE CONCRETO H=2.00M - M
A128: SEINFRA | B128: MAO DE OBRA | E128: Unidade | F128: Coeficiente | G128: Preço | H128: Total
A129: SEINFRA | B129: I2391 | C129: 0.8000 | D129: PEDREIRO | E129: H | F129: 0.8000 | G129: 7.2000 | H129: 5.7600
A130: SEINFRA | B130: I2543 | C130: 1.6000 | D130: SERVENTE | E130: H | F130: 1.6000 | G130: 4.8800 | H130: 7.8080
A131: SEINFRA | G131: Total: | H131: 13.5680
A132: SEINFRA | B132: MATERIAIS
A133: SEINFRA | B133: I0109 | C133: 0.0388 | D133: AREIA MEDIA | E133: M3 | F133: 0.0388 | G133: 46.0000 | H133: 1.7848
A134: SEINFRA | B134: I0280 | C134: 0.0455 | D134: BRITA | E134: M3 | F134: 0.0455 | G134: 56.0000 | H134: 2.5480
A135: SEINFRA | B135: I0805 | C135: 13.0000 | D135: CIMENTO PORTLAND | E135: KG | F135: 13.0000 | G135: 0.5000 | H135: 6.5000
A136: SEINFRA | B136: I1534 | C136: 0.5000 | D136: MOURÃO CONCRETO COM ENCAIXE 12X12X260CM | E136: UN | F136: 0.5000 | G136: 32.0000 | H136: 16.0000
A137: SEINFRA | B137: I1671 | C137: 2.0000 | D137: PLACA PRÉ-FABRICADA DE CONCRETO PARA MURO 200X50X3.5CM | E137: UN | F137: 2.0000 | G137: 71.7000 | H137: 143.4000
A138: SEINFRA | G138: Total: | H138: 170.2328
A139: SEINFRA | F139: Total Simples: | H139: 183.80
A140: SEINFRA | F140: Encargos Sociais: | H140: 15.78
A141: SEINFRA | F141: Valor BDI: | H141: 0.00
A142: SEINFRA | F142: Valor Geral: | H142: 199.58
A143: SEINFRA | B143: C1809 - MURO DE ARRIMO C/ BLOCOS DE CONCRETO ARTICULADO (60X45X15)cm C/INJEÇÃO ATÉ 2,5m - M2
A144: SEINFRA | B144: MAO DE OBRA | E144: Unidade | F144: Coeficiente | G144: Preço | H144: Total
A145: SEINFRA | B145: I2391 | C145: 3.0000 | D145: PEDREIRO | E145: H | F145: 3.0000 | G145: 7.2000 | H145: 21.6000
A146: SEINFRA | B146: I2543 | C146: 10.0000 | D146: SERVENTE | E146: H | F146: 10.0000 | G146: 4.8800 | H146: 48.8000
A147: SEINFRA | G147: Total: | H147: 70.4000
A148: SEINFRA | B148: MATERIAIS
A149: SEINFRA | B149: I0109 | C149: 0.1200 | D149: AREIA MEDIA | E149: M3 | F149: 0.1200 | G149: 46.0000 | H149: 5.5200
A150: SEINFRA | B150: I0157 | C150: 0.4600 | D150: AÇO CA-25 | E150: KG | F150: 0.4600 | G150: 4.0600 | H150: 1.8676
A151: SEINFRA | B151: I0163 | C151: 9.2400 | D151: AÇO CA-50 | E151: KG | F151: 9.2400 | G151: 3.9600 | H151: 36.5904
A152: SEINFRA | B152: I0236 | C152: 5.0000 | D152: BLOCO DE CONCRETO ARTICULADO 15X45X60CM | E152: UN | F152: 5.0000 | G152: 13.2000 | H152: 66.0000
A153: SEINFRA | B153: I0280 | C153: 0.2300 | D153: BRITA | E153: M3 | F153: 0.2300 | G153: 56.0000 | H153: 12.8800
A154: SEINFRA | B154: I0805 | C154: 55.0000 | D154: CIMENTO PORTLAND | E154: KG | F154: 55.0000 | G154: 0.5000 | H154: 27.5000
A155: SEINFRA | G155: Total: | H155: 150.3580
A156: SEINFRA | F156: Total Simples: | H156: 220.76
A157: SEINFRA | F157: Encargos Sociais: | H157: 81.89
A158: SEINFRA | F158: Valor BDI: | H158: 0.00
A159: SEINFRA | F159: Valor Geral: | H159: 302.65
A160: SEINFRA | B160: C1808 - MURO DE ARRIMO C/ BLOCOS DE CONCRETO ARTICULADO (30X15X28)cm - M2
A161: SEINFRA | B161: MAO DE OBRA | E161: Unidade | F161: Coeficiente | G161: Preço | H161: Total
A162: SEINFRA | B162: I2391 | C162: 2.0000 | D162: PEDREIRO | E162: H | F162: 2.0000 | G162: 7.2000 | H162: 14.4000
A163: SEINFRA | B163: I2543 | C163: 7.0000 | D163: SERVENTE | E163: H | F163: 7.0000 | G163: 4.8800 | H163: 34.1600
A164: SEINFRA | G164: Total: | H164: 48.5600
A165: SEINFRA | B165: MATERIAIS
A166: SEINFRA | B166: I0109 | C166: 0.0400 | D166: AREIA MEDIA | E166: M3 | F166: 0.0400 | G166: 46.0000 | H166: 1.8400
A167: SEINFRA | B167: I0235 | C167: 24.0000 | D167: BLOCO DE CONCRETO ARTICULADO 15X28X30CM | E167: UN | F167: 24.0000 | G167: 3.4000 | H167: 81.6000
A168: SEINFRA | B168: I0280 | C168: 0.1040 | D168: BRITA | E168: M3 | F168: 0.1040 | G168: 56.0000 | H168: 5.8240
A169: SEINFRA | B169: I0805 | C169: 15.0000 | D169: CIMENTO PORTLAND | E169: KG | F169: 15.0000 | G169: 0.5000 | H169: 7.5000
A170: SEINFRA | G170: Total: | H170: 96.7640
A171: SEINFRA | F171: Total Simples: | H171: 145.32
A172: SEINFRA | F172: Encargos Sociais: | H172: 56.49
A173: SEINFRA | F173: Valor BDI: | H173: 0.00
A174: SEINFRA | F174: Valor Geral: | H174: 201.81
A175: SEINFRA | B175: C1821 - NIPLE DUPLO AÇO GALV. D=65mm (2 1/2") - UN
A176: SEINFRA | B176: MAO DE OBRA | E176: Unidade | F176: Coeficiente | G176: Preço | H176: Total
A177: SEINFRA | B177: I0043 | C177: 0.4000 | D177: AJUDANTE DE ENCANADOR | E177: H | F177: 0.4000 | G177: 5.6000 | H177: 2.2400
A178: SEINFRA | B178: I2320 | C178: 0.4000 | D178: ENCANADOR | E178: H | F178: 0.4000 | G178: 7.2000 | H178: 2.8800
A179: SEINFRA | G179: Total: | H179: 5.1200
A180: SEINFRA | B180: MATERIAIS
A181: SEINFRA | B181: I1541 | C181: 1.0000 | D181: NIPLE DUPLO AÇO GALVANIZADO 2 1/2'' | E181: UN | F181: 1.0000 | G181: 25.6000 | H181: 25.6000
A182: SEINFRA | G182: Total: | H182: 25.6000
A183: SEINFRA | F183: Total Simples: | H183: 30.72
A184: SEINFRA | F184: Encargos Sociais: | H184: 5.96
A185: SEINFRA | F185: Valor BDI: | H185: 0.00
A186: SEINFRA | F186: Valor Geral: | H186: 36.68
A187: SEINFRA | B187: C1822 - NIPLE DUPLO DE REDUÇÃO AÇO GALV. D=20X15mm (3/4"X1/2") - UN
A188: SEINFRA | B188: MAO DE OBRA | E188: Unidade | F188: Coeficiente | G188: Preço | H188: Total
A189: SEINFRA | B189: I0043 | C189: 0.2000 | D189: AJUDANTE DE ENCANADOR | E189: H | F189: 0.2000 | G189: 5.6000 | H189: 1.1200
A190: SEINFRA | B190: I2320 | C190: 0.2000 | D190: ENCANADOR | E190: H | F190: 0.2000 | G190: 7.2000 | H190: 1.4400
A191: SEINFRA | G191: Total: | H191: 2.5600
A192: SEINFRA | B192: MATERIAIS
A193: SEINFRA | B193: I1545 | C193: 1.0000 | D193: NIPLE DUPLO REDUCÃO GALV 3/4X1/2'' | E193: UN | F193: 1.0000 | G193: 3.9000 | H193: 3.9000
A194: SEINFRA | G194: Total: | H194: 3.9000
A195: SEINFRA | F195: Total Simples: | H195: 6.46
A196: SEINFRA | F196: Encargos Sociais: | H196: 2.98
A197: SEINFRA | F197: Valor BDI: | H197: 0.00
A198: SEINFRA | F198: Valor Geral: | H198: 9.44
A199: SEINFRA | B199: C1823 - NIPLE DUPLO DE REDUÇÃO AÇO GALV. D=32X15mm (1 1/4"X1/2") - UN
A200: SEINFRA | B200: MAO DE OBRA | E200: Unidade | F200: Coeficiente | G200: Preço | H200: Total
... 4300 more rows

Sheet SEINFRA-INSU (hidden)
A1: Tabela de Preço de Insumos
A2: 024
A3: Insumo | B3: Descrição | C3: Unidade | D3: SEM ENCARGOS | E3: COM ENCARGOS
A4: I7501 | B4: 10 SLOTS CHASSIS MODULAR HARDWARE STYLE , MOD. 1746-A10AB | C4: UN | D4: 1,537.41 | G4: =D4 -> 1,537.41
A5: I7447 | B5: 5/03 RS-232 ROGRAMMER CABLE 3m, MOD. 1747-CP3 AB | C5: UN | D5: 67.26 | G5: =D5 -> 67.26
A6: I8222 | B6: ABÓBADA DE POLICARBONATO TRANSPARENTE | C6: M2 | D6: 597.48 | G6: 597.48
A7: I6472 | B7: ABRAÇADEIRA PARA POSTE DE CONCRETO DUPLO "T" | C7: UN | D7: 6.01 | G7: 6.01
A8: I6700 | B8: ABRAÇADEIRAS EM FERRO BARRA CHATA 1/4" PINTURA EPOXI C/PARAFUSOS | C8: UN | D8: 36.40 | G8: 36.40
A9: I0003 | B9: ABRIGO P/ HIDRANTE 60 X 90 X 17CM | C9: UN | D9: 296.67 | G9: 296.67
A10: I0004 | B10: ABRIGO PRÉ-MOLDADO CONCRETO (FORNECIMENTO/ASSENTAMENTO) | C10: UN | D10: 4,685.00 | G10: 4,685.00
A11: I7443 | B11: AC INPUT MODULE FOR PLC, MOD. 1746-IA16 AB WITH16 CHANNELS | C11: UN | D11: 916.71 | G11: 916.71
A12: I8560 | B12: ACELERADOR DE COBALTO 6% | C12: L | D12: 57.60 | G12: 57.60
A13: I7438 | B13: ACESSÓRIOS DE BAIXA TENSÃO | C13: CJ | D13: 357.45 | G13: 357.45
A14: I7428 | B14: ACESSÓRIOS DE MÉDIA TENSÃO | C14: CJ | D14: 3,717.53 | G14: 3,717.53
A15: I8198 | B15: ACESSÓRIOS P/ TRILHO -100 | C15: KG | D15: 6.79 | G15: 6.79
A16: I8258 | B16: ACESSÓRIOS PARA UNIDADE DE PESAGEM (FAROL LUMINOSO, SENSORES DE POSIÇÃO, SOFTWARE DE CONFIGURAÇÃO, CABOS, ETC) | C16: CJ | D16: 21,963.05 | G16: 21,963.05
A17: I7469 | B17: ACETILENO | C17: KG | D17: 37.74 | G17: 37.74
A18: I0154 | B18: ÁCIDO MURIÁTICO | C18: L | D18: 3.12 | G18: 3.12
A19: I0005 | B19: ACIONAD.MANUAL, TIPO QUEBRE O VIDRO, MOD. EUROTRON | C19: UN | D19: 35.37 | G19: 35.37
A20: I0157 | B20: AÇO CA-25 | C20: KG | D20: 4.06 | G20: 4.06
A21: I0163 | B21: AÇO CA-50 | C21: KG | D21: 3.96 | G21: 3.96
A22: I7952 | B22: AÇO CA-50/60 | C22: KG | D22: 4.05 | G22: 4.05
A23: I0169 | B23: AÇO CA-60 | C23: KG | D23: 4.14 | G23: 4.14
A24: I0006 | B24: ADAPTADOR - 65X65MM (2 1/2X2 1/2'') | C24: UN | D24: 60.87 | G24: 60.87
A25: I2898 | B25: ADAPTADOR PARA POLIETILENO 20 x 1/2" | C25: UN | D25: 2.41 | G25: 2.41
A26: I2899 | B26: ADAPTADOR PARA POLIETILENO 20 x 3/4" | C26: UN | D26: 2.49 | G26: 2.49
A27: I2900 | B27: ADAPTADOR PARA POLIETILENO 32 x 1" | C27: UN | D27: 4.61 | G27: 4.61
A28: I3082 | B28: ADAPTADOR PBA PONTA / ROSCA DN 75 | C28: UN | D28: 20.06 | G28: 20.06
A29: I3085 | B29: ADAPTADOR PBA / BOLSA DEFoFo JE DN 100 | C29: UN | D29: 55.34 | G29: 55.34
A30: I3083 | B30: ADAPTADOR PBA / BOLSA DEFoFo JE DN 50 | C30: UN | D30: 14.60 | G30: 14.60
A31: I3084 | B31: ADAPTADOR PBA / BOLSA DEFoFo JE DN 75 | C31: UN | D31: 32.39 | G31: 32.39
A32: I3088 | B32: ADAPTADOR PBA / LUVA DE FIBROCIMENTO DN 100 | C32: UN | D32: 38.33 | G32: 38.33
A33: I3086 | B33: ADAPTADOR PBA / LUVA DE FIBROCIMENTO DN 50 | C33: UN | D33: 28.50 | G33: 28.50
A34: I3087 | B34: ADAPTADOR PBA / LUVA DE FIBROCIMENTO DN 75 | C34: UN | D34: 43.00 | G34: 43.00
A35: I3078 | B35: ADAPTADOR PBA BOLSA / ROSCA DN 50 | C35: UN | D35: 9.70 | G35: 9.70
A36: I3079 | B36: ADAPTADOR PBA BOLSA / ROSCA DN 75 | C36: UN | D36: 26.00 | G36: 26.00
A37: I3080 | B37: ADAPTADOR PBA BOLSA/ ROSCA DN 100 | C37: UN | D37: 40.00 | G37: 40.00
A38: I3081 | B38: ADAPTADOR PBA PONTA / ROSCA DN 50 | C38: UN | D38: 9.47 | G38: 9.47
A39: I6846 | B39: ADAPTADOR PBS BOLSA ROSCA 150mm x 6' | C39: UN | D39: 110.32 | G39: 110.32
A40: I0007 | B40: ADAPTADOR PVC P/SIFÃO 1 1/4''X40MM | C40: UN | D40: 1.60 | G40: 1.60
A41: I6722 | B41: ADAPTADOR PVC REGISTRO 25MM (3/4") | C41: UN | D41: 1.00 | G41: 1.00
A42: I6723 | B42: ADAPTADOR PVC REGISTRO 32MM (1") | C42: UN | D42: 1.58 | G42: 1.58
A43: I6724 | B43: ADAPTADOR PVC REGISTRO 40MM (1 1/4") | C43: UN | D43: 3.05 | G43: 3.05
A44: I6725 | B44: ADAPTADOR PVC REGISTRO 50MM (1 1/2") | C44: UN | D44: 3.51 | G44: 3.51
A45: I6726 | B45: ADAPTADOR PVC REGISTRO 60MM (2") | C45: UN | D45: 9.24 | G45: 9.24
A46: I0008 | B46: ADAPTADOR PVC REGISTRO 75MM (2 1/2'') | C46: UN | D46: 14.80 | G46: 14.80
A47: I0009 | B47: ADAPTADOR PVC REGISTRO 85MM (3'') | C47: UN | D47: 24.00 | G47: 24.00
A48: I0010 | B48: ADAPTADOR PVC SOLD. FLANGES LIVRES P/CX. D'ÁGUA 110MM | C48: UN | D48: 246.63 | G48: 246.63
A49: I0011 | B49: ADAPTADOR PVC SOLD. FLANGES LIVRES P/CX. D'ÁGUA 20MM | C49: UN | D49: 8.80 | G49: 8.80
A50: I0012 | B50: ADAPTADOR PVC SOLD. FLANGES LIVRES P/CX. D'ÁGUA 25MM | C50: UN | D50: 10.93 | G50: 10.93
A51: I0013 | B51: ADAPTADOR PVC SOLD. FLANGES LIVRES P/CX. D'ÁGUA 32MM | C51: UN | D51: 14.70 | G51: 14.70
A52: I0014 | B52: ADAPTADOR PVC SOLD. FLANGES LIVRES P/CX. D'ÁGUA 40MM | C52: UN | D52: 22.00 | G52: 22.00
A53: I0015 | B53: ADAPTADOR PVC SOLD. FLANGES LIVRES P/CX. D'ÁGUA 50MM | C53: UN | D53: 24.49 | G53: 24.49
A54: I0016 | B54: ADAPTADOR PVC SOLD. FLANGES LIVRES P/CX. D'ÁGUA 60MM | C54: UN | D54: 36.32 | G54: 36.32
A55: I0017 | B55: ADAPTADOR PVC SOLD. FLANGES LIVRES P/CX. D'ÁGUA 75MM | C55: UN | D55: 132.90 | G55: 132.90
A56: I0018 | B56: ADAPTADOR PVC SOLD. FLANGES LIVRES P/CX. D'ÁGUA 85MM | C56: UN | D56: 200.00 | G56: 200.00
A57: I0019 | B57: ADAPTADOR PVC SOLDAVEL CURTO LR P/REG. 25x3/4" | C57: UN | D57: 1.00 | G57: 1.00
A58: I6267 | B58: ADAPTADOR SOLDÁVEL BOLSA/ROSCA DN 60mmX2" | C58: UN | D58: 5.60 | G58: 5.60
A59: I0020 | B59: ADAPTADOR SOLDAVEL C/FLANGE P/CX D'ÁGUA 32x1" | C59: UN | D59: 14.41 | G59: 14.41
A60: I8367 | B60: ADAPTER CABLE, CAT. "6" DE 2,50m | C60: UN | D60: 9.53 | G60: 9.53
A61: I0021 | B61: ADESIVO 90ML | C61: UN | D61: 3.60 | G61: 3.60
A62: I0022 | B62: ADESIVO A BASE ASF.E ELAST.EMULS.P/ ADER.MANTAS | C62: KG | D62: 8.09 | G62: 8.09
A63: I0023 | B63: ADESIVO AUTO VULCANIZANTE | C63: L | D63: 26.87 | G63: 26.87
A64: I0024 | B64: ADESIVO DE CONTATO | C64: KG | D64: 8.60 | G64: 8.60
A65: I0025 | B65: ADESIVO HIDRO-ASFALTICO | C65: L | D65: 3.84 | G65: 3.84
A66: I0026 | B66: ADESIVO PARA TUBO DE PVC RIGIDO | C66: KG | D66: 38.25 | G66: 38.25
A67: I0027 | B67: ADITIVO EXPANSOR | C67: L | D67: 12.10 | G67: 12.10
A68: I0028 | B68: ADITIVO HIDROFUGO | C68: KG | D68: 3.83 | G68: 3.83
A69: I8423 | B69: ADITIVO LÍQUIDO CONTROLADOR DE RUPTURA | C69: KG | D69: 4.32 | G69: =D69 -> 4.32
A70: I6801 | B70: ADITIVO PLASTIFICANTE DENSIFICADOR E RETARDADOR DE PEGA | C70: KG | D70: 5.31 | G70: 5.31
A71: I0029 | B71: ADITIVO PLASTIMENT BV-40 | C71: L | D71: 4.85 | G71: 4.85
A72: I0030 | B72: ADUBO MINERAL (10-10-10NPK) | C72: KG | D72: 3.00 | G72: 3.00
A73: I0031 | B73: ADUBO ORGANICO CURTIDO (ESTERCO) | C73: M3 | D73: 142.00 | G73: 142.00
A74: I6310 | B74: AERADOR DE BANDEJAS EM FYBERGLASS CAPACIDADE DE 11,1 à 19,0 l/s | C74: UN | D74: 66,944.24 | G74: 66,944.24
A75: I6311 | B75: AERADOR DE BANDEJAS EM FYBERGLASS CAPACIDADE DE 19,1 à 32,0 l/s | C75: UN | D75: 88,877.69 | G75: 88,877.69
A76: I6312 | B76: AERADOR DE BANDEJAS EM FYBERGLASS CAPACIDADE DE 32,1 à 50,0 l/s | C76: UN | D76: 110,780.09 | G76: 110,780.09
A77: I6309 | B77: AERADOR DE BANDEJAS EM FYBERGLASS CAPACIDADE DE 5,1 à 11,0 l/s | C77: UN | D77: 56,741.84 | G77: 56,741.84
A78: I6313 | B78: AERADOR DE BANDEJAS EM FYBERGLASS CAPACIDADE DE 50,10 à 72,0 l/s | C78: UN | D78: 133,793.00 | G78: 133,793.00
A79: I6308 | B79: AERADOR DE BANDEJAS EM FYBERGLASS CAPACIDADE DE ATÉ 5,0 l/s | C79: UN | D79: 36,268.66 | G79: 36,268.66
A80: I0032 | B80: AFASTADOR FIBROCIMENTO (CANALETE 90) | C80: UN | D80: 3.98 | G80: 3.98
A81: I0033 | B81: AGLUTINANTE ORGANO-SINTETICO | C81: L | D81: 9.18 | G81: 9.18
A82: I0034 | B82: AGREGADO DE ALTA RESISTÊNCIA PARA PISOS | C82: KG | D82: 0.41 | G82: 0.41
A83: I2294 | B83: ÁGUA | C83: M3 | D83: 4.20 | G83: 4.20
A84: I0035 | B84: AGUARRAZ MINERAL | C84: L | D84: 10.46 | G84: 10.46
A85: I0036 | B85: AGULHA 125 PARA SACO | C85: UN | D85: 0.85 | G85: 0.85
A86: I0037 | B86: AJUDANTE | C86: H | D86: 5.60 | E86: 12.11 | F86: MO | G86: =E86 -> 12.11
A87: I0039 | B87: AJUDANTE DE APLICADOR DE IMPERMEABILIZAÇÃO | C87: H | D87: 5.60 | E87: 12.11 | F87: MO | G87: =E87 -> 12.11
A88: I0040 | B88: AJUDANTE DE ARMADOR/FERREIRO | C88: H | D88: 5.60 | E88: 12.11 | F88: MO | G88: 12.11
A89: I0041 | B89: AJUDANTE DE CARPINTEIRO | C89: H | D89: 5.60 | E89: 12.11 | F89: MO | G89: 12.11
A90: I0042 | B90: AJUDANTE DE ELETRICISTA | C90: H | D90: 5.60 | E90: 12.11 | F90: MO | G90: 12.11
A91: I0043 | B91: AJUDANTE DE ENCANADOR | C91: H | D91: 5.60 | E91: 12.11 | F91: MO | G91: 12.11
A92: I0044 | B92: AJUDANTE DE GRANITEIRO/MARMORISTA | C92: H | D92: 5.60 | E92: 12.11 | F92: MO | G92: 12.11
A93: I0045 | B93: AJUDANTE DE PINTOR | C93: H | D93: 5.60 | E93: 12.11 | F93: MO | G93: 12.11
A94: I0046 | B94: AJUDANTE DE SERRALHEIRO | C94: H | D94: 5.60 | E94: 12.11 | F94: MO | G94: 12.11
A95: I0047 | B95: AJUDANTE DE TELHADISTA | C95: H | D95: 5.60 | E95: 12.11 | F95: MO | G95: 12.11
A96: I7452 | B96: ALARME SONORO/VISUAL, SIRENE 120 dB, COM ACIONADOR MANUAL, ALIMENTAÇÃO 220 VAC | C96: UN | D96: 224.40 | G96: =D96 -> 224.40
A97: I8212 | B97: ALÇA PREFORMADA DE DISTRIBUIÇÃO PARA CONDUTOR DE ALUMÍNIO 2,0 AWG | C97: UN | D97: 3.95 | G97: =D97 -> 3.95
A98: I8213 | B98: ALÇA PREFORMADA DE DISTRIBUIÇÃO PARA CONDUTOR DE COBRE 2,0 AWG | C98: UN | D98: 21.49 | G98: =D98 -> 21.49
A99: I0048 | B99: ALFANGISTA | C99: H | D99: 4.88 | E99: 10.56 | F99: MO | G99: =E99 -> 10.56
A100: I8268 | B100: ALIZAR DE MADEIRA L = 5 cm | C100: M | D100: 3.00 | G100: =D100 -> 3.00
A101: I8600 | B101: ALMOXARIFE (COM ENCARGOS INCLUSOS) | C101: HxMÊS | E101: 3,734.51 | F101: MO | G101: =E101 -> 3,734.51
A102: I8973 | B102: ALUGUEL DE EQUIPAMENTO PARA COLETA DE DADOS, DO TIPO "TABLET", COM SISTEMA OPERACIONAL ANDROID 4.2 OU VERSÃO SUPERIOR | C102: H | D102: 0.49 | G102: =D102 -> 0.49
A103: I6787 | B103: ALUMINIO CORRUGADO | C103: M2 | D103: 14.39 | G103: =D103 -> 14.39
A104: I0050 | B104: ALUMINIO ESTRUTURAL USINADO PARA ESTRUTURA | C104: KG | D104: 23.20 | G104: 23.20
A105: I0052 | B105: AMONIA | C105: L | D105: 3.00 | G105: 3.00
A106: I0053 | B106: AMPERIMETRO ( 72 X 72 )MM - ESC. 0 - 250A | C106: UN | D106: 86.40 | G106: 86.40
A107: I0054 | B107: AMPERIMETRO (144 X 144)MM - ESC. 0 - 100A | C107: UN | D107: 190.80 | G107: 190.80
A108: I0055 | B108: AMPERIMETRO (96 X 96)MM - ESC. 0 A 500A | C108: UN | D108: 119.11 | G108: 119.11
A109: I7448 | B109: ANALOG INPUT 4 CHANNEL CARD FOR PLC, MOD. 1746-N14 AB | C109: UN | D109: 1,876.42 | G109: 1,876.42
A110: I0056 | B110: ANCORAGEM ATIVA PARA CABO COM 1 CORDOALHA DE 12.7mm | C110: UN | D110: 41.99 | G110: 41.99
A111: I0057 | B111: ANCORAGEM ATIVA PARA CABO COM 12 CORDOALHA DE 12.7mm | C111: UN | D111: 434.51 | G111: 434.51
A112: I0058 | B112: ANCORAGEM ATIVA PARA CABO COM 2 CORDOALHAS DE 12,7mm | C112: UN | D112: 66.58 | G112: 66.58
A113: I0059 | B113: ANCORAGEM ATIVA PARA CABO COM 4 CORDOALHA DE 12,7mm | C113: UN | D113: 122.51 | G113: 122.51
A114: I0060 | B114: ANCORAGEM ATIVA PARA CABO COM 6 CORDOALHA DE 12.7mm | C114: UN | D114: 204.62 | G114: 204.62
A115: I0061 | B115: ANCORAGEM ATIVA PARA CABO COM 7 CORDOALHA DE 12.7mm | C115: UN | D115: 237.50 | G115: 237.50
A116: I0062 | B116: ANCORAGEM PASSIVA PARA CABO COM 1 CORDOALHA DE 12.7mm | C116: UN | D116: 11.67 | G116: 11.67
A117: I0063 | B117: ANCORAGEM PASSIVA PARA CABO COM 12 CORDOALHA DE 12.7mm | C117: UN | D117: 101.50 | G117: 101.50
A118: I0064 | B118: ANCORAGEM PASSIVA PARA CABO COM 2 CORDOALHA DE 12.7mm | C118: UN | D118: 11.67 | G118: 11.67
A119: I0065 | B119: ANCORAGEM PASSIVA PARA CABO COM 4 CORDOALHA DE 12.7mm | C119: UN | D119: 29.00 | G119: 29.00
A120: I0066 | B120: ANCORAGEM PASSIVA PARA CABO COM 6 CORDOALHA DE 12.7mm | C120: UN | D120: 48.33 | G120: 48.33
A121: I0067 | B121: ANCORAGEM PASSIVA PARA CABO COM 7 CORDOALHA DE 12.7mm | C121: UN | D121: 72.49 | G121: 72.49
A122: I7947 | B122: ANDAIME METÁLICO DE ENCAIXE | C122: M3xMÊS | D122: 2.00 | G122: =D122 -> 2.00
A123: I0068 | B123: ANDAIME METALICO DE FACHADA - LOCAÇÃO | C123: M2 | D123: 5.77 | G123: =D123 -> 5.77
A124: I8216 | B124: ANEL BORRACHA P/ FoFo JUNTA ELÁSTICA DN 100 P/ ÁGUA | C124: UN | D124: 13.96 | G124: 13.96
A125: I4159 | B125: ANEL BORRACHA P/ FoFo JUNTA ELÁSTICA DN 100 P/ ESGOTO | C125: UN | D125: 24.55 | G125: 24.55
A126: I6409 | B126: ANEL BORRACHA P/ FoFo JUNTA ELÁSTICA DN 1000 P/ ÁGUA | C126: UN | D126: 434.88 | G126: 434.88
A127: I4172 | B127: ANEL BORRACHA P/ FoFo JUNTA ELÁSTICA DN 1000 P/ ESGOTO | C127: UN | D127: 1,024.72 | G127: 1,024.72
A128: I6417 | B128: ANEL BORRACHA P/ FoFo JUNTA ELÁSTICA DN 1200 P/ ÁGUA | C128: UN | D128: 698.40 | G128: 698.40
A129: I4173 | B129: ANEL BORRACHA P/ FoFo JUNTA ELÁSTICA DN 1200 P/ ESGOTO | C129: UN | D129: 2,062.27 | G129: 2,062.27
A130: I8217 | B130: ANEL BORRACHA P/ FoFo JUNTA ELÁSTICA DN 150 P/ ÁGUA | C130: UN | D130: 19.23 | G130: 19.23
A131: I4160 | B131: ANEL BORRACHA P/ FoFo JUNTA ELÁSTICA DN 150 P/ ESGOTO | C131: UN | D131: 46.90 | G131: 46.90
A132: I8218 | B132: ANEL BORRACHA P/ FoFo JUNTA ELÁSTICA DN 200 P/ ÁGUA | C132: UN | D132: 24.53 | G132: 24.53
A133: I4161 | B133: ANEL BORRACHA P/ FoFo JUNTA ELÁSTICA DN 200 P/ ESGOTO | C133: UN | D133: 92.10 | G133: 92.10
A134: I8219 | B134: ANEL BORRACHA P/ FoFo JUNTA ELÁSTICA DN 250 P/ ÁGUA | C134: UN | D134: 31.77 | G134: 31.77
A135: I4162 | B135: ANEL BORRACHA P/ FoFo JUNTA ELÁSTICA DN 250 P/ ESGOTO | C135: UN | D135: 113.52 | G135: 113.52
A136: I8220 | B136: ANEL BORRACHA P/ FoFo JUNTA ELÁSTICA DN 300 P/ ÁGUA | C136: UN | D136: 45.36 | G136: 45.36
A137: I4163 | B137: ANEL BORRACHA P/ FoFo JUNTA ELÁSTICA DN 300 P/ ESGOTO | C137: UN | D137: 127.10 | G137: 127.10
A138: I8221 | B138: ANEL BORRACHA P/ FoFo JUNTA ELÁSTICA DN 350 P/ ÁGUA | C138: UN | D138: 71.33 | G138: 71.33
A139: I4164 | B139: ANEL BORRACHA P/ FoFo JUNTA ELÁSTICA DN 350 P/ ESGOTO | C139: UN | D139: 134.16 | G139: 134.16
A140: I6400 | B140: ANEL BORRACHA P/ FoFo JUNTA ELÁSTICA DN 400 P/ ÁGUA | C140: UN | D140: 62.47 | G140: 62.47
A141: I4165 | B141: ANEL BORRACHA P/ FoFo JUNTA ELÁSTICA DN 400 P/ ESGOTO | C141: UN | D141: 162.63 | G141: 162.63
A142: I6402 | B142: ANEL BORRACHA P/ FoFo JUNTA ELÁSTICA DN 450 P/ ÁGUA | C142: UN | D142: 97.90 | G142: 97.90
A143: I4166 | B143: ANEL BORRACHA P/ FoFo JUNTA ELÁSTICA DN 450 P/ ESGOTO | C143: UN | D143: 195.56 | G143: 195.56
A144: I4157 | B144: ANEL BORRACHA P/ FoFo JUNTA ELÁSTICA DN 50 P/ ESGOTO | C144: UN | D144: 2.17 | G144: 2.17
A145: I6403 | B145: ANEL BORRACHA P/ FoFo JUNTA ELÁSTICA DN 500 P/ ÁGUA | C145: UN | D145: 93.88 | G145: 93.88
A146: I4167 | B146: ANEL BORRACHA P/ FoFo JUNTA ELÁSTICA DN 500 P/ ESGOTO | C146: UN | D146: 256.46 | G146: 256.46
A147: I6404 | B147: ANEL BORRACHA P/ FoFo JUNTA ELÁSTICA DN 600 P/ ÁGUA | C147: UN | D147: 123.16 | G147: 123.16
A148: I4168 | B148: ANEL BORRACHA P/ FoFo JUNTA ELÁSTICA DN 600 P/ ESGOTO | C148: UN | D148: 293.40 | G148: 293.40
A149: I6405 | B149: ANEL BORRACHA P/ FoFo JUNTA ELÁSTICA DN 700 P/ ÁGUA | C149: UN | D149: 258.58 | G149: 258.58
A150: I4169 | B150: ANEL BORRACHA P/ FoFo JUNTA ELÁSTICA DN 700 P/ ESGOTO | C150: UN | D150: 681.13 | G150: 681.13
A151: I8215 | B151: ANEL BORRACHA P/ FoFo JUNTA ELÁSTICA DN 80 P/ ÁGUA | C151: UN | D151: 8.10 | G151: 8.10
A152: I7095 | B152: ANEL BORRACHA P/ FoFo JUNTA ELÁSTICA DN 80 P/ ESGOTO | C152: UN | D152: 18.92 | G152: 18.92
A153: I6406 | B153: ANEL BORRACHA P/ FoFo JUNTA ELÁSTICA DN 800 P/ ÁGUA | C153: UN | D153: 299.15 | G153: 299.15
A154: I4170 | B154: ANEL BORRACHA P/ FoFo JUNTA ELÁSTICA DN 800 P/ ESGOTO | C154: UN | D154: 783.74 | G154: 783.74
A155: I6407 | B155: ANEL BORRACHA P/ FoFo JUNTA ELÁSTICA DN 900 P/ ÁGUA | C155: UN | D155: 353.11 | G155: 353.11
A156: I4171 | B156: ANEL BORRACHA P/ FoFo JUNTA ELÁSTICA DN 900 P/ ESGOTO | C156: UN | D156: 929.20 | G156: 929.20
A157: I2965 | B157: ANEL DE BORRACHA OCRE DN 100 | C157: UN | D157: 1.40 | G157: 1.40
A158: I2966 | B158: ANEL DE BORRACHA OCRE DN 125 | C158: UN | D158: 5.29 | G158: 5.29
A159: I2967 | B159: ANEL DE BORRACHA OCRE DN 150 | C159: UN | D159: 3.74 | G159: 3.74
A160: I2968 | B160: ANEL DE BORRACHA OCRE DN 200 | C160: UN | D160: 5.15 | G160: 5.15
A161: I2969 | B161: ANEL DE BORRACHA OCRE DN 250 | C161: UN | D161: 10.65 | G161: 10.65
A162: I2970 | B162: ANEL DE BORRACHA OCRE DN 300 | C162: UN | D162: 26.75 | G162: 26.75
A163: I2971 | B163: ANEL DE BORRACHA OCRE DN 350 | C163: UN | D163: 53.00 | G163: 53.00
A164: I2972 | B164: ANEL DE BORRACHA OCRE DN 400 | C164: UN | D164: 59.00 | G164: 59.00
A165: I3094 | B165: ANEL DE BORRACHA P/ TUBO DE FoFo 1MPa DN 100 | C165: UN | D165: 6.80 | G165: 6.80
A166: I3095 | B166: ANEL DE BORRACHA P/ TUBO DE FoFo 1MPa DN 150 | C166: UN | D166: 9.50 | G166: 9.50
A167: I3096 | B167: ANEL DE BORRACHA P/ TUBO DE FoFo 1MPa DN 200 | C167: UN | D167: 15.40 | G167: 15.40
A168: I3097 | B168: ANEL DE BORRACHA P/ TUBO DE FoFo 1MPa DN 250 | C168: UN | D168: 48.88 | G168: 48.88
A169: I3098 | B169: ANEL DE BORRACHA P/ TUBO DE FoFo 1MPa DN 300 | C169: UN | D169: 60.09 | G169: 60.09
A170: I3091 | B170: ANEL DE BORRACHA P/ TUBO PBA DN 100 | C170: UN | D170: 2.42 | G170: 2.42
A171: I3089 | B171: ANEL DE BORRACHA P/ TUBO PBA DN 50 | C171: UN | D171: 0.95 | G171: 0.95
A172: I3090 | B172: ANEL DE BORRACHA P/ TUBO PBA DN 75 | C172: UN | D172: 1.47 | G172: 1.47
A173: I0069 | B173: ANEL DE BORRACHA P/ TUBOS E CONEXÕES F.F. 100M | C173: UN | D173: 22.07 | G173: 22.07
A174: I0070 | B174: ANEL DE BORRACHA P/ TUBOS E CONEXÕES F.F. 150MM | C174: UN | D174: 28.69 | G174: 28.69
A175: I0071 | B175: ANEL DE BORRACHA P/ TUBOS E CONEXÕES F.F. 50MM | C175: UN | D175: 18.70 | G175: 18.70
A176: I0072 | B176: ANEL DE BORRACHA P/ TUBOS E CONEXÕES F.F. 75MM | C176: UN | D176: 19.20 | G176: 19.20
A177: I0073 | B177: ANEL DE BORRACHA P/TUBO PVC 100MM (4'') | C177: UN | D177: 1.34 | G177: 1.34
A178: I0074 | B178: ANEL DE BORRACHA P/TUBO PVC 150MM (6'') | C178: UN | D178: 4.01 | G178: 4.01
A179: I0075 | B179: ANEL DE BORRACHA P/TUBO PVC 40MM | C179: UN | D179: 0.80 | G179: 0.80
A180: I0076 | B180: ANEL DE BORRACHA P/TUBO PVC 50MM (2'') | C180: UN | D180: 0.91 | G180: 0.91
A181: I0077 | B181: ANEL DE BORRACHA P/TUBO PVC 75MM (3'') | C181: UN | D181: 1.09 | G181: 1.09
A182: I0078 | B182: ANEL DE BORRACHA P/TUBO PVC REFORÇADO DE 100MM | C182: UN | D182: 1.75 | G182: 1.75
A183: I0079 | B183: ANEL DE BORRACHA P/TUBO PVC REFORÇADO DE 150MM | C183: UN | D183: 5.31 | G183: 5.31
A184: I0080 | B184: ANEL DE BORRACHA P/TUBO PVC REFORÇADO DE 50MM | C184: UN | D184: 1.30 | G184: 1.30
A185: I0081 | B185: ANEL DE BORRACHA P/TUBO PVC REFORÇADO DE 75MM | C185: UN | D185: 1.40 | G185: 1.40
A186: I2964 | B186: ANEL DE BORRACHA P/TUBO VFORT.PAREDE DUPLA DN 150 | C186: UN | D186: 10.44 | G186: 10.44
A187: I6847 | B187: ANEL DE BORRACHA TIL REDE 150 | C187: UN | D187: 52.13 | G187: =D187 -> 52.13
A188: I6848 | B188: ANEL DE BORRACHA TIL REDE 300 | C188: UN | D188: 130.67 | G188: 130.67
A189: I7412 | B189: ANEL DE PROTEÇÃO DIAZED | C189: UN | D189: 2.44 | G189: 2.44
A190: I0082 | B190: ANEL DE VEDAÇÃO PARA BACIA | C190: UN | D190: 7.00 | G190: 7.00
A191: I5803 | B191: ANEL EDUTOR O-RING DN 40 | C191: UN | D191: 0.48 | G191: 0.48
A192: I5804 | B192: ANEL EDUTOR O-RING DN 50 | C192: UN | D192: 0.87 | G192: 0.87
A193: I5805 | B193: ANEL EDUTOR O-RING DN 65 | C193: UN | D193: 1.42 | G193: 1.42
A194: I0083 | B194: ANEL PRE-MOLDADO DE CONCRETO D=0.60M, h = 0.80M | C194: UN | D194: 69.98 | G194: 69.98
A195: I7964 | B195: ANEL PRE-MOLDADO DE CONCRETO D=1,20M, h=0,50M | C195: UN | D195: 120.00 | G195: 120.00
A196: I6244 | B196: ANEL PRÉ-MOLDADO DE CONCRETO, D=1,50M, H = 0.50M | C196: UN | D196: 201.60 | G196: 201.60
A197: I6410 | B197: ANEL PRÉ-MOLDADO DE CONCRETO, D=4,00M, ESP=12CM | C197: UN | D197: 627.78 | G197: 627.78
A198: I6063 | B198: ANEL PRE-MOLDADO DE CONCRETO, D = 0,60M (LIGA. PREDIAL) | C198: UN | D198: 44.00 | G198: 44.00
A199: I6061 | B199: ANEL PRE-MOLDADO DE CONCRETO, D = 0,60M, H = 0,50M | C199: UN | D199: 57.05 | G199: 57.05
A200: I6062 | B200: ANEL PRE-MOLDADO DE CONCRETO, D = 0,60M, H = 0,70M | C200: UN | D200: 51.00 | G200: 51.00
... 7187 more rows

Sheet SEINFRA-SERV (hidden)
D1: TABELA UNIFICADA SEINFRA
D2: 024 | E2: BDI: 0,00% Encargos Sociais: 116,33%
A4: ITEM | B4: CÓDIGO | C4: DESCRIÇÃO | F4: UNIDADE | G4: PREÇO UNITÁRIO
A5: 1 | B5: SERVICOS PRELIMINARES | G5: 73,679.11
A6: 1.1 | B6: CADASTRO | G6: 190.11
A7: 1.1.1 | B7: C0580 | C7: CADASTRO DE ADUTORA | F7: M | G7: 1.11
A8: 1.1.2 | B8: C0581 | C8: CADASTRO DE LIGAÇÃO | F8: UN | G8: 2.29
A9: 1.1.3 | B9: C0582 | C9: CADASTRO DE OBRAS LOCALIZADAS | F9: M2 | G9: 33.88
A10: 1.1.4 | B10: C0583 | C10: CADASTRO DE REDE DE ÁGUA (MEIO MAGNÉTICO) | F10: M | G10: 0.97
A11: 1.1.5 | B11: C0584 | C11: CADASTRO DE REDE DE ESGOTO/EMISSÁRIO/DRENAGEM (MEIO MAGNÉTICO) | F11: M | G11: 1.41
A12: 1.1.6 | B12: C3959 | C12: CADASTRO E AVALIAÇÃO DE IMÓVEIS | F12: UT | G12: 31.15
A13: 1.1.7 | B13: C3427 | C13: CADASTRO OPERACIONAL DE CLIENTE CAPITAL - PADRÃO | F13: IMÓVEL | G13: 7.71
A14: 1.1.8 | B14: C3428 | C14: CADASTRO OPERACIONAL DE CLIENTE INTERIOR - PADRÃO | F14: IMÓVEL | G14: 6.79
A15: 1.1.9 | B15: C4579 | C15: CENSO DE CAMPO - CAPITAL | F15: IMÓVEL | G15: 5.74
A16: 1.1.10 | B16: C4580 | C16: CENSO DE CAMPO - INTERIOR | F16: IMÓVEL | G16: 6.70
A17: 1.1.11 | B17: C4581 | C17: SERVIÇO DE OBTENÇÃO / ATUALIZAÇÃO DE PLANTA EM CAMPO MEIO DIGITAL | F17: QUADRA | G17: 54.09
A18: 1.1.12 | B18: C4582 | C18: SERVIÇO DE OBTENÇÃO / ATUALIZAÇÃO DE QUADRAS (OVERLAYS) | F18: QUADRA | G18: 38.29
A19: 1.2 | B19: SONDAGENS | G19: 4,397.58
A20: 1.2.1 | B20: C2820 | C20: EXECUÇÃO DE SONDAGEM ELÉTRICA VERTICAL AB/2 ATÉ 150m - SEV | F20: UN | G20: 401.38
A21: 1.2.2 | B21: C2818 | C21: EXECUÇÃO DE SONDAGEM ELÉTRICA VERTICAL AB/2 >150m a 500m-SEV | F21: UN | G21: 511.37
A22: 1.2.3 | B22: C2819 | C22: EXECUÇÃO DE SONDAGEM ELÉTRICA VERTICAL AB/2 >500m - SEV | F22: UN | G22: 653.76
A23: 1.2.4 | B23: C2833 | C23: FOTOGEOLOGIA | F23: UN | G23: 313.25
A24: 1.2.5 | B24: C0053 | C24: LEVANTAMENTO BATIMÉTRICO | F24: M2 | G24: 0.44
A25: 1.2.6 | B25: C2937 | C25: RELATÓRIO FINAL DE SONDAGEM | F25: UN | G25: 939.74
A26: 1.2.7 | B26: C0333 | C26: SERVIÇOS DE SONDAGEM GEOTÉCNICA MISTA EM ROCHA | F26: M | G26: 981.33
A27: 1.2.8 | B27: C0143 | C27: SERVIÇOS DE SONDAGEM GEOTÉCNICA MISTA EM SOLOS | F27: M | G27: 235.12
A28: 1.2.9 | B28: C2290 | C28: SONDAGEM À PERCUSSÃO P/RECONHECIMENTO DO SUBSOLO | F28: M | G28: 54.52
A29: 1.2.10 | B29: C3955 | C29: SONDAGEM ROTATIVA P/ RECONHECIMENTO DO SUBSOLO | F29: M | G29: 306.67
A30: 1.3 | B30: PROJETOS | G30: 172.74
A31: 1.3.1 | B31: C3507 | C31: ELABORAÇÃO DE PROJETO DE CÁLCULO ESTRUTURAL (RESERVATÓRIO ELEVADO) | F31: M2xARF | G31: 33.31
A32: 1.3.2 | B32: C3508 | C32: ELABORAÇÃO DE PROJETO DE CÁLCULO ESTRUTURAL (RESERVATÓRIO APOIADO, ELEVATÓRIA E CAIXA DE AREIA) | F32: M2xARF | G32: 14.82
A34: 1.3.3 | B34: C4617 | C34: ELABORAÇÃO DE PROJETOS BÁSICOS DE ENGENHARIA | F34: UT | G34: 31.15
A35: 1.3.4 | B35: C4584 | C35: ELABORAÇÃO DE PROJETOS EXECUTIVOS DE ENGENHARIA | F35: UT | G35: 31.15
A36: 1.3.5 | B36: C3956 | C36: ELABORAÇÃO DE RELATÓRIO DE ESTUDO DE IMPACTO AMBIENTAL | F36: UT | G36: 31.15
A37: 1.3.6 | B37: C1083 | C37: ELABORAÇÃO DE RELATÓRIO "AS BUILT" | F37: UT | G37: 31.15
A38: 1.4 | B38: PREPARAÇÃO DO TERRENO | G38: 256.83
A39: 1.4.1 | B39: C0927 | C39: CORTE DE CAPOEIRA FINA A FOICE | F39: M2 | G39: 0.82
A40: 1.4.2 | B40: C2102 | C40: RASPAGEM E LIMPEZA DO TERRENO | F40: M2 | G40: 2.64
A41: 1.4.3 | B41: C2204 | C41: RETIRADA DE ÁRVORES | F41: UN | G41: 253.37
A42: 1.5 | B42: CONSTRUÇÃO DO CANTEIRO DA OBRA | G42: 64,527.22
A43: 1.5.1 | B43: C0002 | C43: ABRIGO PROVISÓRIO C/1 PAVIMENTO P/ALOJAMENTO E DEPÓSITO | F43: M2 | G43: 634.91
A44: 1.5.2 | B44: C0003 | C44: ABRIGO PROVISÓRIO C/2 PAVIMENTOS P/ALOJAMENTO E DEPÓSITO | F44: M2 | G44: 574.15
A45: 1.5.3 | B45: C0043 | C45: ALOJAMENTO | F45: M2 | G45: 195.57
A46: 1.5.4 | B46: C0369 | C46: BARRACÃO ABERTO | F46: M2 | G46: 98.75
A47: 1.5.5 | B47: C0370 | C47: BARRACÃO PARA ESCRITÓRIO TIPO A1 | F47: UN | G47: 3,992.02
A48: 1.5.6 | B48: C0371 | C48: BARRACÃO PARA ESCRITÓRIO TIPO A2 | F48: UN | G48: 6,750.26
A49: 1.5.7 | B49: C0372 | C49: BARRACÃO PARA ESCRITÓRIO TIPO A3 | F49: UN | G49: 10,597.82
A50: 1.5.8 | B50: C0373 | C50: BARRACÃO PARA ESCRITÓRIO TIPO A4 | F50: UN | G50: 14,558.85
A51: 1.5.9 | B51: C0374 | C51: BARRACÃO PARA ESCRITÓRIO TIPO A5 | F51: UN | G51: 19,882.17
A52: 1.5.10 | B52: C2831 | C52: FOSSA SUMIDOURO PARA BARRACÃO | F52: UN | G52: 1,590.87
A53: 1.5.11 | B53: C2851 | C53: INSTALAÇÕES PROVISÓRIAS DE ÁGUA | F53: UN | G53: 931.71
A54: 1.5.12 | B54: C2849 | C54: INSTALAÇÕES PROVISÓRIAS DE ESGOTO | F54: UN | G54: 206.00
A55: 1.5.13 | B55: C2850 | C55: INSTALAÇÕES PROVISÓRIAS DE LUZ , FORÇA,TELEFONE E LÓGICA | F55: UN | G55: 1,510.90
A56: 1.5.14 | B56: C1622 | C56: LIGAÇÃO PROVISÓRIA DE ÁGUA E SANITÁRIO | F56: UN | G56: 1,847.07
A57: 1.5.15 | B57: C1794 | C57: MOBILIZAÇÃO E DESMOBILIZAÇÃO DE EQUIPAMENTOS EM CAMINHÃO EQUIPADO C/ GUINDASTE | F57: KM | G57: 4.01
A59: 1.5.16 | B59: C3375 | C59: MOBILIZAÇÃO E DESMOBILIZAÇÃO DE EQUIPAMENTOS EM CAVALO MECÂNICO C/ PRANCHA DE 3 EIXOS | F59: KM | G59: 5.44
A61: 1.5.17 | B61: C4541 | C61: PLACA PADRÃO DE OBRA, TIPO BANNER | F61: M2 | G61: 248.74
A62: 1.5.18 | B62: C1937 | C62: PLACAS PADRÃO DE OBRA | F62: M2 | G62: 131.17
A63: 1.5.19 | B63: C2936 | C63: REFEITÓRIOS | F63: M2 | G63: 213.10
A64: 1.5.20 | B64: C2946 | C64: SANITÁRIOS E CHUVEIROS | F64: M2 | G64: 159.55
A65: 1.5.21 | B65: C2316 | C65: TAPUME DE CHAPA DE MADEIRA COMPENSADA E= 6mm C/ABERTURA E PORTÃO | F65: M2 | G65: 82.29
A66: 1.5.22 | B66: C3974 | C66: TAPUME DE ESTRUTURA DE MADEIRA C/ FECHAMENTO EM CHAPA DE AÇO GALVANIZADO DE 0,3 mm e ALTURA DE 2 M | F66: M2 | G66: 144.72
A68: 1.5.23 | B68: C2317 | C68: TAPUME DE TÁBUAS DE 3.ª C/ABERTURA E PORTÃO | F68: M2 | G68: 90.12
A69: 1.5.24 | B69: C2318 | C69: TAPUME DE TÁBUAS DE 3.ª SOBREPOSTAS | F69: M2 | G69: 77.05
A70: 1.6 | B70: LOCAÇÃO DA OBRA | G70: 639.36
A71: 1.6.1 | B71: C1630 | C71: LOCAÇÃO DA OBRA - EXECUÇÃO DE GABARITO | F71: M2 | G71: 4.58
A72: 1.6.2 | B72: C2872 | C72: LOCAÇÃO DA OBRA COM AUXÍLIO TOPOGRÁFICO (ÁREA >5000 M2) | F72: HA | G72: 625.68
A73: 1.6.3 | B73: C2873 | C73: LOCAÇÃO DA OBRA COM AUXÍLIO TOPOGRÁFICO (ÁREA ATÉ 5000 M2) | F73: M2 | G73: 0.32
A74: 1.6.4 | B74: C2874 | C74: LOCAÇÃO DE REDE DE ÁGUA | F74: M | G74: 0.19
A75: 1.6.5 | B75: C0774 | C75: LOCAÇÃO DE OBRAS EM MAR | F75: M2 | G75: 0.44
A76: 1.6.6 | B76: C0775 | C76: LOCAÇÃO DE JAZIDAS EM MAR | F76: M2 | G76: 0.51
A77: 1.6.7 | B77: C2875 | C77: LOCAÇÃO E NIVELAMENTO DE ADUTORA | F77: M | G77: 1.87
A78: 1.6.8 | B78: C2876 | C78: LOCAÇÃO E NIVELAMENTO DE REDE DE ESGOTO/EMISSÁRIO/DRENAGEM | F78: M | G78: 2.55
A79: 1.6.9 | B79: C3528 | C79: MUTIRÃO MISTO - LOCAÇÃO DA OBRA - EXECUÇÃO DE GABARITO | F79: M2 | G79: 3.21
A80: 1.7 | B80: DEMOLIÇÕES E RETIRADAS | G80: 3,166.07
A81: 1.7.1 | B81: C2992 | C81: DEMOLIÇÃO DE ALVENARIA DE PEDRA COM REMOÇÃO LATERAL | F81: M3 | G81: 108.05
A82: 1.7.2 | B82: C1042 | C82: DEMOLIÇÃO DE ALVENARIA DE TIJOLOS C/ REAPROVEITAMENTO | F82: M3 | G82: 72.69
A83: 1.7.3 | B83: C1043 | C83: DEMOLIÇÃO DE ALVENARIA DE TIJOLOS S/ REAPROVEITAMENTO | F83: M3 | G83: 36.34
A84: 1.7.4 | B84: C1044 | C84: DEMOLIÇÃO DE CALHAS | F84: M | G84: 13.67
A85: 1.7.5 | B85: C1045 | C85: DEMOLIÇÃO DE COBERTURA C/TELHAS CERÂMICAS | F85: M2 | G85: 7.27
A86: 1.7.6 | B86: C1046 | C86: DEMOLIÇÃO DE COBERTURA C/TELHAS ONDULADAS DE FIBROCIMENTO | F86: M2 | G86: 3.03
A87: 1.7.7 | B87: C1047 | C87: DEMOLIÇÃO DE COBOGÓS | F87: M2 | G87: 20.51
A88: 1.7.8 | B88: C1048 | C88: DEMOLIÇÃO DE CONCRETO ARMADO C/MARTELETE PNEUMÁTICO | F88: M3 | G88: 385.99
A89: 1.7.9 | B89: C1049 | C89: DEMOLIÇÃO DE CONCRETO SIMPLES | F89: M3 | G89: 157.49
A90: 1.7.10 | B90: C1058 | C90: DEMOLIÇÃO DE DEGRAUS DE PEDRA | F90: M | G90: 19.38
A91: 1.7.11 | B91: C1050 | C91: DEMOLIÇÃO DE DIVISÓRIA LEVE | F91: M2 | G91: 18.34
A92: 1.7.12 | B92: C1051 | C92: DEMOLIÇÃO DE DIVISÓRIA OUTRAS (PRÉ MOLDADO) | F92: M2 | G92: 23.88
A93: 1.7.13 | B93: C1052 | C93: DEMOLIÇÃO DE ESTRUTURA DE MADEIRA P/TELHADOS | F93: M2 | G93: 17.77
A94: 1.7.14 | B94: C1053 | C94: DEMOLIÇÃO DE ESTRUTURA METÁLICA | F94: M2 | G94: 20.51
A95: 1.7.15 | B95: C1054 | C95: DEMOLIÇÃO DE FORRO DE PVC | F95: M2 | G95: 9.09
A96: 1.7.16 | B96: C1055 | C96: DEMOLIÇÃO DE FORRO DE TÁBUAS DE PINHO | F96: M2 | G96: 4.10
A97: 1.7.17 | B97: C1056 | C97: DEMOLIÇÃO DE FORRO DE GESSO | F97: M2 | G97: 2.40
A98: 1.7.18 | B98: C1057 | C98: DEMOLIÇÃO DE FORRO PACOTE | F98: M2 | G98: 6.06
A99: 1.7.19 | B99: C2993 | C99: DEMOLIÇÃO DE FORRO DE LAMBRI | F99: M2 | G99: 4.10
A100: 1.7.20 | B100: C1061 | C100: DEMOLIÇÃO DE LOUÇA SANITÁRIA | F100: UN | G100: 12.56
A101: 1.7.21 | B101: C1062 | C101: DEMOLIÇÃO DE PAVIMENTAÇÃO ASFÁLTICA C/MARTELETE PNEUMÁTICO | F101: M2 | G101: 15.56
A102: 1.7.22 | B102: C1063 | C102: DEMOLIÇÃO DE PÉRGOLAS OU BRISES | F102: M3 | G102: 157.49
A103: 1.7.23 | B103: C1064 | C103: DEMOLIÇÃO DE PISO CERÂMICO | F103: M2 | G103: 8.48
A104: 1.7.24 | B104: C1065 | C104: DEMOLIÇÃO DE PISO CERÂMICO SOBRE LASTRO DE CONCRETO | F104: M2 | G104: 16.96
A105: 1.7.25 | B105: C1066 | C105: DEMOLIÇÃO DE PISO CIMENTADO SOBRE LASTRO DE CONCRETO | F105: M2 | G105: 15.75
A106: 1.7.26 | B106: C2716 | C106: DEMOLIÇÃO DE PISO DE LADRILHO | F106: M2 | G106: 10.56
A107: 1.7.27 | B107: C1067 | C107: DEMOLIÇÃO DE PISO DE TÁBUAS DE PEROBA | F107: M2 | G107: 12.30
A108: 1.7.28 | B108: C1068 | C108: DEMOLIÇÃO DE PISO E VIGAS DE MADEIRA | F108: M2 | G108: 16.41
A109: 1.7.29 | B109: C1069 | C109: DEMOLIÇÃO DE PISO INDUSTRIAL | F109: M2 | G109: 32.47
A110: 1.7.30 | B110: C1070 | C110: DEMOLIÇÃO DE REVESTIMENTO C/ARGAMASSA | F110: M2 | G110: 6.06
A111: 1.7.31 | B111: C1071 | C111: DEMOLIÇÃO DE REVESTIMENTO C/AZULEJOS | F111: M2 | G111: 30.29
A112: 1.7.32 | B112: C1074 | C112: DEMOLIÇÃO DE REVESTIMENTO C/CERÂMICAS | F112: M2 | G112: 30.29
A113: 1.7.33 | B113: C1072 | C113: DEMOLIÇÃO DE REVESTIMENTO C/LAMBRIS | F113: M2 | G113: 30.29
A114: 1.7.34 | B114: C1073 | C114: DEMOLIÇÃO DE REVESTIMENTO C/ PEDRAS NATURAIS | F114: M2 | G114: 35.11
A115: 1.7.35 | B115: C1075 | C115: DEMOLIÇÃO DE SARJETA OU SARJETÃO DE CONCRETO | F115: M2 | G115: 9.69
A116: 1.7.36 | B116: C1076 | C116: DEMOLIÇÃO DE SOLEIRAS, PEITORIS E DEGRAUS | F116: M | G116: 15.75
A117: 1.7.37 | B117: C1077 | C117: DEMOLIÇÃO DE VIGAS DE FERRO | F117: KG | G117: 0.19
A118: 1.7.38 | B118: C3064 | C118: DEMOLIÇÃO E REMOÇÃO DE PAVIMENTO EM PARALELEPIPEDO E POLIÉDRICO | F118: M2 | G118: 5.28
A119: 1.7.39 | B119: C3063 | C119: DEMOLIÇÃO E REMOÇÃO DE PAREDES DE TAIPA | F119: M2 | G119: 17.60
A120: 1.7.40 | B120: C2717 | C120: DEMOLIÇÃO MANUAL DE CONCRETO ARMADO | F120: M3 | G120: 290.75
A121: 1.7.41 | B121: C3103 | C121: REMOÇÃO DE BUEIROS EXISTENTES | F121: M | G121: 84.46
A122: 1.7.42 | B122: C3104 | C122: REMOÇÃO DE CERCAS | F122: M | G122: 0.26
A123: 1.7.43 | B123: C2197 | C123: REMOÇÃO DE PINTURA ANTIGA A CAL | F123: M2 | G123: 2.11
A124: 1.7.44 | B124: C2198 | C124: REMOÇÃO DE PINTURA ANTIGA À TEMPERA | F124: M2 | G124: 3.17
A125: 1.7.45 | B125: C3038 | C125: RETIRADA DE CAIXA DE AR CONDICIONADO | F125: UN | G125: 52.27
A126: 1.7.46 | B126: C3039 | C126: RETIRADA DE CARPETE S/REAPROVEITAMENTO | F126: M2 | G126: 2.64
A127: 1.7.47 | B127: C3376 | C127: RETIRADA DE COLETOR EM CONCRETO ATÉ 400mm | F127: M | G127: 28.26
A128: 1.7.48 | B128: C2206 | C128: RETIRADA DE ESQUADRIAS METÁLICAS | F128: M2 | G128: 6.06
A129: 1.7.49 | B129: C3040 | C129: RETIRADA DE GRADE DE FERRO | F129: M2 | G129: 5.23
A130: 1.7.50 | B130: C2207 | C130: RETIRADA DE GUIAS PRÉ FABRICADAS DE CONCRETO | F130: M | G130: 6.06
A131: 1.7.51 | B131: C3373 | C131: RETIRADA DE MEIO FIO DE PEDRA GRANÍTICA | F131: M | G131: 6.06
A132: 1.7.52 | B132: C2938 | C132: RETIRADA DE PAVIMENTAÇÃO ASFÁLTICA COM BASE EM PEDRA | F132: M2 | G132: 20.56
A133: 1.7.53 | B133: C2939 | C133: RETIRADA DE PAVIMENTAÇÃO EM BLOCO DE CONCRETO | F133: M2 | G133: 6.86
A134: 1.7.54 | B134: C3041 | C134: RETIRADA DE PAVIMENTAÇÃO EM BLOKRET C/ REMOÇÃO LATERAL | F134: M2 | G134: 7.27
A135: 1.7.55 | B135: C2940 | C135: RETIRADA DE PAVIMENTAÇÃO EM PARALELEPÍPEDO OU PEDRA TOSCA | F135: M2 | G135: 6.33
A136: 1.7.56 | B136: C2941 | C136: RETIRADA DE PAVIMENTAÇÃO EM PASSEIO CIMENTADO | F136: M2 | G136: 10.56
A137: 1.7.57 | B137: C2942 | C137: RETIRADA DE PAVIMENTAÇÃO EM PEDRA PORTUGUESA | F137: M2 | G137: 5.28
A138: 1.7.58 | B138: C2209 | C138: RETIRADA DE PISO PAVIFLEX | F138: M2 | G138: 6.84
A139: 1.7.59 | B139: C2210 | C139: RETIRADA DE PORTAS E JANELAS, INCLUSIVE BATENTES | F139: M2 | G139: 9.69
A140: 1.7.60 | B140: C3047 | C140: RETIRADA DE TUBO PVC ENTERRADO DN=50mm | F140: M | G140: 5.19
A141: 1.7.61 | B141: C3048 | C141: RETIRADA DE TUBO PVC ENTERRADO DN=75mm | F141: M | G141: 6.40
A142: 1.7.62 | B142: C3049 | C142: RETIRADA DE TUBO PVC ENTERRADO DN=85mm | F142: M | G142: 7.01
A143: 1.7.63 | B143: C3042 | C143: RETIRADA DE TUBO PVC ENTERRADO DN=100mm | F143: M | G143: 7.61
A144: 1.7.64 | B144: C3043 | C144: RETIRADA DE TUBO PVC ENTERRADO DN=150mm | F144: M | G144: 10.38
A145: 1.7.65 | B145: C3044 | C145: RETIRADA DE TUBO PVC ENTERRADO DN=200mm | F145: M | G145: 14.36
A146: 1.7.66 | B146: C3045 | C146: RETIRADA DE TUBO PVC ENTERRADO DN=250mm | F146: M | G146: 16.79
A147: 1.7.67 | B147: C3046 | C147: RETIRADA DE TUBO PVC ENTERRADO DN=300mm | F147: M | G147: 21.98
A148: 1.7.68 | B148: C3054 | C148: RETIRADA DE TUBOS DE CONCRETO D=30cm | F148: M | G148: 20.81
A149: 1.7.69 | B149: C3055 | C149: RETIRADA DE TUBOS DE CONCRETO D=40cm | F149: M | G149: 26.48
A150: 1.7.70 | B150: C3056 | C150: RETIRADA DE TUBOS DE CONCRETO D=50cm | F150: M | G150: 34.68
A151: 1.7.71 | B151: C3057 | C151: RETIRADA DE TUBOS DE CONCRETO D=60cm | F151: M | G151: 44.75
A152: 1.7.72 | B152: C3050 | C152: RETIRADA DE TUBOS DE CONCRETO D=80cm | F152: M | G152: 64.30
A153: 1.7.73 | B153: C3051 | C153: RETIRADA DE TUBOS DE CONCRETO D=100cm | F153: M | G153: 109.75
A154: 1.7.74 | B154: C3052 | C154: RETIRADA DE TUBOS DE CONCRETO D=120cm | F154: M | G154: 156.79
A155: 1.7.75 | B155: C3053 | C155: RETIRADA DE TUBOS DE CONCRETO D=150cm | F155: M | G155: 230.45
A156: 1.7.76 | B156: C3377 | C156: RETIRADA DE TUBOS E CONEXÕES EM PVC JE DN 50MM | F156: M | G156: 1.69
A157: 1.7.77 | B157: C3378 | C157: RETIRADA DE TUBOS E CONEXÕES EM PVC JE DN 75MM | F157: M | G157: 2.02
A158: 1.7.78 | B158: C3379 | C158: RETIRADA DE TUBOS E CONEXÕES EM PVC JE DN 100MM | F158: M | G158: 2.71
A159: 1.7.79 | B159: C3380 | C159: RETIRADA DE TUBOS E CONEXÕES EM PVC JE DN 125MM | F159: M | G159: 3.40
A160: 1.7.80 | B160: C3381 | C160: RETIRADA DE TUBOS E CONEXÕES EM PVC JE DN 150MM | F160: M | G160: 3.89
A161: 1.7.81 | B161: C3382 | C161: RETIRADA DE TUBOS E CONEXÕES EM PVC JE DN 200MM | F161: M | G161: 5.09
A162: 1.7.82 | B162: C3383 | C162: RETIRADA DE TUBOS E CONEXÕES EM PVC JE DN 250MM | F162: M | G162: 5.80
A163: 1.7.83 | B163: C3384 | C163: RETIRADA DE TUBOS E CONEXÕES EM PVC JE DN 300MM | F163: M | G163: 8.10
A164: 1.7.84 | B164: C3385 | C164: RETIRADA DE TUBOS E CONEXÕES EM PVC JE DN 350MM | F164: M | G164: 8.98
A165: 1.7.85 | B165: C3386 | C165: RETIRADA DE TUBOS E CONEXÕES EM PVC JE DN 400MM | F165: M | G165: 10.15
A166: 1.7.86 | B166: C3387 | C166: RETIRADA DE TUBOS, PEÇAS E CONEXÕES EM FoFo JE DN 50MM | F166: M | G166: 4.27
A167: 1.7.87 | B167: C3388 | C167: RETIRADA DE TUBOS, PEÇAS E CONEXÕES EM FoFo JE DN 75MM | F167: M | G167: 5.16
A168: 1.7.88 | B168: C3389 | C168: RETIRADA DE TUBOS, PEÇAS E CONEXÕES EM FoFo JE DN 100MM | F168: M | G168: 8.52
A169: 1.7.89 | B169: C3390 | C169: RETIRADA DE TUBOS, PEÇAS E CONEXÕES EM FoFo JE DN 150MM | F169: M | G169: 11.77
A170: 1.7.90 | B170: C3391 | C170: RETIRADA DE TUBOS, PEÇAS E CONEXÕES EM FoFo JE DN 200MM | F170: M | G170: 13.51
A171: 1.7.91 | B171: C3392 | C171: RETIRADA DE TUBOS, PEÇAS E CONEXÕES EM FoFo JE DN 250MM | F171: M | G171: 16.81
A172: 1.7.92 | B172: C3393 | C172: RETIRADA DE TUBOS, PEÇAS E CONEXÕES EM FoFo JE DN 300MM | F172: M | G172: 21.30
A173: 1.7.93 | B173: C3394 | C173: RETIRADA DE TUBOS, PEÇAS E CONEXÕES EM FoFo JE DN 350MM | F173: M | G173: 25.43
A174: 1.7.94 | B174: C3395 | C174: RETIRADA DE TUBOS, PEÇAS E CONEXÕES EM FoFo JE DN 400MM | F174: M | G174: 29.13
A175: 1.7.95 | B175: C3396 | C175: RETIRADA DE TUBOS, PEÇAS E CONEXÕES EM FoFo JE DN 450MM | F175: M | G175: 37.24
A176: 1.7.96 | B176: C3397 | C176: RETIRADA DE TUBOS, PEÇAS E CONEXÕES EM FoFo JE DN 500MM | F176: M | G176: 45.33
A177: 1.7.97 | B177: C3398 | C177: RETIRADA DE TUBOS, PEÇAS E CONEXÕES EM FoFo JE DN 600MM | F177: M | G177: 52.84
A178: 1.7.98 | B178: C3399 | C178: RETIRADA DE TUBOS, PEÇAS E CONEXÕES EM FoFo JE DN 700MM | F178: M | G178: 67.94
A179: 1.7.99 | B179: C2211 | C179: RETIRADA DE VIDROS C/ REAPROVEITAMENTO | F179: M2 | G179: 26.79
A180: 1.8 | B180: TRÂNSITO E SEGURANÇA | G180: 329.21
A181: 1.8.1 | B181: C0375 | C181: BARREIRA DE CONCRETO (NEW JERSEY) SIMPLES | F181: M | G181: 263.76
A182: 1.8.2 | B182: C2891 | C182: PASSADIÇOS COM CHAPAS DE AÇO | F182: M2 | G182: 9.36
A183: 1.8.3 | B183: C2892 | C183: PASSADIÇOS COM PRANCHAS DE MADEIRA | F183: M2 | G183: 32.32
A184: 1.8.4 | B184: C2947 | C184: SINALIZAÇÃO DE ADVERTÊNCIA | F184: UN | G184: 10.02
A185: 1.8.5 | B185: C2948 | C185: SINALIZAÇÃO DE TRÂNSITO COM BARREIRAS | F185: M | G185: 3.75
A186: 1.8.6 | B186: C2949 | C186: SINALIZAÇÃO DE TRÂNSITO NOTURNA | F186: M | G186: 1.89
A187: 1.8.7 | B187: C2950 | C187: SINALIZAÇÃO EM TAPUME COM INDICATIVO DE FLUXO | F187: M2 | G187: 5.03
A188: 1.8.8 | B188: C2978 | C188: SINALIZAÇÃO EM TAPUME DE PROTEÇÃO COM CHAPAS COMPENSADAS E= 12mm | F188: M | G188: 3.08
A189: 2 | B189: MOVIMENTO DE TERRA | G189: 16,196.40
A190: 2.1 | B190: ESCAVAÇÕES EM CAMPO ABERTO | G190: 2,004.56
A191: 2.1.1 | B191: C2779 | C191: ESCAVAÇÃO EM S.Q.N SATURADO, PROF.2.0 a 12.0m (POÇO AMAZONAS) | F191: M3 | G191: 119.50
A192: 2.1.2 | B192: C1263 | C192: ESCAVAÇÃO MANUAL CAMPO ABERTO EM ROCHA C/EXPLOS.PERF.MAN. ATÉ 2M | F192: M3 | G192: 217.03
A193: 2.1.3 | B193: C1260 | C193: ESCAVAÇÃO MANUAL CAMPO ABERTO EM ROCHA C/EXPLOS.PERF.MAN. - 2,01 A 4,00M | F193: M3 | G193: 231.28
A194: 2.1.4 | B194: C1261 | C194: ESCAVAÇÃO MANUAL CAMPO ABERTO EM ROCHA C/EXPLOS.PERF.MAN. - 4,01 A 6,00M | F194: M3 | G194: 245.53
A195: 2.1.5 | B195: C1262 | C195: ESCAVAÇÃO MANUAL CAMPO ABERTO EM ROCHA C/EXPLOS.PERF.MAN. - 6,01 A 8,00M | F195: M3 | G195: 259.78
A196: 2.1.6 | B196: C1266 | C196: ESCAVAÇÃO MANUAL CAMPO ABERTO EM ROCHA C/EXPLOS.PERF.MEC. ATÉ 2M | F196: M3 | G196: 167.75
A197: 2.1.7 | B197: C1264 | C197: ESCAVAÇÃO MANUAL CAMPO ABERTO EM ROCHA C/EXPLOS.PERF.MEC. - 2,01 A 4,00M | F197: M3 | G197: 182.49
A198: 2.1.8 | B198: C1265 | C198: ESCAVAÇÃO MANUAL CAMPO ABERTO EM ROCHA C/EXPLOS.PERF.MEC. - 4,01 A 6,00M | F198: M3 | G198: 197.22
A199: 2.1.9 | B199: C1254 | C199: ESCAVAÇÃO MANUAL CAMPO ABERTO EM ROCHA C/EXPLOS.PERF.MEC. - 6,01 A 8,00M | F199: M3 | G199: 211.97
A200: 2.1.10 | B200: C1256 | C200: ESCAVAÇÃO MANUAL CAMPO ABERTO EM TERRA ATÉ 2M | F200: M3 | G200: 30.93
A201: 2.1.11 | B201: C1257 | C201: ESCAVAÇÃO MANUAL CAMPO ABERTO EM TERRA, DE 2,01 A 4,00M | F201: M3 | G201: 36.84
A202: 2.1.12 | B202: C1258 | C202: ESCAVAÇÃO MANUAL CAMPO ABERTO EM TERRA, DE 4,00 A 6,00M | F202: M3 | G202: 42.76
A203: 2.1.13 | B203: C1259 | C203: ESCAVAÇÃO MANUAL CAMPO ABERTO EM TERRA, DE 6,00 A 8,00M | F203: M3 | G203: 49.30
A204: 2.1.14 | B204: C1267 | C204: ESCAVAÇÃO MECAN. CAMPO ABERTO EM TERRA EXCETO ROCHA ATÉ 2M | F204: M3 | G204: 2.33
A205: 2.1.15 | B205: C1268 | C205: ESCAVAÇÃO MECAN. CAMPO ABERTO EM TERRA EXCETO ROCHA ATÉ 4M | F205: M3 | G205: 2.68
... 4240 more rows

Sheet BDI
B5: OBRA: TROCA DE COBERTURA E REFORMA ELETRICA EMEF PEDRO NOLASCO.
B8: LOCAL: JOÃO NEIVA/ES
B9: COMPOSIÇÃO DO BDI
E11: Para Serviços | F11: Para Equipamentos | M11: Para Serviços | P11: Para Serviços
C12: GRUPO A
C13: Despesas Financeiras | E13: 0.59% | F13: 0.59% | M13: 0.59% | P13: 0.85%
C14: Total Grupo A | E14: =E13 -> 0.59% | F14: =F13 -> 0.59% | M14: =M13 -> 0.59% | P14: =P13 -> 0.85%
C15: GRUPO B
C16: Administração Central | E16: 4.00% | F16: 5.03% | M16: 5.03% | P16: 8.00%
C17: Total Grupo B | E17: =SUM(E16:E16) -> 4.00% | F17: =SUM(F16:F16) -> 5.03% | M17: =M16 -> 5.03% | P17: =P16 -> 8.00%
C18: GRUPO C
C19: Bonificação | E19: 6.86% | F19: 5.65% | M19: 6.16% | P19: 5.92%
C20: Total Grupo C | E20: =E19 -> 6.86% | F20: =F19 -> 5.65% | M20: =M19 -> 6.16% | P20: =P19 -> 5.92%
C21: GRUPO D
C22: Seguros / Garantia | E22: 0.80% | F22: 0.80% | M22: 0.80% | P22: 0.57%
C23: Riscos | E23: 0.97% | F23: 0.97% | M23: 0.97% | P23: 0.89%
C24: Total Grupo D | E24: =SUM(E22:E23) -> 1.77% | F24: =SUM(F22:F23) -> 1.77% | M24: =SUM(M22:M23) -> 1.77% | P24: =SUM(P22:P23) -> 1.46%
C25: GRUPO E
C26: ISS | E26: 5.00% | F26: 0.00% | M26: 5.00% | P26: 5.00%
C27: PIS | E27: 0.65% | F27: 0.65% | M27: 0.65% | P27: 0.65%
C28: COFINS | E28: 3.00% | F28: 3.00% | M28: 3.00% | P28: 3.00%
C29: CPRB | E29: 4.50% | F29: 2.00% | M29: 2.00% | P29: 0.00%
C30: Total Grupo E | E30: =SUM(E26:E29) -> 13.15% | F30: =SUM(F26:F29) -> 5.65% | M30: =SUM(M26:M29) -> 10.65% | P30: =SUM(P26:P29) -> 8.65%
C32: BDI Total | E32: =SUM(1,E13)*SUM(1,E16,E22,E23)*SUM(1,E19)/(1-E26-E27-E28-E29)-1 -> 30.90% | F32: =SUM(1,F13)*SUM(1,F16,F22,F23)*SUM(1,F19)/(1-F26-F27-F28-F29)-1 -> 20.30% | M32: =SUM(1,M13)*SUM(1,M16,M22,M23)*SUM(1,M19)/(1-M26-M27-M28-M29)-1 -> 27.64% | P32: =SUM(1,P13)*SUM(1,P16,P22,P23)*SUM(1,P19)/(1-P26-P27-P28-P29)-1 -> 28.00%
B34: OBS:
B36: 1 | C36: - A fórmula para cálculo da taxa a ser acrescida aos custos diretos de um
C37: empreendimento a título de Benefícios e Despesas Indiretas é:
C38: BDI = {(1 + A)*(1 + B+D)*(1 + C)} -1, onde:
C39: (1 – E)
C40: A = DESPESAS FINANCEIRAS
C41: B = ADMINISTRAÇÃO CENTRAL;
C42: C = BENEFÍCIO / LUCRO;
C43: D = RISCOS, SEGUROS E GARANTIAS;
C44: E = ISS + PIS + COFINS+INSS
B46: 2 | C46: - Discriminação do BDI
C48: A – Despesas financeiras:
C49: são aquelas decorrentes do custo do capital de giro para fazer frente às despesas realizadas antes do efetivo recebimento das devidas receitas. Foi apropriada por estimativa com base na média proposta no ACÓRDÃO Nº 2.622/2013, PLENÁRIO de 25 set.2013.
C53: B – Administração Central:
C54: são as despesas relativas à manutenção de parcela do custo do escritório central da empresa, tais como: instalações do imóvel/sede (custo de propriedade ou de locação de imóveis); aquisição e manutenção dos equipamentos da sede (computadores, ar condicionado, veículos e correlatos); despesas administrativas (secretária, vigilante, auxiliar de escritório, contínuo, assessorias tercerizadas - ex. contadoria); despesas com consumo (água, luz, telefone, material para escritório, material para limpeza, alimentos, etc). Foi apropriada por estimativa com base na média proposta noACÓRDÃO Nº 2.622/2013, PLENÁRIO de 25 set.2013.
C55: C – Benefício/Lucro:
C56: é a parcela que contempla a remuneração do construtor, definidos com base em valor percentual sobre o total dos custos diretos e despesas indiretas, excluídas aquelas referentes às parcelas tributárias. A taxa adotada como benefício deve ser entendida como uma provisão de onde será retirado o lucro do construtor, após desconto de todos os encargos decorrentes de inúmeras incertezas que podem ocorrer durante as obras, difíceis de serem mensuradas no seu conjunto com base no ACÓRDÃO Nº 2.622/2013, PLENÁRIO de 25 set.2013.
C58: D – Riscos Imprevistos, Garantias e Seguros:
C59: valores para cobertura de despesas imprevisíveis e os seguros e garantias estabelecidos no Projeto Básico e orientação contante no ACÓRDÃO Nº 2.622/2013, PLENÁRIO de 25 set.2013.
C60: E – Valores Relativos aos Tributos:
C61: – Impostos sobre serviços de qualquer natureza – ISS, é imposto de competência municipal, consoante art. 156, inciso III, da Constituição Federal. Alíquota de 4% sobre o valor total da nota fiscal.(Os 4% consideram a redução de 20% da base de cálculo, conforme previsto no art. 9 do Decreto 13314/2007 e Lei Municipal 6075/2003).
C62: – Contribuição para o Programa de Integração Social – PIS. A taxa do PIS, definida pelos Decretos-Lei nº 2.445 e 2.449/88, é de 0,65% sobre a receita operacional bruta.
C63: – Contribuição para o Programa de Financiamento da Seguridade Social – COFINS, definida pela Lei 9.718/98, é de 3%, sobre a receita operacional bruta.
C64: – Contribuição Patronal sobre a Receita Bruta, definida pela Lei 13.161, de 31 de agosto de 2015, é de 4,5%, sobre a receita operacional bruta.

Sheet LS
B4: =BDI!B5 -> OBRA: TROCA DE COBERTURA E REFORMA ELETRICA EMEF PEDRO NOLASCO.
B6: =BDI!B8 -> LOCAL: JOÃO NEIVA/ES
B8: COMPOSIÇÃO LEI SOCIAL
B10: GRUPO A - Encargos Sociais Básicos | D10: % IOPES
B11: A.1 | C11: INSS (Art. 22 da Lei 8.212/91) | D11: -
B12: A.2 | C12: FGTS (Art. 27 do Decreto 99.684/90) | D12: 8,00
B13: A.3 | C13: SESI/SESC (Lei 8.029/90 e Lei 8.036/90) | D13: 1,80
B14: A.4 | C14: SENAI/SENAC (Lei 8.029/90 e Decreto-Lei 6246/44) | D14: 1,30
B15: A.5 | C15: SEBRAE (já considerado no item A.3 e A.4) | D15: -
B16: A.6 | C16: INCRA (Lei 2.613/55 e Decreto 1.146/70) | D16: 0,20
B17: A.7 | C17: SALÁRIO-EDUCAÇÃO (Decreto 87.043/82) | D17: 2,50
B18: A.8 | C18: SEGURO ACIDENTE DO TRABALHO (Lei 8.212/91 e Decreto 3.048/99) | D18: 3,00
B19: A.9 | C19: SECONCI/Medicina do Trabalho | D19: 1,00
B20: TOTAL GRUPO A | D20: 17,80%
B21: GRUPO B - Encargos Sociais que recebem a incidência do grupo A | D21: % IOPES
B22: B.1 | C22: Descanso Semanal Remunerado (Art. 66 da CLT e Art. 7º da CF/88) | D22: 17,52
B23: B.2 | C23: Feriados (Art. 70 da CLT e Lei 605/49) | D23: 3,91
B24: B.3 | C24: Auxílio doença e acidente do trabalho (Lei 3.607/60 e Art. 131 da CLT) | D24: 0,76
B25: B.4 | C25: Licença Paternidade (Art. 7º da CF/88) | D25: 0,11
B26: B.5 | C26: Faltas Legais (Art. 473 da CLT) | D26: 0,67
B27: B.6 | C27: 13º Salário (Lei nº 4090/62) | D27: 10,11
B28: B.7 | C28: Aviso Prévio Trabalhado (Art. 7º, inciso XXI da CF/88) | D28: 0,34
B29: B.8 | C29: Dias de Chuvas | D29: -
B30: B.9 | C30: Férias Gozadas | D30: -
B31: B.10 | C31: Salário Maternidade | D31: -
B32: B.11 | C32: Auxílio - Enfermidade | D32: -
B33: TOTAL GRUPO B | D33: 33,42%
B34: GRUPO C - Encargos Sociais que não recebem a incidência do grupo A | D34: % IOPES
B35: C.1 | C35: Dispensa sem justa causa (LC 110/01) | D35: 5,34
B36: C.2 | C36: Férias indenizadas (Art. 129 a 148 da CLT) | D36: 11,20
B37: C.3 | C37: Aviso prévio indenizado (Art. 7º, inciso XXI da CF/88) | D37: 11,29
B38: C.4 | C38: FGTS sobre aviso prévio indenizado (Súmula 305 TST) | D38: 0,90
B39: C.5 | C39: INSS sobre aviso prévio indenizado (Decreto 6.727/09) | D39: -
B40: C.6 | C40: Aviso prévio trabalhado | D40: -
B41: C.7 | C41: Indenização Adicional | D41: -
B42: TOTAL GRUPO C | D42: 28,73%
B43: GRUPO D - Reincidência dos encargos sociais básicos | D43: % IOPES
B44: D.1 | C44: Incidência do grupo A sobre o grupo B | D44: 5,95%
B45: D.2 | C45: Reincidência de Grupo A sobre Aviso Prévio Trabalho e Reincidência do FGTS sobre Aviso Prévio Indenizado | D45: -
B46: TOTAL GRUPO D | D46: 5,95%
B47: GRUPO E - Encargos complementares | D47: % IOPES
B48: E.1 | C48: Refeição/alimentação (Convenção Coletiva do Trabalho 2012/2013) | D48: 25,75%
B49: E.2 | C49: Vale Transporte (Lei nº 7418/85 e Decreto 95.247/87) | D49: 6,03%
B50: E.3 | C50: Uniforme/equipamento de segurança (Art. 166 da CLT e NR-18 da Lei nº 6.514/77 e Convenção Coletiva do Trabalho 2012/2013) | D50: 2,67% | F50: =D21+D35+D44+D50 -> 
B51: E.4 | C51: Plano de Saúde (Convenção Coletiva do Trabalho 2012/2013 | D51: 7,98%
B52: TOTAL GRUPO E | D52: 42,43%
B53: TOTAL DOS GRUPO (A+B+C+D+E) | D53: 128,33%

Sheet LABOR-COMP
A1: GOVERNO DO ESTADO DO ESPÍRITO SANTO
A2: Secretaria de Estado dos Transportes e Obras Públicas
A3: Instituto de Obras Públicas do Espírito Santo - IOPES
A4: Relatório de Composição de Preços Unitários do Orçamento
A6: Orçamento: 757401 - TABELA CUSTOS LABOR/CT-UFES PADRÃO IOPES MARCO/2018 (LS=128,33%; BDI=30,90%)
A7: Órgão Cliente: IOPES | F7: Órgão Gerente: IOPES | I7: Data Base: Março/2018
A9: Planilha: 1 - TABELA CUSTOS LABOR/CT-UFES PADRÃO IOPES MARCO/2018(LS=128,33%; BDI=30,90%)
A11: Item: 010201 - Demolição de piso cimentado inclusive lastro de concreto | J11: Unidade: m2
A12: Base: LABOR | C12: I | D12: LABOR | E12: Código Base: 010201 | G12: Fonte: LABOR | J12: Versão: 1
A14: MÃO DE OBRA | B14: Unid | C14: I | D14: LABOR | E14: Código | F14: Coefic. | G14: C. Prod. | H14: Pr. Prod. | I14: Pr. Improd. | J14: Pr. Unit. | K14: Fator Ac. | L14: Subtotal
A15: PEDREIRO (LABOR) | B15: H | C15: I | D15: LABOR | E15: 10139 | F15: 0.13 | G15: 1 | H15: 6.33 | I15: 0 | J15: 14.45 | K15: - | L15: 1.879
A16: SERVENTE (LABOR) | B16: H | C16: I | D16: LABOR | E16: 10146 | F16: 1.3 | G16: 1 | H16: 4.65 | I16: 0 | J16: 10.62 | K16: - | L16: 13.806
A17: SubTotal: | L17: 15.68
A19: RESUMO
A20: DISCRIMINAÇÃO | F20: TAXA(%) | G20: VALORES
A21: Mão-de-Obra(A) | F21: 128.33 | G21: 15.69
A22: Materiais(B) | G22: 0
A23: Equipamentos(C) | G23: 0
A24: Produção da Equipe(D) | G24: 1
A25: Custo Horário Total(A+C) | G25: 15.69
A26: Custo Unitário da Execução[(A/D)+(C/D)] = E | G26: 15.69
A27: Custo Direto Total(B+E) | G27: 15.69
A28: Bonificações e Despesas Indiretas - BDI | F28: 30.9 | G28: 4.85
A29: CUSTO UNITÁRIO (Adotado) | G29: 20.54
A34: Orçamento: 757401 - TABELA CUSTOS LABOR/CT-UFES PADRÃO IOPES MARCO/2018 (LS=128,33%; BDI=30,90%)
A35: Órgão Cliente: IOPES | F35: Órgão Gerente: IOPES | I35: Data Base: Março/2018
A37: Planilha: 1 - TABELA CUSTOS LABOR/CT-UFES PADRÃO IOPES MARCO/2018(LS=128,33%; BDI=30,90%)
A39: Item: 010202 - Demolição de piso revestido com cerâmica | J39: Unidade: m2
A40: Base: LABOR | C40: I | D40: LABOR | E40: Código Base: 010202 | G40: Fonte: LABOR | J40: Versão: 1
A42: MÃO DE OBRA | B42: Unid | C42: I | D42: LABOR | E42: Código | F42: Coefic. | G42: C. Prod. | H42: Pr. Prod. | I42: Pr. Improd. | J42: Pr. Unit. | K42: Fator Ac. | L42: Subtotal
A43: PEDREIRO (LABOR) | B43: H | C43: I | D43: LABOR | E43: 10139 | F43: 0.07 | G43: 1 | H43: 6.33 | I43: 0 | J43: 14.45 | K43: - | L43: 1.012
A44: SERVENTE (LABOR) | B44: H | C44: I | D44: LABOR | E44: 10146 | F44: 0.7 | G44: 1 | H44: 4.65 | I44: 0 | J44: 10.62 | K44: - | L44: 7.434
A45: SubTotal: | L45: 8.45
A47: RESUMO
A48: DISCRIMINAÇÃO | F48: TAXA(%) | G48: VALORES
A49: Mão-de-Obra(A) | F49: 128.33 | G49: 8.45
A50: Materiais(B) | G50: 0
A51: Equipamentos(C) | G51: 0
A52: Produção da Equipe(D) | G52: 1
A53: Custo Horário Total(A+C) | G53: 8.45
A54: Custo Unitário da Execução[(A/D)+(C/D)] = E | G54: 8.45
A55: Custo Direto Total(B+E) | G55: 8.45
A56: Bonificações e Despesas Indiretas - BDI | F56: 30.9 | G56: 2.61
A57: CUSTO UNITÁRIO (Adotado) | G57: 11.06
A62: Orçamento: 757401 - TABELA CUSTOS LABOR/CT-UFES PADRÃO IOPES MARCO/2018 (LS=128,33%; BDI=30,90%)
A63: Órgão Cliente: IOPES | F63: Órgão Gerente: IOPES | I63: Data Base: Março/2018
A65: Planilha: 1 - TABELA CUSTOS LABOR/CT-UFES PADRÃO IOPES MARCO/2018(LS=128,33%; BDI=30,90%)
A67: Item: 010203 - Demolição de piso revestido com cerâmica inclusive lastro de concreto | J67: Unidade: m2
A68: Base: LABOR | C68: I | D68: LABOR | E68: Código Base: 010203 | G68: Fonte: LABOR | J68: Versão: 1
A70: MÃO DE OBRA | B70: Unid | C70: I | D70: LABOR | E70: Código | F70: Coefic. | G70: C. Prod. | H70: Pr. Prod. | I70: Pr. Improd. | J70: Pr. Unit. | K70: Fator Ac. | L70: Subtotal
A71: PEDREIRO (LABOR) | B71: H | C71: I | D71: LABOR | E71: 10139 | F71: 0.14 | G71: 1 | H71: 6.33 | I71: 0 | J71: 14.45 | K71: - | L71: 2.023
A72: SERVENTE (LABOR) | B72: H | C72: I | D72: LABOR | E72: 10146 | F72: 1.4 | G72: 1 | H72: 4.65 | I72: 0 | J72: 10.62 | K72: - | L72: 14.868
A73: SubTotal: | L73: 16.89
A75: RESUMO
A76: DISCRIMINAÇÃO | F76: TAXA(%) | G76: VALORES
A77: Mão-de-Obra(A) | F77: 128.33 | G77: 16.89
A78: Materiais(B) | G78: 0
A79: Equipamentos(C) | G79: 0
A80: Produção da Equipe(D) | G80: 1
A81: Custo Horário Total(A+C) | G81: 16.89
A82: Custo Unitário da Execução[(A/D)+(C/D)] = E | G82: 16.89
A83: Custo Direto Total(B+E) | G83: 16.89
A84: Bonificações e Despesas Indiretas - BDI | F84: 30.9 | G84: 5.22
A85: CUSTO UNITÁRIO (Adotado) | G85: 22.11
A90: Orçamento: 757401 - TABELA CUSTOS LABOR/CT-UFES PADRÃO IOPES MARCO/2018 (LS=128,33%; BDI=30,90%)
A91: Órgão Cliente: IOPES | F91: Órgão Gerente: IOPES | I91: Data Base: Março/2018
A93: Planilha: 1 - TABELA CUSTOS LABOR/CT-UFES PADRÃO IOPES MARCO/2018(LS=128,33%; BDI=30,90%)
A95: Item: 010204 - Demolição de piso revestido com tacos de madeira | J95: Unidade: m2
A96: Base: LABOR | C96: I | D96: LABOR | E96: Código Base: 010204 | G96: Fonte: LABOR | J96: Versão: 1
A98: MÃO DE OBRA | B98: Unid | C98: I | D98: LABOR | E98: Código | F98: Coefic. | G98: C. Prod. | H98: Pr. Prod. | I98: Pr. Improd. | J98: Pr. Unit. | K98: Fator Ac. | L98: Subtotal
A99: CARPINTEIRO (LABOR) | B99: H | C99: I | D99: LABOR | E99: 10111 | F99: 0.1 | G99: 1 | H99: 6.33 | I99: 0 | J99: 14.45 | K99: - | L99: 1.445
A100: SERVENTE (LABOR) | B100: H | C100: I | D100: LABOR | E100: 10146 | F100: 1 | G100: 1 | H100: 4.65 | I100: 0 | J100: 10.62 | K100: - | L100: 10.62
A101: SubTotal: | L101: 12.06
A103: RESUMO
A104: DISCRIMINAÇÃO | F104: TAXA(%) | G104: VALORES
A105: Mão-de-Obra(A) | F105: 128.33 | G105: 12.07
A106: Materiais(B) | G106: 0
A107: Equipamentos(C) | G107: 0
A108: Produção da Equipe(D) | G108: 1
A109: Custo Horário Total(A+C) | G109: 12.07
A110: Custo Unitário da Execução[(A/D)+(C/D)] = E | G110: 12.07
A111: Custo Direto Total(B+E) | G111: 12.07
A112: Bonificações e Despesas Indiretas - BDI | F112: 30.9 | G112: 3.73
A113: CUSTO UNITÁRIO (Adotado) | G113: 15.8
A118: Orçamento: 757401 - TABELA CUSTOS LABOR/CT-UFES PADRÃO IOPES MARCO/2018 (LS=128,33%; BDI=30,90%)
A119: Órgão Cliente: IOPES | F119: Órgão Gerente: IOPES | I119: Data Base: Março/2018
A121: Planilha: 1 - TABELA CUSTOS LABOR/CT-UFES PADRÃO IOPES MARCO/2018(LS=128,33%; BDI=30,90%)
A123: Item: 010205 - Demolição de piso de tábuas | J123: Unidade: m2
A124: Base: LABOR | C124: I | D124: LABOR | E124: Código Base: 010205 | G124: Fonte: LABOR | J124: Versão: 1
A126: MÃO DE OBRA | B126: Unid | C126: I | D126: LABOR | E126: Código | F126: Coefic. | G126: C. Prod. | H126: Pr. Prod. | I126: Pr. Improd. | J126: Pr. Unit. | K126: Fator Ac. | L126: Subtotal
A127: CARPINTEIRO (LABOR) | B127: H | C127: I | D127: LABOR | E127: 10111 | F127: 0.09 | G127: 1 | H127: 6.33 | I127: 0 | J127: 14.45 | K127: - | L127: 1.301
A128: SERVENTE (LABOR) | B128: H | C128: I | D128: LABOR | E128: 10146 | F128: 0.9 | G128: 1 | H128: 4.65 | I128: 0 | J128: 10.62 | K128: - | L128: 9.558
A129: SubTotal: | L129: 10.86
A131: RESUMO
A132: DISCRIMINAÇÃO | F132: TAXA(%) | G132: VALORES
A133: Mão-de-Obra(A) | F133: 128.33 | G133: 10.86
A134: Materiais(B) | G134: 0
A135: Equipamentos(C) | G135: 0
A136: Produção da Equipe(D) | G136: 1
A137: Custo Horário Total(A+C) | G137: 10.86
A138: Custo Unitário da Execução[(A/D)+(C/D)] = E | G138: 10.86
A139: Custo Direto Total(B+E) | G139: 10.86
A140: Bonificações e Despesas Indiretas - BDI | F140: 30.9 | G140: 3.36
A141: CUSTO UNITÁRIO (Adotado) | G141: 14.22
A146: Orçamento: 757401 - TABELA CUSTOS LABOR/CT-UFES PADRÃO IOPES MARCO/2018 (LS=128,33%; BDI=30,90%)
A147: Órgão Cliente: IOPES | F147: Órgão Gerente: IOPES | I147: Data Base: Março/2018
A149: Planilha: 1 - TABELA CUSTOS LABOR/CT-UFES PADRÃO IOPES MARCO/2018(LS=128,33%; BDI=30,90%)
A151: Item: 010206 - Demolição de revestimento com azulejos | J151: Unidade: m2
A152: Base: LABOR | C152: I | D152: LABOR | E152: Código Base: 010206 | G152: Fonte: LABOR | J152: Versão: 1
A154: MÃO DE OBRA | B154: Unid | C154: I | D154: LABOR | E154: Código | F154: Coefic. | G154: C. Prod. | H154: Pr. Prod. | I154: Pr. Improd. | J154: Pr. Unit. | K154: Fator Ac. | L154: Subtotal
A155: PEDREIRO (LABOR) | B155: H | C155: I | D155: LABOR | E155: 10139 | F155: 0.25 | G155: 1 | H155: 6.33 | I155: 0 | J155: 14.45 | K155: - | L155: 3.613
A156: SERVENTE (LABOR) | B156: H | C156: I | D156: LABOR | E156: 10146 | F156: 2.5 | G156: 1 | H156: 4.65 | I156: 0 | J156: 10.62 | K156: - | L156: 26.55
A157: SubTotal: | L157: 30.16
A159: RESUMO
A160: DISCRIMINAÇÃO | F160: TAXA(%) | G160: VALORES
A161: Mão-de-Obra(A) | F161: 128.33 | G161: 30.16
A162: Materiais(B) | G162: 0
A163: Equipamentos(C) | G163: 0
A164: Produção da Equipe(D) | G164: 1
A165: Custo Horário Total(A+C) | G165: 30.16
A166: Custo Unitário da Execução[(A/D)+(C/D)] = E | G166: 30.16
A167: Custo Direto Total(B+E) | G167: 30.16
A168: Bonificações e Despesas Indiretas - BDI | F168: 30.9 | G168: 9.32
A169: CUSTO UNITÁRIO (Adotado) | G169: 39.48
A174: Orçamento: 757401 - TABELA CUSTOS LABOR/CT-UFES PADRÃO IOPES MARCO/2018 (LS=128,33%; BDI=30,90%)
A175: Órgão Cliente: IOPES | F175: Órgão Gerente: IOPES | I175: Data Base: Março/2018
A177: Planilha: 1 - TABELA CUSTOS LABOR/CT-UFES PADRÃO IOPES MARCO/2018(LS=128,33%; BDI=30,90%)
A179: Item: 010207 - Demolição de revestimento com lambris de madeira | J179: Unidade: m2
A180: Base: LABOR | C180: I | D180: LABOR | E180: Código Base: 010207 | G180: Fonte: LABOR | J180: Versão: 1
A182: MÃO DE OBRA | B182: Unid | C182: I | D182: LABOR | E182: Código | F182: Coefic. | G182: C. Prod. | H182: Pr. Prod. | I182: Pr. Improd. | J182: Pr. Unit. | K182: Fator Ac. | L182: Subtotal
A183: PEDREIRO (LABOR) | B183: H | C183: I | D183: LABOR | E183: 10139 | F183: 0.25 | G183: 1 | H183: 6.33 | I183: 0 | J183: 14.45 | K183: - | L183: 3.613
A184: SERVENTE (LABOR) | B184: H | C184: I | D184: LABOR | E184: 10146 | F184: 2.5 | G184: 1 | H184: 4.65 | I184: 0 | J184: 10.62 | K184: - | L184: 26.55
A185: SubTotal: | L185: 30.16
A187: RESUMO
A188: DISCRIMINAÇÃO | F188: TAXA(%) | G188: VALORES
A189: Mão-de-Obra(A) | F189: 128.33 | G189: 30.16
A190: Materiais(B) | G190: 0
A191: Equipamentos(C) | G191: 0
A192: Produção da Equipe(D) | G192: 1
A193: Custo Horário Total(A+C) | G193: 30.16
A194: Custo Unitário da Execução[(A/D)+(C/D)] = E | G194: 30.16
A195: Custo Direto Total(B+E) | G195: 30.16
A196: Bonificações e Despesas Indiretas - BDI | F196: 30.9 | G196: 9.32
A197: CUSTO UNITÁRIO (Adotado) | G197: 39.48
A202: Orçamento: 757401 - TABELA CUSTOS LABOR/CT-UFES PADRÃO IOPES MARCO/2018 (LS=128,33%; BDI=30,90%)
A203: Órgão Cliente: IOPES | F203: Órgão Gerente: IOPES | I203: Data Base: Março/2018
A205: Planilha: 1 - TABELA CUSTOS LABOR/CT-UFES PADRÃO IOPES MARCO/2018(LS=128,33%; BDI=30,90%)
A207: Item: 010208 - Retirada de revestimento antigo em reboco | J207: Unidade: m2
A208: Base: LABOR | C208: I | D208: LABOR | E208: Código Base: 010208 | G208: Fonte: LABOR | J208: Versão: 1
A210: MÃO DE OBRA | B210: Unid | C210: I | D210: LABOR | E210: Código | F210: Coefic. | G210: C. Prod. | H210: Pr. Prod. | I210: Pr. Improd. | J210: Pr. Unit. | K210: Fator Ac. | L210: Subtotal
A211: PEDREIRO (LABOR) | B211: H | C211: I | D211: LABOR | E211: 10139 | F211: 0.05 | G211: 1 | H211: 6.33 | I211: 0 | J211: 14.45 | K211: - | L211: 0.723
A212: SERVENTE (LABOR) | B212: H | C212: I | D212: LABOR | E212: 10146 | F212: 0.5 | G212: 1 | H212: 4.65 | I212: 0 | J212: 10.62 | K212: - | L212: 5.31
A213: SubTotal: | L213: 6.03
A215: RESUMO
A216: DISCRIMINAÇÃO | F216: TAXA(%) | G216: VALORES
A217: Mão-de-Obra(A) | F217: 128.33 | G217: 6.03
A218: Materiais(B) | G218: 0
A219: Equipamentos(C) | G219: 0
A220: Produção da Equipe(D) | G220: 1
A221: Custo Horário Total(A+C) | G221: 6.03
A222: Custo Unitário da Execução[(A/D)+(C/D)] = E | G222: 6.03
A223: Custo Direto Total(B+E) | G223: 6.03
A224: Bonificações e Despesas Indiretas - BDI | F224: 30.9 | G224: 1.86
A225: CUSTO UNITÁRIO (Adotado) | G225: 7.89
A230: Orçamento: 757401 - TABELA CUSTOS LABOR/CT-UFES PADRÃO IOPES MARCO/2018 (LS=128,33%; BDI=30,90%)
A231: Órgão Cliente: IOPES | F231: Órgão Gerente: IOPES | I231: Data Base: Março/2018
A233: Planilha: 1 - TABELA CUSTOS LABOR/CT-UFES PADRÃO IOPES MARCO/2018(LS=128,33%; BDI=30,90%)
A235: Item: 010209 - Demolição de alvenaria | J235: Unidade: m3
A236: Base: LABOR | C236: I | D236: LABOR | E236: Código Base: 010209 | G236: Fonte: LABOR | J236: Versão: 1
A238: MÃO DE OBRA | B238: Unid | C238: I | D238: LABOR | E238: Código | F238: Coefic. | G238: C. Prod. | H238: Pr. Prod. | I238: Pr. Improd. | J238: Pr. Unit. | K238: Fator Ac. | L238: Subtotal
A239: PEDREIRO (LABOR) | B239: H | C239: I | D239: LABOR | E239: 10139 | F239: 0.3 | G239: 1 | H239: 6.33 | I239: 0 | J239: 14.45 | K239: - | L239: 4.335
A240: SERVENTE (LABOR) | B240: H | C240: I | D240: LABOR | E240: 10146 | F240: 3 | G240: 1 | H240: 4.65 | I240: 0 | J240: 10.62 | K240: - | L240: 31.86
A241: SubTotal: | L241: 36.2
A243: RESUMO
A244: DISCRIMINAÇÃO | F244: TAXA(%) | G244: VALORES
A245: Mão-de-Obra(A) | F245: 128.33 | G245: 36.2
A246: Materiais(B) | G246: 0
A247: Equipamentos(C) | G247: 0
A248: Produção da Equipe(D) | G248: 1
A249: Custo Horário Total(A+C) | G249: 36.2
A250: Custo Unitário da Execução[(A/D)+(C/D)] = E | G250: 36.2
A251: Custo Direto Total(B+E) | G251: 36.2
A252: Bonificações e Despesas Indiretas - BDI | F252: 30.9 | G252: 11.19
A253: CUSTO UNITÁRIO (Adotado) | G253: 47.39
A258: Orçamento: 757401 - TABELA CUSTOS LABOR/CT-UFES PADRÃO IOPES MARCO/2018 (LS=128,33%; BDI=30,90%)
A259: Órgão Cliente: IOPES | F259: Órgão Gerente: IOPES | I259: Data Base: Março/2018
A261: Planilha: 1 - TABELA CUSTOS LABOR/CT-UFES PADRÃO IOPES MARCO/2018(LS=128,33%; BDI=30,90%)
A263: Item: 010210 - Demolição manual de concreto simples (EMOP 05.001.001) | J263: Unidade: m3
A264: Base: LABOR | C264: I | D264: LABOR | E264: Código Base: 010210 | G264: Fonte: LABOR | J264: Versão: 1
A266: MÃO DE OBRA | B266: Unid | C266: I | D266: LABOR | E266: Código | F266: Coefic. | G266: C. Prod. | H266: Pr. Prod. | I266: Pr. Improd. | J266: Pr. Unit. | K266: Fator Ac. | L266: Subtotal
A267: SERVENTE (LABOR) | B267: H | C267: I | D267: LABOR | E267: 10146 | F267: 16 | G267: 1 | H267: 4.65 | I267: 0 | J267: 10.62 | K267: - | L267: 169.92
A268: SubTotal: | L268: 169.92
A270: RESUMO
A271: DISCRIMINAÇÃO | F271: TAXA(%) | G271: VALORES
A272: Mão-de-Obra(A) | F272: 128.33 | G272: 169.92
A273: Materiais(B) | G273: 0
A274: Equipamentos(C) | G274: 0
A275: Produção da Equipe(D) | G275: 1
A276: Custo Horário Total(A+C) | G276: 169.92
A277: Custo Unitário da Execução[(A/D)+(C/D)] = E | G277: 169.92
... 3074 more rows

Sheet LABOR-SERV (hidden)
A2: Item | B2: Especificação do Serviço | C2: Und. | D2: Preço Total
A3: 1 | B3: SERVIÇOS PRELIMINARES
A4: 102 | B4: DEMOLIÇÕES E RETIRADAS
A5: 10201 | B5: Demolição de piso cimentado inclusive lastro de concreto | C5: m2 | D5: 20.54
A6: 10202 | B6: Demolição de piso revestido com cerâmica | C6: m2 | D6: 11.06
A7: 10203 | B7: Demolição de piso revestido com cerâmica inclusive lastro de concreto | C7: m2 | D7: 22.11
A8: 10204 | B8: Demolição de piso revestido com tacos de madeira | C8: m2 | D8: 15.8
A9: 10205 | B9: Demolição de piso de tábuas | C9: m2 | D9: 14.22
A10: 10206 | B10: Demolição de revestimento com azulejos | C10: m2 | D10: 39.48
A11: 10207 | B11: Demolição de revestimento com lambris de madeira | C11: m2 | D11: 39.48
A12: 10208 | B12: Retirada de revestimento antigo em reboco | C12: m2 | D12: 7.89
A13: 10209 | B13: Demolição de alvenaria | C13: m3 | D13: 47.39
A14: 10210 | B14: Demolição manual de concreto simples (EMOP 05.001.001) | C14: m3 | D14: 222.43
A15: 10211 | B15: Demolição de concreto armado, com utilização de rompedor pneumático | C15: m3 | D15: 667.24
A16: 10212 | B16: Retirada manual de pavimento em paralelepípedos, incluindo empilhamento para reaproveitamento | C16: m2 | D16: 9.48
A17: 10213 | B17: Retirada manual de blocos pré-moldados de concreto (Blokret), inclusive empilhamento para reaproveitamento | C17: m2 | D17: 11.06
A18: 10214 | B18: Retirada de portas e janelas de madeira, inclusive batentes | C18: m2 | D18: 12.63
A19: 10215 | B19: Retirada de esquadrias metálicas | C19: m2 | D19: 7.89
A20: 10216 | B20: Retirada de meio-fio de concreto | C20: m | D20: 7.89
A21: 10218 | B21: Remoção de pintura antiga a óleo ou esmalte | C21: m2 | D21: 10.21
A22: 10219 | B22: Demolição manual de concreto armado (EMOP 05.001.033) | C22: m3 | D22: 261.62
A23: 10220 | B23: Demolição de piso cimentado, exclusive lastro de concreto | C23: m2 | D23: 9.73
A24: 10221 | B24: Retirada de bandeira de porta | C24: und | D24: 24.12
A25: 10222 | B25: Demolição de elementos vazados cerâmicos ou de concreto | C25: m2 | D25: 17.49
A26: 10223 | B26: Retirada de aparelhos sanitários | C26: und | D26: 16.41
A27: 10224 | B27: Retirada de grades, gradis, alambrados, cercas e portões | C27: m2 | D27: 13.9
A28: 10225 | B28: Retirada de bancada de pia | C28: m2 | D28: 19.69
A29: 10226 | B29: Retirada de tanque de cimento | C29: und | D29: 19.69
A30: 10227 | B30: Retirada de caixa d'água de fibrocimento, inclusive tubulação de ligação | C30: und | D30: 32.82
A31: 10228 | B31: Demolição de forro de madeira, sem reaproveitamento | C31: m2 | D31: 5.35
A32: 10229 | B32: Retirada de poste de aço de 4 a 6 m | C32: und | D32: 31.59
A33: 10230 | B33: Retirada de pintura antiga a base de PVA | C33: m2 | D33: 5.04
A34: 10234 | B34: Demolição de laje pré-moldada de concreto | C34: m2 | D34: 20.54
A35: 10238 | B35: Apicoamento de superfície com revestimento em argamassa | C35: m2 | D35: 7.89
A36: 10239 | B36: Retirada de divisórias com reaproveitamento | C36: m2 | D36: 30.76
A37: 10240 | B37: Retirada de pontos elétricos (luminárias, interruptores e tomadas) | C37: und | D37: 8.72
A38: 10242 | B38: Retirada de vidros quebrados | C38: m2 | D38: 2.78
A39: 10244 | B39: Retirada de rodapé em argamassa de cimento e areia | C39: m | D39: 11.38
A40: 10246 | B40: Lixamento de parede com pintura antiga PVA para recebimento de nova camada de tinta | C40: m2 | D40: 2.95
A41: 10253 | B41: Remoção de engradamento de madeira de cobertura para reaproveitamento | C41: m2 | D41: 23.21
A42: 10254 | B42: Remoção de telhas cerâmica, tipo francesa, inclusive cumeeira | C42: m2 | D42: 7.7
A43: 10255 | B43: Remoção de telhas cerâmicas, tipo colonial, inclusive cumeeiras | C43: m2 | D43: 18.98
A44: 10256 | B44: Remoção de telha ondulada de fibrocimento, inclusive cumeeira | C44: m2 | D44: 6.05
A45: 10259 | B45: Retirada de rodapé de madeira ou cerâmica | C45: m | D45: 1.83
A46: 10264 | B46: Demolição de piso granilite | C46: m2 | D46: 21.9
A47: 10269 | B47: Demolição mecânica de edificações existentes | C47: h | D47: 178.39
A48: 10271 | B48: Retirada de caixas/quadros elétricos | C48: und | D48: 11.75
A49: 10279 | B49: Retirada de quadro de giz (1.29 x 3.95m) | C49: und | D49: 18.35
A50: 10280 | B50: Remoção de cobertura em telha metálica, exclusive estrutura | C50: m2 | D50: 6.9
A51: 10286 | B51: Demolição de divisória de granito | C51: m2 | D51: 11.68
A52: 10292 | B52: Retirada de alizar de madeira | C52: m | D52: 0.48
A53: 103 | B53: DEMOLIÇÕES E RETIRADAS
A54: 10315 | B54: Retirada de cobertura em telhas Canalete 49 | C54: m2 | D54: 9.06
A55: 10317 | B55: Demolição de alvenaria, com reaproveitamento | C55: m2 | D55: 94.76
A56: 10318 | B56: Remoção de forro em eucatex, sem aproveitamento do material | C56: m2 | D56: 11.17
A57: 10319 | B57: Remoção de pintura antiga a base de óleo ou esmalte sobre esquadrias | C57: m2 | D57: 15.08
A58: 10320 | B58: Remoção de revestimento de pisos com forração textil | C58: m2 | D58: 1.58
A59: 10323 | B59: Retirada de torneiras e registros | C59: und | D59: 8.72
A60: 10324 | B60: Retirada de cobertura em telha canalete 90 | C60: m2 | D60: 6.96
A61: 10325 | B61: Demolição de estrutura de madeira para telhado | C61: m2 | D61: 23.21
A62: 10326 | B62: Retirada de estrutura em madeira do telhado | C62: m2 | D62: 23.21
A63: 10327 | B63: Retirada de marco de madeira | C63: m | D63: 1.96
A64: 10329 | B64: Retirada de disjuntor | C64: und | D64: 16.28
A65: 10331 | B65: Demolição de piso, soleira, peitoris e escadas em mármore ou granito, exclusive regularização | C65: m2 | D65: 8.47
A66: 10332 | B66: Retirada de roda parede em madeira | C66: m | D66: 2.95
A67: 10333 | B67: Retirada de piso de borracha | C67: m2 | D67: 6.62
A68: 10334 | B68: Demolição de edificação existente (hora de máquina - pá carregadeira) | C68: h | D68: 178.39
A69: 104 | B69: LIMPEZA DO TERRENO
A70: 10401 | B70: Corte de capoeira fina, a foice (manual) | C70: m2 | D70: 1.07
A71: 10402 | B71: Raspagem e limpeza do terreno (manual) | C71: m2 | D71: 3.48
A72: 10403 | B72: Corte e destocamento de árvores com diâmetro de até 15 cm | C72: und | D72: 41.7
A73: 10404 | B73: Corte e destocamento de árvores com diâmetro superior a 30 cm | C73: und | D73: 103.71
A74: 105 | B74: LOCAÇÃO
A75: 10501 | B75: Locação de obra com gabarito de madeira | C75: m2 | D75: 18.98
A76: 10512 | B76: Equipe topográfica para serviços simples de locação e nivelamento (incluindo equipamento, transporte e profissionais nivel médio) | C76: mês | D76: 16,771.93
A77: 2 | B77: INSTALAÇÃO DO CANTEIRO DE OBRAS
A78: 203 | B78: TAPUMES, BARRACÕES E COBERTURAS
A79: 20305 | B79: Placa de obra nas dimensões de 2.0 x 4.0 m, padrão IOPES | C79: m2 | D79: 186.19
A80: 20339 | B80: Locação de andaime metálico para trabalho em fachada de edifíco (aluguel de 1 m² por 1 mês) inclusive frete, montagem e desmontagem | C80: m2 | D80: 8.72
A81: 20343 | B81: Aluguel mensal container para escritório, sem banheiro, dim. 6.00x2.40m, incl. porta, 2 janelas, abert p/ ar cond., 2 pt iluminação, 2 tomadas elét. e 1 tomada telef. Isolamento térmico (teto e paredes), piso em comp. Naval, cert. NR18, incl. laudo descontaminação. | C81: mês | D81: 628.32
A82: 20344 | B82: Mobilização e desmobilização de conteiner locado para barracão de obra | C82: und | D82: 916.3
A83: 20346 | B83: Locação de andaime metálico para fachada - tipo torre (aluguel mensal) | C83: m | D83: 8.12
A84: 20348 | B84: Fornecimento e instalação de proteção para andaime fachadeiro considerando plataforma, rodapé e guarda-corpo em madeira, inclusive entelamento, conforme NR-18 (medido por m2 de fachada) | C84: m2 | D84: 22.41
A85: 20350 | B85: Tapume Telha Metálica Ondulada 0,50mm Branca h=2,20m, incl. montagem estr. mad. 8"x8", c/adesivo "IOPES" 60x60cm a cada 10m, incl. faixas pint. esmalte sint. cores azul c/ h=30cm e rosa c/ h=10cm (Reaproveitamento 2x) | C85: m | D85: 142.31
A86: 20351 | B86: Tapume madeira compensada resinada e= 12mm h=2,20m, estr. c/ mad reflorest., incl mont, pintura esmalte sint, adesivo "IOPES" 60x60cm a cada 10m e faixas c/ pintura esmalte sintético nas cores azul c/ h=30cm e rosa c/ h=10cm | C86: m | D86: 172.88
A87: 20352 | B87: Aluguel mensal container para escritório, dim. 6.00x2.40m, c/ banheiro (vaso+lavat+chuveiro e básc), incl. porta, 2 janelas, abert p/ ar cond., 2 pt iluminação, 2 tom. elét. e 1 tom.telef. Isolam.térmico(teto e paredes), piso em comp. Naval, cert. NR18, incl. laudo descontaminação. | C87: ms | D87: 712.1
A88: 20353 | B88: Aluguel mensal container para refeitorio, incl. porta, 2 janelas, abert p/ ar cond., 2 pt iluminação, 2 tomadas elét. e 1 tomada telef. Isolamento térmico (paredes e teto), piso em comp. Naval pintado, cert. NR18, incl. laudo descontaminação. | C88: ms | D88: 688.53
A89: 20354 | B89: Aluguel mensal container para vestiário, incl. porta, venezianas de circulação, 1 pt iluminação, Isolamento térmico (teto), piso em comp. Naval pintado, cert. NR18, incl. laudo descontaminação. | C89: ms | D89: 431.97
A90: 20355 | B90: Aluguel mensal container sanitário, incl porta, básc, 2 ptos luz, 1 pto aterram., 3vasos, 3lavatórios, calha mictório, 6 chuveiros (1 eletrico), torn.,registros, piso comp. Naval pintado, cert NR18 e laudo descontaminação | C90: ms | D90: 763.58
A91: 20356 | B91: Aluguel mensal container para almoxarifado, incl. porta, 2 janelas, 1 pt iluminação, Isolamento térmico (teto), piso em comp. Naval pintado, cert. NR18, incl. laudo descontaminação. | C91: ms | D91: 466
A92: 207 | B92: INSTALAÇÃO DO CANTEIRO DE OBRAS (UTILIZAÇÃO 1 VEZ), PROJETO PADRÃO LABOR - NR.18 (OBRAS COM PRAZO DE EXECUÇÃO SUPERIOR A 12 MESES)
A93: 20701 | B93: Barracão para escritório com sanitário área de 14.50 m2, de chapa de compens. 12mm e pontalete 8x8cm, piso cimentado e cobertura de telha de fibroc. 6mm, incl. ponto de luz e cx. de inspeção, conf. projeto (1 utilização) | C93: m2 | D93: 596.25
A94: 20702 | B94: Barracão para almoxarifado área de 10.90m2, de chapa de compensado de 12mm e pontalete 8x8cm, piso cimentado e cobertura de telhas de fibrocimento de 6mm, incl. ponto de luz, conf. projeto (1 utilização) | C94: m2 | D94: 411.44
A95: 20703 | B95: Barracão para depósito de cimento área de 10.90m2, de chapa de compensado 12mm e pontaletes 8x8cm, piso cimentado e cobertura de telhas de fibrocimento de 6mm, inclusive ponto de luz, conf. projeto (1 utilização) | C95: m2 | D95: 356.94
A96: 20704 | B96: Refeitório com paredes de chapa de compens. 12mm e pontaletes 8x8cm, piso ciment. e cob. de telhas fibroc. 6mm, incl. ponto de luz e cx. de inspeção (cons. 1.21 m2/func./turno), conf. projeto (1 utilização) | C96: m2 | D96: 386.67
A97: 20705 | B97: Unidade de sanitário e vestiário p/ até 20 func. área de 18.15m2, paredes de chapa compens. 12mm e pontalete 8x8cm, piso cimentado, cobert. telha fibroc. 6mm, incl. instalação de luz e cx. de inspeção, conf. projeto (1 utilização) | C97: und | D97: 11,642.36
A98: 20706 | B98: Unidade de sanitário e vestiário de 20 a 40 func. área 25.40m2, paredes de chapa compens. 12mm e pontalete 8x8cm, piso cimentado, cobert. telha fibroc. 6mm, incl. inst. de luz e cx. de inspeção, conf. projeto (1 utilização) | C98: und | D98: 17,771.40
A99: 20707 | B99: Unidade de sanitário e vestiário de 40 a 60 func. área 33.90m2, paredes de chapa compens. 12mm e pontalete 8x8cm, piso cimentado, cobert. telha fibroc. 6mm, incl. inst. de luz e cx. de inspeção, conf. projeto (1 utilização) | C99: und | D99: 22,384.88
A100: 20708 | B100: Galpão para serraria e carpintaria área 12.00m2, em peça de madeira 8x8cm e contraventamento de 5x7cm, cobertura de telha de fibroc. de 6mm, inclusive ponto e cabo de alimentação da máquina, conf. projeto (1 utilização) | C100: m2 | D100: 161.41
A101: 20709 | B101: Galpão para corte e armação com área de 6.00m2, em peças de madeira 8x8cm e contraventamento de 5x7cm, cobertura de telhas de fibroc. de 6mm, inclusive ponto e cabo de alimentação da máquina, conf. projeto (1 utilização) | C101: m2 | D101: 215.76
A102: 20710 | B102: Reservatório de poliestileno de 500L, incl. suporte em madeira de 7x12cm e 5x7cm, elevado de 4m, conf. projeto (1 utilização) | C102: und | D102: 1,590.49
A103: 20711 | B103: Reservatório de poliestileno de 1000 L, incl. suporte em madeira de 7x12cm e 8x7cm, elevado de 4m, conf. projeto (1 utilização) | C103: und | D103: 1,875.94
A104: 20712 | B104: Rede de água com padrão de entrada d'água diâm. 3/4", conf. espec. CESAN, incl. tubos e conexões para alimentação, distribuição, extravasor e limpeza, cons. o padrão a 25m, conf. projeto (1 utilização) | C104: m | D104: 34.2
A105: 20713 | B105: Rede de luz, incl. padrão entrada de energia trifás., cabo de ligação até barracões, quadro de distrib., disj. e chave de força (quando necessário), cons. 20m entre padrão entrada e QDG, conf. projeto (1 utilização) | C105: m | D105: 438.53
A106: 20714 | B106: Rede de esgoto, contendo fossa e filtro, inclusive tubos e conexões de ligação entre caixas, considerando distância de 25m, conforme projeto (1 utilização) | C106: m | D106: 297.39
A107: 208 | B107: INSTALAÇÃO DO CANTEIRO DE OBRAS (UTILIZAÇÃO 2 VEZES), PROJETO PADRÃO LABOR - NR.18 (OBRAS COM PRAZO DE EXECUÇÃO DE 6 A 12 MESES)
A108: 20801 | B108: Barracão para escritório com sanitário área 14.50m2, de chapa de compens. 12mm e pontalete 8x8cm, piso cimentado e cobertura de telha de fibroc. 6mm, incl. ponto de luz e cx. de inspeção, conf. projeto (2 utilizações) | C108: m2 | D108: 459.41
A109: 20802 | B109: Barracão para almoxarifado área de 10.90m2, de chapa de compensado 12mm e pontaletes 8x8cm, piso cimentado e cobertura de telha de fibrocimento de 6mm, inclusive ponto de luz, conf. projeto (2 utilizações) | C109: m2 | D109: 324.66
A110: 20803 | B110: Barracão para depósito de cimento área de 10.90m2, de chapa de compensado 12mm e pontaletes 8x8cm, piso cimentado e cobertura de telhas de fibrocimento de 6mm, inclusive ponto de luz, conf. projeto (2 utilizações) | C110: m2 | D110: 283.12
A111: 20804 | B111: Refeitório com paredes de chapa de compens. 12mm e pontaletes 8x8cm, piso ciment. e cobert. de telhas fibroc. 6mm, incl. ponto de luz e cx. de inspeção (cons. 1.21m2/func./turno), conf. projeto (2 utilização) | C111: m2 | D111: 310.85
A112: 20805 | B112: Unidade de sanitário e vestiário para até 20 func. área 18.15m2, paredes de chapa compens. 12mm e pontalete 8x8cm, piso cimentado, cobert. telha fibroc. 6mm, incl. inst. de luz e cx. de inspeção, conf. projeto (2 utilizações) | C112: und | D112: 9,260.91
A113: 20806 | B113: Unidade de sanitário e vestiário de 20 a 40 func. área 25.40m2, paredes de chapa compens. 12mm e pontalete 8x8cm, piso cimentado, cobert. telha fibroc. 6mm, incl. inst. de luz e cx. de inspeção, conf. projeto (2 utilizações) | C113: und | D113: 14,100.68
A114: 20807 | B114: Unidade de sanitário e vestiário de 40 a 60 func. área 33.90m2, paredes de chapa compens. 12mm e pontalete 8x8cm, piso cimentado, cobert. telha fibroc. 6mm, incl. inst. de luz e cx. de inspeção, conf. projeto (2 utilizações) | C114: und | D114: 17,711.36
A115: 20808 | B115: Galpão para serraria e carpintaria área 12.00m2, em peças de madeira 8x8cm e contraventamento de 5x7cm, cobertura de telhas de fibroc. de 6mm, inclusive ponto e cabo de alimentação da máquina, conf. projeto (2 utilizações) | C115: m2 | D115: 114.18
A116: 20809 | B116: Galpão para corte e armação com área de 6.00m2, de peças de madeira 8x8cm e contraventamento de 5x7cm, cobertura de telhas de fibroc. de 6mm, inclusive ponto e cabo de alimentação da máquina, conf. projeto (2 utilizações) | C116: m2 | D116: 156.78
A117: 20810 | B117: Reservatório de poliestileno de 500 L, incl. suporte em madeira de 7x12cm e 5x7cm, elevado de 4m, conforme projeto (2 utilizações) | C117: und | D117: 994.89
A118: 20811 | B118: Reservatório de poliestileno de 1000 L, inclusive suporte em madeira de 7x12cm e 5x7cm, elevado de 4m, conforme projeto (2 utilizações) | C118: und | D118: 1,156.34
A119: 20812 | B119: Rede de água, com padrão de entrada d'água diâm. 3/4", conf. espec. CESAN, incl. tubos e conexões para alimentação, distribuição, extravasor e limpeza, cons. o padrão a 25m, conf. projeto (2 utilizações) | C119: m | D119: 25.17
A120: 3 | B120: MOVIMENTO DE TERRA
A121: 301 | B121: ESCAVAÇÕES
A122: 30101 | B122: Escavação manual em material de 1a. categoria, até 1.50 m de profundidade | C122: m3 | D122: 45.19
A123: 30102 | B123: Escavação manual em material de 2a. categoria, até 1.50 m de profundidade | C123: m3 | D123: 76.46
A124: 30103 | B124: Escavação mecânica em material de 1a. categoria | C124: m3 | D124: 33.44
A125: 30104 | B125: Escavação mecânica em material de 2a. categoria | C125: m3 | D125: 46.76
A126: 30119 | B126: Apiloamento do fundo de vala com maço de 30 a 60kg | C126: m2 | D126: 23.63
A127: 302 | B127: REATERRO E COMPACTAÇÃO
A128: 30201 | B128: Reaterro apiloado de cavas de fundação, em camadas de 20 cm | C128: m3 | D128: 48.66
A129: 30202 | B129: Material para aterro - areia limpa (fornecimento já considerado 15% de empolamento) | C129: m3 | D129: 94.72
A130: 30203 | B130: Lastro de brita 3 e 4, apiloado manualmente | C130: m3 | D130: 148.56
A131: 30204 | B131: Lastro de areia | C131: m3 | D131: 143.37
A132: 30206 | B132: Aterro manual para regularização do terreno em areia, inclusive adensamento hidráulico e fornecimento do material (máximo de 100m3) | C132: m3 | D132: 110.37
A133: 30208 | B133: Aterro manual para regularização do terreno em argila, inclusive adensamento manual e fornecimento do material (máximo de 100m3) | C133: m3 | D133: 112.19
A134: 30209 | B134: Aterro com areia em áreas de calçada, inclusive fornecimento e adensamento | C134: m3 | D134: 87.17
A135: 30210 | B135: Aterro compactado utilizando compactador de placa vibratória com reaproveitamento do material | C135: m3 | D135: 24.41
A136: 30211 | B136: Reaterro de valas, exclusive compactação | C136: m3 | D136: 6.26
A137: 303 | B137: TRANSPORTES
A138: 30304 | B138: Índice de preço para remoção de entulho decorrente da execução de obras (Classe A CONAMA - NBR 10.004 - Classe II-B), incluindo aluguel da caçamba, carga, transporte e descarga em área licenciada | C138: m3 | D138: 55.88
A139: 30305 | B139: Transporte de material encosta acima, serviço inteiramente manual, a 10m de distância, considerados ao longo da encosta, inclusive carga e descarga (txdam) | C139: und | D139: 20.85
A140: 30306 | B140: Transporte de material encosta abaixo, serviço inteiramente manual, a 10m de distância, considerados ao longo da encosta, inclusive carga e descarga (txdam) | C140: und | D140: 13.9
A141: 4 | B141: ESTRUTURAS
A142: 402 | B142: INFRA-ESTRUTURA (FUNDAÇÃO)
A143: 40202 | B143: Fornecimento, preparo e aplicação de concreto ciclópico Fck=15MPa com 30% de pedra de mão | C143: m3 | D143: 489.19
A144: 40206 | B144: Fôrma de tábua de madeira de 2.5 x 30.0 cm para fundações, levando-se em conta a utilização 5 vezes (incluido o material, corte, montagem, escoramento e desforma) | C144: m2 | D144: 109.05
A145: 40224 | B145: Fornecimento, preparo e aplicação de concreto Fck = 30 MPa (com brita 1 e 2) - (5% de perdas já incluído no custo) | C145: m3 | D145: 547.5
A146: 40231 | B146: Fornecimento, preparo e aplicação de concreto magro com consumo mínimo de cimento de 250 kg/m3 (brita 1 e 2) - (5% de perdas já incluído no custo) | C146: m3 | D146: 482.88
A147: 40233 | B147: Fornecimento, preparo e aplicação de concreto Fck=15 MPa (brita 1 e 2) - (5% de perdas já incluído no custo) | C147: m3 | D147: 499.07
A148: 40235 | B148: Fornecimento, preparo e aplicação de concreto Fck=20 MPa (brita 1 e 2) - (5% de perdas já incluído no custo) | C148: m3 | D148: 514.86
A149: 40237 | B149: Fornecimento, preparo e aplicação de concreto Fck=25 MPa (brita 1 e 2) - (5% de perdas já incluído no custo) | C149: m3 | D149: 532.12
A150: 40238 | B150: Fôrma de chapa compensada resinada 12mm, levando-se em conta a utilização 3 vezes (incluido o material, corte, montagem, escoramento e desfôrma) | C150: m2 | D150: 73.61
A151: 40239 | B151: Fornecimento e aplicação de concreto USINADO Fck=20 MPa - considerando lançamento MANUAL para INFRA-ESTRUTURA (5% de perdas já incluído no custo) | C151: m3 | D151: 435.98
A152: 40240 | B152: Fornecimento e aplicação de concreto USINADO Fck=25 MPa - considerando lançamento MANUAL para INFRA-ESTRUTURA (5% de perdas já incluído no custo) | C152: m3 | D152: 447.69
A153: 40243 | B153: Fornecimento, dobragem e colocação em fôrma, de armadura CA-50 A média, diâmetro de 6.3 a 10.0 mm | C153: kg | D153: 7.07
A154: 40245 | B154: Fornecimento, dobragem e colocação em fôrma, de armadura CA-50 A grossa diâmetro de 12.5 a 25.0 mm (1/2 a 1") | C154: kg | D154: 7.55
A155: 40246 | B155: Fornecimento, dobragem e colocação em fôrma, de armadura CA-60 B fina, diâmetro de 4.0 a 7.0mm | C155: kg | D155: 7.15
A156: 40249 | B156: Fôrma de tábua de madeira de 2.5x30.0cm, levando-se em conta utilização 1 vez (incluindo o material, corte, montagem, escoramento e desforma) | C156: m2 | D156: 301.87
A157: 40250 | B157: Fôrma de tábua de madeira de 2.5x30.0cm, levando-se em conta utilização 3 vezes (incluindo o material, corte, montagem, escoramento e desforma) | C157: m2 | D157: 179.37
A158: 40253 | B158: Fornecimento e aplicação de concreto USINADO Fck=30 MPa - considerando lançamento MANUAL para INFRA-ESTRUTURA (5% de perdas já incluído no custo) | C158: m3 | D158: 461.89
A159: 403 | B159: SUPER-ESTRUTURA
A160: 40315 | B160: Fornecimento, preparo e aplicação de concreto Fck = 30 MPa (com brita 1 e 2) - (5% de perdas já incluído no custo) | C160: m3 | D160: 636.28
A161: 40320 | B161: Fornecimento, preparo e aplicação de concreto Fck=15 MPa (brita 1 e 2) - (5% de perdas já incluído no custo) | C161: m3 | D161: 587.85
A162: 40322 | B162: Fornecimento, preparo e aplicação de concreto Fck=20 MPa (brita 1 e 2) - (5% de perdas já incluído no custo) | C162: m3 | D162: 603.63
A163: 40324 | B163: Fornecimento, preparo e aplicação de concreto Fck=25 MPa (brita 1 e 2) - (5% de perdas já incluído no custo) | C163: m3 | D163: 620.9
A164: 40328 | B164: Fornecimento, dobragem e colocação em fôrma, de armadura CA-50 A média, diâmetro de 6.3 a 10.0 mm | C164: kg | D164: 7.07
A165: 40329 | B165: Fornecimento e aplicação de concreto USINADO Fck=20 MPa - considerando BOMBEAMENTO (5% de perdas já incluído no custo) (6% de taxa p/concr.bombeavel) | C165: m3 | D165: 372.74
A166: 40330 | B166: Fornecimento e aplicação de concreto USINADO Fck=25 MPa - considerando BOMBEAMENTO (5% de perdas já incluído no custo) (6% de taxa p/concr.bombeavel) | C166: m3 | D166: 385.12
A167: 40331 | B167: Fornecimento e aplicação de concreto USINADO Fck=30 MPa - considerando BOMBEAMENTO (5% de perdas já incluído no custo) (6% de taxa p/ concr. bombeavel) | C167: m3 | D167: 400.14
A168: 40332 | B168: Fornecimento, dobragem e colocação em fôrma, de armadura CA-50 A grossa, diâmetro de 12.5 a 25.0mm | C168: kg | D168: 7.55
A169: 40333 | B169: Fornecimento, dobragem e colocação em fôrma, de armadura CA-60 B fina, diâmetro de 4.0 a 7.0mm | C169: kg | D169: 7.15
A170: 40337 | B170: Fôrma em chapa de madeira compensada plastificada 12mm para estrutura em geral, 5 reaproveitamentos, reforçada com sarrafos de madeira 2.5x10cm (incl material, corte, montagem, escoras em eucalipto e desforma) | C170: m2 | D170: 131.37
A171: 40339 | B171: Forma de chapas madeira compensada resinada, esp. 12mm, levando-se em conta a utilização 3 vezes, reforçadas com sarrafos de madeira de 2.5 x 10.0cm (incl material, corte, montagem, escoras em eucalipto e desforma) | C171: m2 | D171: 162.53
A172: 404 | B172: ESTRUTURAS DE CONCRETO APARENTE
A173: 40405 | B173: Fôrma com chapa compensada plastificada esp. 12mm, utização 5 vezes | C173: m2 | D173: 137.09
A174: 406 | B174: LAJES PRÉ-MOLDADAS
A175: 40601 | B175: Laje pré-fabricada treliçada para forro simples revestido, vão até 3.5m, capeamento 2cm, esp. 10cm, Fck = 150Kg/cm2 | C175: m2 | D175: 94.77
A176: 40602 | B176: Laje pré-fabricada treliçada, sobrecarga 300 Kg/m2, vão de 3.5m a 4.3m, capeamento 4cm, esp. 12cm, Fck = 150 Kg/cm2 | C176: m2 | D176: 104.04
A177: 407 | B177: DIVERSOS
A178: 40705 | B178: Execução de junta de dilatação 2 x 2 cm considerando 1cm de aplicação de isopor e 1cm de aplicação de mastique elástico do tipo sikaflex 1a ou equivalente | C178: m | D178: 40.57
A179: 408 | B179: RECUPERAÇÃO DE ESTRUTURAS
A180: 40801 | B180: Remoção cuidadosa do concreto afetado, através de escarificação | C180: m3 | D180: 2,354.60
A181: 40802 | B181: Remoção cuidadosa do concreto afetado, através de escarificação (considerando esp. escarificada de 5cm) | C181: m2 | D181: 117.73
A182: 40803 | B182: Preparação do substrato para reparo em estrutura de concreto por apicoamento manual da superfície | C182: m2 | D182: 69.51
A183: 40806 | B183: Limpeza de aço com lixamento e escovamento com escova de aço, até a completa remoção de partículas soltas, materiais indesejáveis e corrosão | C183: m2 | D183: 20.85
A184: 40807 | B184: Aplicação de Sika Top 108 Armatec ou equivalente, nas ferragens a serem recuperadas | C184: m2 | D184: 61.01
A185: 40808 | B185: Retirada de ferragem corroída | C185: kg | D185: 4.19
A186: 40809 | B186: Recomposição de concreto danificado, com utilização de argamassa Sika Grout ou equivalente (considerando esp. 5cm) | C186: m2 | D186: 395.78
A187: 40810 | B187: Recomposição de concreto danificado, com utilização de argamassa Sika Grout ou equivalente | C187: m3 | D187: 7,248.91
A188: 40813 | B188: Impermeabilização de estrutura com Sika Top 107 ou equivalente | C188: m2 | D188: 73.33
A189: 40816 | B189: Aplicação de Oxiprimer ou equivalente, nas ferragens a serem recuperadas | C189: m2 | D189: 11.77
A190: 40817 | B190: Fornecimento e lançamento de concreto para grouteamento com adição de pedrisco (50% em peso), utilizando Sikagrout ou produto equivalente, exclusive forma | C190: m3 | D190: 2,832.64
A191: 40818 | B191: Revestimento externo com argamassa corretiva tipo Sika Monotop 622 BR ou equivalente, esp. 5mm | C191: m2 | D191: 58.64
A192: 409 | B192: MURO DE ARRIMO (Conc. ciclópico 15MPa c/ 30% de pedra de mão, c/ forn., preparo e aplicação de concreto, forma de tábua pinho-reap.5 vezes, exclusive escav. e reaterro) seções tipicas nas seguintes dimensões:
A193: 40901 | B193: Muro de arrimo em Conc. ciclópico 15MPa c/ 30% de pedra de mão, c/ forn., preparo e aplicação de concreto, forma de tábua pinho-reap.5 vezes, exclusive escav. e reaterro, seções tipicas nas dimensões:b=0.40m; B=0.70m e H=1.00m | C193: m | D193: 568.93
A194: 40902 | B194: Muro de arrimo em Conc. ciclópico 15MPa c/ 30% de pedra de mão, c/ forn., preparo e aplicação de concreto, forma de tábua pinho-reap.5 vezes, exclusive escav. e reaterro, seções tipicas nas dimensões:b=0.40m; B=0.90m e H=1,50m | C194: m | D194: 925.28
A195: 40903 | B195: Muro de arrimo em Conc. ciclópico 15MPa c/ 30% de pedra de mão, c/ forn., preparo e aplicação de concreto, forma de tábua pinho-reap.5 vezes, exclusive escav. e reaterro, seções tipicas nas dimensões:b=0.40m; B=1.05m e H=2.00m | C195: m | D195: 1,323.58
A196: 40904 | B196: Muro de arrimo em Conc. ciclópico 15MPa c/ 30% de pedra de mão, c/ forn., preparo e aplicação de concreto, forma de tábua pinho-reap.5 vezes, exclusive escav. e reaterro, seções tipicas nas dimensões:b=0.40m; B=1.23 e H=2.50m | C196: m | D196: 1,742.75
A197: 5 | B197: PAREDES E PAINÉIS
A198: 501 | B198: ALVENARIA DE VEDAÇÃO
A199: 50112 | B199: Cobogó de concreto 40 x 40 x 10 cm, tipo reto, assentados com argamassa de cimento e areia no traço 1:3, espessura das juntas 15 mm | C199: m2 | D199: 128.98
A200: 50115 | B200: Alvenaria em bloco de pedra argamassada com cimento e areia no traço 1:3 | C200: m3 | D200: 411.79
A201: 50122 | B201: Cobogó de concreto tipo cruzeta de 20 x 20 x 10 cm, assentado com argamassa de cimento, cal hidratada e areia no traço1:0,5:5, espessura das juntas de 10mm e espessura de parede 10cm | C201: m2 | D201: 136.75
... 1037 more rows

Sheet LABOR-INSU (hidden)
B2: Categoria: Mão-de-obra
B4: Código | C4: Descrição | D4: Und. | E4: Preço
B5: 1 | C5: INSUMOS DE MAO DE OBRA
B6: 101 | C6: MAO DE OBRA (SALARIOS)
B7: 10101 | C7: AJUDANTE | D7: H | E7: 5.34 | F7: MO
B8: 10106 | C8: AZULEJISTA | D8: H | E8: 6.33 | F8: MO
B9: 10108 | C9: CALCETEIRO/PINTOR | D9: H | E9: 6.33 | F9: MO
B10: 10111 | C10: CARPINTEIRO | D10: H | E10: 6.33 | F10: MO
B11: 10115 | C11: ELETRICISTA | D11: H | E11: 6.33 | F11: MO
B12: 10117 | C12: ELETROTECNICO MONTADOR | D12: H | E12: 12.01 | F12: MO
B13: 10118 | C13: ENCANADOR | D13: H | E13: 6.33 | F13: MO
B14: 10121 | C14: ARMADOR | D14: H | E14: 6.33 | F14: MO
B15: 10124 | C15: GRANITEIRO/MARMORISTA | D15: H | E15: 6.33 | F15: MO
B16: 10128 | C16: LADRILHISTA | D16: H | E16: 6.33 | F16: MO
B17: 10130 | C17: MONTADOR | D17: H | E17: 6.33 | F17: MO
B18: 10138 | C18: PASTILHEIRO | D18: H | E18: 6.33 | F18: MO
B19: 10139 | C19: PEDREIRO | D19: H | E19: 6.33 | F19: MO
B20: 10140 | C20: PINTOR | D20: H | E20: 6.33 | F20: MO
B21: 10146 | C21: SERVENTE | D21: H | E21: 4.65 | F21: MO
B22: 10150 | C22: TELHADISTA | D22: H | E22: 6.33 | F22: MO
B23: 102 | C23: MAO DE OBRA (SALARIOS) - CONTINUACAO
B24: 10209 | C24: TOPOGRAFO - (TECNICO 2O GRAU NIVEL C) | D24: H | E24: 9.77 | F24: MO
B25: 10233 | C25: NIVELADOR | D25: H | E25: 4.58 | F25: MO
B26: 10235 | C26: AUXILIAR DE CAMPO | D26: H | E26: 4.58 | F26: MO
B27: 10260 | C27: AJUDANTE MONTADOR ELETROMECÂNICO | D27: H | E27: 4.94 | F27: MO
B28: 10278 | C28: MONTADOR DE ESTRUTURA | D28: H | E28: 9.66 | F28: MO
B30: Categoria: Material
B32: Código | C32: Descrição | D32: Und. | E32: Preço
B33: 2 | C33: INSUMOS BASICOS - CIVIL
B34: 203 | C34: ELEMENTOS ESTRUTURAIS PRE-MOLDADOS
B35: 20356 | C35: MOURAO RETO DE CONCRETO BASE 10X10CM H=2.50M | D35: UN | E35: 35.37
B36: 204 | C36: AGREGADOS, AGLOMERANTES, MISTURADOS
B37: 20416 | C37: CONCRETO USINADO FCK 30 MPA | D37: M3 | E37: 247.85
B38: 20463 | C38: REJUNTE JUNTAPLUS FINA COR CINZA | D38: KG | E38: 5.76
B39: 20468 | C39: REJUNTE PORCELANATO QUARTZOLIT | D39: KG | E39: 7.4
B40: 205 | C40: AGREGADOS, AGLOMERANTES E MISTURAS
B41: 20503 | C41: AREIA LAVADA MEDIA | D41: M3 | E41: 62.92
B42: 20505 | C42: CAL HIDRATADO P/ ARGAMASSA CH III | D42: KG | E42: 0.67
B43: 20508 | C43: CIMENTO PORTLAND CP III - 40 | D43: KG | E43: 0.31
B44: 20509 | C44: CIMENTO BRANCO NAO ESTRUTURAL | D44: KG | E44: 2.91
B45: 20510 | C45: CIMENTO COLANTE INDUSTRIALIZADO AC I | D45: KG | E45: 0.51
B46: 20514 | C46: CONCRETO USINADO FCK 20 MPA | D46: M3 | E46: 228.99
B47: 20517 | C47: BRITA 1 | D47: M3 | E47: 72.45
B48: 20518 | C48: BRITA 2 | D48: M3 | E48: 72.45
B49: 20519 | C49: BRITA 3 | D49: M3 | E49: 72.45
B50: 20520 | C50: BRITA 4 | D50: M3 | E50: 72.45
B51: 20521 | C51: PEDRA DE MAO (RACHAO) | D51: M3 | E51: 68.55
B52: 20522 | C52: PEDRISCO | D52: M3 | E52: 90.63
B53: 20524 | C53: PO DE PEDRA | D53: M3 | E53: 58.83
B54: 20553 | C54: BRITA N.3 E 4 | D54: M3 | E54: 72.45
B55: 20554 | C55: BARRO PARA ATERRO | D55: M3 | E55: 29.17
B56: 20567 | C56: CONCRETO USINADO FCK 25 MPA | D56: M3 | E56: 237.51
B57: 20571 | C57: BRITA 1 E 2 (MEDIA) | D57: M3 | E57: 72.45
B58: 20572 | C58: ARGAMASSA FINA PRE FABRICADA P/ ASSENT E REJUNTE DE PASTILHAS | D58: KG | E58: 2.35
B59: 20578 | C59: AREIA FINA | D59: M3 | E59: 71.25
B60: 20580 | C60: AREIA PARA ATERRO | D60: M3 | E60: 41
B61: 20584 | C61: ARGAMASSA PARA GRAUTEAMENTO TIPO SIKAGROUT | D61: KG | E61: 1.26
B62: 20588 | C62: REJUNTE PRE-FABRICADA | D62: KG | E62: 5.21
B63: 207 | C63: AGREGADOS, AGLOMERANTES E MISTURAS
B64: 20732 | C64: ARGAM COLANTE FLEXIVEL AC III P/ ASSENT. PORCELANATO E PEDRAS (GRANITO E MÁRMORE) | D64: KG | E64: 1.63
B65: 20746 | C65: ARGAMASSA TIXOTROPICA SIKA MONOTOP 622 BR | D65: KG | E65: 3.52
B66: 209 | C66: MADEIRAS
B67: 20910 | C67: FORMICA BRANCA ACABAMENTO FROST 0,80MM | D67: M2 | E67: 27.39
B68: 210 | C68: MADEIRAS
B69: 21004 | C69: CHAPA COMPENSADO NAVAL PINHO ESP. 8MM | D69: M2 | E69: 27.67
B70: 21005 | C70: MADEIRA (PEROBA) | D70: M3 | E70: 3,166.67
B71: 21009 | C71: PONTALETE DE MADEIRA BRUTA 8.0 X 8.0 CM | D71: M | E71: 3.56
B72: 21016 | C72: SARRAFO DE MADEIRA DE LEI 10 X 2.5 CM (TAIPA DE 1A) | D72: M | E72: 7.39
B73: 21018 | C73: SARRAFO DE MADEIRA DE 2.5 X 8.0 CM BRUTA | D73: M | E73: 5.69
B74: 21021 | C74: TABUA DE MADEIRA DE LEI 2.5 X 30.0 CM (TAIPA DE 1A) | D74: M2 | E74: 120.33
B75: 21023 | C75: TACO P/ FIXACAO DE BATENTE/RODAPE 10X10X2,5 CM | D75: UN | E75: 3.3
B76: 21028 | C76: CHAPA COMPENSADO NAVAL ESP. 15 MM, DIM. 2.20 X 1.60 M | D76: FL | E76: 114.28
B77: 21030 | C77: CHAPA COMPENSADA RESINADA ESP. 6MM | D77: M2 | E77: 9.68
B78: 21031 | C78: CHAPA COMPENSADA RESINADA ESP. 10MM | D78: M2 | E78: 15.97
B79: 21032 | C79: CHAPA COMPENSADA RESINADA ESP. 12MM | D79: M2 | E79: 18.73
B80: 21033 | C80: CHAPA COMPENSADA PLASTIFICADA ESP. 12MM | D80: M2 | E80: 24.1
B81: 21040 | C81: PECA EM MADEIRA DE LEI 8.0 X 8.0 CM | D81: M | E81: 19.57
B82: 21041 | C82: PECA EM MADEIRA DE LEI 5.0 X 10.0 CM (APARELHADA) | D82: M | E82: 19.34
B83: 21042 | C83: PECA EM MADEIRA DE LEI 7.0 X 12.0 CM (APARELHADA) | D83: M | E83: 33.94
B84: 21043 | C84: PECA EM MADEIRA DE LEI 15.0 X 20.0 CM (APARELHADA) | D84: M | E84: 132.97
B85: 21060 | C85: RIPA EM MADEIRA DE LEI 1.5 X 5.0 CM | D85: M | E85: 5.45
B86: 21061 | C86: RIPA EM MADEIRA DE LEI 1.5 X 4.0 CM | D86: M | E86: 2.71
B87: 21085 | C87: MADEIRA PARA TELHADO EM PARAJU | D87: M3 | E87: 2,916.67
B88: 21089 | C88: RIPA DE 7 X 2 CM | D88: M | E88: 7.3
B89: 21090 | C89: FORMICA TIPO LOUSA ESCOLAR | D89: M2 | E89: 53.83
B90: 21091 | C90: FORMICA LISA BRILHANTE | D90: M2 | E90: 19.05
B91: 211 | C91: MADEIRAS - CONTINUACAO
B92: 21103 | C92: TABUA DE MADEIRA DE LEI 2.5 X 30.0 CM (TAIPA DE 1A) | D92: M | E92: 38.78
B93: 21106 | C93: PECA EM MADEIRA DE LEI 10.0 X 2.5 CM (BRUTA) | D93: M | E93: 11.73
B94: 21108 | C94: TABUA EM MADEIRA DE LEI DE 20 CM DE LARGURA | D94: M | E94: 23.8
B95: 21109 | C95: ESCORA DE EUCALIPTO (COMP.=3.50M) | D95: DZ | E95: 63.33
B96: 21111 | C96: PECA EM MADEIRA DE LEI 6X16CM (BRUTA) | D96: M | E96: 42.12
B97: 21118 | C97: PECA EM MADEIRA DE LEI 7X12CM (BRUTA) | D97: M | E97: 29.51
B98: 21144 | C98: PECA EM MADEIRA DE LEI 7X5CM (BRUTA) | D98: M | E98: 12.74
B99: 21151 | C99: PECA EM MADEIRA DE LEI 2X1 CM (BRUTA) | D99: M | E99: 2.66
B100: 21170 | C100: PECA EM MADEIRA DE LEI 8.5 X 2 CM (BRUTA) | D100: M | E100: 8.99
B101: 21188 | C101: PECA EM MADEIRA DE LEI 7 X 2 CM (BRUTA) | D101: M | E101: 7.65
B102: 212 | C102: FORMAS E ESCORAMENTOS
B103: 21205 | C103: ANDAIME MET TUBULAR FACHADA - LOCACAO (M/MÊS) | D103: M | E103: 6.2
B104: 21211 | C104: ANDAIME PARA FACHADA (LOCAÇÃO MENSAL) | D104: M2 | E104: 3.69
B105: 213 | C105: MADEIRAS - CONTINUACAO
B106: 21305 | C106: PECA DE MAD.DE LEI 5X7CM-APARELHADA | D106: M | E106: 14.43
B107: 21368 | C107: RIPA EM MADEIRA (MATERIAL DE 3ª) 5X2CM PINUS OU EQUIVALENTE | D107: M | E107: 2.67
B108: 215 | C108: ARMADURAS PARA CONCRETO
B109: 21516 | C109: ACO CA-50 DE 6.3MM | D109: KG | E109: 2.95
B110: 21517 | C110: ACO CA-50 DE 8.0MM | D110: KG | E110: 2.86
B111: 21521 | C111: ACO CA-50 DE 20.0MM | D111: KG | E111: 2.65
B112: 21532 | C112: ACO CA-60 DE 5.0MM | D112: KG | E112: 3.15
B113: 21543 | C113: TELA SOLDADA EM AÇO TIPO TELCON Q-138 P/ ARMADURA | D113: M2 | E113: 9.73
B114: 220 | C114: LAJES E PAINEIS PRE-FABRICADOS
B115: 22001 | C115: LAJE PRE-FABRICADA TRELIÇADA H=8CM - SOBRECARGA 200KG/M2 PARA FORRO - EXCLUSIVE CAPEAMENTO | D115: M2 | E115: 22.65
B116: 22002 | C116: LAJE PRE-FABRICADA TRELIÇADA H= 8CM - SOBRECARGA 300 KG/M2 - PARA PISO - EXCLUSIVE CAPEAMENTO | D116: M2 | E116: 22.9
B117: 225 | C117: VEDACAO (TIJOLOS E BLOCOS)
